Workbook

Sheet About JEDI
B3: JEDI - TRANSMISSION LINE
B5: Jobs and Economic Development Impact Model (JEDI)
B9: Release Number: TL12.23.16
B12: The Jobs and Economic Development Impact Model (JEDI) was developed in 2013 to demonstrate the economic benefits associated with transmission
B13: lines in the United States. The primary goal in developing the state level model was to provide a tool for system developers, renewable energy advocates,
B14: government officials, decision makers and other potential users, to easily identify the local economic impacts associated with constructing and maintaining
B15: these lines. The second goal was to facilitate broad access and usage of the model by making it adaptable to a web based application that can be put on
B16: a web site.
B17: Consistent with these goals, a strong emphasis was placed on designing the model in a user-friendly format that could be easily modified - reflecting
B18: different levels of project specific information and user skill. This insures the greatest flexibility, for inexperienced spreadsheet users, those unfamiliar with
B19: economic impact analysis, and more experienced and knowledgeable users who have a need for this specific type of analysis.
B20: Persons wishing more information on how and/or where the model is being used or the role of the National Renewable Energy Laboratory (NREL) in analyzing
B21: transmission lines and other energy technologies should contact NREL at:
B23: National Renewable Energy Laboratory
B24: 15013 Denver West Parkway
B25: Golden, CO. 80401
B26: Email: jedisupport@nrel.gov
B28: The model was developed by Marshall Goldberg of MRG & Associates, under contract with the National Renewable Energy Laboratory. Persons wishing
B29: more information on the methodology or data in the model should contact him at:
B31: MRG & Associates
B32: 17935 Starduster Dr.
B33: Nevada City, California, 95959
B34: Tel.: 530.432.9373
B35: Email: MRGAssociates@earthlink.net
B37: The JEDI model utilizes multipliers derived from IMPLAN data using the IMPLANTM Version 3.0 Social Accounting & Impact Analysis Software.
B38: Persons wishing more information on the IMPLAN data or the software should contact the IMPLAN Group.
B40: IMPLAN Group, LLC
B41: 16740 Birkdale Commons Parkway Suite 206
B42: Huntersville, North Carolina 28078
B43: Tel: 651.439.4421
B44: www.implan.com

Sheet Start
A3: JEDI - TRANSMISSION LINE
A4: Jobs and Economic Development Impact Model

Sheet FAQ
B2: JEDI - TRANSMISSION
B4: Jobs and Economic Development Model (JEDI)
B6: Frequently Asked Questions (FAQ)
B9: How can I determine which version of the JEDI model I have?
B10: The version (release number) of the model you are currently using is listed in the "About JEDI" worksheet contained in this model.
B12: When I open up the model I receive a security alert message stating "the macros in the file have been disabled," how do I change the security setting so I
B13: can run the model with the macros enabled?
B14: The message you are receiving is related to the level of security you have chosen in your Excel™ set up. To change the setting for opening files, open Excel™, on the
B15: top toolbar, click on "tools," then "macros" then "security." Reset the security level to "medium," this will enable you to choose to enable or disable macros each
B16: time you open a file. Alternately, the model can be successfully run with the macros disabled.
B18: How do I run a county or regional level analysis?
B19: Running a county or regional level analysis is similar to running a state level analysis, although there are two key differences users must keep in mind. First, the model
B20: does not contain county or regional level multipliers, thus users must obtain these and add them into the model. (See FAQ on obtaining county or regional level
B21: multipliers and how to add in the data) Second, to run a county or regional level analysis users must enter the county or regional population in the Project Description
B22: area. The population provides a reference for the model to automatically insert 'local share" defaults for the analysis.
B24: Where can I get county or regional level data to add-in to the model to run a county or region specific analysis?
B25: County level multipliers and personal consumption expenditure patterns are available from a number of sources. Users familiar with IMPLAN or input-output modeling can
B26: purchase the raw county level data and derive the multipliers themselves, purchase them from someone familiar with input-output modeling, purchase them directly from
B27: IMPLAN (www.implan.com), or contact MRG & Associates (mrgassociates@earthlink.net), the model developer.
B29: How do I add in county or regional level multipliers and the personal consumption expenditure data?
B30: Adding-in county or regional level multipliers and personal consumtption expenditure data involves going to the "User Add-in Location" worksheet in this model and
B31: cutting and pasting the data into their respective locations. With the data installed it is also necessary to insert the county or region name and the year of the data.
B33: What does the "local share" refer to?
B34: The "local share" refers to the percentage of each expenditure that is actually spent locally (i.e., in the state, county or region being analyzed). For example, if $1 million
B35: is going to be spent on construction materials and half ($500,000) of this total will be purchased from local suppliers, we say the "local share" is 50 percent.
B37: I want to make my analysis as accurate as possible, where can I get information to adjust the default "local share" values (in the ProjectData worksheet)
B38: for my state or county?
B39: Since the "local share" is directly related to the availability of local businesses and services and their ability to meet the construction and annual operating demands
B40: of the project, it is important to have an accurate picture of these local resources. This can be obtained in a number of ways: contacting experienced and knowlegeable
B41: persons in the area, contacting local business and contractor organizations and/or the local chamber of commerce, among others.
B43: I want to make my property tax estimates as accurate as possible, where can I get information to modify the tax rates in the ProjectData worksheet.
B44: for my state or county?
B45: Calculating annual property taxes is different in every state and typically a complex formula. The default methodology used in the model incorporates a generic formula
B46: that derives the taxes from the product of the assessed value (percentage of construction cost), the taxable value (percentage of assessed value) and the tax rate
B47: (percentage of taxable value). Alternately, users may input a know tax payment. Information of tax rates and formulas for calculating property taxes can often be found
B48: by contacting the state Dept. of Revenue or Taxation, or the local taxation authority.
B50: I am interested in viewing and possibly editting internal formulas within the model, how do I access them?
B51: The JEDI model contains several intermediate worksheets that are an integral part of the model analysis. These worksheets are not designed to be changed by users.
B52: Several of these worksheets, including default data, calculations, and deflators may be viewed by merely clicking on the respective worksheet and scrolling to the right.
B53: Although these sheets may be viewed by users they are protected and can not be editted. The model contains two additional worksheets: multipliers and household
B54: expenditures. These worksheets are hidden to protect proprietary data derived from IMPLAN (Minnesota Implan Group).
B56: Is additional technical support available?
B57: Yes, technical support is available by contacting the National Renewable Energy Laboratory. NREL can be reached by emailing jedisupport@nrel.gov.

Sheet ProjectData
A1: Transmission Line Project Data
A2: Please read instructions before getting started
A4: INSTRUCTIONS:
A5: 1. Begin by entering Project Location (from pull-down list) and other Project Descriptive Data relevant to your particular project. After inputting Descriptive Data press enter (or cursor to the next cell) to continue.
A6: 2. Once initial Project parameters are entered (lines 16-22), you may choose to perform a "Simple" analysis or an "Advanced" analysis.
A7: Choosing "Simple" Analysis indicates use of Model defaults, no editing of detailed cost data and other inputs.
A8: Choosing "Advanced" Analysis allows user to review and edit additional project descriptive data, detailed cost data and other inputs.
A9: If Simple Analysis is chosen, go directly to Summary Results; if Advanced Analysis is choosen, review/edit additional project descriptive data, detailed cost data and other inputs.
A10: 3. Press 'Go To Summary Impacts' Button
A11: NOTE: Additional information is available by pointing to the red triangles located in cell corners. Only those cells with a white background can be changed (i.e., accept edits).
A15: Project Descriptive Data | U15: =IF(B16="MYCOUNTY",IF(B17="",2,1),IF(B16="MYREGION",IF(B17="",2,1),0)) -> 0
A16: Project Location | B16: Texas | C16: =IF(B16="MYREGION",IF('User Add-in Location'!F24=0," Error - No Regional multiplier data in User Add-in Location",""),IF(B16="MYCOUNTY",IF('User Add-in Location'!E24=0," Error - No County multiplier data in User Add-in Location",""),"")) -> 
A17: Population (only required for County/Region analysis) | C17: =IF(B16="MYREGION",IF('User Add-in Location'!F24=0,"",IF(B16="MYREGION","Enter Region Population","")),IF(B16="MYCOUNTY",IF('User Add-in Location'!E24=0,"",IF(B16="MYCOUNTY","Enter County Population","")),"")) -> 
A18: Year of Construction/Installation | B18: 2014 | C18: =IF(C17="","",IF(B17<1,"**Error - Population Data Missing**","")) -> 
A19: Transmission Line Type | B19: 230 kV AC | C19: =IF(B19="500 kV HVDC"," Please note: HVDC is a Bi-Pole line.","") ->  | U19: =IF(B19=DefaultData!AN11,1,0) -> 0
A20: Transmission Line Length (Miles) | B20: 20
A21: Terrain Classification | B21: Flat w/access
A22: Population Density Classification (Right of Way access) | B22: Rural
V23: Simple
A24: Select Model Analysis Type (Simple or Advanced) | B24: Advanced | C24: =IF(U$24="y"," Press 'Go To Summary Impacts' Button",IF(U$24="N"," Review and or Edit default data below","Error - Choose 'Simple' or 'Advanced'")) -> Review and or Edit default data below | U24: =IF(B24="Simple","Y","N") -> N | V24: Advanced
A27: If desired, after editing, default values (in cells below) may be restored by pressing the 'Restore Default Values' button located at the buttom of the worksheet below all data. Note: it is not necessary to restore defaults to incorporate default Project Descriptive and Cost Data in system analysis. Choosing "Simple" analysis in cell B24 above will direct model to utilize default cost data in the analysis.
A29: Project Descriptive Data (cont.)
A30: Development and Preconstruction Activities Period (Years) | B30: ='Line Config Data'!$E12 -> 4 | Z30: ='Line Config Data'!$E12 -> 4
A31: Construction Period (Months) | B31: =$B20/'Line Config Data'!$E13 -> 5 | Z31: =$B20/'Line Config Data'!$E13 -> 5
A33: Circuits | B33: 1 | C33: =IF(B$33=0," Error - choose 1 for a Bi-Pole line with two poles -","") ->  | Z33: 1 | AA33: =IF(Z$33=0," Error - choose 1 for a Bi-Pole line with two poles -","") -> 
A34: New Substations Required | B34: 1 | C34: =IF(B$33=0," please revise. Model does not allow two Bi-Pole","") ->  | Z34: 1 | AA34: =IF(Z$33=0," please revise. Model does not allow two Bi-Pole","") -> 
A35: Positions Required for New Substations | B35: =IF(B33=1,2,3) -> 2 | C35: =IF(B$33=0," lines on the same structure.","") ->  | Z35: =IF(Z33=1,2,3) -> 2 | AA35: =IF(Z$33=0," lines on the same structure.","") -> 
A36: Substation Upgrades Required | B36: 1 | Z36: 1
A37: New Positions Added to Existing Substations (at line voltage) | B37: =B33 -> 1 | Z37: =Z33 -> 1
A38: New Converter Stations Required | B38: =DefaultData!$E5 -> 0 | C38: =IF(B19="500 kV HVDC",IF(B38=2,""," Error, Transmission Line Type entered above"),"") ->  | Z38: =DefaultData!$E5 -> 0 | AA38: =IF(Z19="500 kV HVDC",IF(Z38=2,""," Error, Transmission Line Type entered above"),"") -> 
A39: Grid System Voltage - existing grid side of transformer (kV) | B39: 115 | C39: =IF(B19="500 kV HVDC",IF(B38=2,""," requires two converter stations, please revise."),"") ->  | Z39: 115 | AA39: =IF(Z19="500 kV HVDC",IF(Z38=2,""," requires two converter stations, please revise."),"") -> 
A40: Right of Way (ROW) | B40: Public Land | C40: Private Land | Z40: Public Land | AA40: Private Land
A41: Share of Total Line Length (Percentage) | B41: 0.5 | C41: =1-B41 -> 0.5 | Z41: 0.5 | AA41: =1-Z41 -> 0.5
A42: Line Length (Miles) | B42: =B41*$B20 -> 10 | C42: =C41*$B20 -> 10 | Z42: =Z41*$B20 -> 10 | AA42: =AA41*$B20 -> 10
A43: Width (feet) | B43: ='Line Config Data'!$E10 -> 150 | C43: ='Line Config Data'!$E10 -> 150 | Z43: ='Line Config Data'!$E10 -> 150 | AA43: ='Line Config Data'!$E10 -> 150
A44: Area (acres) | B44: =B43*5280/43560*$B20*B41 -> 181.8181818 | C44: =((C43*5280*$B20)/43560)*C41 -> 181.8181818 | Z44: =Z43*5280/43560*$B20*Z41 -> 181.8181818 | AA44: =((AA43*5280*$B20)/43560)*AA41 -> 181.8181818
A45: Cost ($/acre) | B45: ='Line Config Data'!$D42 -> 100 | C45: ='Line Config Data'!$E42 -> 2000 | Z45: ='Line Config Data'!$D42 -> 100 | AA45: ='Line Config Data'!$E42 -> 2000
A47: Project represents a Federal Nexus (triggers NEPA) | B47: Yes | R47: Y | S47: Yes | Z47: Yes
A48: Project Cost ($Million/Mile) | B48: =DefaultData!$C65/DefaultData!$D5/10^6 -> 1.492971827 | C48: =IF(U$24="N"," User Revised Project Cost ($Million/Mile)","") -> User Revised Project Cost ($Million/Mile) | G48: =IF(U24="N",B107/B20/10^6,"") -> 1.492971827 | R48: N | S48: No | Z48: =DefaultData!$C65/DefaultData!$D5/10^6 -> 1.492971827 | AA48: =IF(AS$24="N"," User Revised Project Cost ($Million/Mile)","") ->  | AE48: =IF(AS24="N",Z107/Z20/10^6,"") -> 
A49: Annual Direct O&M Cost (% of Total Cost) | B49: =DefaultData!$E83 -> 0.008006258747 | C49: =IF(U$24="N"," User Revised Annual Direct O&M Cost (% of Cap Cost)","") -> User Revised Annual Direct O&M Cost (% of Cap Cost) | G49: =IF(U24="N",(B125-B124)/B107,"") -> 0.008006258747 | Z49: =DefaultData!$E83 -> 0.008006258747 | AA49: =IF(AS$24="N"," User Revised Annual Direct O&M Cost (% of Cap Cost)","") ->  | AE49: =IF(AS24="N",(Z125-Z124)/Z107,"") -> 
A50: Money Value (Dollar Year) | B50: 2012 | C50: =IF(B50>2030, " Dollar Year exceeds 2030, please revise.","") ->  | Z50: 2012 | AA50: =IF(Z50>2030, " Dollar Year exceeds 2030, please revise.","") -> 
A52: Project Cost Data
A53: =DefaultData!B13 -> Transmission Line Costs | B53: Cost | C53: Percent of Default P&C | D53: Cost Per Mile | E53: Percent of Total Cost | F53: Local Share (%) | AA53: Percent of Default P&C | AD53: Local Share (%)
A54: =DefaultData!B14 -> Development and Preconstruction Activites
A55: =DefaultData!B15 -> Land Acquisition Services | B55: =C55*DefaultData!AH$13 -> 375000 | C55: =DefaultData!$D15 -> 0.025 | D55: =B55/B$20 -> 18750 | E55: =B55/(B$107) -> 0.01255884382 | F55: =$U55 -> 0.5 | U55: =IF(U$15=0,DefaultData!$F15,IF(U$15=2,"Pop. Data Missing",IF($B$17<DefaultData!$G$12,DefaultData!$G15,IF($B$17<DefaultData!$H$12,DefaultData!$N15,IF($B$17<DefaultData!$I$12,DefaultData!$Q15,DefaultData!$T15))))) -> 0.5 | AA55: =DefaultData!$D15 -> 0.025 | AD55: =$U55 -> 0.5
A56: =DefaultData!B16 -> Private Land Acquisition Payment | B56: =C56*DefaultData!AH$13 -> 363636.3636 | C56: =DefaultData!$D16 -> 0.02424242424 | D56: =B56/B$20 -> 18181.81818 | E56: =B56/(B$107) -> 0.01217827279 | F56: 1 | U56: =IF(U$15=0,DefaultData!$F16,IF(U$15=2,"Pop. Data Missing",IF($B$17<DefaultData!$G$12,DefaultData!$G16,IF($B$17<DefaultData!$H$12,DefaultData!$N16,IF($B$17<DefaultData!$I$12,DefaultData!$Q16,DefaultData!$T16))))) -> 1 | AA56: =DefaultData!$D16 -> 0.02424242424 | AD56: 1
A57: =DefaultData!B17 -> Engineering/Surveying/Geotechnical Consulting Services | B57: =C57*DefaultData!AH$13 -> 900000 | C57: =DefaultData!$D17 -> 0.06 | D57: 45000 | E57: =B57/(B$107) -> 0.03014122516 | F57: 0.2 | U57: =IF(U$15=0,DefaultData!$F17,IF(U$15=2,"Pop. Data Missing",IF($B$17<DefaultData!$G$12,DefaultData!$G17,IF($B$17<DefaultData!$H$12,DefaultData!$N17,IF($B$17<DefaultData!$I$12,DefaultData!$Q17,DefaultData!$T17))))) -> 0.2 | AA57: =DefaultData!$D17 -> 0.06 | AD57: 0.2
A58: =DefaultData!B18 -> Environmental & Permitting Services | B58: =C58*DefaultData!AH$13 -> 675000 | C58: =DefaultData!$D18 -> 0.045 | D58: 33750 | E58: =B58/(B$107) -> 0.02260591887 | F58: 0.15 | U58: =IF(U$15=0,DefaultData!$F18,IF(U$15=2,"Pop. Data Missing",IF($B$17<DefaultData!$G$12,DefaultData!$G18,IF($B$17<DefaultData!$H$12,DefaultData!$N18,IF($B$17<DefaultData!$I$12,DefaultData!$Q18,DefaultData!$T18))))) -> 0.15 | AA58: =DefaultData!$D18 -> 0.045 | AD58: 0.15
A59: =DefaultData!B19 -> Subtotal Development and Preconstruction | B59: =SUM(B55:B58) -> 2313636.364 | C59: =SUM(C55:C58) -> 0.1542424242 | D59: =SUM(D55:D58) -> 115681.8182 | E59: =SUM(E55:E58) -> 0.07748426064 | AA59: =SUM(AA55:AA58) -> 0.1542424242
A60: =DefaultData!B20 -> Construction Activities
A61: =DefaultData!B21 -> Materials & Equipment
A62: =DefaultData!B22 -> Concrete, gravel, asphalt | B62: =C62*DefaultData!AH$13 -> 600000 | C62: =DefaultData!$D22 -> 0.04 | D62: =B62/B$20 -> 30000 | E62: =B62/(B$107) -> 0.02009415011 | F62: =$U62 -> 1 | P62: =F62*B62 -> 600000 | U62: =IF(U$15=0,DefaultData!$F22,IF(U$15=2,"Pop. Data Missing",IF($B$17<DefaultData!$G$12,DefaultData!$G22,IF($B$17<DefaultData!$H$12,DefaultData!$N22,IF($B$17<DefaultData!$I$12,DefaultData!$Q22,DefaultData!$T22))))) -> 1 | AA62: =DefaultData!$D22 -> 0.04 | AD62: =$U62 -> 1
A63: =DefaultData!B23 -> Steel structures and poles | B63: =C63*DefaultData!AH$13 -> 4950000 | C63: =DefaultData!$D23 -> 0.33 | D63: 247500 | E63: =B63/(B$107) -> 0.1657767384 | F63: =$U63 -> 0 | P63: 0 | U63: =IF(U$15=0,DefaultData!$F23,IF(U$15=2,"Pop. Data Missing",IF($B$17<DefaultData!$G$12,DefaultData!$G23,IF($B$17<DefaultData!$H$12,DefaultData!$N23,IF($B$17<DefaultData!$I$12,DefaultData!$Q23,DefaultData!$T23))))) -> 0 | AA63: =DefaultData!$D23 -> 0.33 | AD63: =$U63 -> 0
A64: =DefaultData!B24 -> Overhead wires (conductor and insulators and shield wire) | B64: =C64*DefaultData!AH$13 -> 3300000 | C64: =DefaultData!$D24 -> 0.22 | D64: 165000 | E64: =B64/(B$107) -> 0.1105178256 | F64: =$U64 -> 0 | P64: 0 | U64: =IF(U$15=0,DefaultData!$F24,IF(U$15=2,"Pop. Data Missing",IF($B$17<DefaultData!$G$12,DefaultData!$G24,IF($B$17<DefaultData!$H$12,DefaultData!$N24,IF($B$17<DefaultData!$I$12,DefaultData!$Q24,DefaultData!$T24))))) -> 0 | AA64: =DefaultData!$D24 -> 0.22 | AD64: =$U64 -> 0
A65: =DefaultData!B25 -> Subtotal Materials & Equipment | B65: =SUM(B62:B64) -> 8850000 | C65: =SUM(C62:C64) -> 0.59 | D65: =SUM(D62:D64) -> 442500 | E65: =SUM(E62:E64) -> 0.2963887141 | P65: =SUM(P62:P64) -> 600000 | AA65: =SUM(AA62:AA64) -> 0.59
A66: =DefaultData!B26 -> Labor/Installation
A67: =DefaultData!B27 -> Civil (grading, roads, site prep, foundations, fencing) | B67: =C67*DefaultData!AH$13 -> 1765400.18 | C67: =DefaultData!$D27 -> 0.1176933453 | D67: =B67/B$20 -> 88270.00899 | E67: =B67/(B$107) -> 0.05912369369 | F67: =$U67 -> 0.8 | U67: =IF(U$15=0,DefaultData!$F27,IF(U$15=2,"Pop. Data Missing",IF($B$17<DefaultData!$G$12,DefaultData!$G27,IF($B$17<DefaultData!$H$12,DefaultData!$N27,IF($B$17<DefaultData!$I$12,DefaultData!$Q27,DefaultData!$T27))))) -> 0.8 | AA67: =DefaultData!$D27 -> 0.1176933453 | AD67: =$U67 -> 0.8
A68: =DefaultData!B28 -> Heavy Construction (Tower erection, Conductor stringing) | B68: =C68*DefaultData!AH$13 -> 3276000 | C68: =DefaultData!$D28 -> 0.2184 | D68: 163800 | E68: =B68/(B$107) -> 0.1097140596 | F68: =$U68 -> 0.5 | U68: =IF(U$15=0,DefaultData!$F28,IF(U$15=2,"Pop. Data Missing",IF($B$17<DefaultData!$G$12,DefaultData!$G28,IF($B$17<DefaultData!$H$12,DefaultData!$N28,IF($B$17<DefaultData!$I$12,DefaultData!$Q28,DefaultData!$T28))))) -> 0.5 | AA68: =DefaultData!$D28 -> 0.2184 | AD68: =$U68 -> 0.5
A69: =DefaultData!B29 -> Subtotal Labor/Installation | B69: =SUM(B67:B68) -> 5041400.18 | C69: =SUM(C67:C68) -> 0.3360933453 | D69: =SUM(D67:D68) -> 252070.009 | E69: =SUM(E67:E68) -> 0.1688377533 | AA69: =SUM(AA67:AA68) -> 0.3360933453
A70: =DefaultData!B30 -> Total Transmission Line Cost | B70: =B69+B65+B59 -> 16205036.54 | C70: =C69+C65+C59 -> 1.08033577 | D70: =D69+D65+D59 -> 810251.8272 | E70: =E69+E65+E59 -> 0.542710728 | AA70: =AA69+AA65+AA59 -> 1.08033577
A72: =DefaultData!B31 -> Infrastructure Costs | B72: Cost | C72: Cost Per Unit | D72: Cost Per Mile | E72: Percent of Total Cost | F72: Local Share (%) | AA72: Cost Per Unit | AD72: Local Share (%)
A73: =DefaultData!B32 -> Materials & Equipment
A74: =DefaultData!B33 -> Positions (new bays/circuits) | B74: =C74*(B$35+B$37) -> 1800000 | C74: =DefaultData!$D33 -> 600000 | D74: =B74/B$20 -> 90000 | E74: =B74/(B$107) -> 0.06028245032 | F74: =$U74 -> 0.05 | P74: =F74*B74 -> 90000 | U74: =IF(U$15=0,DefaultData!$F33,IF(U$15=2,"Pop. Data Missing",IF($B$17<DefaultData!$G$12,DefaultData!$G33,IF($B$17<DefaultData!$H$12,DefaultData!$N33,IF($B$17<DefaultData!$I$12,DefaultData!$Q33,DefaultData!$T33))))) -> 0.05 | AA74: =DefaultData!$D33 -> 600000 | AD74: =$U74 -> 0.05
A75: =DefaultData!B34 -> New Substation Facilities | B75: =C75*B$34 -> 650000 | C75: =DefaultData!$D34 -> 650000 | D75: 32500 | E75: =B75/(B$107) -> 0.02176866262 | F75: 0.1 | P75: 65000 | U75: =IF(U$15=0,DefaultData!$F34,IF(U$15=2,"Pop. Data Missing",IF($B$17<DefaultData!$G$12,DefaultData!$G34,IF($B$17<DefaultData!$H$12,DefaultData!$N34,IF($B$17<DefaultData!$I$12,DefaultData!$Q34,DefaultData!$T34))))) -> 0.1 | AA75: =DefaultData!$D34 -> 650000 | AD75: 0.1
A76: =DefaultData!B35 -> Existing Substation Facilities (upgrades) | B76: =C76*B$36 -> 20000 | C76: =DefaultData!$D35 -> 20000 | D76: 1000 | E76: =B76/(B$107) -> 0.0006698050035 | F76: 0.1 | P76: 2000 | U76: =IF(U$15=0,DefaultData!$F35,IF(U$15=2,"Pop. Data Missing",IF($B$17<DefaultData!$G$12,DefaultData!$G35,IF($B$17<DefaultData!$H$12,DefaultData!$N35,IF($B$17<DefaultData!$I$12,DefaultData!$Q35,DefaultData!$T35))))) -> 0.1 | AA76: =DefaultData!$D35 -> 20000 | AD76: 0.1
A77: =DefaultData!B36 -> Transformers, Series Compensation, etc. | B77: =C77 -> 4800000 | C77: =DefaultData!$D36 -> 4800000 | D77: 240000 | E77: =B77/(B$107) -> 0.1607532009 | F77: =$U77 -> 0 | P77: 0 | U77: =IF(U$15=0,DefaultData!$F36,IF(U$15=2,"Pop. Data Missing",IF($B$17<DefaultData!$G$12,DefaultData!$G36,IF($B$17<DefaultData!$H$12,DefaultData!$N36,IF($B$17<DefaultData!$I$12,DefaultData!$Q36,DefaultData!$T36))))) -> 0 | AA77: =DefaultData!$D36 -> 4800000 | AD77: =$U77 -> 0
A78: =DefaultData!B37 -> Converter Station (includes ground electrode) | B78: =C78*DefaultData!E$5 -> 0 | C78: =DefaultData!$D37 -> 0 | D78: 0 | E78: =B78/(B$107) -> 0 | F78: =$U78 -> 0 | P78: 0 | U78: =IF(U$15=0,DefaultData!$F37,IF(U$15=2,"Pop. Data Missing",IF($B$17<DefaultData!$G$12,DefaultData!$G37,IF($B$17<DefaultData!$H$12,DefaultData!$N37,IF($B$17<DefaultData!$I$12,DefaultData!$Q37,DefaultData!$T37))))) -> 0 | AA78: =DefaultData!$D37 -> 0 | AD78: =$U78 -> 0
A79: =DefaultData!B38 -> Subtotal Materials & Equipment | B79: =SUM(B74:B78) -> 7270000 | C79: =SUM(C74:C78) -> 6070000 | D79: 363500 | E79: =SUM(E74:E78) -> 0.2434741188 | P79: =SUM(P74:P78) -> 157000 | AA79: =SUM(AA74:AA78) -> 6070000
A80: =DefaultData!B39 -> Labor
A81: =DefaultData!B40 -> Positions (new bays/circuits) | B81: =C81*(B$35+B$37) -> 2092500 | C81: =DefaultData!$D40 -> 697500 | D81: =B81/B$20 -> 104625 | E81: =B81/(B$107) -> 0.0700783485 | F81: =$U81 -> 0.2 | P81: =F81*B81 -> 418500 | U81: =IF(U$15=0,DefaultData!$F40,IF(U$15=2,"Pop. Data Missing",IF($B$17<DefaultData!$G$12,DefaultData!$G40,IF($B$17<DefaultData!$H$12,DefaultData!$N40,IF($B$17<DefaultData!$I$12,DefaultData!$Q40,DefaultData!$T40))))) -> 0.2 | AA81: =DefaultData!$D40 -> 697500 | AD81: =$U81 -> 0.2
A82: =DefaultData!B41 -> New Substation | B82: =C82*B$34 -> 744000 | C82: =DefaultData!$D41 -> 744000 | D82: 37200 | E82: =B82/(B$107) -> 0.02491674613 | F82: =$U82 -> 0.3 | P82: 223200 | U82: =IF(U$15=0,DefaultData!$F41,IF(U$15=2,"Pop. Data Missing",IF($B$17<DefaultData!$G$12,DefaultData!$G41,IF($B$17<DefaultData!$H$12,DefaultData!$N41,IF($B$17<DefaultData!$I$12,DefaultData!$Q41,DefaultData!$T41))))) -> 0.3 | AA82: =DefaultData!$D41 -> 744000 | AD82: =$U82 -> 0.3
A83: =DefaultData!B42 -> Existing Substation Facilities (upgrades) | B83: =C83*B$36 -> 27900 | C83: =DefaultData!$D42 -> 27900 | D83: 1395 | E83: =B83/(B$107) -> 0.00093437798 | F83: =$U83 -> 0.2 | P83: 5580 | U83: =IF(U$15=0,DefaultData!$F42,IF(U$15=2,"Pop. Data Missing",IF($B$17<DefaultData!$G$12,DefaultData!$G42,IF($B$17<DefaultData!$H$12,DefaultData!$N42,IF($B$17<DefaultData!$I$12,DefaultData!$Q42,DefaultData!$T42))))) -> 0.2 | AA83: =DefaultData!$D42 -> 27900 | AD83: =$U83 -> 0.2
A84: =DefaultData!B43 -> Transformers, Series Compensation, etc. | B84: =C84 -> 0 | C84: =DefaultData!$D43 -> 0 | D84: 0 | E84: =B84/(B$107) -> 0 | F84: =$U84 -> 0.2 | P84: 0 | U84: =IF(U$15=0,DefaultData!$F43,IF(U$15=2,"Pop. Data Missing",IF($B$17<DefaultData!$G$12,DefaultData!$G43,IF($B$17<DefaultData!$H$12,DefaultData!$N43,IF($B$17<DefaultData!$I$12,DefaultData!$Q43,DefaultData!$T43))))) -> 0.2 | AA84: =DefaultData!$D43 -> 0 | AD84: =$U84 -> 0.2
A85: =DefaultData!B44 -> Converter Station | B85: =C85*DefaultData!E$5 -> 0 | C85: =DefaultData!$D44 -> 0 | D85: 0 | E85: =B85/(B$107) -> 0 | F85: =$U85 -> 0.05 | P85: 0 | U85: =IF(U$15=0,DefaultData!$F44,IF(U$15=2,"Pop. Data Missing",IF($B$17<DefaultData!$G$12,DefaultData!$G44,IF($B$17<DefaultData!$H$12,DefaultData!$N44,IF($B$17<DefaultData!$I$12,DefaultData!$Q44,DefaultData!$T44))))) -> 0.05 | AA85: =DefaultData!$D44 -> 0 | AD85: =$U85 -> 0.05
A86: =DefaultData!B45 -> Subtotal Labor | B86: =SUM(B81:B85) -> 2864400 | C86: =SUM(C81:C85) -> 1469400 | D86: =SUM(D81:D85) -> 143220 | E86: =SUM(E81:E85) -> 0.09592947261 | P86: 0 | AA86: =SUM(AA81:AA85) -> 1469400
A87: =DefaultData!B46 -> Total Infrastructure Costs | B87: =B86+B79 -> 10134400 | C87: =C86+C79 -> 7539400 | D87: =D86+D79 -> 506720 | E87: =E86+E79 -> 0.3394035914 | AA87: =AA86+AA79 -> 7539400
A89: =DefaultData!B47 -> Services/Other Costs | B89: Cost | C89: Percent of Default P&C | D89: Cost Per Mile | E89: Percent of Total Cost | F89: Local Share (%) | AA89: Percent of Default P&C | AD89: Local Share (%)
A90: =DefaultData!B48 -> Transmission Line Services
A91: =DefaultData!B49 -> T-Line Management Services (Site mgmt, legal, lands, ins, PR, etc.) | B91: =C91*DefaultData!AH$13 -> 375000 | C91: =DefaultData!$D49 -> 0.025 | D91: =B91/B$20 -> 18750 | E91: =B91/(B$107) -> 0.01255884382 | F91: =$U91 -> 0.6 | P91: =F91*B91 -> 225000 | U91: =IF(U$15=0,DefaultData!$F49,IF(U$15=2,"Pop. Data Missing",IF($B$17<DefaultData!$G$12,DefaultData!$G49,IF($B$17<DefaultData!$H$12,DefaultData!$N49,IF($B$17<DefaultData!$I$12,DefaultData!$Q49,DefaultData!$T49))))) -> 0.6 | AA91: =DefaultData!$D49 -> 0.025 | AD91: =$U91 -> 0.6
A92: =DefaultData!B50 -> T-Line Engineering, Const Mgmt, & Environmental Monitoring | B92: =C92*DefaultData!AH$13 -> 750000 | C92: =DefaultData!$D50 -> 0.05 | D92: =B92/B$20 -> 37500 | E92: =B92/(B$107) -> 0.02511768763 | F92: =$U92 -> 0.6 | P92: 450000 | U92: =IF(U$15=0,DefaultData!$F50,IF(U$15=2,"Pop. Data Missing",IF($B$17<DefaultData!$G$12,DefaultData!$G50,IF($B$17<DefaultData!$H$12,DefaultData!$N50,IF($B$17<DefaultData!$I$12,DefaultData!$Q50,DefaultData!$T50))))) -> 0.6 | AA92: =DefaultData!$D50 -> 0.05 | AD92: =$U92 -> 0.6
A93: =DefaultData!B51 -> Subtotal | B93: =SUM(B91:B92) -> 1125000 | C93: =SUM(C91:C92) -> 0.075 | D93: =SUM(D91:D92) -> 56250 | E93: =SUM(E91:E92) -> 0.03767653145 | AA93: =SUM(AA91:AA92) -> 0.075
A94: =DefaultData!B52 -> Infrastructure Services | C94: Percent of Default Subtation P&C | AA94: Percent of Default Subtation P&C
A95: =DefaultData!B53 -> Substation Management Services (Site mgmt, legal, lands, PR, etc.) | B95: =C95*DefaultData!AH$14 -> 222000 | C95: =DefaultData!$D53 -> 0.04 | D95: 11100 | E95: =B95/(B$107) -> 0.007434835539 | F95: =$U95 -> 0.5 | P95: =F95*B95 -> 111000 | U95: =IF(U$15=0,DefaultData!$F53,IF(U$15=2,"Pop. Data Missing",IF($B$17<DefaultData!$G$12,DefaultData!$G53,IF($B$17<DefaultData!$H$12,DefaultData!$N53,IF($B$17<DefaultData!$I$12,DefaultData!$Q53,DefaultData!$T53))))) -> 0.5 | AA95: =DefaultData!$D53 -> 0.04 | AD95: 0.5
A96: =DefaultData!B54 -> Substation Engineering, Const Mgmt, & Environmental Monitoring | B96: =C96*DefaultData!AH$14 -> 1110000 | C96: =DefaultData!$D54 -> 0.2 | D96: 55500 | E96: =B96/(B$107) -> 0.0371741777 | F96: 0.2 | P96: 222000 | U96: =IF(U$15=0,DefaultData!$F54,IF(U$15=2,"Pop. Data Missing",IF($B$17<DefaultData!$G$12,DefaultData!$G54,IF($B$17<DefaultData!$H$12,DefaultData!$N54,IF($B$17<DefaultData!$I$12,DefaultData!$Q54,DefaultData!$T54))))) -> 0.2 | AA96: =DefaultData!$D54 -> 0.2 | AD96: 0.2
A97: =DefaultData!B55 -> Subtotal | B97: =SUM(B95:B96) -> 1332000 | C97: =SUM(C95:C96) -> 0.24 | D97: =SUM(D95:D96) -> 66600 | E97: =SUM(E95:E96) -> 0.04460901324 | AA97: =SUM(AA95:AA96) -> 0.24
A98: =DefaultData!B56 -> Other Costs
A99: =DefaultData!B57 -> Environmental Mitigation | B99: =DefaultData!C57 -> 0 | D99: 0 | E99: =B99/(B$107) -> 0 | F99: =$U99 -> 0.7 | P99: =F99*B99 -> 0 | U99: =IF(U$15=0,DefaultData!$F57,IF(U$15=2,"Pop. Data Missing",IF($B$17<DefaultData!$G$12,DefaultData!$G57,IF($B$17<DefaultData!$H$12,DefaultData!$N57,IF($B$17<DefaultData!$I$12,DefaultData!$Q57,DefaultData!$T57))))) -> 0.7 | Z99: =DefaultData!AA57 -> 0 | AD99: 0.7
A100: =DefaultData!B58 -> System Operator and Regulator Fees | B100: =DefaultData!C58 -> 0 | D100: 0 | E100: =B100/(B$107) -> 0 | F100: 0.1 | P100: 0 | U100: =IF(U$15=0,DefaultData!$F58,IF(U$15=2,"Pop. Data Missing",IF($B$17<DefaultData!$G$12,DefaultData!$G58,IF($B$17<DefaultData!$H$12,DefaultData!$N58,IF($B$17<DefaultData!$I$12,DefaultData!$Q58,DefaultData!$T58))))) -> 0.1 | Z100: =DefaultData!AA58 -> 0 | AD100: 0.1
A101: =DefaultData!B59 -> Miscellanous Business Services and Utilities | B101: =DefaultData!C59 -> 0 | D101: 0 | E101: =B101/(B$107) -> 0 | F101: 0.2 | P101: 0 | U101: =IF(U$15=0,DefaultData!$F59,IF(U$15=2,"Pop. Data Missing",IF($B$17<DefaultData!$G$12,DefaultData!$G59,IF($B$17<DefaultData!$H$12,DefaultData!$N59,IF($B$17<DefaultData!$I$12,DefaultData!$Q59,DefaultData!$T59))))) -> 0.2 | Z101: =DefaultData!AA59 -> 0 | AD101: 0.2
A102: =DefaultData!B60 -> Construction Insurance (Substation) | B102: =C102*DefaultData!AH$14 -> 55500 | C102: =DefaultData!$D60 -> 0.01 | D102: 2775 | E102: =B102/(B$107) -> 0.001858708885 | F102: 0 | P102: 0 | U102: =IF(U$15=0,DefaultData!$F60,IF(U$15=2,"Pop. Data Missing",IF($B$17<DefaultData!$G$12,DefaultData!$G60,IF($B$17<DefaultData!$H$12,DefaultData!$N60,IF($B$17<DefaultData!$I$12,DefaultData!$Q60,DefaultData!$T60))))) -> 0 | AA102: =DefaultData!$D60 -> 0.01 | AD102: 0
A103: =DefaultData!B61 -> Subtotal Other Costs | B103: =SUM(B99:B102) -> 55500 | D103: =SUM(D96:D102) -> 124875 | E103: =SUM(E99:E102) -> 0.001858708885
A104: =DefaultData!B62 -> Total Services/Other Costs | B104: =B103+B97+B93 -> 2512500 | D104: =D103+D97+D93 -> 247725 | E104: =E103+E97+E93 -> 0.08414425357
A105: =DefaultData!B63 -> Subtotal All Costs (without sales tax) | B105: =B104+B87+B70 -> 28851936.54 | D105: =D104+D87+D70 -> 1564696.827 | E105: =E104+E87+E70 -> 0.9662585729
A106: Sales Tax | B106: =(B79+B65)*B$146 -> 1007500 | D106: =B106/B$20 -> 50375 | E106: =B106/(B$107) -> 0.03374142705 | F106: =$E$146 -> 1 | P106: =P79+P65 -> 757000 | U106: =DefaultData!E105 -> 1 | Z106: =(Z79+Z65)*Z$146 -> 0 | AD106: =$E$146 -> 1
A107: Total Capital Cost | B107: =B106+B105 -> 29859436.54 | D107: =D106+D105 -> 1615071.827 | E107: =E106+E105 -> 1
A109: =DefaultData!B68 -> Annual Operating and Maintenance Costs
B110: Cost | D110: Cost | E110: Percent of | F110: Local | AB110: Cost | AD110: Local
A111: =DefaultData!B69 -> Transmission Line and ROW | D111: Per Mile | E111: O&M Cost | F111: Share (%) | AB111: Per Mile | AD111: Share (%)
A112: =DefaultData!B70 -> T-Line/ROW Labor | B112: =D112*B$20 -> 139104 | D112: =DefaultData!D70 -> 6955.2 | E112: =B112/B$125 -> 0.5407469 | F112: =$U112 -> 0.6 | P112: =F112*B112 -> 83462.4 | U112: =IF(U$15=0,DefaultData!$F70,IF(U$15=2,"Pop. Data Missing",IF($B$17<DefaultData!$G$12,DefaultData!$G70,IF($B$17<DefaultData!$H$12,DefaultData!$N70,IF($B$17<DefaultData!$I$12,DefaultData!$Q70,DefaultData!$T70))))) -> 0.6 | AB112: =DefaultData!AB70 -> 0 | AD112: =$U112 -> 0.6
A113: =DefaultData!B71 -> T-Line/ROW Maintenance Materials | B113: =D113*B$20 -> 34400 | D113: =DefaultData!D71 -> 1720 | E113: =B113/B$125 -> 0.1337250788 | F113: =$U113 -> 0.1 | P113: 3440 | U113: =IF(U$15=0,DefaultData!$F71,IF(U$15=2,"Pop. Data Missing",IF($B$17<DefaultData!$G$12,DefaultData!$G71,IF($B$17<DefaultData!$H$12,DefaultData!$N71,IF($B$17<DefaultData!$I$12,DefaultData!$Q71,DefaultData!$T71))))) -> 0.1 | AB113: =DefaultData!AB71 -> 0 | AD113: =$U113 -> 0.1
A114: =DefaultData!B72 -> Insurance | B114: =D114*B$20 -> 20000 | D114: =DefaultData!D72 -> 1000 | E114: =B114/B$125 -> 0.07774713883 | F114: 0 | P114: 0 | U114: =IF(U$15=0,DefaultData!$F72,IF(U$15=2,"Pop. Data Missing",IF($B$17<DefaultData!$G$12,DefaultData!$G72,IF($B$17<DefaultData!$H$12,DefaultData!$N72,IF($B$17<DefaultData!$I$12,DefaultData!$Q72,DefaultData!$T72))))) -> 0 | AB114: =DefaultData!AB72 -> 0 | AD114: 0
A115: =DefaultData!B73 -> Replacement Parts/Equipment/ Spare Parts Inventory | B115: =D115*B$20 -> 20000 | D115: =DefaultData!D73 -> 1000 | E115: =B115/B$125 -> 0.07774713883 | F115: 0 | P115: 0 | U115: =IF(U$15=0,DefaultData!$F73,IF(U$15=2,"Pop. Data Missing",IF($B$17<DefaultData!$G$12,DefaultData!$G73,IF($B$17<DefaultData!$H$12,DefaultData!$N73,IF($B$17<DefaultData!$I$12,DefaultData!$Q73,DefaultData!$T73))))) -> 0 | AB115: =DefaultData!AB73 -> 0 | AD115: 0
A116: =DefaultData!B74 -> Subtotal | B116: =SUM(B112:B115) -> 213504 | D116: =SUM(D112:D115) -> 10675.2 | E116: =B116/B$125 -> 0.8299662564 | P116: 0 | U116: =IF(U$15=0,DefaultData!$F74,IF(U$15=2,"Pop. Data Missing",IF($B$17<DefaultData!$G$12,DefaultData!$G74,IF($B$17<DefaultData!$H$12,DefaultData!$N74,IF($B$17<DefaultData!$I$12,DefaultData!$Q74,DefaultData!$T74))))) -> 0 | AB116: =SUM(AB112:AB115) -> 0
A117: =DefaultData!B75 -> Substation/Converter Station | C117: Percent of Default Subtation P&C | AA117: Percent of Default Subtation P&C
A118: =DefaultData!B76 -> Labor/Personnel | B118: =C118*DefaultData!AH$14 -> 5161.5 | C118: =DefaultData!D76 -> 0.00093 | D118: =B118/B$20 -> 258.075 | E118: =B118/B$125 -> 0.02006459285 | F118: =$U118 -> 0.5 | P118: =F118*B118 -> 2580.75 | U118: =IF(U$15=0,DefaultData!$F76,IF(U$15=2,"Pop. Data Missing",IF($B$17<DefaultData!$G$12,DefaultData!$G76,IF($B$17<DefaultData!$H$12,DefaultData!$N76,IF($B$17<DefaultData!$I$12,DefaultData!$Q76,DefaultData!$T76))))) -> 0.5 | AA118: =DefaultData!AB76 -> 0 | AD118: =$U118 -> 0.5
A119: =DefaultData!B77 -> Insurance | B119: =C119*DefaultData!AH$14 -> 11100 | C119: =DefaultData!D77 -> 0.002 | D119: 555 | E119: =B119/B$125 -> 0.04314966205 | F119: =$U119 -> 0 | P119: 0 | U119: =IF(U$15=0,DefaultData!$F77,IF(U$15=2,"Pop. Data Missing",IF($B$17<DefaultData!$G$12,DefaultData!$G77,IF($B$17<DefaultData!$H$12,DefaultData!$N77,IF($B$17<DefaultData!$I$12,DefaultData!$Q77,DefaultData!$T77))))) -> 0 | AA119: =DefaultData!AB77 -> 0 | AD119: =$U119 -> 0
A120: =DefaultData!B78 -> Replacement Parts/Equipment/ Spare Parts Inventory | B120: =C120*DefaultData!AH$14 -> 5550 | C120: =DefaultData!D78 -> 0.001 | D120: 277.5 | E120: =B120/B$125 -> 0.02157483102 | F120: =$U120 -> 0 | P120: 0 | U120: =IF(U$15=0,DefaultData!$F78,IF(U$15=2,"Pop. Data Missing",IF($B$17<DefaultData!$G$12,DefaultData!$G78,IF($B$17<DefaultData!$H$12,DefaultData!$N78,IF($B$17<DefaultData!$I$12,DefaultData!$Q78,DefaultData!$T78))))) -> 0 | AA120: =DefaultData!AB78 -> 0 | AD120: =$U120 -> 0
A121: =DefaultData!B79 -> Subtotal | B121: =SUM(B118:B120) -> 21811.5 | C121: =SUM(C118:C120) -> 0.00393 | D121: 1090.575 | E121: =SUM(E118:E120) -> 0.08478908593 | P121: 0 | U121: =IF(U$15=0,DefaultData!$F79,IF(U$15=2,"Pop. Data Missing",IF($B$17<DefaultData!$G$12,DefaultData!$G79,IF($B$17<DefaultData!$H$12,DefaultData!$N79,IF($B$17<DefaultData!$I$12,DefaultData!$Q79,DefaultData!$T79))))) -> 0 | AA121: =SUM(AA118:AA120) -> 0
A122: =DefaultData!B80 -> Subtotal All O&M Costs (without sales tax) | B122: =B121+B116 -> 235315.5 | C122: =SUM(C118:C121) -> 0.00786 | D122: =SUM(D118:D121) -> 2181.15 | E122: =E121+E116 -> 0.9147553423 | AA122: =SUM(AA118:AA121) -> 0
A123: Sales Tax | B123: =(B120+B115+B113)*B$146 -> 3746.875 | D123: 187.34375 | E123: =B123/B$125 -> 0.01456544054 | F123: =$E$146 -> 1 | P123: =(P113+P115+P120) -> 3440 | U123: =IF(U$15=0,DefaultData!$F81,IF(U$15=2,"Pop. Data Missing",IF($B$17<DefaultData!$G$12,DefaultData!$G81,IF($B$17<DefaultData!$H$12,DefaultData!$N81,IF($B$17<DefaultData!$I$12,DefaultData!$Q81,DefaultData!$T81))))) -> 1 | Z123: =(Z120+Z115+Z113)*Z$146 -> 0 | AD123: =$E$146 -> 1
A124: =DefaultData!B82 -> Right of Way/Royalty Payments - Public land | B124: =DefaultData!C82 -> 18181.81818 | D124: 909.0909091 | E124: =B124/B$125 -> 0.07067921712 | F124: =$U124 -> 1 | P124: =F124*B124 -> 18181.81818 | U124: =IF(U$15=0,DefaultData!$F82,IF(U$15=2,"Pop. Data Missing",IF($B$17<DefaultData!$G$12,DefaultData!$G82,IF($B$17<DefaultData!$H$12,DefaultData!$N82,IF($B$17<DefaultData!$I$12,DefaultData!$Q82,DefaultData!$T82))))) -> 1 | Z124: =DefaultData!AA82 -> 0 | AD124: =$U124 -> 1
A125: =DefaultData!B83 -> Total with Payments | B125: =B124+B123+B122 -> 257244.1932 | C125: =C124+C123+C122 -> 0.00786 | D125: =D124+D123+D122 -> 3277.584659 | E125: =E124+E123+E122 -> 1 | AA125: =AA124+AA123+AA122 -> 0
A127: =DefaultData!B85 -> Other Parameters
A128: =DefaultData!B86 -> Financial Parameters | E128: Local Share (%) | AC128: Local Share
A129: =DefaultData!B87 -> Debt Financing
A130: =DefaultData!B88 -> Percentage financed | B130: =DefaultData!$C88 -> 0.48 | E130: =DefaultData!$E88 -> 0 | P130: =F130*B130 -> 0 | Z130: =DefaultData!$C88 -> 0.48 | AC130: =DefaultData!$E88 -> 0
A131: =DefaultData!B89 -> Years financed (term) | B131: =DefaultData!$C89 -> 40 | Z131: =DefaultData!$C89 -> 40
A132: =DefaultData!B90 -> Interest rate | B132: =DefaultData!$C90 -> 0.063 | Z132: =DefaultData!$C90 -> 0.063
A133: =DefaultData!B92 -> Equity Financing/Repayment
A134: =DefaultData!B93 -> Percentage equity | B134: =1-B130 -> 0.52 | Z134: =1-Z130 -> 0.52
A135: =DefaultData!B94 -> Individual Investors (percent of equity) | B135: =DefaultData!$C94 -> 0 | E135: =DefaultData!$E94 -> 0 | P135: =F135*B135 -> 0 | Z135: =DefaultData!$C94 -> 0 | AC135: =DefaultData!$E94 -> 0
A136: =DefaultData!B95 -> Corporate Investors (percent of equity) | B136: =1-B135 -> 1 | E136: =DefaultData!$E95 -> 0 | P136: 0 | Z136: =1-Z135 -> 1 | AC136: =DefaultData!$E95 -> 0
A137: =DefaultData!B96 -> Return on equity | B137: =DefaultData!$C96 -> 0.114 | Z137: =DefaultData!$C96 -> 0.114
A138: =DefaultData!B97 -> Repayment term (years) | B138: =DefaultData!$C97 -> 10 | Z138: =DefaultData!$C97 -> 10
A139: =DefaultData!B98 -> Tax Parameters
A140: Local Property/Other Tax Rate (percent of taxable value) | B140: =DefaultData!$C99 -> 0 | Z140: =DefaultData!$C99 -> 0
A141: =DefaultData!B100 -> Assessed Value (percent of construction cost) | B141: =DefaultData!$C100 -> 1 | Z141: =DefaultData!$C100 -> 1
A142: =DefaultData!B101 -> Taxable Value (percent of assessed value) | B142: =DefaultData!$C101 -> 1 | Z142: =DefaultData!$C101 -> 1
A143: =DefaultData!B102 -> Taxable Value | B143: =+B142*B141*B107 -> 29859436.54 | Z143: =+Z142*Z141*Z107 -> 0
A144: Property Tax Exemption (percent of local taxes) | B144: =DefaultData!$C103 -> 0 | Z144: =DefaultData!$C103 -> 0
A145: Local Property Taxes | B145: =B143*B140*(1-B144) -> 0 | E145: =DefaultData!$E104 -> 1 | P145: =F145*B145 -> 0 | Z145: =Z143*Z140*(1-Z144) -> 0 | AC145: =DefaultData!$E104 -> 1
A146: Local Sales Tax Rate | B146: =DefaultData!$C105 -> 0.0625 | E146: =DefaultData!$E105 -> 1 | P146: 0 | Z146: =DefaultData!$C105 -> 0.0625 | AC146: =DefaultData!$E105 -> 1
A147: Payroll Parameters
A148: Construction and Installation Labor | B148: Wage per hour | E148: Employer Payroll Overhead | Z148: Wage per hour | AC148: Employer Payroll Overhead
A149: Civil (grading, roads, site prep, foundations, fencing) | B149: =Calculations!$E68 -> 17.45 | E149: =Calculations!$K$62 -> 0.3760611025 | Z149: =Calculations!$E68 -> 17.45 | AC149: =Calculations!$K$62 -> 0.3760611025
A150: Heavy Construction (Tower erection, Conductor stringing) | B150: =Calculations!$E69 -> 25.27 | E150: =Calculations!$K$62 -> 0.3760611025 | Z150: =Calculations!$E69 -> 25.27 | AC150: =Calculations!$K$62 -> 0.3760611025
A151: Commerical/Industrial Construction (Substation, Converter) | B151: =Calculations!$E70 -> 29.98 | E151: =Calculations!$K$62 -> 0.3760611025 | Z151: =Calculations!$E70 -> 29.98 | AC151: =Calculations!$K$62 -> 0.3760611025
A152: O&M Labor
A153: Transmission and ROW Labor/Personnel | B153: =Calculations!$E78 -> 23.16 | E153: =Calculations!$K62 -> 0.3760611025 | Z153: =Calculations!$E78 -> 23.16 | AC153: =Calculations!$K62 -> 0.3760611025
A154: Substation and Converter Station Labor/Personnel | B154: =Calculations!$E79 -> 23.16 | E154: =Calculations!$K62 -> 0.3760611025 | Z154: =Calculations!$E79 -> 23.16 | AC154: =Calculations!$K62 -> 0.3760611025
P827: MyCounty | Q827: 69 kV AC | R827: 1995 | S827: 2007 | T827: 69 | U827: 115 kV AC | V827: 115
P828: MyRegion | Q828: 115 kV AC | R828: =R827+1 -> 1996 | S828: =S827+1 -> 2008 | T828: 115 | U828: 230 kV AC | V828: 230
P829: Alabama | Q829: 230 kV AC | R829: =R828+1 -> 1997 | S829: 2009 | T829: 230 | U829: 345 kV AC | V829: 345
P830: Alaska | Q830: 345 kV AC | R830: 1998 | S830: 2010 | T830: 345 | U830: 500 kV AC | V830: 500
P831: Arizona | Q831: 500 kV AC | R831: 1999 | S831: 2011 | T831: 500 | U831: 500 kV HVDC | V831: 500
P832: Arkansas | Q832: 765 kV AC | R832: 2000 | S832: 2012 | T832: 765 | U832: 69 kV AC | V832: 69
P833: California | Q833: 500 kV HVDC | R833: 2001 | S833: 2013 | U833: 765 kV AC | V833: 765
P834: Colorado | R834: 2002 | S834: 2014
P835: Connecticut | R835: 2003 | S835: 2015
P836: Delaware | R836: 2004
P837: District of Columbia | R837: 2005
P838: Florida | R838: 2006
P839: Georgia | R839: 2007
P840: Hawaii | R840: 2008
P841: Idaho | R841: 2009
P842: Illinois | R842: 2010
P843: Indiana | R843: 2011
P844: Iowa | R844: 2012
P845: Kansas | R845: 2013
P846: Kentucky | R846: 2014
P847: Louisiana | R847: 2015
P848: Maine | R848: 2016
P849: Maryland | R849: 2017
P850: Massachussets | R850: 2018
P851: Michigan | R851: 2019
P852: Minnesota | R852: 2020
P853: Mississippi | R853: 2021
P854: Missouri | R854: 2022
P855: Montana | R855: 2023
P856: Nebraska | R856: 2024
P857: Nevada | R857: 2025
P858: New Hampshire | R858: 2026
P859: New Jersey | R859: 2027
P860: New Mexico | R860: 2028
P861: New York | R861: 2029
P862: North Carolina | R862: 2030
P863: North Dakota
P864: Ohio
P865: Oklahoma
P866: Oregon
P867: Pennsylvania
P868: Rhode Island
P869: South Carolina
P870: South Dakota
P871: Tennessee
P872: Texas
P873: United States
P874: Utah
P875: Vermont
P876: Virginia
P877: Washington
P878: West Virginia
P879: Wisconsin
P880: Wyoming

Sheet SummaryResults
A1: =CONCATENATE("Transmission Line - Project Data Summary based on ",$AE$45, " values") -> Transmission Line - Project Data Summary based on User modifications to default values | BB1: =Summary_Results -> Transmission Line - Project Data Summary based on User modifications to default values | BH1: Project Descriptive Data
A2: Project Location | C2: =IF(ProjectData!B16="MyCounty",'User Add-in Location'!B3,IF(ProjectData!B16="MyRegion",'User Add-in Location'!B4,ProjectData!B16)) -> Texas | BB2: =A2 -> Project Location | BD2: =C2 -> Texas | BH2: =ProjectData!A16 -> Project Location | BI2: =ProjectData!B16 -> Texas | BK2: =IF(BI2="MYREGION",IF('User Add-in Location'!BL13=0,"Error - No Regional multiplier data in User Add-in Location",""),IF(BI2="MYCOUNTY",IF('User Add-in Location'!BK13=0,"Error - No County multiplier data in User Add-in Location",""),"")) -> 
A3: Year of Construction or Installation | C3: =ProjectData!B18 -> 2014 | BB3: =A3 -> Year of Construction or Installation | BD3: 2014 | BH3: =ProjectData!A17 -> Population (only required for County/Region analysis) | BI3: =ProjectData!B17 -> 0 | BK3: =IF(BI2="MYREGION",IF('User Add-in Location'!BL13=0,"",IF(BI2="MYREGION","Enter Region Population","")),IF(BI2="MYCOUNTY",IF('User Add-in Location'!BK13=0,"",IF(BI2="MYCOUNTY","Enter County Population","")),"")) -> 
A4: Transmission Line Type | C4: =ProjectData!B19 -> 230 kV AC | BB4: =A4 -> Transmission Line Type | BD4: =C4 -> 230 kV AC | BH4: =ProjectData!A18 -> Year of Construction/Installation | BI4: =ProjectData!B18 -> 2014
A5: Transmission Line Length (Miles) | C5: =ProjectData!B20 -> 20 | D5: =ProjectData!C16 ->  | BB5: Transmission Line Length (Miles) | BD5: 20 | BH5: =ProjectData!A19 -> Transmission Line Type | BI5: =ProjectData!B19 -> 230 kV AC
A6: Terrain Classification | C6: =ProjectData!B21 -> Flat w/access | BB6: Terrain Classification | BD6: Flat w/access | BH6: =ProjectData!A20 -> Transmission Line Length (Miles) | BI6: =ProjectData!B20 -> 20
A7: Population Density Classification (Right of Way access) | C7: =ProjectData!B22 -> Rural | BB7: Population Density Classification (Right of Way access) | BD7: Rural | BH7: =ProjectData!A47 -> Project represents a Federal Nexus (triggers NEPA) | BI7: =IF(ProjectData!B24="Advanced",ProjectData!B36,ProjectData!Z36) -> 1
A8: Project Represents a Federal Nexus (triggers NEPA) | C8: =IF(ProjectData!B24="Advanced",ProjectData!B47,ProjectData!Z47) -> Yes | BB8: Project Represents a Federal Nexus (triggers NEPA) | BD8: Yes | BH8: =ProjectData!A48 -> Project Cost ($Million/Mile) | BI8: =BJ68/10^6 -> 0
A9: Development and Preconstruction Activities Period (Years) | C9: =IF(ProjectData!B$24="Advanced",ProjectData!B30,ProjectData!Z30) -> 4 | BB9: Development and Preconstruction Activities Period (Years) | BD9: 4 | BH9: =ProjectData!A49 -> Annual Direct O&M Cost (% of Total Cost) | BI9: =BJ86 -> 0
A10: Construction Period (Months) | C10: =IF(ProjectData!B$24="Advanced",ProjectData!B31,ProjectData!Z31) -> 5 | BB10: Construction Period (Months) | BD10: 5 | BH10: =ProjectData!A50 -> Money Value (Dollar Year) | BI10: =ProjectData!B50 -> 2012
A11: Transmission Line Type | C11: =ProjectData!B19 -> 230 kV AC | BB11: Transmission Line Type | BD11: 230 kV AC
A12: Total Project Cost ($Million/Mile) | C12: =C15/C5/10^6 -> 1.492971827 | BB12: Total Project Cost ($Million/Mile) | BD12: =C12 -> 1.492971827 | BH12: =A51 -> Detailed Transmission Line Project Costs
A13: Annual Direct Operations and Maintenance Cost (Percent of Project Cost) | C13: =C18/C15 -> 0.008006258747 | BB13: Annual Direct Operations and Maintenance Cost (Percent of Project Cost) | BD13: 0.008006258747
A14: Money Value (Dollar Year) | C14: =IF(ProjectData!B24="Advanced",ProjectData!B50,ProjectData!Z50) -> 2012 | BB14: Money Value (Dollar Year) | BD14: 2012 | BH14: =A53 -> Transmission Line Costs | BI14: =B53 -> Cost | BJ14: =C53 -> Local Share
A15: Project Construction and Installation Cost | C15: =Calculations!D57 -> 29859436.54 | BB15: Project Construction and Installation Cost | BD15: 29859436.54 | BH15: Development and Preconstruction Activites
A16: Local Spending | C16: =+Calculations!F104 -> 6938849.544 | BB16: Local Spending | BD16: 6938849.544 | BH16: =A55 -> Land Acquisition Services | BI16: =B55 -> 375000 | BJ16: =C55 -> 0.5
A17: Total Annual Operational Expenses | C17: =C18+C20 -> 3926920.307 | BB17: Total Annual Operational Expenses | BD17: 3926920.307 | BH17: =A56 -> Private Land Acquisition Payment | BI17: =B56 -> 363636.3636 | BJ17: 1
A18: Direct Operating and Maintenance Costs | C18: =Calculations!D135 -> 239062.375 | BB18: Direct Operating and Maintenance Costs | BD18: 239062.375 | BH18: Engineering/Surveying/Geotechnical Consulting Services | BI18: =B57 -> 900000 | BJ18: 0.2
A19: Local Spending | C19: =Calculations!G135 -> 93230.025 | BB19: Local Spending | BD19: 93230.025 | BH19: Environmental & Permitting Services | BI19: =B58 -> 675000 | BJ19: 0.15
A20: Other Annual Costs | C20: =Calculations!E135 -> 3687857.932 | BB20: Other Annual Costs | BD20: 3687857.932 | BH20: Subtotal Development and Preconstruction | BI20: =B59 -> 2313636.364
A21: Local Spending | C21: =Calculations!H135 -> 18181.81818 | BB21: Local Spending | BD21: 18181.81818 | BH21: Materials & Equipment
A22: ROW Payments | C22: =+Calculations!G128 -> 18181.81818 | BB22: ROW Payments | BD22: 18181.81818 | BH22: Concrete, gravel, asphalt | BI22: =B61 -> 600000 | BJ22: 1
A23: Debt Payments | C23: =Calculations!G130 -> 0 | BB23: Debt Payments | BD23: 0 | BH23: Steel structures and poles | BI23: =B62 -> 4950000 | BJ23: 0
A24: Equity Payments | C24: =Calculations!G131+Calculations!G132 -> 0 | BB24: Equity Payments | BD24: 0 | BH24: Overhead wires (conductor and insulators and shield wire) | BI24: =B63 -> 3300000 | BJ24: 0
A25: Property Taxes | C25: =Calculations!G133 -> 0 | BB25: Property Taxes | BD25: 0 | BH25: Subtotal Materials & Equipment | BI25: =B64 -> 8850000
BH26: Labor/Installation
BH27: Civil (grading, roads, site prep, foundations, fencing) | BI27: =B66 -> 1765400.18 | BJ27: 0.8
A28: Local Economic Impacts - Summary Results | BB28: Local Economic Impacts - Summary Results | BH28: Heavy Construction (Tower erection, Conductor stringing) | BI28: =B67 -> 3276000 | BJ28: 0.5
B29: Jobs | C29: Earnings | D29: Output | E29: Value Added | BC29: Jobs | BD29: Earnings | BE29: Output | BF29: Value Added | BH29: Subtotal Labor/Installation | BI29: =B68 -> 5041400.18 | BJ29: 0
A30: During Construction and Installation Period | C30: =CONCATENATE("$MM (",$C$14,")") -> $MM (2012) | D30: =CONCATENATE("$MM (",$C$14,")") -> $MM (2012) | E30: =CONCATENATE("$MM (",$C$14,")") -> $MM (2012) | BB30: During construction and installation period | BD30: =C30 -> $MM (2012) | BE30: $MM (2012) | BF30: $MM (2012) | BH30: Total Line Cost | BI30: =B69 -> 16205036.54
A31: Project Development and Onsite Labor Impacts | BB31: Project Development and Onsite Labor Impacts | BH31: Infrastructure Costs
A32: Construction and Installation Labor | B32: =Calculations!AH89 -> 58.46732418 | C32: =Calculations!AI89 -> 3.747729003 | BB32: =A32 -> Construction and Installation Labor | BC32: =B32 -> 58.46732418 | BD32: 3.747729003 | BH32: Materials & Equipment
A33: Construction and Installation Related Services | B33: =Calculations!AH90 -> 10.68725817 | C33: =Calculations!AI90 -> 0.5416567783 | Z33: =IF(C10<12,B37*(C10/12),B37/(C10/12)) -> 45.4600029 | BB33: Construction and Installation Related Services | BC33: 10.68725817 | BD33: =C33 -> 0.5416567783 | BH33: Positions (new bays/circuits) | BI33: =B72 -> 1800000 | BJ33: 0.05
A34: Subtotal | B34: =Calculations!AH91 -> 69.15458235 | C34: =Calculations!AI91 -> 4.289385781 | D34: =Calculations!AJ91 -> 5.150313183 | E34: =Calculations!AK91 -> 4.604051598 | BB34: Subtotal | BC34: =B34 -> 69.15458235 | BD34: =C34 -> 4.289385781 | BE34: =D34 -> 5.150313183 | BF34: =E34 -> 4.604051598 | BH34: New Substation Facilities | BI34: =B73 -> 650000 | BJ34: 0.1
A35: Equipment and Supply Chain Impacts | B35: =Calculations!AH92 -> 19.65359728 | C35: =Calculations!AI92 -> 1.156264676 | D35: =Calculations!AJ92 -> 3.913756722 | E35: =Calculations!AK92 -> 2.057405146 | Z35: =ROUND(Z33,) -> 45 | BB35: Equipment and Supply Chain Impacts | BC35: 19.65359728 | BD35: 1.156264676 | BE35: 3.913756722 | BF35: 2.057405146 | BH35: Existing Substation Facilities (upgrades) | BI35: =B74 -> 20000 | BJ35: 0.1
A36: Induced Impacts | B36: =Calculations!AH93 -> 20.29582733 | C36: =Calculations!AI93 -> 1.058671253 | D36: =Calculations!AJ93 -> 3.163395712 | E36: =Calculations!AK93 -> 1.800807434 | BB36: Induced Impacts | BC36: 20.29582733 | BD36: 1.058671253 | BE36: 3.163395712 | BF36: 1.800807434 | BH36: Transformers, Series Compensation, etc. | BI36: =B75 -> 4800000 | BJ36: 0
A37: Total Impacts | B37: =Calculations!AH94 -> 109.104007 | C37: =Calculations!AI94 -> 6.504321711 | D37: =Calculations!AJ94 -> 12.22746562 | E37: =Calculations!AK94 -> 8.462264178 | BB37: Total Impacts | BC37: 109.104007 | BD37: 6.504321711 | BE37: 12.22746562 | BF37: 8.462264178 | BH37: Converter Station (includes ground electrode) | BI37: =B76 -> 0 | BJ37: 0
BH38: Subtotal Materials & Equipment | BI38: =B77 -> 7270000
C39: Annual | D39: Annual | E39: Annual | BD39: =C39 -> Annual | BE39: Annual | BF39: Annual | BH39: Labor
B40: Annual | C40: Earnings | D40: Output | E40: Value Added | BC40: =B40 -> Annual | BD40: Earnings | BE40: Output | BF40: Value Added | BH40: Positions (new bays/circuits) | BI40: =B79 -> 2092500 | BJ40: 0.2
A41: During Operating Years | B41: Jobs | C41: =CONCATENATE("$MM (",$C$14,")") -> $MM (2012) | D41: =CONCATENATE("$MM (",$C$14,")") -> $MM (2012) | E41: =CONCATENATE("$MM (",$C$14,")") -> $MM (2012) | BB41: During operating years | BC41: =B41 -> Jobs | BD41: $MM (2012) | BE41: $MM (2012) | BF41: $MM (2012) | BH41: New Substation | BI41: =B80 -> 744000 | BJ41: 0.3
A42: Onsite Labor Impacts | B42: =Calculations!AH97 -> 1.298005978 | C42: =Calculations!AI97 -> 0.0970002403 | D42: =Calculations!AJ97 -> 0.0970002403 | E42: =Calculations!AK97 -> 0.0970002403 | BB42: Onsite Labor Impacts | BC42: =B42 -> 1.298005978 | BD42: 0.0970002403 | BE42: 0.0970002403 | BF42: 0.0970002403 | BH42: Existing Substation Facilities (upgrades) | BI42: =B81 -> 27900 | BJ42: 0.2
A43: Local Revenue and Supply Chain Impacts | B43: =Calculations!AH98 -> 0.523816364 | C43: =Calculations!AI98 -> 0.0286574996 | D43: =Calculations!AJ98 -> 0.09425106852 | E43: =Calculations!AK98 -> 0.05141441891 | BB43: Local Revenue and Supply Chain Impacts | BC43: =B43 -> 0.523816364 | BD43: 0.0286574996 | BE43: 0.09425106852 | BF43: 0.05141441891 | BH43: Converter Station | BI43: =B82 -> 0 | BJ43: 0.05
A44: Induced Impacts | B44: =Calculations!AH99 -> 0.440715713 | C44: =Calculations!AI99 -> 0.02362212409 | D44: =Calculations!AJ99 -> 0.07059263529 | E44: =Calculations!AK99 -> 0.04018319861 | BB44: Induced Impacts | BC44: =B44 -> 0.440715713 | BD44: 0.02362212409 | BE44: 0.07059263529 | BF44: 0.04018319861 | BH44: Subtotal Labor | BI44: =B83 -> 2864400
A45: Total Impacts | B45: =Calculations!AH100 -> 2.262538055 | C45: =Calculations!AI100 -> 0.149279864 | D45: =Calculations!AJ100 -> 0.2618439441 | E45: =Calculations!AK100 -> 0.1885978578 | AE45: =IF(ProjectData!U24="Y","model default","User modifications to default") -> User modifications to default | BB45: Total Impacts | BC45: 2.262538055 | BD45: 0.149279864 | BE45: 0.2618439441 | BF45: 0.1885978578 | BH45: Total Infrastructure Costs | BI45: =B84 -> 10134400
A46: =CONCATENATE("Notes: Earnings and Output values are millions of dollars in year ",C14, " dollars. Construction period related jobs are full time") -> Notes: Earnings and Output values are millions of dollars in year 2012 dollars. Construction period related jobs are full time | BB46: =CONCATENATE("Notes: Earnings and Output values are millions of dollars in year ",BD14, " dollars. Construction period related jobs are full time") -> Notes: Earnings and Output values are millions of dollars in year 2012 dollars. Construction period related jobs are full time | BH46: Services/Other Costs
A47: equivalent jobs for one year. "During operating years" represent impacts that occur from maintenance and | BB47: equivalent jobs for one year. "During operating years" represent impacts that occur from maintenance and | BH47: Substation Management Services (Site mgmt, legal, lands, PR, etc.) | BI47: =B86 -> 222000 | BJ47: 0.5
A48: repair operations/expenditures. Totals may not add up due to independent rounding. | BB48: repair operations/expenditures. Totals may not add up due to independent rounding. | BH48: Substation Engineering, Const Mgmt, & Environmental Monitoring | BI48: =B87 -> 1110000 | BJ48: 0.2
BH49: Subtotal | BI49: =B88 -> 1332000 | BJ49: 0
BH50: Environmental Mitigation | BI50: =B89 -> 0 | BJ50: 0.7
A51: Detailed Transmission Line Project Costs | B51: =Calculations!AC3 -> Texas | BH51: System Operator and Regulator Fees | BI51: =B90 -> 0 | BJ51: 0.1
BH52: Miscellanous Business Services and Utilities | BI52: =B91 -> 0 | BJ52: 0.2
A53: =DefaultData!B13 -> Transmission Line Costs | B53: =Calculations!AC5 -> Cost | C53: Local Share | BH53: Construction Insurance (Substation) | BI53: =B92 -> 55500 | BJ53: 0
A54: =DefaultData!B14 -> Development and Preconstruction Activites | BH54: Subtotal Other Costs | BI54: =B93 -> 55500
A55: =DefaultData!B15 -> Land Acquisition Services | B55: =Calculations!AC7 -> 375000 | C55: =Calculations!AD7 -> 0.5 | BH55: Total Services/Other Costs | BI55: =B94 -> 1387500
A56: =DefaultData!B16 -> Private Land Acquisition Payment | B56: =Calculations!AC8 -> 363636.3636 | C56: =Calculations!AD8 -> 1 | BH56: Subtotal All Costs (without sales tax) | BI56: =B95 -> 30040572.91
A57: =DefaultData!B17 -> Engineering/Surveying/Geotechnical Consulting Services | B57: =Calculations!AC9 -> 900000 | C57: =Calculations!AD9 -> 0.2 | BH57: Sales Tax (Materials & Equipment Purchases) | BI57: =B96 -> 1007500 | BJ57: 1
A58: =DefaultData!B18 -> Environmental & Permitting Services | B58: =Calculations!AC10 -> 675000 | C58: =Calculations!AD10 -> 0.15 | BH58: Total Project Cost | BI58: =B97 -> 29859436.54
A59: =DefaultData!B19 -> Subtotal Development and Preconstruction | B59: =Calculations!AC11 -> 2313636.364
A60: Materials & Equipment
A61: =Calculations!AB14 -> Concrete, gravel, asphalt | B61: =Calculations!AC14 -> 600000 | C61: =Calculations!AD14 -> 1 | BH61: Annual Operating and Maintenance Costs
A62: =Calculations!AB15 -> Steel structures and poles | B62: =Calculations!AC15 -> 4950000 | C62: =Calculations!AD15 -> 0
A63: =Calculations!AB16 -> Overhead wires (conductor and insulators and shield wire) | B63: =Calculations!AC16 -> 3300000 | C63: =Calculations!AD16 -> 0 | BH63: Transmission Line and ROW | BI63: =B102 -> Cost | BJ63: Local Share
A64: =Calculations!AB17 -> Subtotal Materials & Equipment | B64: =Calculations!AC17 -> 8850000 | BH64: T-Line/ROW Labor | BI64: =B103 -> 139104 | BJ64: 0.6
A65: =Calculations!AB18 -> Labor/Installation | BH65: T-Line/ROW Maintenance Materials | BI65: =B104 -> 34400 | BJ65: 0.1
A66: =Calculations!AB19 -> Civil (grading, roads, site prep, foundations, fencing) | B66: =Calculations!AC19 -> 1765400.18 | C66: =Calculations!AD19 -> 0.8 | BH66: Insurance | BI66: =B105 -> 20000 | BJ66: 0
A67: =Calculations!AB20 -> Heavy Construction (Tower erection, Conductor stringing) | B67: =Calculations!AC20 -> 3276000 | C67: =Calculations!AD20 -> 0.5 | BH67: Replacement Parts/Equipment/ Spare Parts Inventory | BI67: =B106 -> 20000 | BJ67: 0
A68: =Calculations!AB21 -> Subtotal Labor/Installation | B68: =Calculations!AC21 -> 5041400.18 | BH68: Subtotal | BI68: =B107 -> 213504
A69: Total Line Cost | B69: =Calculations!AC22 -> 16205036.54 | BH69: Substation/Converter Station
A70: Infrastructure Costs | BH70: Labor/Personnel | BI70: =B109 -> 5161.5 | BJ70: 0.5
A71: =Calculations!AB24 -> Materials & Equipment | BH71: Insurance | BI71: =B110 -> 11100 | BJ71: 0
A72: =Calculations!AB25 -> Positions (new bays/circuits) | B72: =Calculations!AC25 -> 1800000 | C72: =Calculations!AD25 -> 0.05 | BH72: Replacement Parts/Equipment/ Spare Parts Inventory | BI72: =B111 -> 5550 | BJ72: 0
A73: =Calculations!AB26 -> New Substation Facilities | B73: =Calculations!AC26 -> 650000 | C73: =Calculations!AD26 -> 0.1 | BH73: Subtotal | BI73: =B112 -> 21811.5
A74: =Calculations!AB27 -> Existing Substation Facilities (upgrades) | B74: =Calculations!AC27 -> 20000 | C74: =Calculations!AD27 -> 0.1 | BH74: Subtotal All O&M Costs (without sales tax) | BI74: =B113 -> 235315.5
A75: =Calculations!AB28 -> Transformers, Series Compensation, etc. | B75: =Calculations!AC28 -> 4800000 | C75: =Calculations!AD28 -> 0 | BH75: Sales Tax (Materials & Equipment Purchases) | BI75: =B114 -> 3746.875 | BJ75: 1
A76: =Calculations!AB29 -> Converter Station (includes ground electrode) | B76: =Calculations!AC29 -> 0 | C76: =Calculations!AD29 -> 0 | BH76: Right of Way/Royalty Payments - Public land | BI76: =B115 -> 18181.81818 | BJ76: 1
A77: =Calculations!AB30 -> Subtotal Materials & Equipment | B77: =Calculations!AC30 -> 7270000 | BH77: Total with Payments | BI77: =B116 -> 257244.1932 | BJ77: 0
A78: =Calculations!AB31 -> Labor | BH78: Average Annual Debt Payment (Interest and Principal) | BI78: =B117 -> 988807.4352 | BJ78: 0
A79: =Calculations!AB32 -> Positions (new bays/circuits) | B79: =Calculations!AC32 -> 2092500 | C79: =Calculations!AD32 -> 0.2 | BH79: Average Annual Equity Payment Individual (Interest and Principal) | BI79: =B118 -> 0 | BJ79: 0
A80: =Calculations!AB33 -> New Substation | B80: =Calculations!AC33 -> 744000 | C80: =Calculations!AD33 -> 0.3 | BH80: Average Annual Equity Payment Corporate (Interest and Principal) | BI80: =B119 -> 2680868.678 | BJ80: 0
A81: =Calculations!AB34 -> Existing Substation Facilities (upgrades) | B81: =Calculations!AC34 -> 27900 | C81: =Calculations!AD34 -> 0.2 | BH81: =A120 -> Property Taxes | BI81: =B120 -> 0 | BJ81: 1
A82: =Calculations!AB36 -> Converter Station | B82: =Calculations!AC36 -> 0 | C82: =Calculations!AD36 -> 0.05 | BH82: Total | BI82: =B121 -> 3926920.307
A83: =Calculations!AB37 -> Subtotal Labor | B83: =Calculations!AC37 -> 2864400
A84: Total Infrastructure Costs | B84: =Calculations!AC38 -> 10134400 | BH84: Other Parameters
A85: Services/Other Costs | BJ85: =C124 -> Local Share
A86: =Calculations!AB45 -> Substation Management Services (Site mgmt, legal, lands, PR, etc.) | B86: =Calculations!AC45 -> 222000 | C86: =Calculations!AD45 -> 0.5 | BH86: Financial Parameters
A87: =Calculations!AB46 -> Substation Engineering, Const Mgmt, & Environmental Monitoring | B87: =Calculations!AC46 -> 1110000 | C87: =Calculations!AD46 -> 0.2 | BH87: Debt Financing
A88: =Calculations!AB47 -> Subtotal | B88: =Calculations!AC47 -> 1332000 | C88: =Calculations!AD47 -> 0 | BH88: Percentage financed | BI88: =B127 -> 0.48 | BJ88: =IF(C127="","",C127) -> 0
A89: =Calculations!AB49 -> Environmental Mitigation | B89: =Calculations!AC49 -> 0 | C89: =Calculations!AD49 -> 0.7 | BH89: Years financed (term) | BI89: =B128 -> 40 | BJ89: =IF(C128="","",C128) -> 
A90: =Calculations!AB50 -> System Operator and Regulator Fees | B90: =Calculations!AC50 -> 0 | C90: =Calculations!AD50 -> 0.1 | BH90: Interest rate | BI90: =B129 -> 0.063
A91: =Calculations!AB51 -> Miscellanous Business Services and Utilities | B91: =Calculations!AC51 -> 0 | C91: =Calculations!AD51 -> 0.2 | BH91: Average Annual Payment (Interest and Principal) | BI91: =B130 -> 988807.4352
A92: =Calculations!AB52 -> Construction Insurance (Substation) | B92: =Calculations!AC52 -> 55500 | C92: =Calculations!AD52 -> 0 | BH92: Equity Financing/Repayment
A93: =Calculations!AB53 -> Subtotal Other Costs | B93: =Calculations!AC53 -> 55500 | BH93: Percentage equity | BI93: =B132 -> 0.52 | BJ93: =IF(C132="","",C132) -> 
A94: =Calculations!AB54 -> Total Services/Other Costs | B94: =Calculations!AC54 -> 1387500 | BH94: Individual Investors (percent of equity) | BI94: =B133 -> 0 | BJ94: 0
A95: =Calculations!AB55 -> Subtotal All Costs (without sales tax) | B95: =Calculations!AC55 -> 30040572.91 | BH95: Corporate Investors (percent of equity) | BI95: =B134 -> 1 | BJ95: 0
A96: =Calculations!AB56 -> Sales Tax (Materials & Equipment Purchases) | B96: =Calculations!AC56 -> 1007500 | C96: =Calculations!AD56 -> 1 | BH96: Return on equity | BI96: =B135 -> 0.114
A97: =Calculations!AB57 -> Total Project Cost | B97: =Calculations!AC57 -> 29859436.54 | BH97: Repayment term (years) | BI97: =B136 -> 10
BH98: Tax Parameters
BH99: Local Property Tax (percent of taxable value) | BI99: =B138 -> 0
A100: =Calculations!AB60 -> Annual Operating and Maintenance Costs | BH100: Assessed Value (percent of construction cost) | BI100: =B139 -> 1
BH101: Taxable Value (percent of assessed value) | BI101: =B140 -> 1
A102: Transmission Line and ROW | B102: =Calculations!AC62 -> Cost | C102: =Calculations!AD62 -> Local Share | BH102: Taxable Value | BI102: =B141 -> 29859436.54
A103: =Calculations!AB63 -> T-Line/ROW Labor | B103: =Calculations!AC63 -> 139104 | C103: =Calculations!AD63 -> 0.6 | BH103: Property Tax Exemption (percent of local taxes) | BI103: =B142 -> 0
A104: =Calculations!AB64 -> T-Line/ROW Maintenance Materials | B104: =Calculations!AC64 -> 34400 | C104: =Calculations!AD64 -> 0.1 | BH104: Local Property Taxes | BI104: =B143 -> 0 | BJ104: 1
A105: =Calculations!AB65 -> Insurance | B105: =Calculations!AC65 -> 20000 | C105: =Calculations!AD65 -> 0 | BH105: Local Sales Tax Rate | BI105: =B144 -> 0.0625 | BJ105: 1
A106: =Calculations!AB66 -> Replacement Parts/Equipment/ Spare Parts Inventory | B106: =Calculations!AC66 -> 20000 | C106: =Calculations!AD66 -> 0 | BH106: Payroll Parameters | BI106: =B145 -> Wage per hour | BJ106: Employer Payroll Overhead
A107: =Calculations!AB67 -> Subtotal | B107: =Calculations!AC67 -> 213504 | BH107: Construction and Installation Labor
A108: Substation/Converter Station | BH108: Civil (grading, roads, site prep, foundations, fencing) | BI108: =B147 -> 17.45 | BJ108: 0.3760611025
A109: =Calculations!AB69 -> Labor/Personnel | B109: =Calculations!AC69 -> 5161.5 | C109: =Calculations!AD69 -> 0.5 | BH109: Heavy Construction (Tower erection, Conductor stringing) | BI109: =B148 -> 25.27 | BJ109: 0.3760611025
A110: =Calculations!AB70 -> Insurance | B110: =Calculations!AC70 -> 11100 | C110: =Calculations!AD70 -> 0 | BH110: Commerical/Industrial Construction (Substation, Converter) | BI110: =B149 -> 29.98 | BJ110: 0.3760611025
A111: =Calculations!AB71 -> Replacement Parts/Equipment/ Spare Parts Inventory | B111: =Calculations!AC71 -> 5550 | C111: =Calculations!AD71 -> 0 | BH111: O&M Labor
A112: =Calculations!AB72 -> Subtotal | B112: =Calculations!AC72 -> 21811.5 | BH112: Transmission and ROW Labor/Personnel | BI112: =B151 -> 23.16 | BJ112: 0.3760611025
A113: =Calculations!AB73 -> Subtotal All O&M Costs (without sales tax) | B113: =Calculations!AC73 -> 235315.5 | BH113: Substation and Converter Station Labor/Personnel | BI113: =B152 -> 23.16 | BJ113: 0.3760611025
A114: Sales Tax (Materials & Equipment Purchases) | B114: =Calculations!AC74 -> 3746.875 | C114: =Calculations!AD74 -> 1
A115: Right of Way/Royalty Payments - Public land | B115: =Calculations!AC75 -> 18181.81818 | C115: =Calculations!AD75 -> 1
A116: Total with Payments | B116: =Calculations!AC76 -> 257244.1932
A117: =Calculations!AB77 -> Average Annual Debt Payment (Interest and Principal) | B117: =Calculations!AC77 -> 988807.4352 | C117: =Calculations!AD77 -> 0
A118: =Calculations!AB78 -> Average Annual Equity Payment Individual (Interest and Principal) | B118: =Calculations!AC78 -> 0 | C118: =Calculations!AD78 -> 0
A119: =Calculations!AB79 -> Average Annual Equity Payment Corporate (Interest and Principal) | B119: =Calculations!AC79 -> 2680868.678 | C119: =Calculations!AD79 -> 0
A120: =Calculations!AB80 -> Property Taxes | B120: =Calculations!AC80 -> 0 | C120: =Calculations!AD80 -> 1
A121: =Calculations!AB81 -> Total | B121: =Calculations!AC81 -> 3926920.307
A123: =Calculations!AB82 -> Other Parameters
C124: =Calculations!AD83 -> Local Share
A125: =Calculations!AB84 -> Financial Parameters
A126: =Calculations!AB85 -> Debt Financing
A127: =Calculations!AB86 -> Percentage financed | B127: =Calculations!AC86 -> 0.48 | C127: =Calculations!AD86 -> 0
A128: =Calculations!AB87 -> Years financed (term) | B128: =Calculations!AC87 -> 40
A129: =Calculations!AB88 -> Interest rate | B129: =Calculations!AC88 -> 0.063
A130: =Calculations!AB89 -> Average Annual Payment (Interest and Principal) | B130: =Calculations!AC89 -> 988807.4352
A131: =Calculations!AB90 -> Equity Financing/Repayment
A132: =Calculations!AB91 -> Percentage equity | B132: =Calculations!AC91 -> 0.52
A133: =Calculations!AB92 -> Individual Investors (percent of equity) | B133: =Calculations!AC92 -> 0 | C133: =Calculations!AD92 -> 0
A134: =Calculations!AB93 -> Corporate Investors (percent of equity) | B134: =Calculations!AC93 -> 1 | C134: =Calculations!AD93 -> 0
A135: =Calculations!AB94 -> Return on equity | B135: =Calculations!AC94 -> 0.114
A136: =Calculations!AB95 -> Repayment term (years) | B136: =Calculations!AC95 -> 10
A137: =Calculations!AB96 -> Tax Parameters
A138: =Calculations!AB97 -> Local Property Tax (percent of taxable value) | B138: =Calculations!AC97 -> 0
A139: =Calculations!AB98 -> Assessed Value (percent of construction cost) | B139: =Calculations!AC98 -> 1
A140: =Calculations!AB99 -> Taxable Value (percent of assessed value) | B140: =Calculations!AC99 -> 1
A141: =Calculations!AB100 -> Taxable Value | B141: =Calculations!AC100 -> 29859436.54
A142: =Calculations!AB101 -> Property Tax Exemption (percent of local taxes) | B142: =Calculations!AC101 -> 0
A143: =Calculations!AB102 -> Local Property Taxes | B143: =Calculations!AC102 -> 0 | C143: =Calculations!AD102 -> 1
A144: =Calculations!AB103 -> Local Sales Tax Rate | B144: =Calculations!AC103 -> 0.0625 | C144: =Calculations!AD103 -> 1
A145: =Calculations!AB104 -> Payroll Parameters | B145: =Calculations!AC105 -> Wage per hour | C145: =Calculations!AD105 -> Employer Payroll Overhead
A146: =Calculations!AB105 -> Construction and Installation Labor
A147: =Calculations!AB106 -> Civil (grading, roads, site prep, foundations, fencing) | B147: =Calculations!AC106 -> 17.45 | C147: =Calculations!AD106 -> 0.3760611025
A148: =Calculations!AB107 -> Heavy Construction (Tower erection, Conductor stringing) | B148: =Calculations!AC107 -> 25.27 | C148: =Calculations!AD107 -> 0.3760611025
A149: =Calculations!AB108 -> Commerical/Industrial Construction (Substation, Converter) | B149: =Calculations!AC108 -> 29.98 | C149: =Calculations!AD108 -> 0.3760611025
A150: =Calculations!AB109 -> O&M Labor
A151: =Calculations!AB110 -> Transmission and ROW Labor/Personnel | B151: =Calculations!AC110 -> 23.16 | C151: =Calculations!AD110 -> 0.3760611025
A152: =Calculations!AB111 -> Substation and Converter Station Labor/Personnel | B152: =Calculations!AC111 -> 23.16 | C152: =Calculations!AD111 -> 0.3760611025

Sheet User Add-in Location
A1: Multipliers For Economic Input-Output Analysis
A3: MyCounty (name) | C3: Year of Data | E3: =IF(B3="","",IF(D3="","Enter Year of Data",IF(D3>2006,IF(D3<2016,"","ERROR - Deflators Data Not Current"),"ERROR - Deflators Data Not Current"))) -> 
A4: MyRegion (includes) | C4: Year of Data | E4: =IF(B4="","",IF(D4="","Enter Year of Data",IF(D4>2006,IF(D4<2016,"","ERROR - Deflators Data Not Current"),"ERROR - Deflators Data Not Current"))) -> 
A5: Sales Tax Rate (%) | C5: =IF(B$5=""," To incorporate Sales Tax in analysis Enter Sales Tax Rate","") -> To incorporate Sales Tax in analysis Enter Sales Tax Rate
A6: Property Tax Exemption (%) | C6: =IF(B$6=""," To incorporate Property Tax Exemption (if applicable) in analysis Enter Percentage","") -> To incorporate Property Tax Exemption (if applicable) in analysis Enter Percentage
A8: Jobs Per Million Dollars Change in Final Demand | D8: Personal Consumption Expenditures (PCE)
A9: Jobs Direct Multipliers | B9: MyCounty | C9: MyRegion | E9: =B9 -> MyCounty | F9: =C9 -> MyRegion
A10: Agriculture | B10: 0 | C10: 0 | E10: 0 | F10: 0
A11: Mining | B11: 0 | C11: 0 | E11: 0 | F11: 0
A12: Construction | B12: 0 | C12: 0 | E12: 0 | F12: 0
A13: Manufacturing | B13: 0 | C13: 0 | E13: 0 | F13: 0
A14: Fabricated Metals | B14: 0 | C14: 0 | E14: 0 | F14: 0
A15: Machinery | B15: 0 | C15: 0 | E15: 0 | F15: 0
A16: Electrical Equipment | B16: 0 | C16: 0 | E16: 0 | F16: 0
A17: TCPU | B17: 0 | C17: 0 | E17: 0 | F17: 0
A18: Wholesale Trade | B18: 0 | C18: 0 | E18: 0 | F18: 0
A19: Retail Trade | B19: 0 | C19: 0 | E19: 0 | F19: 0
A20: FIRE | B20: 0 | C20: 0 | E20: 0 | F20: 0
A21: Misc. Services | B21: 0 | C21: 0 | E21: 0 | F21: 0
A22: Professional Services | B22: 0 | C22: 0 | E22: 0 | F22: 0
A23: Government | B23: 0 | C23: 0 | E23: 0 | F23: 0
D24: Total | E24: =SUM(E10:E23) -> 0 | F24: =SUM(F10:F23) -> 0
A25: Jobs Per Million Dollars Change in Final Demand
A26: Jobs Indirect Multipliers | B26: =B9 -> MyCounty | C26: =C9 -> MyRegion
A27: Agriculture | B27: 0 | C27: 0
A28: Mining | B28: 0 | C28: 0
A29: Construction | B29: 0 | C29: 0
A30: Manufacturing | B30: 0 | C30: 0
A31: Fabricated Metals | B31: 0 | C31: 0
A32: Machinery | B32: 0 | C32: 0
A33: Electrical Equipment | B33: 0 | C33: 0
A34: TCPU | B34: 0 | C34: 0
A35: Wholesale Trade | B35: 0 | C35: 0
A36: Retail Trade | B36: 0 | C36: 0
A37: FIRE | B37: 0 | C37: 0
A38: Misc. Services | B38: 0 | C38: 0
A39: Professional Services | B39: 0 | C39: 0
A40: Government | B40: 0 | C40: 0
A42: Jobs Per Million Dollars Change in Final Demand
A43: Jobs Induced Multipliers | B43: =B26 -> MyCounty | C43: =C26 -> MyRegion
A44: Agriculture | B44: 0 | C44: 0
A45: Mining | B45: 0 | C45: 0
A46: Construction | B46: 0 | C46: 0
A47: Manufacturing | B47: 0 | C47: 0
A48: Fabricated Metals | B48: 0 | C48: 0
A49: Machinery | B49: 0 | C49: 0
A50: Electrical Equipment | B50: 0 | C50: 0
A51: TCPU | B51: 0 | C51: 0
A52: Wholesale Trade | B52: 0 | C52: 0
A53: Retail Trade | B53: 0 | C53: 0
A54: FIRE | B54: 0 | C54: 0
A55: Misc. Services | B55: 0 | C55: 0
A56: Professional Services | B56: 0 | C56: 0
A57: Government | B57: 0 | C57: 0
A59: Earnings Per Million Dollars Change in Final Demand
A60: Earnings Direct Multipliers | B60: =B43 -> MyCounty | C60: =C43 -> MyRegion
A61: Agriculture | B61: 0 | C61: 0
A62: Mining | B62: 0 | C62: 0
A63: Construction | B63: 0 | C63: 0
A64: Manufacturing | B64: 0 | C64: 0
A65: Fabricated Metals | B65: 0 | C65: 0
A66: Machinery | B66: 0 | C66: 0
A67: Electrical Equipment | B67: 0 | C67: 0
A68: TCPU | B68: 0 | C68: 0
A69: Wholesale Trade | B69: 0 | C69: 0
A70: Retail Trade | B70: 0 | C70: 0
A71: FIRE | B71: 0 | C71: 0
A72: Misc. Services | B72: 0 | C72: 0
A73: Professional Services | B73: 0 | C73: 0
A74: Government | B74: 0 | C74: 0
A76: Earnings Per Million Dollars Change in Final Demand
A77: Earnings Indirect Multipliers | B77: =B60 -> MyCounty | C77: =C60 -> MyRegion
A78: Agriculture | B78: 0.08730359375 | C78: 0
A79: Mining | B79: 0.04399460554 | C79: 0
A80: Construction | B80: 0.07391008735 | C80: 0
A81: Manufacturing | B81: 0.05087846518 | C81: 0
A82: Fabricated Metals | B82: 0.04215984046 | C82: 0
A83: Machinery | B83: 0.08125139773 | C83: 0
A84: Electrical Equipment | B84: 0 | C84: 0
A85: TCPU | B85: 0.07964375615 | C85: 0
A86: Wholesale Trade | B86: 0.04456052184 | C86: 0
A87: Retail Trade | B87: 0.04406493902 | C87: 0
A88: FIRE | B88: 0.06061181426 | C88: 0
A89: Misc. Services | B89: 0.0736579299 | C89: 0
A90: Professional Services | B90: 0.05704891682 | C90: 0
A91: Government | B91: 0.01825803518 | C91: 0
A93: Earnings Per Million Dollars Change in Final Demand
A94: Earnings Induced Multipliers | B94: =B77 -> MyCounty | C94: =C77 -> MyRegion
A95: Agriculture | B95: 0 | C95: 0
A96: Mining | B96: 0 | C96: 0
A97: Construction | B97: 0 | C97: 0
A98: Manufacturing | B98: 0 | C98: 0
A99: Fabricated Metals | B99: 0 | C99: 0
A100: Machinery | B100: 0 | C100: 0
A101: Electrical Equipment | B101: 0 | C101: 0
A102: TCPU | B102: 0 | C102: 0
A103: Wholesale Trade | B103: 0 | C103: 0
A104: Retail Trade | B104: 0 | C104: 0
A105: FIRE | B105: 0 | C105: 0
A106: Misc. Services | B106: 0 | C106: 0
A107: Professional Services | B107: 0 | C107: 0
A108: Government | B108: 0 | C108: 0
A110: Output Per Million Dollars Change in Final Demand
A111: Output Direct Multipliers | B111: =B94 -> MyCounty | C111: =C94 -> MyRegion
A112: Agriculture | B112: 0 | C112: 0
A113: Mining | B113: 0 | C113: 0
A114: Construction | B114: 0 | C114: 0
A115: Manufacturing | B115: 0 | C115: 0
A116: Fabricated Metals | B116: 0 | C116: 0
A117: Machinery | B117: 0 | C117: 0
A118: Electrical Equipment | B118: 0 | C118: 0
A119: TCPU | B119: 0 | C119: 0
A120: Wholesale Trade | B120: 0 | C120: 0
A121: Retail Trade | B121: 0 | C121: 0
A122: FIRE | B122: 0 | C122: 0
A123: Misc. Services | B123: 0 | C123: 0
A124: Professional Services | B124: 0 | C124: 0
A125: Government | B125: 0 | C125: 0
A127: Output Per Million Dollars Change in Final Demand
A128: Output Indirect Multipliers | B128: =B111 -> MyCounty | C128: =C111 -> MyRegion
A129: Agriculture | B129: 0 | C129: 0
A130: Mining | B130: 0 | C130: 0
A131: Construction | B131: 0 | C131: 0
A132: Manufacturing | B132: 0 | C132: 0
A133: Fabricated Metals | B133: 0 | C133: 0
A134: Machinery | B134: 0 | C134: 0
A135: Electrical Equipment | B135: 0 | C135: 0
A136: TCPU | B136: 0 | C136: 0
A137: Wholesale Trade | B137: 0 | C137: 0
A138: Retail Trade | B138: 0 | C138: 0
A139: FIRE | B139: 0 | C139: 0
A140: Misc. Services | B140: 0 | C140: 0
A141: Professional Services | B141: 0 | C141: 0
A142: Government | B142: 0 | C142: 0
A144: Output Per Million Dollars Change in Final Demand
A145: Output Induced Multipliers | B145: =B128 -> MyCounty | C145: =C128 -> MyRegion
A146: Agriculture | B146: 0 | C146: 0
A147: Mining | B147: 0 | C147: 0
A148: Construction | B148: 0 | C148: 0
A149: Manufacturing | B149: 0 | C149: 0
A150: Fabricated Metals | B150: 0 | C150: 0
A151: Machinery | B151: 0 | C151: 0
A152: Electrical Equipment | B152: 0 | C152: 0
A153: TCPU | B153: 0 | C153: 0
A154: Wholesale Trade | B154: 0 | C154: 0
A155: Retail Trade | B155: 0 | C155: 0
A156: FIRE | B156: 0 | C156: 0
A157: Misc. Services | B157: 0 | C157: 0
A158: Professional Services | B158: 0 | C158: 0
A159: Government | B159: 0 | C159: 0
A161: Value Added Per Million Dollars Change in Final Demand
A162: Value Added Direct Multipliers | B162: MyCounty | C162: MyRegion
A163: Agriculture | B163: 0 | C163: 0
A164: Mining | B164: 0 | C164: 0
A165: Construction | B165: 0 | C165: 0
A166: Manufacturing | B166: 0 | C166: 0
A167: Fabricated Metals | B167: 0 | C167: 0
A168: Machinery | B168: 0 | C168: 0
A169: Electrical Equipment | B169: 0 | C169: 0
A170: TCPU | B170: 0 | C170: 0
A171: Wholesale Trade | B171: 0 | C171: 0
A172: Retail Trade | B172: 0 | C172: 0
A173: FIRE | B173: 0 | C173: 0
A174: Misc. Services | B174: 0 | C174: 0
A175: Professional Services | B175: 0 | C175: 0
A176: Government | B176: 0 | C176: 0
A178: Value Added Per Million Dollars Change in Final Demand
A179: Value Added Indirect Multipliers | B179: MyCounty | C179: MyRegion
A180: Agriculture | B180: 0 | C180: 0
A181: Mining | B181: 0 | C181: 0
A182: Construction | B182: 0 | C182: 0
A183: Manufacturing | B183: 0 | C183: 0
A184: Fabricated Metals | B184: 0 | C184: 0
A185: Machinery | B185: 0 | C185: 0
A186: Electrical Equipment | B186: 0 | C186: 0
A187: TCPU | B187: 0 | C187: 0
A188: Wholesale Trade | B188: 0 | C188: 0
A189: Retail Trade | B189: 0 | C189: 0
A190: FIRE | B190: 0 | C190: 0
A191: Misc. Services | B191: 0 | C191: 0
A192: Professional Services | B192: 0 | C192: 0
A193: Government | B193: 0 | C193: 0
A195: Value Added Per Million Dollars Change in Final Demand
A196: Value Added Induced Multipliers | B196: MyCounty | C196: MyRegion
A197: Agriculture | B197: 0 | C197: 0
A198: Mining | B198: 0 | C198: 0
A199: Construction | B199: 0 | C199: 0
A200: Manufacturing | B200: 0 | C200: 0
A201: Fabricated Metals | B201: 0 | C201: 0
A202: Machinery | B202: 0 | C202: 0
A203: Electrical Equipment | B203: 0 | C203: 0
A204: TCPU | B204: 0 | C204: 0
A205: Wholesale Trade | B205: 0 | C205: 0
A206: Retail Trade | B206: 0 | C206: 0
A207: FIRE | B207: 0 | C207: 0
A208: Misc. Services | B208: 0 | C208: 0
A209: Professional Services | B209: 0 | C209: 0
A210: Government | B210: 0 | C210: 0

Sheet DefaultData
C1: System Type
C2: =ProjectData!B19 -> 230 kV AC
AI3: Multiplier
C4: Number of Substations Installed | D4: Miles of Line | E4: Number of Converter Stations | AG4: Terrain | AH4: =ProjectData!B21 -> Flat w/access | AI4: =VLOOKUP($AH4,'Terrain and Pop Multipliers'!B9:C13,2) -> 1
A5: Warning | C5: =ProjectData!B36 -> 1 | D5: =ProjectData!B20 -> 20 | E5: =IF(ProjectData!B19="500 kV HVDC",2,0) -> 0 | AG5: Pop. Density | AH5: =ProjectData!B22 -> Rural | AI5: =VLOOKUP($AH5,'Terrain and Pop Multipliers'!B18:D20,2) -> 1
AG6: Line length | AH6: =ProjectData!B20 -> 20 | AI6: ='Terrain and Pop Multipliers'!C25 -> 1
A7: This Worksheet contains Data and Formulas that are an integral part of the JEDI model. | C7: Construction | D7: Total | E7: T-Line | AG7: Circuits | AH7: =IF(ProjectData!B$24="Advanced",ProjectData!B33,ProjectData!Z33) -> 1
C8: Cost $M/Mile | D8: Project Cost | E8: Voltage | AG8: Substations | AH8: =IF(ProjectData!B$24="Advanced",ProjectData!B34,ProjectData!Z34) -> 1
A9: Although the data and formulas are available for review they must not be changed. | C9: =ProjectData!B48 -> 1.492971827 | D9: =+C9*D5 -> 29.85943654 | E9: =VLOOKUP(ProjectData!B19,ProjectData!U827:V833,2) -> 230 | AG9: Positions | AH9: =IF(ProjectData!B$24="Advanced",ProjectData!B35+ProjectData!B37,ProjectData!Z35+ProjectData!Z37) -> 3
AG10: Sub Upgrades | AH10: =IF(ProjectData!B$24="Advanced",ProjectData!B36,ProjectData!Z36) -> 1 | AJ10: =AJ33+AJ34+AJ35+AJ40+AJ41+AJ42 -> 2000000
A11: Any changes to the data or formulas will impact the analysis and may invalidate the model results. | B11: Project Data | G11: Very Small | H11: Small | I11: Medium | J11: Large | AH11: =ProjectData!B$19 -> 230 kV AC | AJ11: 115 kV AC | AK11: 230 kV AC | AL11: 345 kV AC | AM11: 500 kV AC | AN11: 500 kV HVDC | AO11: 69 kV AC | AP11: 765 kV AC | AQ11: Share (%) | AR11: US Share (%)
G12: 30000 | H12: 100000 | I12: 300000 | J12: 400000 | AI12: 2 | AJ12: 2 | AK12: 3 | AL12: 4 | AM12: 5 | AN12: 6 | AO12: 1 | AP12: 7
B13: Transmission Line Costs | F13: State | G13: County | H13: County | I13: County | J13: County | L13: =ProjectData!B17 -> 0 | AG13: T-Line P&C | AH13: =HLOOKUP(AH$11,AJ$11:AQ$81,AI13)*AH6*AI$4*AI$5*AI$6 -> 15000000 | AI13: =AI12+1 -> 3 | AJ13: 500000 | AK13: 750000 | AL13: 1100000 | AM13: 1650000 | AN13: 1300000 | AO13: 350000 | AP13: 2100000 | AS13: Project Procurement & Construction (PC) Cost $/mile - Rural/flat
B14: Development and Preconstruction Activites | C14: Cost | D14: Percent of P&C | F14: Local Share | G14: Local Share | H14: Local Share | I14: Local Share | J14: Local Share | N14: 30000 | AG14: Sub P&C | AH14: =HLOOKUP(AH$11,AJ$11:AQ$81,AI14) -> 5550000 | AI14: =AI13+1 -> 4 | AJ14: =(AJ33+AJ40)*$AH9+(AJ34+AJ41)*$AH8+(AJ35+AJ42)*$AH10 -> 3800000 | AK14: =(AK33+AK40)*$AH9+(AK34+AK41)*$AH8+(AK35+AK42)*$AH10 -> 5550000 | AL14: 10520000 | AM14: 12970000 | AN14: 0 | AO14: =(AO33+AO40)*$AH9+(AO34+AO41)*$AH8+(AO35+AO42)*$AH10 -> 3050000 | AP14: =(AP33+AP40)*$AH9+(AP34+AP41)*$AH8+(AP35+AP42)*$AH10 -> 17120000 | AS14: Substation Procurement & Construction (PC) Cost $/unit - Rural
B15: Land Acquisition Services | C15: =AH$13*D15 -> 375000 | D15: =AH15 -> 0.025 | F15: =IF(ProjectData!$B$16="United States",DefaultData!AR15,AQ15) -> 0.5 | G15: 0.5 | H15: 0.5 | I15: 0.5 | J15: 0.5 | AH15: =HLOOKUP(AH$11,AJ$11:AQ$81,AI15) -> 0.025 | AI15: =AI14+1 -> 5 | AJ15: 0.04 | AK15: 0.025 | AL15: 0.02 | AM15: 0.015 | AN15: 0.015 | AO15: 0.055 | AP15: 0.01 | AQ15: 0.5 | AR15: 1 | AS15: Right of Way Access Acquisition Services
B16: Private Land Acquisition Payment | C16: =ProjectData!C44*ProjectData!C45 -> 363636.3636 | D16: =C16/AH13 -> 0.02424242424 | F16: =IF(ProjectData!$B$16="United States",DefaultData!AR16,AQ16) -> 1 | G16: 1 | H16: 1 | I16: 1 | J16: 1 | AH16: =HLOOKUP(AH$11,AJ$11:AQ$81,AI16) -> 0.05 | AI16: 6 | AJ16: 0.06 | AK16: 0.05 | AL16: 0.035 | AM16: 0.03 | AN16: 0.04 | AO16: 0.07 | AP16: 0.025 | AQ16: 1 | AR16: 1 | AS16: Right of Way Payments - Private Land
B17: Engineering/Surveying/Geotechnical Consulting Services | C17: =AH$13*D17 -> 900000 | D17: 0.06 | F17: =IF(ProjectData!$B$16="United States",DefaultData!AR17,AQ17) -> 0.2 | G17: 0 | H17: 0.2 | I17: 0.2 | J17: 0.2 | AH17: =HLOOKUP(AH$11,AJ$11:AQ$81,AI17) -> 0.06 | AI17: 7 | AJ17: 0.08 | AK17: 0.06 | AL17: 0.04 | AM17: 0.03 | AN17: 0.05 | AO17: 0.1 | AP17: 0.025 | AQ17: 0.2 | AR17: 1 | AS17: Engineering/Surveying/Geotechnical Consulting Services
A18: To view the data and formulas simply scroll over to the adjacent columns to the right. | B18: Environmental & Permitting Services | C18: =AH$13*D18 -> 675000 | D18: 0.045 | F18: =IF(ProjectData!$B$16="United States",DefaultData!AR18,AQ18) -> 0.15 | G18: 0 | H18: 0.15 | I18: 0.15 | J18: 0.15 | AH18: =HLOOKUP(AH$11,AJ$11:AQ$81,AI18)*'Line Config Data'!D45 -> 0.045 | AI18: 8 | AJ18: 0.06 | AK18: 0.045 | AL18: 0.03 | AM18: 0.025 | AN18: 0.025 | AO18: 0.07 | AP18: 0.02 | AQ18: 0.15 | AR18: 1 | AS18: Environmental & Permitting Services
B19: Subtotal Development and Preconstruction | C19: =SUM(C15:C18) -> 2313636.364 | D19: =SUM(D15:D18) -> 0.1542424242 | AH19: =HLOOKUP(AH$11,AJ$11:AQ$81,AI19) -> 0 | AI19: 9 | AS19: Subtotal
B20: Construction Activities | AH20: =HLOOKUP(AH$11,AJ$11:AQ$81,AI20) -> 0 | AI20: 10 | AS20: Construction Activities -Line Costs
B21: Materials & Equipment | N21: 100000 | Q21: 300000 | T21: 400000 | AH21: =HLOOKUP(AH$11,AJ$11:AQ$81,AI21) -> 0 | AI21: 11 | AS21: Materials & Equipment
B22: Concrete, gravel, asphalt | C22: =AH$13*D22 -> 600000 | D22: =AH22 -> 0.04 | F22: =IF(ProjectData!$B$16="United States",DefaultData!AR22,AQ22) -> 1 | G22: 0 | H22: 1 | I22: 1 | J22: =F22 -> 1 | L22: =(L$13-G$12)/(H$12-G$12) -> -0.4285714286 | M22: =+H22-G22 -> 1 | N22: =G22+(M22*L22) -> -0.4285714286 | O22: =(L$13-H$12)/(I$12-H$12) -> -0.5 | P22: =I22-H22 -> 0 | Q22: =H22+(O22*P22) -> 1 | R22: =IF((L$13-I$12)/(J$12-I$12)>1,1,(L$13-I$12)/(J$12-I$12)) -> -3 | S22: =J22-I22 -> 0 | T22: =I22+(R22*S22) -> 1 | AH22: =IF(AH$7=2,HLOOKUP(AH$11,AJ$11:AQ$81,AI22)*'Line Config Data'!D$33,HLOOKUP(AH$11,AJ$11:AQ$81,AI22)) -> 0.04 | AI22: 12 | AJ22: 0.04 | AK22: 0.04 | AL22: 0.03 | AM22: 0.03 | AN22: 0.03 | AO22: 0.04 | AP22: 0.03 | AQ22: 1 | AR22: 1 | AS22: Concrete, gravel, asphalt
B23: Steel structures and poles | C23: =AH$13*D23 -> 4950000 | D23: =AH23 -> 0.33 | F23: =IF(ProjectData!$B$16="United States",DefaultData!AR23,AQ23) -> 0 | G23: 0 | H23: 0 | I23: 0 | J23: =F23 -> 0 | L23: =(L$13-G$12)/(H$12-G$12) -> -0.4285714286 | M23: =+H23-G23 -> 0 | N23: =G23+(M23*L23) -> 0 | O23: =(L$13-H$12)/(I$12-H$12) -> -0.5 | P23: =I23-H23 -> 0 | Q23: =H23+(O23*P23) -> 0 | R23: =IF((L$13-I$12)/(J$12-I$12)>1,1,(L$13-I$12)/(J$12-I$12)) -> -3 | S23: =J23-I23 -> 0 | T23: =I23+(R23*S23) -> 0 | AH23: =IF(AH$7=2,HLOOKUP(AH$11,AJ$11:AQ$81,AI23)*'Line Config Data'!D$33,HLOOKUP(AH$11,AJ$11:AQ$81,AI23)) -> 0.33 | AI23: 13 | AJ23: 0.33 | AK23: 0.33 | AL23: 0.2 | AM23: 0.2 | AN23: 0.2 | AO23: 0.33 | AP23: 0.2 | AQ23: 0 | AR23: 1 | AS23: Steel structures and poles
B24: Overhead wires (conductor and insulators and shield wire) | C24: 3300000 | D24: =AH24 -> 0.22 | F24: =IF(ProjectData!$B$16="United States",DefaultData!AR24,AQ24) -> 0 | G24: 0 | H24: 0 | I24: 0 | J24: 0 | L24: =(L$13-G$12)/(H$12-G$12) -> -0.4285714286 | M24: =+H24-G24 -> 0 | N24: =G24+(M24*L24) -> 0 | O24: =(L$13-H$12)/(I$12-H$12) -> -0.5 | P24: =I24-H24 -> 0 | Q24: =H24+(O24*P24) -> 0 | R24: =IF((L$13-I$12)/(J$12-I$12)>1,1,(L$13-I$12)/(J$12-I$12)) -> -3 | S24: =J24-I24 -> 0 | T24: =I24+(R24*S24) -> 0 | AH24: =IF(AH$7=2,HLOOKUP(AH$11,AJ$11:AQ$81,AI24)*'Line Config Data'!D$29,HLOOKUP(AH$11,AJ$11:AQ$81,AI24)) -> 0.22 | AI24: 14 | AJ24: 0.22 | AK24: 0.22 | AL24: 0.28 | AM24: 0.28 | AN24: 0.28 | AO24: 0.22 | AP24: 0.3 | AQ24: 0 | AR24: 1 | AS24: Overhead wires (conductor + insulators and shield wire)
B25: Subtotal Materials & Equipment | C25: =SUM(C22:C24) -> 8850000 | D25: =SUM(D22:D24) -> 0.59 | AH25: =HLOOKUP(AH$11,AJ$11:AQ$81,AI25) -> 0 | AI25: 15 | AS25: Subtotal
B26: Labor/Installation | L26: =(L$13-G$12)/(H$12-G$12) -> -0.4285714286 | M26: =+H26-G26 -> 0 | N26: =G26+(M26*L26) -> 0 | O26: =(L$13-H$12)/(I$12-H$12) -> -0.5 | P26: =I26-H26 -> 0 | Q26: =H26+(O26*P26) -> 0 | R26: =IF((L$13-I$12)/(J$12-I$12)>1,1,(L$13-I$12)/(J$12-I$12)) -> -3 | S26: =J26-I26 -> 0 | T26: =I26+(R26*S26) -> 0 | AH26: =HLOOKUP(AH$11,AJ$11:AQ$81,AI26) -> 0 | AI26: 16 | AS26: Labor/Installation
B27: Civil (grading, roads, site prep, foundations, fencing) | C27: =AH$13*D27 -> 1765400.18 | D27: =AH27 -> 0.1176933453 | F27: =IF(ProjectData!$B$16="United States",DefaultData!AR27,AQ27) -> 0.8 | G27: 0 | H27: 0.8 | I27: 0.8 | J27: 0.8 | L27: =(L$13-G$12)/(H$12-G$12) -> -0.4285714286 | M27: =+H27-G27 -> 0.8 | N27: =G27+(M27*L27) -> -0.3428571429 | O27: =(L$13-H$12)/(I$12-H$12) -> -0.5 | P27: =I27-H27 -> 0 | Q27: =H27+(O27*P27) -> 0.8 | R27: =IF((L$13-I$12)/(J$12-I$12)>1,1,(L$13-I$12)/(J$12-I$12)) -> -3 | S27: =J27-I27 -> 0 | T27: =I27+(R27*S27) -> 0.8 | AH27: =IF(AH$7=2,HLOOKUP(AH$11,AJ$11:AQ$81,AI27)*'Line Config Data'!D$33*'Wage Data'!G36,HLOOKUP(AH$11,AJ$11:AQ$81,AI27)*'Wage Data'!G36) -> 0.1176933453 | AI27: 17 | AJ27: 0.15 | AK27: 0.15 | AL27: 0.24 | AM27: 0.24 | AN27: 0.24 | AO27: 0.15 | AP27: 0.23 | AQ27: 0.8 | AR27: 1 | AS27: Civil (grading, roads, site prep, foundations, fencing)
B28: Heavy Construction (Tower erection, Conductor stringing) | C28: 3276000 | D28: =AH28 -> 0.2184 | F28: =IF(ProjectData!$B$16="United States",DefaultData!AR28,AQ28) -> 0.5 | G28: 0 | H28: 0 | I28: 0.5 | J28: 0.5 | L28: =(L$13-G$12)/(H$12-G$12) -> -0.4285714286 | M28: =+H28-G28 -> 0 | N28: =G28+(M28*L28) -> 0 | O28: =(L$13-H$12)/(I$12-H$12) -> -0.5 | P28: =I28-H28 -> 0.5 | Q28: =H28+(O28*P28) -> -0.25 | R28: =IF((L$13-I$12)/(J$12-I$12)>1,1,(L$13-I$12)/(J$12-I$12)) -> -3 | S28: =J28-I28 -> 0 | T28: =I28+(R28*S28) -> 0.5 | AH28: =IF(AH$7=2,HLOOKUP(AH$11,AJ$11:AQ$81,AI28)*'Line Config Data'!D$33*'Wage Data'!G32,HLOOKUP(AH$11,AJ$11:AQ$81,AI28)*'Wage Data'!G32) -> 0.2184 | AI28: 18 | AJ28: 0.26 | AK28: 0.26 | AL28: 0.25 | AM28: 0.25 | AN28: 0.25 | AO28: 0.26 | AP28: 0.24 | AQ28: 0.5 | AR28: 1 | AS28: Heavy Construction (Tower erection, Conductor stringing)
B29: Subtotal Labor/Installation | C29: =SUM(C27:C28) -> 5041400.18 | D29: =SUM(D27:D28) -> 0.3360933453 | AH29: =HLOOKUP(AH$11,AJ$11:AQ$81,AI29) -> 0 | AI29: 19 | AS29: Subtotal
B30: Total Transmission Line Cost | C30: =+C29+C25+C19 -> 16205036.54 | D30: =+D29+D25+D19 -> 1.08033577 | AH30: 0 | AI30: 20 | AS30: Total Line Cost
B31: Infrastructure Costs | D31: Cost | AH31: 0 | AI31: 21 | AJ31: positions (based on transformer voltage) | AO31: 1 | AS31: Infrastructure Costs
B32: Materials & Equipment | D32: Per Unit | AH32: 0 | AI32: 22 | AS32: Materials & Equipment - $ per position or per each
B33: Positions (new bays/circuits) | C33: =D33*IF(ProjectData!B$24="Advanced",(ProjectData!B$35+ProjectData!B$37),(ProjectData!Z$35+ProjectData!Z$37)) -> 1800000 | D33: =AH33 -> 600000 | F33: =IF(ProjectData!$B$16="United States",DefaultData!AR33,AQ33) -> 0.05 | G33: 0 | H33: 0 | I33: 0.05 | J33: 0.05 | AH33: 600000 | AI33: 23 | AJ33: 400000 | AK33: 600000 | AL33: 1300000 | AM33: 1600000 | AN33: 0 | AO33: 300000 | AP33: 2150000 | AQ33: 0.05 | AR33: 1 | AS33: Positions (new Bays and Circuits)
B34: New Substation Facilities | C34: =D34*IF(ProjectData!B$24="Advanced",ProjectData!B$34,ProjectData!Z$34) -> 650000 | D34: =AH34 -> 650000 | F34: =IF(ProjectData!$B$16="United States",DefaultData!AR34,AQ34) -> 0.1 | G34: 0 | H34: 0 | I34: 0.1 | J34: 0.1 | L34: =(L$13-G$12)/(H$12-G$12) -> -0.4285714286 | M34: =+H34-G34 -> 0 | N34: =G34+(M34*L34) -> 0 | O34: =(L$13-H$12)/(I$12-H$12) -> -0.5 | P34: =I34-H34 -> 0.1 | Q34: =H34+(O34*P34) -> -0.05 | R34: =IF((L$13-I$12)/(J$12-I$12)>1,1,(L$13-I$12)/(J$12-I$12)) -> -3 | S34: =J34-I34 -> 0 | T34: =I34+(R34*S34) -> 0.1 | AH34: 650000 | AI34: 24 | AJ34: 450000 | AK34: 650000 | AL34: 800000 | AM34: 950000 | AN34: 0 | AO34: 400000 | AP34: 1200000 | AQ34: 0.1 | AR34: 1 | AS34: Substation Facilities
B35: Existing Substation Facilities (upgrades) | C35: =D35*IF(ProjectData!B$24="Advanced",ProjectData!B$36,ProjectData!Z$36) -> 20000 | D35: =AH35 -> 20000 | F35: =IF(ProjectData!$B$16="United States",DefaultData!AR35,AQ35) -> 0.1 | G35: 0 | H35: 0 | I35: 0.1 | J35: 0.1 | AH35: 20000 | AI35: 25 | AJ35: 20000 | AK35: 20000 | AL35: 30000 | AM35: 30000 | AN35: 0 | AO35: 20000 | AP35: 30000 | AQ35: 0.1 | AR35: 1 | AS35: Substation Facilities (upgrades to existing)
B36: Transformers, Series Compensation, etc. | C36: =D36 -> 4800000 | D36: ='Transformer Data'!P12 -> 4800000 | F36: =IF(ProjectData!$B$16="United States",DefaultData!AR36,AQ36) -> 0 | G36: 0 | H36: 0 | I36: 0 | J36: 0 | L36: =(L$13-G$12)/(H$12-G$12) -> -0.4285714286 | M36: =+H36-G36 -> 0 | N36: =G36+(M36*L36) -> 0 | O36: =(L$13-H$12)/(I$12-H$12) -> -0.5 | P36: =I36-H36 -> 0 | Q36: =H36+(O36*P36) -> 0 | R36: =IF((L$13-I$12)/(J$12-I$12)>1,1,(L$13-I$12)/(J$12-I$12)) -> -3 | S36: =J36-I36 -> 0 | T36: =I36+(R36*S36) -> 0 | AH36: 0 | AI36: 26 | AJ36: 0 | AK36: 0 | AL36: 0 | AM36: 0 | AN36: 0 | AO36: 0 | AP36: 0 | AQ36: 0 | AR36: 1 | AS36: Transformers, Series Compensation, etc.
B37: Converter Station (includes ground electrode) | C37: =D37*E5 -> 0 | D37: =AH37 -> 0 | F37: =IF(ProjectData!$B$16="United States",DefaultData!AR37,AQ37) -> 0 | G37: 0 | H37: 0 | I37: 0 | J37: 0 | L37: =(L$13-G$12)/(H$12-G$12) -> -0.4285714286 | M37: =+H37-G37 -> 0 | N37: =G37+(M37*L37) -> 0 | O37: =(L$13-H$12)/(I$12-H$12) -> -0.5 | P37: =I37-H37 -> 0 | Q37: =H37+(O37*P37) -> 0 | R37: =IF((L$13-I$12)/(J$12-I$12)>1,1,(L$13-I$12)/(J$12-I$12)) -> -3 | S37: =J37-I37 -> 0 | T37: =I37+(R37*S37) -> 0 | AH37: 0 | AI37: 27 | AJ37: 0 | AK37: 0 | AL37: 0 | AM37: 0 | AN37: 275000000 | AO37: 0 | AP37: 0 | AQ37: 0 | AR37: 1 | AS37: Converter Station (includes ground electrode)
B38: Subtotal Materials & Equipment | C38: =SUM(C33:C37) -> 7270000 | D38: =SUM(D33:D37) -> 6070000 | AH38: 0 | AI38: 28
B39: Labor | AH39: 0 | AI39: 29 | AS39: Labor
B40: Positions (new bays/circuits) | C40: =D40*IF(ProjectData!B$24="Advanced",(ProjectData!B$35+ProjectData!B$37),(ProjectData!Z$35+ProjectData!Z$37)) -> 2092500 | D40: =AH40 -> 697500 | F40: =IF(ProjectData!$B$16="United States",DefaultData!AR40,AQ40) -> 0.2 | G40: 0 | H40: 0.2 | I40: 0.2 | J40: 0.2 | L40: =(L$13-G$12)/(H$12-G$12) -> -0.4285714286 | M40: =+H40-G40 -> 0.2 | N40: =G40+(M40*L40) -> -0.08571428571 | O40: =(L$13-H$12)/(I$12-H$12) -> -0.5 | P40: =I40-H40 -> 0 | Q40: =H40+(O40*P40) -> 0.2 | R40: =IF((L$13-I$12)/(J$12-I$12)>1,1,(L$13-I$12)/(J$12-I$12)) -> -3 | S40: =J40-I40 -> 0 | T40: =I40+(R40*S40) -> 0.2 | AH40: =HLOOKUP(AH$11,AJ$11:AQ$81,AI40)*'Wage Data'!G$34 -> 697500 | AI40: 30 | AJ40: 500000 | AK40: 750000 | AL40: 1600000 | AM40: 2000000 | AN40: 0 | AO40: 400000 | AP40: 2650000 | AQ40: 0.2 | AR40: 1 | AS40: Positions (new Bays and Circuits)
B41: New Substation | C41: =D41*IF(ProjectData!B$24="Advanced",ProjectData!B$34,ProjectData!Z$34) -> 744000 | D41: =AH41 -> 744000 | F41: =IF(ProjectData!$B$16="United States",DefaultData!AR41,AQ41) -> 0.3 | G41: 0 | H41: 0.3 | I41: 0.3 | J41: 0.3 | AH41: =HLOOKUP(AH$11,AJ$11:AQ$81,AI41)*'Wage Data'!G$34 -> 744000 | AI41: 31 | AJ41: 600000 | AK41: 800000 | AL41: 950000 | AM41: 1150000 | AN41: 0 | AO41: 500000 | AP41: 1450000 | AQ41: 0.3 | AR41: 1 | AS41: Substation Facilities
B42: Existing Substation Facilities (upgrades) | C42: =D42*IF(ProjectData!B$24="Advanced",ProjectData!B$36,ProjectData!Z$36) -> 27900 | D42: 27900 | F42: =IF(ProjectData!$B$16="United States",DefaultData!AR42,AQ42) -> 0.2 | G42: 0 | H42: 0.2 | I42: 0.2 | J42: 0.2 | L42: =(L$13-G$12)/(H$12-G$12) -> -0.4285714286 | M42: =+H42-G42 -> 0.2 | N42: =G42+(M42*L42) -> -0.08571428571 | O42: =(L$13-H$12)/(I$12-H$12) -> -0.5 | P42: =I42-H42 -> 0 | Q42: =H42+(O42*P42) -> 0.2 | R42: =IF((L$13-I$12)/(J$12-I$12)>1,1,(L$13-I$12)/(J$12-I$12)) -> -3 | S42: =J42-I42 -> 0 | T42: =I42+(R42*S42) -> 0.2 | AH42: =HLOOKUP(AH$11,AJ$11:AQ$81,AI42)*'Wage Data'!G$34 -> 27900 | AI42: 32 | AJ42: 30000 | AK42: 30000 | AL42: 40000 | AM42: 40000 | AN42: 0 | AO42: 30000 | AP42: 40000 | AQ42: 0.2 | AR42: 1 | AS42: Substation Facilities (upgrades to existing)
B43: Transformers, Series Compensation, etc. | C43: =D43 -> 0 | D43: 0 | F43: =IF(ProjectData!$B$16="United States",DefaultData!AR43,AQ43) -> 0.2 | G43: 0 | H43: 0.2 | I43: 0.2 | J43: 0.2 | AH43: =HLOOKUP(AH$11,AJ$11:AQ$81,AI43)*'Wage Data'!G$34 -> 0 | AI43: 33 | AJ43: 0 | AK43: 0 | AL43: 0 | AM43: 0 | AN43: 0 | AO43: 0 | AP43: 0 | AQ43: 0.2 | AR43: 1 | AS43: Transformers, Series Compensation, etc.
B44: Converter Station | C44: =D44*E5 -> 0 | D44: 0 | F44: =IF(ProjectData!$B$16="United States",DefaultData!AR44,AQ44) -> 0.05 | G44: 0 | H44: 0.05 | I44: 0.05 | J44: 0.05 | L44: =(L$13-G$12)/(H$12-G$12) -> -0.4285714286 | M44: =+H44-G44 -> 0.05 | N44: =G44+(M44*L44) -> -0.02142857143 | O44: =(L$13-H$12)/(I$12-H$12) -> -0.5 | P44: =I44-H44 -> 0 | Q44: =H44+(O44*P44) -> 0.05 | R44: =IF((L$13-I$12)/(J$12-I$12)>1,1,(L$13-I$12)/(J$12-I$12)) -> -3 | S44: =J44-I44 -> 0 | T44: =I44+(R44*S44) -> 0.05 | AH44: =HLOOKUP(AH$11,AJ$11:AQ$81,AI44)*'Wage Data'!G$34 -> 0 | AI44: 34 | AJ44: 0 | AK44: 0 | AL44: 0 | AM44: 0 | AN44: 75000000 | AO44: 0 | AP44: 0 | AQ44: 0.05 | AR44: 1 | AS44: Converter Station (includes ground electrode)
B45: Subtotal Labor | C45: =SUM(C40:C44) -> 2864400 | D45: =SUM(D40:D44) -> 1469400 | AH45: =HLOOKUP(AH$11,AJ$11:AQ$81,AI45) -> 0 | AI45: 35 | AS45: Subtotal
B46: Total Infrastructure Costs | C46: =C45+C38 -> 10134400 | D46: =D45+D38 -> 7539400 | AH46: =HLOOKUP(AH$11,AJ$11:AQ$81,AI46) -> 0 | AI46: 36 | AS46: Total Infrastructure Cost
B47: Services/Other Costs | C47: Cost | D47: Percent of P&C | AH47: =HLOOKUP(AH$11,AJ$11:AQ$81,AI47) -> 0 | AI47: 37 | AO47: (percent of PC for T-Line and Substation costs) | AS47: Other Costs
B48: Transmission Line Services | AI48: 38
B49: T-Line Management Services (Site mgmt, legal, lands, ins, PR, etc.) | C49: =AH$13*D49 -> 375000 | D49: =AH49 -> 0.025 | F49: =IF(ProjectData!$B$16="United States",DefaultData!AR49,AQ49) -> 0.6 | G49: 0 | H49: 0 | I49: 0.6 | J49: 0.6 | L49: =(L$13-G$12)/(H$12-G$12) -> -0.4285714286 | M49: =+H49-G49 -> 0 | N49: =G49+(M49*L49) -> 0 | O49: =(L$13-H$12)/(I$12-H$12) -> -0.5 | P49: =I49-H49 -> 0.6 | Q49: =H49+(O49*P49) -> -0.3 | R49: =IF((L$13-I$12)/(J$12-I$12)>1,1,(L$13-I$12)/(J$12-I$12)) -> -3 | S49: =J49-I49 -> 0 | T49: =I49+(R49*S49) -> 0.6 | AH49: =IF(AH$7=2,HLOOKUP(AH$11,AJ$11:AQ$81,AI49)*'Line Config Data'!D$30,HLOOKUP(AH$11,AJ$11:AQ$81,AI49)) -> 0.025 | AI49: 39 | AJ49: 0.035 | AK49: 0.025 | AL49: 0.02 | AM49: 0.015 | AN49: 0.02 | AO49: 0.045 | AP49: 0.015 | AQ49: 0.6 | AR49: 1 | AS49: T-Line Management Services (Site mgmt, legal, lands, PR, etc.)
B50: T-Line Engineering, Const Mgmt, & Environmental Monitoring | C50: =AH$13*D50 -> 750000 | D50: =AH50 -> 0.05 | F50: =IF(ProjectData!$B$16="United States",DefaultData!AR50,AQ50) -> 0.6 | G50: 0 | H50: 0 | I50: 0.6 | J50: 0.6 | L50: -0.4285714286 | M50: 0 | N50: 0 | O50: -0.5 | P50: 0.6 | Q50: -0.3 | R50: -3 | S50: 0 | T50: 0.6 | AH50: =IF(AH$7=2,HLOOKUP(AH$11,AJ$11:AQ$81,AI50)*'Line Config Data'!D$30,HLOOKUP(AH$11,AJ$11:AQ$81,AI50)) -> 0.05 | AI50: 40 | AJ50: 0.07 | AK50: 0.05 | AL50: 0.04 | AM50: 0.03 | AN50: 0.04 | AO50: 0.09 | AP50: 0.025 | AQ50: 0.6 | AR50: 1 | AS50: T-Line Engineering, Const Mgmt, & Environmental Monitoring
B51: Subtotal | C51: =SUM(C49:C50) -> 1125000 | D51: =SUM(D49:D50) -> 0.075 | AI51: 41
B52: Infrastructure Services | AI52: 42
B53: Substation Management Services (Site mgmt, legal, lands, PR, etc.) | C53: =AH$14*D53 -> 222000 | D53: =AH53 -> 0.04 | F53: =IF(ProjectData!$B$16="United States",DefaultData!AR53,AQ53) -> 0.5 | G53: 0 | H53: 0 | I53: 0.5 | J53: 0.5 | L53: =(L$13-G$12)/(H$12-G$12) -> -0.4285714286 | M53: =+H53-G53 -> 0 | N53: =G53+(M53*L53) -> 0 | O53: =(L$13-H$12)/(I$12-H$12) -> -0.5 | P53: =I53-H53 -> 0.5 | Q53: =H53+(O53*P53) -> -0.25 | R53: =IF((L$13-I$12)/(J$12-I$12)>1,1,(L$13-I$12)/(J$12-I$12)) -> -3 | S53: =J53-I53 -> 0 | T53: =I53+(R53*S53) -> 0.5 | AH53: =HLOOKUP(AH$11,AJ$11:AQ$81,AI53) -> 0.04 | AI53: 43 | AJ53: 0.04 | AK53: 0.04 | AL53: 0.04 | AM53: 0.04 | AN53: 0.002 | AO53: 0.04 | AP53: 0.04 | AQ53: 0.5 | AR53: 1 | AS53: Substation Management Services (Site mgmt, legal, lands, PR, etc.)
B54: Substation Engineering, Const Mgmt, & Environmental Monitoring | C54: =AH$14*D54 -> 1110000 | D54: 0.2 | F54: =IF(ProjectData!$B$16="United States",DefaultData!AR54,AQ54) -> 0.2 | G54: 0 | H54: 0 | I54: 0.2 | J54: 0.2 | L54: -0.4285714286 | M54: 0 | N54: 0 | O54: -0.5 | P54: 0.2 | Q54: -0.1 | R54: -3 | S54: 0 | T54: 0.2 | AH54: =HLOOKUP(AH$11,AJ$11:AQ$81,AI54) -> 0.2 | AI54: 44 | AJ54: 0.2 | AK54: 0.2 | AL54: 0.2 | AM54: 0.2 | AN54: 0.01 | AO54: 0.2 | AP54: 0.2 | AQ54: 0.2 | AR54: 1 | AS54: Substation Engineering, Const Mgmt, & Environmental Monitoring
B55: Subtotal | C55: =SUM(C53:C54) -> 1332000 | D55: =SUM(D53:D54) -> 0.24 | AI55: 45
B56: Other Costs | AI56: 46
B57: Environmental Mitigation | C57: =(AH$13+AH$14)*D57 -> 0 | D57: =AH57 -> 0 | F57: =IF(ProjectData!$B$16="United States",DefaultData!AR57,AQ57) -> 0.7 | G57: 0 | H57: 0 | I57: 0.7 | J57: 0.7 | L57: =(L$13-G$12)/(H$12-G$12) -> -0.4285714286 | M57: =+H57-G57 -> 0 | N57: =G57+(M57*L57) -> 0 | O57: =(L$13-H$12)/(I$12-H$12) -> -0.5 | P57: =I57-H57 -> 0.7 | Q57: =H57+(O57*P57) -> -0.35 | R57: =IF((L$13-I$12)/(J$12-I$12)>1,1,(L$13-I$12)/(J$12-I$12)) -> -3 | S57: =J57-I57 -> 0 | T57: =I57+(R57*S57) -> 0.7 | AH57: =HLOOKUP(AH$11,AJ$11:AQ$81,AI57) -> 0 | AI57: 47 | AQ57: 0.7 | AR57: 1 | AS57: Environmental Mitigation
B58: System Operator and Regulator Fees | C58: =(AH$13+AH$14)*D58 -> 0 | D58: =AH58 -> 0 | F58: =IF(ProjectData!$B$16="United States",DefaultData!AR58,AQ58) -> 0.1 | G58: 0 | H58: 0 | I58: 0.1 | J58: 0.1 | L58: =(L$13-G$12)/(H$12-G$12) -> -0.4285714286 | M58: =+H58-G58 -> 0 | N58: =G58+(M58*L58) -> 0 | O58: =(L$13-H$12)/(I$12-H$12) -> -0.5 | P58: =I58-H58 -> 0.1 | Q58: =H58+(O58*P58) -> -0.05 | R58: =IF((L$13-I$12)/(J$12-I$12)>1,1,(L$13-I$12)/(J$12-I$12)) -> -3 | S58: =J58-I58 -> 0 | T58: =I58+(R58*S58) -> 0.1 | AH58: =HLOOKUP(AH$11,AJ$11:AQ$81,AI58) -> 0 | AI58: 48 | AQ58: 0.1 | AR58: 1 | AS58: System Operator and Regulator Fees
B59: Miscellanous Business Services and Utilities | C59: 0 | D59: 0 | F59: =IF(ProjectData!$B$16="United States",DefaultData!AR59,AQ59) -> 0.2 | G59: 0 | H59: 0 | I59: 0.2 | J59: 0.2 | L59: =(L$13-G$12)/(H$12-G$12) -> -0.4285714286 | M59: 0 | N59: 0 | O59: =(L$13-H$12)/(I$12-H$12) -> -0.5 | P59: 0.2 | Q59: -0.1 | R59: =IF((L$13-I$12)/(J$12-I$12)>1,1,(L$13-I$12)/(J$12-I$12)) -> -3 | S59: 0 | T59: 0.2 | AH59: =HLOOKUP(AH$11,AJ$11:AQ$81,AI59) -> 0 | AI59: 49 | AQ59: 0.2 | AR59: 1 | AS59: Miscellanous Business Services and Utilities
B60: Construction Insurance (Substation) | C60: =AH$14*C$5*D60 -> 55500 | D60: 0.01 | F60: =IF(ProjectData!$B$16="United States",DefaultData!AR60,AQ60) -> 0 | G60: 0 | H60: 0 | I60: 0 | J60: 0 | L60: =(L$13-G$12)/(H$12-G$12) -> -0.4285714286 | M60: 0 | N60: 0 | O60: =(L$13-H$12)/(I$12-H$12) -> -0.5 | P60: 0 | Q60: 0 | R60: =IF((L$13-I$12)/(J$12-I$12)>1,1,(L$13-I$12)/(J$12-I$12)) -> -3 | S60: 0 | T60: 0 | AH60: =HLOOKUP(AH$11,AJ$11:AQ$81,AI60) -> 0.01 | AI60: 50 | AJ60: 0.01 | AK60: 0.01 | AL60: 0.01 | AM60: 0.01 | AN60: 0.002 | AO60: 0.01 | AP60: 0.01 | AQ60: 0 | AR60: 1 | AS60: Insurance
B61: Subtotal Other Costs | C61: =SUM(C57:C60) -> 55500 | D61: =SUM(D49:D60) -> 0.64 | AH61: =HLOOKUP(AH$11,AJ$11:AQ$81,AI61) -> 0 | AI61: 51 | AS61: Subtotal
B62: Total Services/Other Costs | C62: =C61+C55+C51 -> 2512500 | AI62: 52
B63: Subtotal All Costs (without sales tax) | C63: =C62+C46+C30 -> 28851936.54 | AH63: =HLOOKUP(AH$11,AJ$11:AQ$81,AI63) -> 0 | AI63: 53 | AS63: Subtotal All Costs (without sales tax)
B64: Sales Tax (Materials & Equipment Purchases) | C64: =(C25+C38)*C105 -> 1007500 | AH64: 0 | AI64: 54 | AS64: Sales Tax (Materials & Equipment Purchases)
B65: Total Project Cost | C65: =C64+C63 -> 29859436.54 | D65: =C65/D5 -> 1492971.827 | G65: Very Small | H65: Small | I65: Medium | J65: Large | AH65: 0 | AI65: 55 | AS65: Total Capital Cost
G66: 30000 | H66: 100000 | I66: 300000 | J66: 400000 | AH66: 0 | AI66: 56
G67: County | H67: County | I67: County | J67: County | AH67: 0 | AI67: 57
B68: Annual Operating and Maintenance Costs | C68: Cost | D68: Cost | F68: Local Share | G68: Local Share | H68: Local Share | I68: Local Share | J68: Local Share | AH68: 0 | AI68: 58 | AS68: Annual Operating and Maintenance Costs
B69: Transmission Line and ROW | D69: Per MIle | AH69: 0 | AI69: 59 | AO69: per mile | AS69: Transmission Line and ROW
B70: T-Line/ROW Labor | C70: =D70*D$5 -> 139104 | D70: =AH70 -> 6955.2 | F70: =IF(ProjectData!$B$16="United States",DefaultData!AR70,AQ70) -> 0.6 | G70: 0 | H70: 0.6 | I70: 0.6 | J70: 0.6 | AH70: =HLOOKUP(AH$11,AJ$11:AQ$81,AI70)*AI$6*'Wage Data'!G32 -> 6955.2 | AI70: 60 | AJ70: 8280 | AK70: 8280 | AL70: 8280 | AM70: 8280 | AN70: 8280 | AO70: 8280 | AP70: 8280 | AQ70: 0.6 | AR70: 1 | AS70: T-Line/ROW Labor (breakout from labor and materials)
B71: T-Line/ROW Maintenance Materials | C71: =D71*D$5 -> 34400 | D71: =AH71 -> 1720 | F71: =IF(ProjectData!$B$16="United States",DefaultData!AR71,AQ71) -> 0.1 | G71: 0 | H71: 0.1 | I71: 0.1 | J71: 0.1 | AH71: =HLOOKUP(AH$11,AJ$11:AQ$81,AI71)*AI$6 -> 1720 | AI71: 61 | AJ71: 1720 | AK71: 1720 | AL71: 1720 | AM71: 1720 | AN71: 1720 | AO71: 1720 | AP71: 1720 | AQ71: 0.1 | AR71: 1 | AS71: T-Line/ROW Maintenance Materials
B72: Insurance | C72: 20000 | D72: 1000 | F72: =IF(ProjectData!$B$16="United States",DefaultData!AR72,AQ72) -> 0 | G72: 0 | H72: 0 | I72: 0 | J72: 0 | AH72: =HLOOKUP(AH$11,AJ$11:AQ$81,AI72) -> 1000 | AI72: 62 | AJ72: 1000 | AK72: 1000 | AL72: 1000 | AM72: 1000 | AN72: 1000 | AO72: 1000 | AP72: 1000 | AQ72: 0 | AR72: 1 | AS72: Insurance
B73: Replacement Parts/Equipment/ Spare Parts Inventory | C73: 20000 | D73: 1000 | F73: =IF(ProjectData!$B$16="United States",DefaultData!AR73,AQ73) -> 0 | G73: 0 | H73: 0 | I73: 0 | J73: 0 | AH73: =HLOOKUP(AH$11,AJ$11:AQ$81,AI73)*AI$6 -> 1000 | AI73: 63 | AJ73: 1000 | AK73: 1000 | AL73: 1000 | AM73: 1000 | AN73: 1000 | AO73: 1000 | AP73: 1000 | AQ73: 0 | AR73: 1 | AS73: Replacement Parts/Equipment/ Spare Parts Inventory
B74: Subtotal | C74: =SUM(C70:C73) -> 213504 | D74: =SUM(D70:D73) -> 10675.2 | G74: 0 | H74: 0.5 | I74: 0.5 | J74: 0.5 | AH74: =HLOOKUP(AH$11,AJ$11:AQ$81,AI74) -> 0 | AI74: 64 | AS74: Subtotal
B75: Substation/Converter Station | D75: Percent of P&C | AH75: =HLOOKUP(AH$11,AJ$11:AQ$81,AI75) -> 0 | AI75: 65 | AO75: % of PC | AS75: Substation/Converter Station
B76: Labor/Personnel | C76: =D76*AH$14 -> 5161.5 | D76: =AH76 -> 0.00093 | F76: =IF(ProjectData!$B$16="United States",DefaultData!AR76,AQ76) -> 0.5 | G76: 0.5 | H76: 0.5 | I76: 0.5 | J76: 0.5 | AH76: =HLOOKUP(AH$11,AJ$11:AQ$81,AI76)*'Wage Data'!G34 -> 0.00093 | AI76: 66 | AJ76: 0.001 | AK76: 0.001 | AL76: 0.001 | AM76: 0.001 | AN76: 0.001 | AO76: 0.001 | AP76: 0.001 | AQ76: 0.5 | AR76: 1 | AS76: Labor/Personnel
B77: Insurance | C77: =D77*AH$14 -> 11100 | D77: 0.002 | F77: =IF(ProjectData!$B$16="United States",DefaultData!AR77,AQ77) -> 0 | G77: 0 | H77: 0 | I77: 0 | J77: 0 | AH77: =HLOOKUP(AH$11,AJ$11:AQ$81,AI77) -> 0.002 | AI77: 67 | AJ77: 0.002 | AK77: 0.002 | AL77: 0.002 | AM77: 0.002 | AN77: 0.002 | AO77: 0.002 | AP77: 0.002 | AQ77: 0 | AR77: 1 | AS77: Insurance
B78: Replacement Parts/Equipment/ Spare Parts Inventory | C78: 5550 | D78: 0.001 | F78: =IF(ProjectData!$B$16="United States",DefaultData!AR78,AQ78) -> 0 | G78: 0 | H78: 0 | I78: 0 | J78: 0 | AH78: =HLOOKUP(AH$11,AJ$11:AQ$81,AI78) -> 0.001 | AI78: 68 | AJ78: 0.001 | AK78: 0.001 | AL78: 0.001 | AM78: 0.001 | AN78: 0.001 | AO78: 0.001 | AP78: 0.001 | AQ78: 0 | AR78: 1 | AS78: Replacement Parts/Equipment/ Spare Parts Inventory
B79: Subtotal | C79: =SUM(C76:C78) -> 21811.5 | D79: =SUM(D76:D78) -> 0.00393
B80: Subtotal All O&M Costs (without sales tax) | C80: =C79+C74 -> 235315.5
B81: Sales Tax (Materials & Equipment Purchases) | C81: =(C71+C73+C78)*C105 -> 3746.875 | F81: 1 | G81: 1 | H81: 1 | I81: 1 | J81: 1
B82: Right of Way/Royalty Payments - Public land | C82: =IF(ProjectData!B24="Advanced",ProjectData!B45*ProjectData!B44,ProjectData!Z45*ProjectData!Z44) -> 18181.81818 | F82: 1 | G82: 1 | H82: 1 | I82: 1 | J82: 1
B83: Total with Payments | C83: =C82+C81+C80 -> 257244.1932 | E83: =(C83-C82)/C65 -> 0.008006258747
B85: Other Parameters
B86: Financial Parameters | E86: Local Share
B87: Debt Financing
B88: Percentage financed | C88: 0.48 | E88: =IF(ProjectData!$B$16="United States",1,0) -> 0
B89: Years financed (term) | C89: 40
B90: Interest rate | C90: 0.063
B91: Average Annual Payment (Interest and Principal) | C91: =Calculations!F252 -> 988807.4352
B92: Equity Financing/Repayment | E92: Local Share
B93: Percentage equity | C93: =1-C88 -> 0.52
B94: Individual Investors (percent of equity) | C94: 0 | E94: =IF(ProjectData!$B$16="United States",1,0) -> 0
B95: Corporate Investors (percent of equity) | C95: =1-C94 -> 1 | E95: =IF(ProjectData!$B$16="United States",1,0) -> 0
B96: Return on equity | C96: 0.114
B97: Repayment term (years) | C97: 10 | AI97: Alabama | AJ97: Alaska | AK97: Arizona | AL97: Arkansas | AM97: California | AN97: Colorado | AO97: Connecticut | AP97: Delaware | AQ97: District of Columbia | AR97: Florida | AS97: Georgia | AT97: Hawaii | AU97: Idaho | AV97: Illinois | AW97: Indiana | AX97: Iowa | AY97: Kansas | AZ97: Kentucky | BA97: Louisiana | BB97: Maine | BC97: Maryland | BD97: Massachusetts | BE97: Michigan | BF97: Minnesota | BG97: Mississippi | BH97: Missouri | BI97: Montana | BJ97: MyCounty | BK97: MyRegion | BL97: Nebraska | BM97: Nevada | BN97: New Hampshire | BO97: New Jersey | BP97: New Mexico | BQ97: New York | BR97: North Carolina | BS97: North Dakota | BT97: Ohio | BU97: Oklahoma | BV97: Oregon | BW97: Pennsylvania | BX97: Rhode Island | BY97: South Carolina | BZ97: South Dakota | CA97: Tennessee | CB97: Texas | CC97: United States | CD97: Utah | CE97: Vermont | CF97: Virginia | CG97: Washington | CH97: West Virginia | CI97: Wisconsin | CJ97: Wyoming
B98: Tax Parameters | AG98: 2
B99: Local Property Tax (percent of taxable value) | C99: 0 | AG99: =AG98+1 -> 3
B100: Assessed Value (percent of construction cost) | C100: 1 | AG100: =AG99+1 -> 4
B101: Taxable Value (percent of assessed value) | C101: 1 | AG101: 5
B102: Taxable Value | C102: =+C65*C100*C101 -> 29859436.54 | AG102: 6
B103: Property Tax Exemption (percent of local taxes) | C103: 0 | AG103: 7
B104: Local Property Taxes | C104: =+C99*C102*(1-C103) -> 0 | E104: 1 | AG104: 8 | AH104: State | AI104: =ProjectData!B16 -> Texas
B105: Local Sales Tax Rate | C105: =AI119 -> 0.0625 | E105: 1 | AG105: 9 | AH105: Miles | AI105: =ProjectData!B20 -> 20
AG106: 10
B107: Margins | AG107: 11
C108: Agriculture | D108: Mining | E108: Construction | F108: Other Manufacturing | G108: Fabricated Metals | H108: Machinery | I108: Electrical Equipment | J108: TCPU | K108: Wholesale Trade | L108: Retail Trade | M108: FIRE | N108: Other Services | O108: Professional Services | P108: Government | Q108: Total | AG108: 12
B109: Agriculture | C109: 0.583669 | D109: 0 | E109: 0 | F109: 0 | G109: 0 | H109: 0 | I109: 0 | J109: 0.051572 | K109: 0.07245 | L109: 0.292309 | M109: 0 | N109: 0 | O109: 0 | P109: 0 | Q109: =SUM(C109:P109) -> 1 | AG109: 13
B110: Mining | C110: 0 | D110: 0.362051 | E110: 0 | F110: 0 | G110: 0 | H110: 0 | I110: 0 | J110: =0.284423+0.346126 -> 0.630549 | K110: 0.0074 | L110: 0 | M110: 0 | N110: 0 | O110: 0 | P110: 0 | Q110: =SUM(C110:P110) -> 1 | AG110: 14
B111: Construction | C111: 0 | D111: 0 | E111: 1 | F111: 0 | G111: 0 | H111: 0 | I111: 0 | J111: 0 | K111: 0 | L111: 0 | M111: 0 | N111: 0 | O111: 0 | P111: 0 | Q111: 1 | AG111: 15 | AH111: Sales Tax Rate | AI111: 0.04 | AJ111: 0 | AK111: 0.056 | AL111: 0.065 | AM111: 0.075 | AN111: 0.029 | AO111: 0.0635 | AP111: 0 | AQ111: 0.0575 | AR111: 0.06 | AS111: 0.04 | AT111: 0.04 | AU111: 0.06 | AV111: 0.0625 | AW111: 0.07 | AX111: 0.06 | AY111: 0.065 | AZ111: 0.06 | BA111: 0.05 | BB111: 0.055 | BC111: 0.06 | BD111: 0.0625 | BE111: 0.06 | BF111: 0.06875 | BG111: 0.07 | BH111: 0.04225 | BI111: 0 | BJ111: ='User Add-in Location'!$B$5 -> 0 | BK111: ='User Add-in Location'!$B$5 -> 0 | BL111: 0.055 | BM111: 0.0685 | BN111: 0 | BO111: 0.07 | BP111: 0.05125 | BQ111: 0.04 | BR111: 0.0475 | BS111: 0.05 | BT111: 0.0575 | BU111: 0.045 | BV111: 0 | BW111: 0.06 | BX111: 0.07 | BY111: 0.06 | BZ111: 0.045 | CA111: 0.07 | CB111: 0.0625 | CC111: 0.047 | CD111: 0.06 | CE111: 0.043 | CF111: 0.065 | CG111: 0.06 | CH111: 0.05 | CI111: 0.04 | CJ111: 0.0515
B112: Manufacturing | C112: 0 | D112: 0 | E112: 0 | F112: 0.558412 | G112: 0 | H112: 0 | I112: 0 | J112: 0.023014 | K112: =0.080398+0.338175 -> 0.418573 | L112: 0 | M112: 0 | N112: 0 | O112: 0 | P112: 0 | Q112: 0.999999 | AG112: 16
B113: Fabricated Metals | C113: 0 | D113: 0 | E113: 0 | F113: 0 | G113: 1 | H113: 0 | I113: 0 | J113: 0 | K113: 0 | L113: 0 | M113: 0 | N113: 0 | O113: 0 | P113: 0 | Q113: 1 | AG113: 17 | AH113: PropertyTax Exemption
B114: Machinery | C114: 0 | D114: 0 | E114: 0 | F114: 0 | G114: 0 | H114: 0.631251 | I114: 0 | J114: =0.000889 -> 0.000889 | K114: =0.1018+0.266059 -> 0.367859 | L114: 0 | M114: 0 | N114: 0 | O114: 0 | P114: 0 | Q114: 0.999999 | AG114: 18
B115: Electrical Equipment | C115: 0 | D115: 0 | E115: 0 | F115: 0 | G115: 0 | H115: 0 | I115: 0.512774 | J115: 0.012136 | K115: =0.075345+0.399745 -> 0.47509 | L115: 0 | M115: 0 | N115: 0 | O115: 0 | P115: 0 | Q115: 1
B116: TCPU | C116: 0 | D116: 0 | E116: 0 | F116: 0 | G116: 0 | H116: 0 | I116: 0 | J116: 1 | K116: 0 | L116: 0 | M116: 0 | N116: 0 | O116: 0 | P116: 0 | Q116: 1 | AH116: Prop Tax Exemption | AI116: =HLOOKUP(AI$104,AI$97:CK$114,AI117) -> 0 | AJ116: Tax Rate | AK116: =1-AI116 -> 1
B117: Wholesale Trade | C117: 0 | D117: 0 | E117: 0 | F117: 0 | G117: 0 | H117: 0 | I117: 0 | J117: 0 | K117: 1 | L117: 0 | M117: 0 | N117: 0 | O117: 0 | P117: 0 | Q117: 1 | AH117: Offset | AI117: =AG113 -> 17
B118: Retail Trade | C118: 0 | D118: 0 | E118: 0 | F118: 0 | G118: 0 | H118: 0 | I118: 0 | J118: 0 | K118: =1-L118 -> 0.688714 | L118: 0.311286 | M118: 0 | N118: 0 | O118: 0 | P118: 0 | Q118: 1
B119: FIRE | C119: 0 | D119: 0 | E119: 0 | F119: 0 | G119: 0 | H119: 0 | I119: 0 | J119: 0 | K119: 0 | L119: 0 | M119: 1 | N119: 0 | O119: 0 | P119: 0 | Q119: 1 | AH119: Sales Tax Rate | AI119: =HLOOKUP(AI$104,AI$97:CK$114,AI120) -> 0.0625
B120: Misc. Services | C120: 0 | D120: 0 | E120: 0 | F120: 0 | G120: 0 | H120: 0 | I120: 0 | J120: 0.042428 | K120: 0.092083 | L120: 0.361097 | M120: 0 | N120: 0.504392 | O120: 0 | P120: 0 | Q120: 1 | AH120: Offset | AI120: =AG111 -> 15
B121: Professional Services | C121: 0 | D121: 0 | E121: 0 | F121: 0 | G121: 0 | H121: 0 | I121: 0 | J121: 0 | K121: 0 | L121: 0 | M121: 0 | N121: 0 | O121: 1 | P121: 0 | Q121: 1
B122: Government | C122: 0 | D122: 0 | E122: 0 | F122: 0 | G122: 0 | H122: 0 | I122: 0 | J122: 0 | K122: 0 | L122: 0 | M122: 0 | N122: 0 | O122: 0 | P122: 1 | Q122: 1 | AH122: Sales Tax updated December 2012

Sheet Calculations
C1: Economic Impact Analysis for | E1: =ProjectData!B16 -> Texas | F1: =Project_Data -> Transmission Line Project Data
I3: Manufactured | AB3: Detailed PV Project Data Costs | AC3: =IF(ProjectData!B$16="MyCounty",'User Add-in Location'!B$3,IF(ProjectData!B$16="MyRegion",'User Add-in Location'!B4,ProjectData!B$16)) -> Texas | AD3: =ProjectData!_xlnm.Print_Area -> 2014
C4: Project Construction Costs
A5: Warning | C5: =DefaultData!B13 -> Transmission Line Costs | D5: Cost | E5: Local Share | G5: Local $ Spending | AB5: =C5 -> Transmission Line Costs | AC5: Cost | AD5: Local Share
C6: =DefaultData!B14 -> Development and Preconstruction Activites | AB6: Development and Preconstruction Activites
A7: This Worksheet contains Data and Formulas that are an integral part of the JEDI model. | C7: =DefaultData!B15 -> Land Acquisition Services | D7: =IF(ProjectData!$U$24="y",DefaultData!C15,ProjectData!B55) -> 375000 | E7: =IF(ProjectData!$U$24="y",IF(ProjectData!U$15=0,DefaultData!F15,ProjectData!U55),ProjectData!F55) -> 0.5 | G7: =E7*D7 -> 187500 | AB7: Land Acquisition Services | AC7: =D7 -> 375000 | AD7: =E7 -> 0.5
C8: =DefaultData!B16 -> Private Land Acquisition Payment | D8: =IF(ProjectData!$U$24="y",DefaultData!C16,ProjectData!B56) -> 363636.3636 | E8: =IF(ProjectData!$U$24="y",IF(ProjectData!U$15=0,DefaultData!F16,ProjectData!U56),ProjectData!F56) -> 1 | G8: 363636.3636 | AB8: Private Land Acquisition Payment | AC8: 363636.3636 | AD8: 1
A9: Although the data and formulas are available for review they must not be changed. | C9: =DefaultData!B17 -> Engineering/Surveying/Geotechnical Consulting Services | D9: =IF(ProjectData!$U$24="y",DefaultData!C17,ProjectData!B57) -> 900000 | E9: =IF(ProjectData!$U$24="y",IF(ProjectData!U$15=0,DefaultData!F17,ProjectData!U57),ProjectData!F57) -> 0.2 | G9: 180000 | AB9: Engineering/Surveying/Geotechnical Consulting Services | AC9: 900000 | AD9: 0.2
C10: =DefaultData!B18 -> Environmental & Permitting Services | D10: =IF(ProjectData!$U$24="y",DefaultData!C18,ProjectData!B58) -> 675000 | E10: =IF(ProjectData!$U$24="y",IF(ProjectData!U$15=0,DefaultData!F18,ProjectData!U58),ProjectData!F58) -> 0.15 | G10: 101250 | AB10: Environmental & Permitting Services | AC10: 675000 | AD10: 0.15
A11: Any changes to the data or formulas will impact the analysis and may invalidate the model results. | C11: =DefaultData!B19 -> Subtotal Development and Preconstruction | D11: =SUM(D7:D10) -> 2313636.364 | G11: =SUM(G7:G10) -> 832386.3636 | AB11: Subtotal Development and Preconstruction | AC11: 2313636.364 | AD11: 0
C12: =DefaultData!B20 -> Construction Activities | AB12: Construction Activities
C13: =DefaultData!B21 -> Materials & Equipment | AB13: =C13 -> Materials & Equipment
C14: =DefaultData!B22 -> Concrete, gravel, asphalt | D14: =IF(ProjectData!$U$24="y",DefaultData!C22,ProjectData!B62) -> 600000 | E14: =IF(ProjectData!$U$24="y",IF(ProjectData!U$15=0,DefaultData!F22,ProjectData!U62),ProjectData!F62) -> 1 | G14: =E14*D14 -> 600000 | AB14: =C14 -> Concrete, gravel, asphalt | AC14: =D14 -> 600000 | AD14: =E14 -> 1
C15: =DefaultData!B23 -> Steel structures and poles | D15: =IF(ProjectData!$U$24="y",DefaultData!C23,ProjectData!B63) -> 4950000 | E15: =IF(ProjectData!$U$24="y",IF(ProjectData!U$15=0,DefaultData!F23,ProjectData!U63),ProjectData!F63) -> 0 | G15: =E15*D15 -> 0 | AB15: =C15 -> Steel structures and poles | AC15: =D15 -> 4950000 | AD15: =E15 -> 0
C16: =DefaultData!B24 -> Overhead wires (conductor and insulators and shield wire) | D16: =IF(ProjectData!$U$24="y",DefaultData!C24,ProjectData!B64) -> 3300000 | E16: =IF(ProjectData!$U$24="y",IF(ProjectData!U$15=0,DefaultData!F24,ProjectData!U64),ProjectData!F64) -> 0 | G16: =E16*D16 -> 0 | AB16: Overhead wires (conductor and insulators and shield wire) | AC16: 3300000 | AD16: 0
C17: =DefaultData!B25 -> Subtotal Materials & Equipment | D17: =IF(ProjectData!$U$24="y",DefaultData!C25,ProjectData!B65) -> 8850000 | G17: =SUM(G14:G16) -> 600000 | AB17: Subtotal Materials & Equipment | AC17: 8850000
A18: To view the data and formulas simply scroll over to the adjacent columns to the right. | C18: =DefaultData!B26 -> Labor/Installation | AB18: Labor/Installation
C19: =DefaultData!B27 -> Civil (grading, roads, site prep, foundations, fencing) | D19: =IF(ProjectData!$U$24="y",DefaultData!C27,ProjectData!B67) -> 1765400.18 | E19: =IF(ProjectData!$U$24="y",IF(ProjectData!U$15=0,DefaultData!F27,ProjectData!U67),ProjectData!F67) -> 0.8 | G19: =E19*D19 -> 1412320.144 | AB19: Civil (grading, roads, site prep, foundations, fencing) | AC19: 1765400.18 | AD19: 0.8
C20: =DefaultData!B28 -> Heavy Construction (Tower erection, Conductor stringing) | D20: =IF(ProjectData!$U$24="y",DefaultData!C28,ProjectData!B68) -> 3276000 | E20: =IF(ProjectData!$U$24="y",IF(ProjectData!U$15=0,DefaultData!F28,ProjectData!U68),ProjectData!F68) -> 0.5 | G20: =E20*D20 -> 1638000 | H20: =SUM(G19:G20) -> 3050320.144 | AB20: Heavy Construction (Tower erection, Conductor stringing) | AC20: 3276000 | AD20: 0.5
C21: =DefaultData!B29 -> Subtotal Labor/Installation | D21: =IF(ProjectData!$U$24="y",DefaultData!C29,ProjectData!B69) -> 5041400.18 | G21: =SUM(G19:G20) -> 3050320.144 | AB21: Subtotal Labor/Installation | AC21: 5041400.18
C22: =DefaultData!B30 -> Total Transmission Line Cost | D22: =D21+D17+D11 -> 16205036.54 | G22: =G21+G17+G11 -> 4482706.508 | AB22: Total Transmission Line Cost | AC22: 16205036.54
C23: =DefaultData!B31 -> Infrastructure Costs | AB23: Infrastructure Costs
C24: =DefaultData!B32 -> Materials & Equipment | AB24: Materials & Equipment
C25: =DefaultData!B33 -> Positions (new bays/circuits) | D25: =IF(ProjectData!$U$24="y",DefaultData!C33,ProjectData!B74) -> 1800000 | E25: =IF(ProjectData!$U$24="y",IF(ProjectData!U$15=0,DefaultData!F33,ProjectData!U74),ProjectData!F74) -> 0.05 | G25: =E25*D25 -> 90000 | AB25: =C25 -> Positions (new bays/circuits) | AC25: =D25 -> 1800000 | AD25: =E25 -> 0.05
C26: =DefaultData!B34 -> New Substation Facilities | D26: =IF(ProjectData!$U$24="y",DefaultData!C34,ProjectData!B75) -> 650000 | E26: =IF(ProjectData!$U$24="y",IF(ProjectData!U$15=0,DefaultData!F34,ProjectData!U75),ProjectData!F75) -> 0.1 | G26: 65000 | AB26: New Substation Facilities | AC26: 650000 | AD26: 0.1
C27: =DefaultData!B35 -> Existing Substation Facilities (upgrades) | D27: =IF(ProjectData!$U$24="y",DefaultData!C35,ProjectData!B76) -> 20000 | E27: =IF(ProjectData!$U$24="y",IF(ProjectData!U$15=0,DefaultData!F35,ProjectData!U76),ProjectData!F76) -> 0.1 | G27: 2000 | AB27: Existing Substation Facilities (upgrades) | AC27: 20000 | AD27: 0.1
C28: =DefaultData!B36 -> Transformers, Series Compensation, etc. | D28: =IF(ProjectData!$U$24="y",DefaultData!C36,ProjectData!B77) -> 4800000 | E28: =IF(ProjectData!$U$24="y",IF(ProjectData!U$15=0,DefaultData!F36,ProjectData!U77),ProjectData!F77) -> 0 | G28: =E28*D28 -> 0 | AB28: Transformers, Series Compensation, etc. | AC28: 4800000 | AD28: 0
C29: =DefaultData!B37 -> Converter Station (includes ground electrode) | D29: =IF(ProjectData!$U$24="y",DefaultData!C37,ProjectData!B78) -> 0 | E29: =IF(ProjectData!$U$24="y",IF(ProjectData!U$15=0,DefaultData!F37,ProjectData!U78),ProjectData!F78) -> 0 | G29: =E29*D29 -> 0 | AB29: Converter Station (includes ground electrode) | AC29: 0 | AD29: 0
C30: =DefaultData!B38 -> Subtotal Materials & Equipment | D30: =SUM(D25:D29) -> 7270000 | G30: =SUM(G25:G29) -> 157000 | AB30: Subtotal Materials & Equipment | AC30: 7270000
C31: =DefaultData!B39 -> Labor | AB31: Labor
C32: =DefaultData!B40 -> Positions (new bays/circuits) | D32: =IF(ProjectData!$U$24="y",DefaultData!C40,ProjectData!B81) -> 2092500 | E32: =IF(ProjectData!$U$24="y",IF(ProjectData!U$15=0,DefaultData!F40,ProjectData!U81),ProjectData!F81) -> 0.2 | G32: =E32*D32 -> 418500 | AB32: Positions (new bays/circuits) | AC32: 2092500 | AD32: 0.2
C33: =DefaultData!B41 -> New Substation | D33: =IF(ProjectData!$U$24="y",DefaultData!C41,ProjectData!B82) -> 744000 | E33: =IF(ProjectData!$U$24="y",IF(ProjectData!U$15=0,DefaultData!F41,ProjectData!U82),ProjectData!F82) -> 0.3 | G33: =E33*D33 -> 223200 | AB33: =C33 -> New Substation | AC33: =D33 -> 744000 | AD33: =E33 -> 0.3
C34: =DefaultData!B42 -> Existing Substation Facilities (upgrades) | D34: =IF(ProjectData!$U$24="y",DefaultData!C42,ProjectData!B83) -> 27900 | E34: =IF(ProjectData!$U$24="y",IF(ProjectData!U$15=0,DefaultData!F42,ProjectData!U83),ProjectData!F83) -> 0.2 | G34: =E34*D34 -> 5580 | AB34: =C34 -> Existing Substation Facilities (upgrades) | AC34: =D34 -> 27900 | AD34: =E34 -> 0.2
C35: =DefaultData!B43 -> Transformers, Series Compensation, etc. | D35: =IF(ProjectData!$U$24="y",DefaultData!C43,ProjectData!B84) -> 0 | E35: =IF(ProjectData!$U$24="y",IF(ProjectData!U$15=0,DefaultData!F43,ProjectData!U84),ProjectData!F84) -> 0.2 | G35: =E35*D35 -> 0 | AB35: =C35 -> Transformers, Series Compensation, etc. | AC35: =D35 -> 0 | AD35: =E35 -> 0.2
C36: =DefaultData!B44 -> Converter Station | D36: =IF(ProjectData!$U$24="y",DefaultData!C44,ProjectData!B85) -> 0 | E36: =IF(ProjectData!$U$24="y",IF(ProjectData!U$15=0,DefaultData!F44,ProjectData!U85),ProjectData!F85) -> 0.05 | G36: =E36*D36 -> 0 | H36: =SUM(G32:G36) -> 647280 | AB36: Converter Station | AC36: 0 | AD36: 0.05
C37: =DefaultData!B45 -> Subtotal Labor | D37: =SUM(D32:D36) -> 2864400 | G37: =SUM(G32:G36) -> 647280 | AB37: Subtotal Labor | AC37: 2864400
C38: =DefaultData!B46 -> Total Infrastructure Costs | D38: =D37+D30 -> 10134400 | G38: =G37+G30 -> 804280 | AB38: Total Infrastructure Costs | AC38: 10134400
C39: =DefaultData!B47 -> Services/Other Costs | AB39: Services/Other Costs
C40: =DefaultData!B48 -> Transmission Line Services | AB40: =C40 -> Transmission Line Services
C41: =DefaultData!B49 -> T-Line Management Services (Site mgmt, legal, lands, ins, PR, etc.) | D41: =IF(ProjectData!$U$24="y",DefaultData!C49,ProjectData!B91) -> 375000 | E41: =IF(ProjectData!$U$24="y",IF(ProjectData!U$15=0,DefaultData!F49,ProjectData!U91),ProjectData!F91) -> 0.6 | G41: =E41*D41 -> 225000 | AB41: =C41 -> T-Line Management Services (Site mgmt, legal, lands, ins, PR, etc.) | AC41: =D41 -> 375000 | AD41: =E41 -> 0.6
C42: =DefaultData!B50 -> T-Line Engineering, Const Mgmt, & Environmental Monitoring | D42: =IF(ProjectData!$U$24="y",DefaultData!C50,ProjectData!B92) -> 750000 | E42: =IF(ProjectData!$U$24="y",IF(ProjectData!U$15=0,DefaultData!F50,ProjectData!U92),ProjectData!F92) -> 0.6 | G42: =E42*D42 -> 450000 | AB42: T-Line Engineering, Const Mgmt, & Environmental Monitoring | AC42: 750000 | AD42: 0.6
C43: =DefaultData!B51 -> Subtotal | D43: =SUM(D41:D42) -> 1125000 | G43: =SUM(G41:G42) -> 675000 | AB43: Subtotal | AC43: 1125000
C44: =DefaultData!B52 -> Infrastructure Services | AB44: Infrastructure Services
C45: =DefaultData!B53 -> Substation Management Services (Site mgmt, legal, lands, PR, etc.) | D45: =IF(ProjectData!$U$24="y",DefaultData!C53,ProjectData!B95) -> 222000 | E45: =IF(ProjectData!$U$24="y",IF(ProjectData!U$15=0,DefaultData!F53,ProjectData!U95),ProjectData!F95) -> 0.5 | G45: =E45*D45 -> 111000 | AB45: Substation Management Services (Site mgmt, legal, lands, PR, etc.) | AC45: 222000 | AD45: 0.5
C46: =DefaultData!B54 -> Substation Engineering, Const Mgmt, & Environmental Monitoring | D46: =IF(ProjectData!$U$24="y",DefaultData!C54,ProjectData!B96) -> 1110000 | E46: =IF(ProjectData!$U$24="y",IF(ProjectData!U$15=0,DefaultData!F54,ProjectData!U96),ProjectData!F96) -> 0.2 | G46: 222000 | AB46: Substation Engineering, Const Mgmt, & Environmental Monitoring | AC46: 1110000 | AD46: 0.2
C47: =DefaultData!B55 -> Subtotal | D47: =SUM(D44:D46) -> 1332000 | G47: =SUM(G45:G46) -> 333000 | AB47: =C47 -> Subtotal | AC47: =D47 -> 1332000 | AD47: =E47 -> 0
C48: =DefaultData!B56 -> Other Costs | AB48: Other Costs | AC48: 0 | AD48: 0
C49: =DefaultData!B57 -> Environmental Mitigation | D49: =IF(ProjectData!$U$24="y",DefaultData!C57,ProjectData!B99) -> 0 | E49: =IF(ProjectData!$U$24="y",IF(ProjectData!U$15=0,DefaultData!F57,ProjectData!U99),ProjectData!F99) -> 0.7 | G49: =E49*D49 -> 0 | AB49: Environmental Mitigation | AC49: 0 | AD49: 0.7
C50: =DefaultData!B58 -> System Operator and Regulator Fees | D50: =IF(ProjectData!$U$24="y",DefaultData!C58,ProjectData!B100) -> 0 | E50: =IF(ProjectData!$U$24="y",IF(ProjectData!U$15=0,DefaultData!F58,ProjectData!U100),ProjectData!F100) -> 0.1 | G50: =E50*D50 -> 0 | AB50: System Operator and Regulator Fees | AC50: 0 | AD50: 0.1
C51: =DefaultData!B59 -> Miscellanous Business Services and Utilities | D51: =IF(ProjectData!$U$24="y",DefaultData!C59,ProjectData!B101) -> 0 | E51: =IF(ProjectData!$U$24="y",IF(ProjectData!U$15=0,DefaultData!F59,ProjectData!U101),ProjectData!F101) -> 0.2 | G51: 0 | AB51: Miscellanous Business Services and Utilities | AC51: 0 | AD51: 0.2
C52: =DefaultData!B60 -> Construction Insurance (Substation) | D52: =IF(ProjectData!$U$24="y",DefaultData!C60,ProjectData!B102) -> 55500 | E52: =IF(ProjectData!$U$24="y",IF(ProjectData!U$15=0,DefaultData!F60,ProjectData!U102),ProjectData!F102) -> 0 | G52: 0 | AB52: Construction Insurance (Substation) | AC52: 55500 | AD52: 0
C53: =DefaultData!B61 -> Subtotal Other Costs | D53: =SUM(D49:D52) -> 55500 | G53: =SUM(G49:G52) -> 0 | AB53: Subtotal Other Costs | AC53: 55500 | AD53: 0
C54: =DefaultData!B62 -> Total Services/Other Costs | D54: =D53+D47 -> 1387500 | G54: =G53+G47+G43 -> 1008000 | AB54: =C54 -> Total Services/Other Costs | AC54: =D54 -> 1387500 | AD54: =E54 -> 0
C55: =DefaultData!B63 -> Subtotal All Costs (without sales tax) | D55: =D54+D38+D22+D11 -> 30040572.91 | G55: =G54+G38+G22 -> 6294986.508 | AB55: Subtotal All Costs (without sales tax) | AC55: 30040572.91 | AD55: 0
C56: =DefaultData!B64 -> Sales Tax (Materials & Equipment Purchases) | D56: =IF(ProjectData!$U$24="y",DefaultData!C64,ProjectData!B106) -> 1007500 | E56: =IF(ProjectData!$U$24="y",IF(ProjectData!U$15=0,DefaultData!E105,ProjectData!E146),ProjectData!E146) -> 1 | G56: =E56*D56 -> 1007500 | AB56: Sales Tax (Materials & Equipment Purchases) | AC56: 1007500 | AD56: 1
C57: =DefaultData!B65 -> Total Project Cost | D57: =IF(ProjectData!$U$24="y",DefaultData!C65,ProjectData!B107) -> 29859436.54 | G57: =G56+G55 -> 7302486.508 | AB57: Total Project Cost | AC57: 29859436.54 | AD57: 0
J59: Payroll expense | L59: User Revised
J60: Govt | K60: 0.07118694551 | L60: =(K60/K$62)*ProjectData!E149 -> 0.07118694551 | AB60: =C109 -> Annual Operating and Maintenance Costs
J61: Health/Ins/Misc | K61: 0.304874157 | L61: =(K61/K$62)*ProjectData!E149 -> 0.304874157 | N61: User
J62: Total | K62: =K61+K60 -> 0.3760611025 | L62: =L61+L60 -> 0.3760611025 | N62: Revised Data | AB62: =C110 -> Transmission Line and ROW | AC62: Cost | AD62: Local Share
C63: Payroll Parameters | D63: Payroll Cost | E63: wage/hour | F63: Payroll expense | G63: Payroll expense | H63: Default | I63: User Revised | K63: Employer Cost | N63: Payroll Cost | O63: wage/hour | P63: Payroll expense | Q63: Payroll expense | R63: Annual Employer Cost | AB63: T-Line/ROW Labor | AC63: 139104 | AD63: 0.6
C64: Construction Labor | K64: Default | L64: Modeled | R64: User | AB64: =C117 -> T-Line/ROW Maintenance Materials | AC64: =D117 -> 34400 | AD64: =E117 -> 0.1
AB65: =C118 -> Insurance | AC65: =D118 -> 20000 | AD65: =E118 -> 0
AB66: Replacement Parts/Equipment/ Spare Parts Inventory | AC66: 20000 | AD66: =E119 -> 0
AB67: Subtotal | AC67: 213504
C68: Civil (grading, roads, site prep, foundations, fencing) | D68: =(E68+F68) -> 24.01226624 | E68: ='Wage Data'!G35 -> 17.45 | F68: =+E68*G68 -> 6.562266238 | G68: =K$62 -> 0.3760611025 | H68: =(G19)/(D68*(52*40)) -> 28.27721725 | I68: =(ProjectData!B67*ProjectData!F67)/(N68*40*52) -> 28.27721725 | K68: =D68*52*40 -> 49945.51378 | L68: =IF(ProjectData!U$24="Y",Calculations!H68,Calculations!I68) -> 28.27721725 | N68: =(O68+P68) -> 24.01226624 | O68: =ProjectData!B149 -> 17.45 | P68: =+O68*Q68 -> 6.562266238 | Q68: =ProjectData!E149 -> 0.3760611025 | R68: =N68*52*40 -> 49945.51378 | AB68: =C121 -> Substation/Converter Station
C69: Heavy Construction (Tower erection, Conductor stringing) | D69: =(E69+F69) -> 34.77306406 | E69: ='Wage Data'!$G31 -> 25.27 | F69: =+E69*G69 -> 9.50306406 | G69: =K$62 -> 0.3760611025 | H69: =(G20)/(D69*(52*40)) -> 22.64683948 | I69: =(ProjectData!B68*ProjectData!F68)/(N69*40*52) -> 22.64683948 | K69: =D69*52*40 -> 72327.97324 | L69: =IF(ProjectData!U$24="Y",Calculations!H69,Calculations!I69) -> 22.64683948 | N69: =(O69+P69) -> 34.77306406 | O69: =ProjectData!B$150 -> 25.27 | P69: =+O69*Q69 -> 9.50306406 | Q69: =ProjectData!E$150 -> 0.3760611025 | R69: =N69*52*40 -> 72327.97324 | AB69: Labor/Personnel | AC69: =D122 -> 5161.5 | AD69: 0.5
C70: Positions (new bays/circuits) | D70: =(E70+F70) -> 41.25431185 | E70: ='Wage Data'!$G33 -> 29.98 | F70: =+E70*G70 -> 11.27431185 | G70: =K$62 -> 0.3760611025 | H70: =(G32)/(D70*(52*40)) -> 4.877112574 | I70: =(ProjectData!B81*ProjectData!F81)/(N70*40*52) -> 4.877112574 | K70: =D70*52*40 -> 85808.96865 | L70: =IF(ProjectData!U$24="Y",Calculations!H70,Calculations!I70) -> 4.877112574 | N70: =(O70+P70) -> 41.25431185 | O70: =ProjectData!B$151 -> 29.98 | P70: =+O70*Q70 -> 11.27431185 | Q70: =ProjectData!E$150 -> 0.3760611025 | R70: =N70*52*40 -> 85808.96865 | AB70: Insurance | AC70: 11100 | AD70: 0
C71: New Substation | D71: 41.25431185 | E71: =E70 -> 29.98 | F71: 11.27431185 | G71: 0.3760611025 | H71: =(G33)/(D71*(52*40)) -> 2.601126706 | I71: =(ProjectData!B82*ProjectData!F82)/(N71*40*52) -> 2.601126706 | K71: 85808.96865 | L71: =IF(ProjectData!U$24="Y",Calculations!H71,Calculations!I71) -> 2.601126706 | N71: 41.25431185 | O71: =ProjectData!B$151 -> 29.98 | P71: 11.27431185 | Q71: =ProjectData!E$150 -> 0.3760611025 | R71: 85808.96865 | AB71: Replacement Parts/Equipment/ Spare Parts Inventory | AC71: 5550 | AD71: 0
C72: Existing Substation Facilities (upgrades) | D72: 41.25431185 | E72: 29.98 | F72: 11.27431185 | G72: 0.3760611025 | H72: =(G34)/(D72*(52*40)) -> 0.06502816766 | I72: =(ProjectData!B83*ProjectData!F83)/(N72*40*52) -> 0.06502816766 | K72: 85808.96865 | L72: =IF(ProjectData!U$24="Y",Calculations!H72,Calculations!I72) -> 0.06502816766 | N72: 41.25431185 | O72: =ProjectData!B$151 -> 29.98 | P72: 11.27431185 | Q72: =ProjectData!E$150 -> 0.3760611025 | R72: 85808.96865 | AB72: Subtotal | AC72: 21811.5 | AD72: 0
C73: Transformers, Series Compensation, etc. | D73: 41.25431185 | E73: 29.98 | F73: 11.27431185 | G73: 0.3760611025 | H73: =(G35)/(D73*(52*40)) -> 0 | I73: =(ProjectData!B84*ProjectData!F84)/(N73*40*52) -> 0 | K73: 85808.96865 | L73: =IF(ProjectData!U$24="Y",Calculations!H73,Calculations!I73) -> 0 | N73: 41.25431185 | O73: =ProjectData!B$151 -> 29.98 | P73: 11.27431185 | Q73: =ProjectData!E$150 -> 0.3760611025 | R73: 85808.96865 | AB73: Subtotal All O&M Costs (without sales tax) | AC73: =D126 -> 235315.5
C74: Converter Station | D74: 41.25431185 | E74: 29.98 | F74: 11.27431185 | G74: 0.3760611025 | H74: =(G36)/(D74*(52*40)) -> 0 | I74: =(ProjectData!B85*ProjectData!F85)/(N74*40*52) -> 0 | K74: 85808.96865 | L74: =IF(ProjectData!U$24="Y",Calculations!H74,Calculations!I74) -> 0 | N74: 41.25431185 | O74: =ProjectData!B$151 -> 29.98 | P74: 11.27431185 | Q74: =ProjectData!E$150 -> 0.3760611025 | R74: 85808.96865 | AB74: Sales Tax (Materials & Equipment Purchases) | AC74: 3746.875 | AD74: =E127 -> 1
AB75: Right of Way/Royalty Payments - Public land | AC75: 18181.81818 | AD75: =E128 -> 1
H76: =SUM(H68:H75) -> 58.46732418 | I76: =SUM(I68:I75) -> 58.46732418 | L76: =SUM(L68:L75) -> 58.46732418 | AB76: Total with Payments | AC76: 257244.1932
C77: O&M Labor | AB77: Average Annual Debt Payment (Interest and Principal) | AC77: 988807.4352 | AD77: =E130 -> 0
C78: Transmission and ROW Labor/Personnel | D78: =(E78+F78) -> 31.86957513 | E78: 23.16 | F78: =+E78*G78 -> 8.709575134 | G78: =K$62 -> 0.3760611025 | H78: =(G111)/(D78*(52*40)) -> 1.259074013 | I78: =(ProjectData!B112*ProjectData!F112)/(N78*40*52) -> 1.259074013 | K78: =D78*52*40 -> 66288.71628 | L78: =IF(ProjectData!U$24="Y",Calculations!H78,Calculations!I78) -> 1.259074013 | N78: =(O78+P78) -> 31.86957513 | O78: =ProjectData!B$153 -> 23.16 | P78: =+O78*Q78 -> 8.709575134 | Q78: =ProjectData!E$153 -> 0.3760611025 | R78: =N78*52*40 -> 66288.71628 | AB78: Average Annual Equity Payment Individual (Interest and Principal) | AC78: 0 | AD78: =E131 -> 0
C79: Substation and Converter Station Labor/Personnel | D79: =(E79+F79) -> 31.86957513 | E79: 23.16 | F79: =+E79*G79 -> 8.709575134 | G79: =K$62 -> 0.3760611025 | H79: =(G122)/(D79*(52*40)) -> 0.03893196527 | I79: =(ProjectData!B118*ProjectData!F118)/(N79*40*52) -> 0.03893196527 | K79: =D79*52*40 -> 66288.71628 | L79: =IF(ProjectData!U$24="Y",Calculations!H79,Calculations!I79) -> 0.03893196527 | N79: =(O79+P79) -> 31.86957513 | O79: =ProjectData!B$154 -> 23.16 | P79: =+O79*Q79 -> 8.709575134 | Q79: =ProjectData!E$154 -> 0.3760611025 | R79: =N79*52*40 -> 66288.71628 | AB79: Average Annual Equity Payment Corporate (Interest and Principal) | AC79: 2680868.678 | AD79: =E132 -> 0
H80: =SUM(H78:H79) -> 1.298005978 | I80: =SUM(I78:I79) -> 1.298005978 | AB80: Property Taxes | AC80: 0 | AD80: =E133 -> 1
AB81: Total | AC81: =SUM(AC76:AC80) -> 3926920.307
H82: Eng., Prof., & Misc. Svcs. | I82: =I102+I101 -> 10.68725817 | L82: Eng. & Prof. Svcs. | M82: =(M102+M101)*$G107 -> 0.5416567783 | N82: =M92-H92 -> 0 | P82: Eng. & Prof. Svcs. | Q82: =(Q102+Q101)*$G107 -> 1.40258418 | R82: =(Q104-Q82-Q92)*G107 -> 0.9082745655 | U82: =(U102+U101)*$G107 -> 0.8563225948 | V82: =(U104-U82-U92)*G107 -> 0.4355890071 | AB82: Other Parameters
H83: Other Sectors (not Construction) | I83: =I104-I92-I84-I82 -> 2.026395485 | L83: Other Sectors (not Construction) | M83: =((M104-M92)*G107)-M84-M82 -> 0.1579996724 | P83: Other Sectors (not Construction) | Q83: =((Q104-Q92)*G107)-Q84-Q82 -> 0.4402620373 | U83: =((U104-U92)*G107)-U84-U82 -> 0.2922430045 | AD83: Local Share
H84: Manufacturing Jobs | I84: =I93+I94+I95+I96 -> 0.4721162311 | L84: Mfg W&S Earnings | M84: =(M93+M94+M95+M96)*$G107 -> 0.04726101577 | N84: =(N93+N94+N95+N96)*$G107 -> 0.06913525183 | P84: Mfg Output | Q84: =(Q93+Q94+Q95+Q96)*$G107 -> 0.4211864217 | R84: =(R93+R94+R95+R96)*$G107 -> 0.2589256661 | U84: =(U93+U94+U95+U96)*$G107 -> 0.1147571638 | V84: =(V93+V94+V95+V96)*$G107 -> 0.132264859 | AB84: Financial Parameters
AB85: =DefaultData!B87 -> Debt Financing | AG85: Local Economic Impacts - Summary Results
C86: Year | D86: =+ProjectData!B50 -> 2012 | F86: =CONCATENATE("Convert to ",Deflators!E4, " dollars") -> Convert to 2014 dollars | G86: =Deflators!F7 -> 1.048564068 | AB86: =DefaultData!B88 -> Percentage financed | AC86: =IF(ProjectData!$U$24="y",DefaultData!C88,ProjectData!B130) -> 0.48 | AD86: =IF(ProjectData!$U$24="y",DefaultData!E88,ProjectData!E130) -> 0 | AH86: Jobs | AI86: Earnings | AJ86: Output | AK86: Value Added
C87: Installation Costs Local Demand - margined | M87: =Deflators!E4 -> 2014 | N87: Dollars | AB87: =DefaultData!B89 -> Years financed (term) | AC87: =IF(ProjectData!$U$24="y",DefaultData!C89,ProjectData!B131) -> 40 | AG87: During construction and installation period
D88: Demand | F88: Total | G88: Adj Demand | I88: Jobs | J88: Jobs | K88: Jobs | L88: Jobs | M88: Earnings | Q88: Output | U88: Value Added | AB88: =DefaultData!B90 -> Interest rate | AC88: =IF(ProjectData!$U$24="y",DefaultData!C90,ProjectData!B132) -> 0.063 | AG88: Project Development and Onsite Labor Impacts
I89: Direct | J89: Indirect | K89: Induced | L89: Total | M89: Direct | N89: Indirect | O89: Induced | P89: Total | Q89: Direct | R89: Indirect | S89: Induced | T89: Total | U89: Direct | V89: Indirect | W89: Induced | X89: Total | AB89: =DefaultData!B91 -> Average Annual Payment (Interest and Principal) | AC89: =IF(ProjectData!$U$24="y",DefaultData!C91,F298) -> 988807.4352 | AG89: Construction and Installation Labor | AH89: =I92 -> 58.46732418 | AI89: =M92*G107 -> 3.747729003 | AJ89: =Q92*$G107 -> 3.747729003 | AK89: =U92*$G107 -> 3.747729003
C90: Agriculture | D90: =$E$186*DefaultData!C109+$E$187*DefaultData!C110+$E$188*DefaultData!C111+$E$189*DefaultData!C112+$E$190*DefaultData!C113+$E$191*DefaultData!C114+$E$192*DefaultData!C115+$E$193*DefaultData!C116+$E$194*DefaultData!C117+$E$195*DefaultData!C118+$E$196*DefaultData!C119+$E$197*DefaultData!C120+$E$198*DefaultData!C121+$E$199*DefaultData!C122 -> 0 | F90: =D90 -> 0 | G90: =F90*G$86/10^6 -> 0 | I90: =+G90*Multipliers!D213 -> 0 | J90: =+$G90*Multipliers!E213 -> 0 | K90: =+$G90*Multipliers!F213 -> 0 | L90: =+K90+J90+I90 -> 0 | M90: =+$G90*Multipliers!H213 -> 0 | N90: =+$G90*Multipliers!I213 -> 0 | O90: =+$G90*Multipliers!J213 -> 0 | P90: =+O90+N90+M90 -> 0 | Q90: =+$G90*Multipliers!L213 -> 0 | R90: =+$G90*Multipliers!M213 -> 0 | S90: =+$G90*Multipliers!N213 -> 0 | T90: =+S90+R90+Q90 -> 0 | U90: =+$G90*Multipliers!P213 -> 0 | V90: =+$G90*Multipliers!Q213 -> 0 | W90: =+$G90*Multipliers!R213 -> 0 | X90: =+W90+V90+U90 -> 0 | AB90: =DefaultData!B92 -> Equity Financing/Repayment | AG90: Construction and Installation Related Services | AH90: =I82 -> 10.68725817 | AI90: =M82 -> 0.5416567783 | AJ90: =Q82 -> 1.40258418 | AK90: =U82 -> 0.8563225948
C91: Mining | D91: =$E$186*DefaultData!D109+$E$187*DefaultData!D110+$E$188*DefaultData!D111+$E$189*DefaultData!D112+$E$190*DefaultData!D113+$E$191*DefaultData!D114+$E$192*DefaultData!D115+$E$193*DefaultData!D116+$E$194*DefaultData!D117+$E$195*DefaultData!D118+$E$196*DefaultData!D119+$E$197*DefaultData!D120+$E$198*DefaultData!D121+$E$199*DefaultData!D122 -> 0 | F91: =D91 -> 0 | G91: 0 | I91: =+G91*Multipliers!D214 -> 0 | J91: =+$G91*Multipliers!E214 -> 0 | K91: =+$G91*Multipliers!F214 -> 0 | L91: =+K91+J91+I91 -> 0 | M91: =+$G91*Multipliers!H214 -> 0 | N91: =+$G91*Multipliers!I214 -> 0 | O91: =+$G91*Multipliers!J214 -> 0 | P91: =+O91+N91+M91 -> 0 | Q91: =+$G91*Multipliers!L214 -> 0 | R91: =+$G91*Multipliers!M214 -> 0 | S91: =+$G91*Multipliers!N214 -> 0 | T91: =+S91+R91+Q91 -> 0 | U91: =+$G91*Multipliers!P214 -> 0 | V91: =+$G91*Multipliers!Q214 -> 0 | W91: =+$G91*Multipliers!R214 -> 0 | X91: =+W91+V91+U91 -> 0 | AB91: =DefaultData!B93 -> Percentage equity | AC91: =IF(ProjectData!$U$24="y",DefaultData!C93,ProjectData!B134) -> 0.52 | AG91: Subtotal | AH91: =AH89+AH90 -> 69.15458235 | AI91: =AI89+AI90 -> 4.289385781 | AJ91: =AJ89+AJ90 -> 5.150313183 | AK91: =AK89+AK90 -> 4.604051598
C92: Construction | D92: =$E$186*DefaultData!E109+$E$187*DefaultData!E110+$E$188*DefaultData!E111+$E$189*DefaultData!E112+$E$190*DefaultData!E113+$E$191*DefaultData!E114+$E$192*DefaultData!E115+$E$193*DefaultData!E116+$E$194*DefaultData!E117+$E$195*DefaultData!E118+$E$196*DefaultData!E119+$E$197*DefaultData!E120+$E$198*DefaultData!E121+$E$199*DefaultData!E122 -> 3697600.144 | F92: 3697600.144 | G92: 3.87717065 | H92: =(H20+H36)*G86/10^6 -> 3.87717065 | I92: =(H93*Multipliers!D$215)+L76 -> 58.46732418 | J92: =+$G92*Multipliers!E215 -> 11.17507965 | K92: =+$G92*Multipliers!F215 -> 10.44128082 | L92: 80.08368465 | M92: =H92 +($H93*Multipliers!H215) -> 3.87717065 | N92: =+$G92*Multipliers!I215 -> 0.6158887284 | O92: =+$G92*Multipliers!J215 -> 0.5443464683 | P92: 5.037405847 | Q92: =+$G92*Multipliers!L215 -> 3.87717065 | R92: =+$G92*Multipliers!M215 -> 2.005016115 | S92: =+$G92*Multipliers!N215 -> 1.626267616 | T92: 7.508454381 | U92: =+$H92+H93*Multipliers!P215 -> 3.87717065 | V92: =+$G92*Multipliers!Q215 -> 1.076655421 | W92: =+$G92*Multipliers!R215 -> 0.925872007 | X92: 5.879698078 | AB92: =DefaultData!B94 -> Individual Investors (percent of equity) | AC92: =IF(ProjectData!$U$24="y",DefaultData!C94,ProjectData!B135) -> 0 | AD92: =IF(ProjectData!$U$24="y",DefaultData!D94,ProjectData!E135) -> 0 | AG92: Equipment and Supply Chain Impacts | AH92: =I83+I84+J104 -> 19.65359728 | AI92: =((M83+M84+N107)) -> 1.156264676 | AJ92: =+((Q83+Q84+R107)) -> 3.913756722 | AK92: =+((U83+U84+V107)) -> 2.057405146
C93: Manufacturing | D93: =$E$186*DefaultData!F109+$E$187*DefaultData!F110+$E$188*DefaultData!F111+$E$189*DefaultData!F112+$E$190*DefaultData!F113+$E$191*DefaultData!F114+$E$192*DefaultData!F115+$E$193*DefaultData!F116+$E$194*DefaultData!F117+$E$195*DefaultData!F118+$E$196*DefaultData!F119+$E$197*DefaultData!F120+$E$198*DefaultData!F121+$E$199*DefaultData!F122 -> 335047.2 | F93: 335047.2 | G93: 0.3513184551 | H93: =G92-H92 -> 0 | I93: =+G93*Multipliers!D216 -> 0.3673946444 | J93: =+$G93*Multipliers!E216 -> 0.8248113914 | K93: =+$G93*Multipliers!F216 -> 0.5086451168 | L93: 1.700851153 | M93: =+$G93*Multipliers!H216 -> 0.03454437886 | N93: =+$G93*Multipliers!I216 -> 0.05870170598 | O93: =+$G93*Multipliers!J216 -> 0.02643403855 | P93: 0.1196801234 | Q93: =+$G93*Multipliers!L216 -> 0.3513184551 | R93: =+$G93*Multipliers!M216 -> 0.2220011725 | S93: =+$G93*Multipliers!N216 -> 0.07898858833 | T93: 0.6523082159 | U93: =+$G93*Multipliers!P216 -> 0.08644194783 | V93: =+$G93*Multipliers!Q216 -> 0.1140854668 | W93: =+$G93*Multipliers!R216 -> 0.04496484334 | X93: 0.245492258 | AB93: =DefaultData!B95 -> Corporate Investors (percent of equity) | AC93: =IF(ProjectData!$U$24="y",DefaultData!C95,ProjectData!B136) -> 1 | AD93: =IF(ProjectData!$U$24="y",DefaultData!D95,ProjectData!E136) -> 0 | AG93: Induced Impacts | AH93: =K104 -> 20.29582733 | AI93: =O107 -> 1.058671253 | AJ93: =S107 -> 3.163395712 | AK93: =W107 -> 1.800807434
C94: Fabricated Metals | D94: =$E$186*DefaultData!G109+$E$187*DefaultData!G110+$E$188*DefaultData!G111+$E$189*DefaultData!G112+$E$190*DefaultData!G113+$E$191*DefaultData!G114+$E$192*DefaultData!G115+$E$193*DefaultData!G116+$E$194*DefaultData!G117+$E$195*DefaultData!G118+$E$196*DefaultData!G119+$E$197*DefaultData!G120+$E$198*DefaultData!G121+$E$199*DefaultData!G122 -> 0 | F94: 0 | G94: 0 | I94: =+G94*Multipliers!D217 -> 0 | J94: =+$G94*Multipliers!E217 -> 0 | K94: =+$G94*Multipliers!F217 -> 0 | L94: 0 | M94: =+$G94*Multipliers!H217 -> 0 | N94: =+$G94*Multipliers!I217 -> 0 | O94: =+$G94*Multipliers!J217 -> 0 | P94: 0 | Q94: =+$G94*Multipliers!L217 -> 0 | R94: =+$G94*Multipliers!M217 -> 0 | S94: =+$G94*Multipliers!N217 -> 0 | T94: 0 | U94: =+$G94*Multipliers!P217 -> 0 | V94: =+$G94*Multipliers!Q217 -> 0 | W94: =+$G94*Multipliers!R217 -> 0 | X94: 0 | AB94: =DefaultData!B96 -> Return on equity | AC94: =IF(ProjectData!$U$24="y",DefaultData!C96,ProjectData!B137) -> 0.114 | AG94: Total Impacts | AH94: =AH93+AH92+AH91 -> 109.104007 | AI94: =AI93+AI92+AI91 -> 6.504321711 | AJ94: =AJ93+AJ92+AJ91 -> 12.22746562 | AK94: =AK93+AK92+AK91 -> 8.462264178
C95: Machinery | D95: =$E$186*DefaultData!H109+$E$187*DefaultData!H110+$E$188*DefaultData!H111+$E$189*DefaultData!H112+$E$190*DefaultData!H113+$E$191*DefaultData!H114+$E$192*DefaultData!H115+$E$193*DefaultData!H116+$E$194*DefaultData!H117+$E$195*DefaultData!H118+$E$196*DefaultData!H119+$E$197*DefaultData!H120+$E$198*DefaultData!H121+$E$199*DefaultData!H122 -> 0 | F95: 0 | G95: 0 | I95: =+G95*Multipliers!D218 -> 0 | J95: =+$G95*Multipliers!E218 -> 0 | K95: =+$G95*Multipliers!F218 -> 0 | L95: 0 | M95: =+$G95*Multipliers!H218 -> 0 | N95: =+$G95*Multipliers!I218 -> 0 | O95: =+$G95*Multipliers!J218 -> 0 | P95: 0 | Q95: =+$G95*Multipliers!L218 -> 0 | R95: =+$G95*Multipliers!M218 -> 0 | S95: =+$G95*Multipliers!N218 -> 0 | T95: 0 | U95: =+$G95*Multipliers!P218 -> 0 | V95: =+$G95*Multipliers!Q218 -> 0 | W95: =+$G95*Multipliers!R218 -> 0 | X95: 0 | AB95: =DefaultData!B97 -> Repayment term (years) | AC95: =IF(ProjectData!$U$24="y",DefaultData!C97,ProjectData!B138) -> 10
C96: Electrical Equipment | D96: =$E$186*DefaultData!I109+$E$187*DefaultData!I110+$E$188*DefaultData!I111+$E$189*DefaultData!I112+$E$190*DefaultData!I113+$E$191*DefaultData!I114+$E$192*DefaultData!I115+$E$193*DefaultData!I116+$E$194*DefaultData!I117+$E$195*DefaultData!I118+$E$196*DefaultData!I119+$E$197*DefaultData!I120+$E$198*DefaultData!I121+$E$199*DefaultData!I122 -> 80505.518 | F96: 80505.518 | G96: 0.08441519348 | I96: =+G96*Multipliers!D219 -> 0.1047215866 | J96: =+$G96*Multipliers!E219 -> 0.188945863 | K96: =+$G96*Multipliers!F219 -> 0.1523555672 | L96: 0.4460230168 | M96: =+$G96*Multipliers!H219 -> 0.01434897043 | N96: =+$G96*Multipliers!I219 -> 0.01282138681 | O96: =+$G96*Multipliers!J219 -> 0.007736922442 | P96: 0.03490727968 | Q96: =+$G96*Multipliers!L219 -> 0.08441519348 | R96: =+$G96*Multipliers!M219 -> 0.04586744664 | S96: =+$G96*Multipliers!N219 -> 0.02312328901 | T96: 0.1534059291 | U96: =+$G96*Multipliers!P219 -> 0.03227877801 | V96: =+$G96*Multipliers!Q219 -> 0.02274764699 | W96: =+$G96*Multipliers!R219 -> 0.01316164957 | X96: 0.06818807458 | AB96: =DefaultData!B98 -> Tax Parameters | AG96: During operating years (annual)
C97: TCPU | D97: =$E$186*DefaultData!J109+$E$187*DefaultData!J110+$E$188*DefaultData!J111+$E$189*DefaultData!J112+$E$190*DefaultData!J113+$E$191*DefaultData!J114+$E$192*DefaultData!J115+$E$193*DefaultData!J116+$E$194*DefaultData!J117+$E$195*DefaultData!J118+$E$196*DefaultData!J119+$E$197*DefaultData!J120+$E$198*DefaultData!J121+$E$199*DefaultData!J122 -> 23669.002 | F97: 23669.002 | G97: 0.02481846503 | I97: =+G97*Multipliers!D220 -> 0.06516203777 | J97: =+$G97*Multipliers!E220 -> 0.06071962703 | K97: =+$G97*Multipliers!F220 -> 0.06206915215 | L97: 0.187950817 | M97: =+$G97*Multipliers!H220 -> 0.006936864716 | N97: =+$G97*Multipliers!I220 -> 0.004404292199 | O97: =+$G97*Multipliers!J220 -> 0.003202571469 | P97: 0.01454372838 | Q97: =+$G97*Multipliers!L220 -> 0.02481846503 | R97: =+$G97*Multipliers!M220 -> 0.01437661012 | S97: =+$G97*Multipliers!N220 -> 0.009568207224 | T97: 0.04876328237 | U97: =+$G97*Multipliers!P220 -> 0.01170771347 | V97: =+$G97*Multipliers!Q220 -> 0.007900693972 | W97: =+$G97*Multipliers!R220 -> 0.005447290407 | X97: 0.02505569785 | AB97: =DefaultData!B99 -> Local Property Tax (percent of taxable value) | AC97: =IF(ProjectData!$U$24="y",DefaultData!C99,ProjectData!B140) -> 0 | AG97: Onsite Labor/Personnel Impacts | AH97: =L182 -> 1.298005978 | AI97: =P184 -> 0.0970002403 | AJ97: =T184 -> 0.0970002403 | AK97: =X184 -> 0.0970002403
C98: Wholesale Trade | D98: =$E$186*DefaultData!K109+$E$187*DefaultData!K110+$E$188*DefaultData!K111+$E$189*DefaultData!K112+$E$190*DefaultData!K113+$E$191*DefaultData!K114+$E$192*DefaultData!K115+$E$193*DefaultData!K116+$E$194*DefaultData!K117+$E$195*DefaultData!K118+$E$196*DefaultData!K119+$E$197*DefaultData!K120+$E$198*DefaultData!K121+$E$199*DefaultData!K122 -> 342998.4925 | F98: 342998.4925 | G98: 0.3596558947 | I98: =+G98*Multipliers!D221 -> 1.172984377 | J98: =+$G98*Multipliers!E221 -> 0.7289034667 | K98: =+$G98*Multipliers!F221 -> 0.8529097138 | L98: 2.754797557 | M98: =+$G98*Multipliers!H221 -> 0.1275906645 | N98: =+$G98*Multipliers!I221 -> 0.04610085236 | O98: =+$G98*Multipliers!J221 -> 0.04935537796 | P98: 0.2230468949 | Q98: =+$G98*Multipliers!L221 -> 0.3596558947 | R98: =+$G98*Multipliers!M221 -> 0.1321660194 | S98: =+$G98*Multipliers!N221 -> 0.1474960447 | T98: 0.6393179589 | U98: =+$G98*Multipliers!P221 -> 0.2422484609 | V98: =+$G98*Multipliers!Q221 -> 0.07646088447 | W98: =+$G98*Multipliers!R221 -> 0.08395802269 | X98: 0.402667368 | AB98: =DefaultData!B100 -> Assessed Value (percent of construction cost) | AC98: =IF(ProjectData!$U$24="y",DefaultData!C100,ProjectData!B141) -> 1 | AG98: Local Revenue and Supply Chain Impacts | AH98: =(L204-AH97)+M204 -> 0.523816364 | AI98: =((P205+Q205))-AI97 -> 0.0286574996 | AJ98: =((T205+U205))-AJ97 -> 0.09425106852 | AK98: =((X205+Y205))-AK97 -> 0.05141441891
C99: Retail Trade | D99: =$E$186*DefaultData!L109+$E$187*DefaultData!L110+$E$188*DefaultData!L111+$E$189*DefaultData!L112+$E$190*DefaultData!L113+$E$191*DefaultData!L114+$E$192*DefaultData!L115+$E$193*DefaultData!L116+$E$194*DefaultData!L117+$E$195*DefaultData!L118+$E$196*DefaultData!L119+$E$197*DefaultData!L120+$E$198*DefaultData!L121+$E$199*DefaultData!L122 -> 67705.6875 | F99: 67705.6875 | G99: 0.07099375113 | I99: =+G99*Multipliers!D222 -> 0.7882490706 | J99: =+$G99*Multipliers!E222 -> 0.1550320085 | K99: =+$G99*Multipliers!F222 -> 0.201682669 | L99: 1.144963748 | M99: =+$G99*Multipliers!H222 -> 0.02892924472 | N99: =+$G99*Multipliers!I222 -> 0.008684245242 | O99: =+$G99*Multipliers!J222 -> 0.01067164057 | P99: 0.04828513053 | Q99: =+$G99*Multipliers!L222 -> 0.07099375113 | R99: =+$G99*Multipliers!M222 -> 0.02622163199 | S99: =+$G99*Multipliers!N222 -> 0.03188966126 | T99: 0.1291050444 | U99: =+$G99*Multipliers!P222 -> 0.04838052041 | V99: =+$G99*Multipliers!Q222 -> 0.01483055897 | W99: =+$G99*Multipliers!R222 -> 0.01815298313 | X99: 0.0813640625 | AB99: =DefaultData!B101 -> Taxable Value (percent of assessed value) | AC99: =IF(ProjectData!$U$24="y",DefaultData!C101,ProjectData!B142) -> 1 | AG99: Induced Impacts | AH99: =N204 -> 0.440715713 | AI99: =R205 -> 0.02362212409 | AJ99: =V205 -> 0.07059263529 | AK99: =Z205 -> 0.04018319861
C100: FIRE | D100: =$E$186*DefaultData!M109+$E$187*DefaultData!M110+$E$188*DefaultData!M111+$E$189*DefaultData!M112+$E$190*DefaultData!M113+$E$191*DefaultData!M114+$E$192*DefaultData!M115+$E$193*DefaultData!M116+$E$194*DefaultData!M117+$E$195*DefaultData!M118+$E$196*DefaultData!M119+$E$197*DefaultData!M120+$E$198*DefaultData!M121+$E$199*DefaultData!M122 -> 0 | F100: 0 | G100: 0 | I100: =+G100*Multipliers!D223 -> 0 | J100: =+$G100*Multipliers!E223 -> 0 | K100: =+$G100*Multipliers!F223 -> 0 | L100: 0 | M100: =+$G100*Multipliers!H223 -> 0 | N100: =+$G100*Multipliers!I223 -> 0 | O100: =+$G100*Multipliers!J223 -> 0 | P100: 0 | Q100: =+$G100*Multipliers!L223 -> 0 | R100: =+$G100*Multipliers!M223 -> 0 | S100: =+$G100*Multipliers!N223 -> 0 | T100: 0 | U100: =+$G100*Multipliers!P223 -> 0 | V100: =+$G100*Multipliers!Q223 -> 0 | W100: =+$G100*Multipliers!R223 -> 0 | X100: 0 | AB100: =DefaultData!B102 -> Taxable Value | AC100: =IF(ProjectData!$U$24="y",DefaultData!C102,ProjectData!B143) -> 29859436.54 | AG100: Total Impacts | AH100: =SUM(AH97:AH99) -> 2.262538055 | AI100: =SUM(AI97:AI99) -> 0.149279864 | AJ100: =SUM(AJ97:AJ99) -> 0.2618439441 | AK100: =SUM(AK97:AK99) -> 0.1885978578
C101: Misc. Services | D101: =$E$186*DefaultData!N109+$E$187*DefaultData!N110+$E$188*DefaultData!N111+$E$189*DefaultData!N112+$E$190*DefaultData!N113+$E$191*DefaultData!N114+$E$192*DefaultData!N115+$E$193*DefaultData!N116+$E$194*DefaultData!N117+$E$195*DefaultData!N118+$E$196*DefaultData!N119+$E$197*DefaultData!N120+$E$198*DefaultData!N121+$E$199*DefaultData!N122 -> 94573.5 | F101: 94573.5 | G101: 0.09916637391 | I101: =+G101*Multipliers!D224 -> 0.5431341404 | J101: =+$G101*Multipliers!E224 -> 0.2222170784 | K101: =+$G101*Multipliers!F224 -> 0.3433398115 | L101: 1.10869103 | M101: =+$G101*Multipliers!H224 -> 0.0543888965 | N101: =+$G101*Multipliers!I224 -> 0.01493510474 | O101: =+$G101*Multipliers!J224 -> 0.01966326933 | P101: 0.08898727056 | Q101: =+$G101*Multipliers!L224 -> 0.09916637391 | R101: =+$G101*Multipliers!M224 -> 0.04033627364 | S101: =+$G101*Multipliers!N224 -> 0.05875839073 | T101: 0.1982610383 | U101: =+$G101*Multipliers!P224 -> 0.0632833975 | V101: =+$G101*Multipliers!Q224 -> 0.02328766881 | W101: =+$G101*Multipliers!R224 -> 0.03344803795 | X101: 0.1200191043 | AB101: =DefaultData!B103 -> Property Tax Exemption (percent of local taxes) | AC101: =IF(ProjectData!$U$24="y",DefaultData!C103,ProjectData!B144) -> 0
C102: Professional Services | D102: =$E$186*DefaultData!O109+$E$187*DefaultData!O110+$E$188*DefaultData!O111+$E$189*DefaultData!O112+$E$190*DefaultData!O113+$E$191*DefaultData!O114+$E$192*DefaultData!O115+$E$193*DefaultData!O116+$E$194*DefaultData!O117+$E$195*DefaultData!O118+$E$196*DefaultData!O119+$E$197*DefaultData!O120+$E$198*DefaultData!O121+$E$199*DefaultData!O122 -> 1289250 | F102: 1289250 | G102: 1.351861225 | I102: =+G102*Multipliers!D225 -> 10.14412403 | J102: =+$G102*Multipliers!E225 -> 3.336941822 | K102: =+$G102*Multipliers!F225 -> 3.752271979 | L102: 17.23333783 | M102: =+$G102*Multipliers!H225 -> 0.5059759968 | N102: =+$G102*Multipliers!I225 -> 0.1896288102 | O102: =+$G102*Multipliers!J225 -> 0.1973594076 | P102: 0.8929642146 | Q102: =+$G102*Multipliers!L225 -> 1.351861225 | R102: =+$G102*Multipliers!M225 -> 0.5727326425 | S102: =+$G102*Multipliers!N225 -> 0.5897609433 | T102: 2.514354811 | U102: =+$G102*Multipliers!P225 -> 0.8226154572 | V102: =+$G102*Multipliers!Q225 -> 0.3186217805 | W102: =+$G102*Multipliers!R225 -> 0.3357178266 | X102: 1.476955064 | AB102: =DefaultData!B104 -> Local Property Taxes | AC102: =IF(ProjectData!$U$24="y",DefaultData!C104,ProjectData!B145) -> 0 | AD102: =IF(ProjectData!$U$24="y",DefaultData!E104,ProjectData!E145) -> 1
C103: Government | D103: =$E$186*DefaultData!P109+$E$187*DefaultData!P110+$E$188*DefaultData!P111+$E$189*DefaultData!P112+$E$190*DefaultData!P113+$E$191*DefaultData!P114+$E$192*DefaultData!P115+$E$193*DefaultData!P116+$E$194*DefaultData!P117+$E$195*DefaultData!P118+$E$196*DefaultData!P119+$E$197*DefaultData!P120+$E$198*DefaultData!P121+$E$199*DefaultData!P122 -> 1007500 | F103: 1007500 | G103: 1.056428299 | I103: 0 | J103: =+$G103*Multipliers!E226 -> 0.46243466 | K103: =+$G103*Multipliers!F226 -> 3.981272506 | L103: 4.443707166 | M103: 0 | N103: =+$G103*Multipliers!I226 -> 0.03268529334 | O103: =+$G103*Multipliers!J226 -> 0.236466674 | P103: 0.2691519673 | Q103: 0 | R103: =+$G103*Multipliers!M226 -> 0.09901307676 | S103: =+$G103*Multipliers!N226 -> 0.7068025118 | T103: 0.8058155885 | U103: 0 | V103: =+$G103*Multipliers!Q226 -> 0.05281768094 | W103: =+$G103*Multipliers!R226 -> 0.4022823013 | X103: 0.4550999822 | AB103: =DefaultData!B105 -> Local Sales Tax Rate | AC103: =IF(ProjectData!$U$24="y",DefaultData!C105,ProjectData!B146) -> 0.0625 | AD103: =IF(ProjectData!$U$24="y",DefaultData!E105,ProjectData!E146) -> 1
C104: Total | D104: =SUM(D90:D103) -> 6938849.544 | F104: =SUM(F90:F103) -> 6938849.544 | G104: =SUM(G90:G103) -> 7.275828307 | I104: =SUM(I90:I103) -> 71.65309407 | J104: 17.15508557 | K104: 20.29582733 | L104: 109.104007 | M104: 4.649885666 | N104: 0.9838504192 | O104: 1.09523637 | P104: 6.728972456 | Q104: 6.219400008 | R104: 3.157730989 | S104: 3.272655253 | T104: 12.64978625 | U104: =SUM(U90:U103) -> 5.184126925 | V104: 1.707407802 | W104: 1.863004962 | X104: 8.754539689 | AB104: Payroll Parameters
AB105: Construction and Installation Labor | AC105: Wage per hour | AD105: Employer Payroll Overhead
F106: Inflator to | G106: =D86 -> 2012 | H106: Dollars | AB106: =Calculations!C68 -> Civil (grading, roads, site prep, foundations, fencing) | AC106: =IF(ProjectData!$U$24="y",E68,O68) -> 17.45 | AD106: =IF(ProjectData!$U$24="y",G68,Q68) -> 0.3760611025
G107: =Deflators!F8 -> 0.9666144056 | M107: =M104*$G107 -> 4.49464647 | N107: 0.9510039882 | O107: 1.058671253 | P107: 6.504321711 | Q107: 6.011761642 | R107: 3.052308263 | S107: 3.163395712 | T107: 12.22746562 | U107: =U104*$G107 -> 5.011051766 | V107: 1.650404978 | W107: 1.800807434 | X107: 8.462264178 | AB107: =Calculations!C69 -> Heavy Construction (Tower erection, Conductor stringing) | AC107: =IF(ProjectData!$U$24="y",E69,O69) -> 25.27 | AD107: =IF(ProjectData!$U$24="y",G69,Q69) -> 0.3760611025
AB108: Commerical/Industrial Construction (Substation, Converter) | AC108: =IF(ProjectData!$U$24="y",E70,O70) -> 29.98 | AD108: =IF(ProjectData!$U$24="y",G70,Q70) -> 0.3760611025
C109: =DefaultData!B68 -> Annual Operating and Maintenance Costs | AB109: =Calculations!C77 -> O&M Labor
C110: =DefaultData!B69 -> Transmission Line and ROW | D110: Cost | E110: Local Share | G110: Local $ Spending | AB110: =Calculations!C78 -> Transmission and ROW Labor/Personnel | AC110: =IF(ProjectData!$U$24="y",E78,O78) -> 23.16 | AD110: =IF(ProjectData!$U$24="y",G78,Q78) -> 0.3760611025
C111: =DefaultData!B70 -> T-Line/ROW Labor | D111: =IF(ProjectData!$U$24="y",DefaultData!C70,ProjectData!B112) -> 139104 | E111: =IF(ProjectData!$U$24="y",DefaultData!F70,ProjectData!F112) -> 0.6 | G111: =D111*E111 -> 83462.4 | AB111: =Calculations!C79 -> Substation and Converter Station Labor/Personnel | AC111: =IF(ProjectData!$U$24="y",E79,O79) -> 23.16 | AD111: =IF(ProjectData!$U$24="y",G79,Q79) -> 0.3760611025
C117: =DefaultData!B71 -> T-Line/ROW Maintenance Materials | D117: =IF(ProjectData!$U$24="y",DefaultData!C71,ProjectData!B113) -> 34400 | E117: =IF(ProjectData!$U$24="y",DefaultData!F71,ProjectData!F113) -> 0.1 | G117: =D117*E117 -> 3440
C118: =DefaultData!B72 -> Insurance | D118: =IF(ProjectData!$U$24="y",DefaultData!C72,ProjectData!B114) -> 20000 | E118: =IF(ProjectData!$U$24="y",DefaultData!F72,ProjectData!F114) -> 0 | G118: 0
C119: =DefaultData!B73 -> Replacement Parts/Equipment/ Spare Parts Inventory | D119: =IF(ProjectData!$U$24="y",DefaultData!C73,ProjectData!B115) -> 20000 | E119: =IF(ProjectData!$U$24="y",DefaultData!F73,ProjectData!F115) -> 0 | G119: 0
C120: =DefaultData!B74 -> Subtotal | D120: =SUM(D111:D119) -> 213504 | E120: =IF(ProjectData!$U$24="y",DefaultData!F74,ProjectData!F116) -> 0 | G120: =SUM(G111:G119) -> 86902.4
C121: =DefaultData!B75 -> Substation/Converter Station
C122: =DefaultData!B76 -> Labor/Personnel | D122: =IF(ProjectData!$U$24="y",DefaultData!C76,ProjectData!B118) -> 5161.5 | E122: =IF(ProjectData!$U$24="y",DefaultData!F76,ProjectData!F118) -> 0.5 | G122: =D122*E122 -> 2580.75
C123: =DefaultData!B77 -> Insurance | D123: =IF(ProjectData!$U$24="y",DefaultData!C77,ProjectData!B119) -> 11100 | E123: =IF(ProjectData!$U$24="y",DefaultData!F77,ProjectData!F119) -> 0 | G123: =D123*E123 -> 0
C124: =DefaultData!B78 -> Replacement Parts/Equipment/ Spare Parts Inventory | D124: =IF(ProjectData!$U$24="y",DefaultData!C78,ProjectData!B120) -> 5550 | E124: =IF(ProjectData!$U$24="y",DefaultData!F78,ProjectData!F120) -> 0 | G124: =D124*E124 -> 0
C125: =DefaultData!B79 -> Subtotal | D125: =SUM(D122:D124) -> 21811.5 | E125: =IF(ProjectData!$U$24="y",DefaultData!F79,ProjectData!F121) -> 0 | G125: =SUM(G122:G124) -> 2580.75
C126: =DefaultData!B80 -> Subtotal All O&M Costs (without sales tax) | D126: =D125+D120 -> 235315.5 | G126: =G125+G120 -> 89483.15
C127: =DefaultData!B81 -> Sales Tax (Materials & Equipment Purchases) | D127: =IF(ProjectData!$U$24="y",DefaultData!C81,ProjectData!B123) -> 3746.875 | E127: =IF(ProjectData!$U$24="y",DefaultData!F81,ProjectData!F123) -> 1 | G127: =D127*E127 -> 3746.875
C128: =DefaultData!B82 -> Right of Way/Royalty Payments - Public land | D128: =IF(ProjectData!$U$24="y",DefaultData!C82,ProjectData!B124) -> 18181.81818 | E128: =IF(ProjectData!$U$24="y",DefaultData!F82,ProjectData!F124) -> 1 | G128: =D128*E128 -> 18181.81818
C129: =DefaultData!B83 -> Total with Payments | D129: =D128+D127+D126 -> 257244.1932 | G129: =G128+G127+G126 -> 111411.8432
C130: Average Annual Debt Payment (Interest and Principal) | D130: =IF(ProjectData!$U$24="y",F252,Calculations!F298) -> 988807.4352 | E130: =IF(ProjectData!$U$24="y",DefaultData!E88,ProjectData!E130) -> 0 | G130: =D130*E130 -> 0 | H130: =IF(ProjectData!$U$24="y",Calculations!D252,D298)*E130 -> 0 | I130: Debt Pmt - Local share Avg Ann Interest
C131: Average Annual Equity Payment Individual (Interest and Principal) | D131: =IF(ProjectData!$U$24="y",K$252,Calculations!K$298) -> 0 | E131: =IF(ProjectData!$U$24="y",DefaultData!E94,ProjectData!E135) -> 0 | G131: =D131*E131 -> 0 | H131: =IF(ProjectData!$U$24="y",Calculations!I252,I298)*E131 -> 0 | I131: Equity Pmt - Local share Avg Ann Interest
C132: Average Annual Equity Payment Corporate (Interest and Principal) | D132: =IF(ProjectData!$U$24="y",P$252,Calculations!P$298) -> 2680868.678 | E132: =IF(ProjectData!$U$24="y",DefaultData!E95,ProjectData!E136) -> 0 | G132: =D132*E132 -> 0 | H132: =IF(ProjectData!$U$24="y",Calculations!N252,N298)*E132 -> 0 | I132: Equity Pmt - Local share Avg Ann Interest
C133: Property Taxes | D133: =IF(ProjectData!$U$24="y",DefaultData!C104,ProjectData!B145) -> 0 | E133: =IF(ProjectData!$U$24="y",DefaultData!E104,ProjectData!E145) -> 1 | G133: =D133*E133 -> 0
C134: Total | D134: =SUM(D129:D133) -> 3926920.307 | G134: =SUM(G129:G133) -> 111411.8432
C135: Total (without debt, equity,taxes, ROW pmts, etc.) | D135: =D126+D127 -> 239062.375 | E135: =D134-D135 -> 3687857.932 | G135: =G126+G127 -> 93230.025 | H135: =G128+G130+G131+G132+G133 -> 18181.81818
C136: Total cost per mile and percent of Capex | D136: =D135/(ProjectData!B20) -> 11953.11875 | E136: =D135/D57 -> 0.008006258747
D139: Local Share | E139: 1 | F139: 0.5 | L139: Without Plant Employees
C140: Annual Operations and Maintenance Costs Local Demand - margined | O140: =M87 -> 2014 | P140: =N87 -> Dollars
D141: Demand | G141: Total | H141: Adj Demand - Million | L141: Jobs | P141: Earnings | T141: Output | X141: Value Added
H142: =M87 -> 2014 | I142: Dollars | L142: Direct | M142: Indirect | N142: Induced | O142: Total | P142: Direct | Q142: Indirect | R142: Induced | S142: Total | T142: Direct | U142: Indirect | V142: Induced | W142: Total | X142: Direct | Y142: Indirect | Z142: Induced | AA142: Total
C143: Agriculture | D143: =$D$186*DefaultData!C109+$D$187*DefaultData!C110+$D$188*DefaultData!C111+$D$189*DefaultData!C112+$D$190*DefaultData!C113+$D$191*DefaultData!C114+$D$192*DefaultData!C115+$D$193*DefaultData!C116+$D$194*DefaultData!C117+$D$195*DefaultData!C118+$D$196*DefaultData!C119+$D$197*DefaultData!C120+$D$198*DefaultData!C121+$D$199*DefaultData!C122 -> 0 | G143: =F143+E143+D143 -> 0 | H143: =G143*G$86/10^6 -> 0 | L143: =$H143*Multipliers!D213 -> 0 | M143: =$H143*Multipliers!E213 -> 0 | N143: =$H143*Multipliers!F213 -> 0 | O143: =+N143+M143+L143 -> 0 | P143: =$H143*Multipliers!H213 -> 0 | Q143: =$H143*Multipliers!I213 -> 0 | R143: =$H143*Multipliers!J213 -> 0 | S143: =+R143+Q143+P143 -> 0 | T143: =$H143*Multipliers!L213 -> 0 | U143: =$H143*Multipliers!M213 -> 0 | V143: =$H143*Multipliers!N213 -> 0 | W143: =+V143+U143+T143 -> 0 | X143: =$H143*Multipliers!P213 -> 0 | Y143: =$H143*Multipliers!Q213 -> 0 | Z143: =$H143*Multipliers!R213 -> 0 | AA143: =+Z143+Y143+X143 -> 0
C144: Mining | D144: =$D$186*DefaultData!D109+$D$187*DefaultData!D110+$D$188*DefaultData!D111+$D$189*DefaultData!D112+$D$190*DefaultData!D113+$D$191*DefaultData!D114+$D$192*DefaultData!D115+$D$193*DefaultData!D116+$D$194*DefaultData!D117+$D$195*DefaultData!D118+$D$196*DefaultData!D119+$D$197*DefaultData!D120+$D$198*DefaultData!D121+$D$199*DefaultData!D122 -> 0 | G144: =F144+E144+D144 -> 0 | H144: 0 | L144: =$H144*Multipliers!D214 -> 0 | M144: =$H144*Multipliers!E214 -> 0 | N144: =$H144*Multipliers!F214 -> 0 | O144: =+N144+M144+L144 -> 0 | P144: =$H144*Multipliers!H214 -> 0 | Q144: =$H144*Multipliers!I214 -> 0 | R144: =$H144*Multipliers!J214 -> 0 | S144: =+R144+Q144+P144 -> 0 | T144: =$H144*Multipliers!L214 -> 0 | U144: =$H144*Multipliers!M214 -> 0 | V144: =$H144*Multipliers!N214 -> 0 | W144: =+V144+U144+T144 -> 0 | X144: =$H144*Multipliers!P214 -> 0 | Y144: =$H144*Multipliers!Q214 -> 0 | Z144: =$H144*Multipliers!R214 -> 0 | AA144: =+Z144+Y144+X144 -> 0
C145: Construction | D145: =$D$186*DefaultData!E109+$D$187*DefaultData!E110+$D$188*DefaultData!E111+$D$189*DefaultData!E112+$D$190*DefaultData!E113+$D$191*DefaultData!E114+$D$192*DefaultData!E115+$D$193*DefaultData!E116+$D$194*DefaultData!E117+$D$195*DefaultData!E118+$D$196*DefaultData!E119+$D$197*DefaultData!E120+$D$198*DefaultData!E121+$D$199*DefaultData!E122 -> 0 | G145: 0 | H145: 0 | L145: =$H145*Multipliers!D215 -> 0 | M145: =$H145*Multipliers!E215 -> 0 | N145: =$H145*Multipliers!F215 -> 0 | O145: 0 | P145: =$H145*Multipliers!H215 -> 0 | Q145: =$H145*Multipliers!I215 -> 0 | R145: =$H145*Multipliers!J215 -> 0 | S145: 0 | T145: =$H145*Multipliers!L215 -> 0 | U145: =$H145*Multipliers!M215 -> 0 | V145: =$H145*Multipliers!N215 -> 0 | W145: 0 | X145: =$H145*Multipliers!P215 -> 0 | Y145: =$H145*Multipliers!Q215 -> 0 | Z145: =$H145*Multipliers!R215 -> 0 | AA145: 0
C146: Manufacturing | D146: =$D$186*DefaultData!F109+$D$187*DefaultData!F110+$D$188*DefaultData!F111+$D$189*DefaultData!F112+$D$190*DefaultData!F113+$D$191*DefaultData!F114+$D$192*DefaultData!F115+$D$193*DefaultData!F116+$D$194*DefaultData!F117+$D$195*DefaultData!F118+$D$196*DefaultData!F119+$D$197*DefaultData!F120+$D$198*DefaultData!F121+$D$199*DefaultData!F122 -> 1920.93728 | G146: 1920.93728 | H146: 0.002014225809 | L146: =$H146*Multipliers!D216 -> 0.002106395961 | M146: =$H146*Multipliers!E216 -> 0.004728918644 | N146: =$H146*Multipliers!F216 -> 0.002916232003 | O146: 0.009751546609 | P146: =$H146*Multipliers!H216 -> 0.0001980544388 | Q146: =$H146*Multipliers!I216 -> 0.0003365564476 | R146: =$H146*Multipliers!J216 -> 0.0001515551544 | S146: 0.0006861660408 | T146: =$H146*Multipliers!L216 -> 0.002014225809 | U146: =$H146*Multipliers!M216 -> 0.001272806722 | V146: =$H146*Multipliers!N216 -> 0.0004528679064 | W146: 0.003739900438 | X146: =$H146*Multipliers!P216 -> 0.0004956005009 | Y146: =$H146*Multipliers!Q216 -> 0.0006540900098 | Z146: =$H146*Multipliers!R216 -> 0.0002577984351 | AA146: 0.001407488946
C147: Fabricated Metals | D147: =$D$186*DefaultData!G109+$D$187*DefaultData!G110+$D$188*DefaultData!G111+$D$189*DefaultData!G112+$D$190*DefaultData!G113+$D$191*DefaultData!G114+$D$192*DefaultData!G115+$D$193*DefaultData!G116+$D$194*DefaultData!G117+$D$195*DefaultData!G118+$D$196*DefaultData!G119+$D$197*DefaultData!G120+$D$198*DefaultData!G121+$D$199*DefaultData!G122 -> 0 | G147: 0 | H147: 0 | L147: =$H147*Multipliers!D217 -> 0 | M147: =$H147*Multipliers!E217 -> 0 | N147: =$H147*Multipliers!F217 -> 0 | O147: 0 | P147: =$H147*Multipliers!H217 -> 0 | Q147: =$H147*Multipliers!I217 -> 0 | R147: =$H147*Multipliers!J217 -> 0 | S147: 0 | T147: =$H147*Multipliers!L217 -> 0 | U147: =$H147*Multipliers!M217 -> 0 | V147: =$H147*Multipliers!N217 -> 0 | W147: 0 | X147: =$H147*Multipliers!P217 -> 0 | Y147: =$H147*Multipliers!Q217 -> 0 | Z147: =$H147*Multipliers!R217 -> 0 | AA147: 0
C148: Machinery | D148: =$D$186*DefaultData!H109+$D$187*DefaultData!H110+$D$188*DefaultData!H111+$D$189*DefaultData!H112+$D$190*DefaultData!H113+$D$191*DefaultData!H114+$D$192*DefaultData!H115+$D$193*DefaultData!H116+$D$194*DefaultData!H117+$D$195*DefaultData!H118+$D$196*DefaultData!H119+$D$197*DefaultData!H120+$D$198*DefaultData!H121+$D$199*DefaultData!H122 -> 0 | G148: 0 | H148: 0 | L148: =$H148*Multipliers!D218 -> 0 | M148: =$H148*Multipliers!E218 -> 0 | N148: =$H148*Multipliers!F218 -> 0 | O148: 0 | P148: =$H148*Multipliers!H218 -> 0 | Q148: =$H148*Multipliers!I218 -> 0 | R148: =$H148*Multipliers!J218 -> 0 | S148: 0 | T148: =$H148*Multipliers!L218 -> 0 | U148: =$H148*Multipliers!M218 -> 0 | V148: =$H148*Multipliers!N218 -> 0 | W148: 0 | X148: =$H148*Multipliers!P218 -> 0 | Y148: =$H148*Multipliers!Q218 -> 0 | Z148: =$H148*Multipliers!R218 -> 0 | AA148: 0
C149: Electrical Equipment | D149: =$D$186*DefaultData!I109+$D$187*DefaultData!I110+$D$188*DefaultData!I111+$D$189*DefaultData!I112+$D$190*DefaultData!I113+$D$191*DefaultData!I114+$D$192*DefaultData!I115+$D$193*DefaultData!I116+$D$194*DefaultData!I117+$D$195*DefaultData!I118+$D$196*DefaultData!I119+$D$197*DefaultData!I120+$D$198*DefaultData!I121+$D$199*DefaultData!I122 -> 0 | G149: 0 | H149: 0 | L149: =$H149*Multipliers!D219 -> 0 | M149: =$H149*Multipliers!E219 -> 0 | N149: =$H149*Multipliers!F219 -> 0 | O149: 0 | P149: =$H149*Multipliers!H219 -> 0 | Q149: =$H149*Multipliers!I219 -> 0 | R149: =$H149*Multipliers!J219 -> 0 | S149: 0 | T149: =$H149*Multipliers!L219 -> 0 | U149: =$H149*Multipliers!M219 -> 0 | V149: =$H149*Multipliers!N219 -> 0 | W149: 0 | X149: =$H149*Multipliers!P219 -> 0 | Y149: =$H149*Multipliers!Q219 -> 0 | Z149: =$H149*Multipliers!R219 -> 0 | AA149: 0
C150: TCPU | D150: =$D$186*DefaultData!J109+$D$187*DefaultData!J110+$D$188*DefaultData!J111+$D$189*DefaultData!J112+$D$190*DefaultData!J113+$D$191*DefaultData!J114+$D$192*DefaultData!J115+$D$193*DefaultData!J116+$D$194*DefaultData!J117+$D$195*DefaultData!J118+$D$196*DefaultData!J119+$D$197*DefaultData!J120+$D$198*DefaultData!J121+$D$199*DefaultData!J122 -> 79.16816 | G150: 79.16816 | H150: 8.301288793e-05 | L150: =$H150*Multipliers!D220 -> 0.00021795421 | M150: =$H150*Multipliers!E220 -> 0.0002030952191 | N150: =$H150*Multipliers!F220 -> 0.0002076091154 | O150: 0.0006286585446 | P150: =$H150*Multipliers!H220 -> 2.320244917e-05 | Q150: =$H150*Multipliers!I220 -> 1.473149183e-05 | R150: =$H150*Multipliers!J220 -> 1.071197216e-05 | S150: 4.864591315e-05 | T150: =$H150*Multipliers!L220 -> 8.301288793e-05 | U150: =$H150*Multipliers!M220 -> 4.80869354e-05 | V150: =$H150*Multipliers!N220 -> 3.200377272e-05 | W150: 0.000163103596 | X150: =$H150*Multipliers!P220 -> 3.916000062e-05 | Y150: =$H150*Multipliers!Q220 -> 2.642626861e-05 | Z150: =$H150*Multipliers!R220 -> 1.822011585e-05 | AA150: 8.380638508e-05
C151: Wholesale Trade | D151: =$D$186*DefaultData!K109+$D$187*DefaultData!K110+$D$188*DefaultData!K111+$D$189*DefaultData!K112+$D$190*DefaultData!K113+$D$191*DefaultData!K114+$D$192*DefaultData!K115+$D$193*DefaultData!K116+$D$194*DefaultData!K117+$D$195*DefaultData!K118+$D$196*DefaultData!K119+$D$197*DefaultData!K120+$D$198*DefaultData!K121+$D$199*DefaultData!K122 -> 1439.89112 | G151: 1439.89112 | H151: 0.001509818091 | L151: =$H151*Multipliers!D221 -> 0.004924131811 | M151: =$H151*Multipliers!E221 -> 0.00305990158 | N151: =$H151*Multipliers!F221 -> 0.003580473821 | O151: 0.01156450721 | P151: =$H151*Multipliers!H221 -> 0.0005356194528 | Q151: =$H151*Multipliers!I221 -> 0.0001935291536 | R151: =$H151*Multipliers!J221 -> 0.000207191495 | S151: 0.0009363401014 | T151: =$H151*Multipliers!L221 -> 0.001509818091 | U151: =$H151*Multipliers!M221 -> 0.0005548265719 | V151: =$H151*Multipliers!N221 -> 0.0006191812782 | W151: 0.002683825941 | X151: =$H151*Multipliers!P221 -> 0.001016947349 | Y151: =$H151*Multipliers!Q221 -> 0.0003209791034 | Z151: =$H151*Multipliers!R221 -> 0.0003524517278 | AA151: 0.00169037818
C152: Retail Trade | D152: =$D$186*DefaultData!L109+$D$187*DefaultData!L110+$D$188*DefaultData!L111+$D$189*DefaultData!L112+$D$190*DefaultData!L113+$D$191*DefaultData!L114+$D$192*DefaultData!L115+$D$193*DefaultData!L116+$D$194*DefaultData!L117+$D$195*DefaultData!L118+$D$196*DefaultData!L119+$D$197*DefaultData!L120+$D$198*DefaultData!L121+$D$199*DefaultData!L122 -> 0 | G152: 0 | H152: 0 | L152: =$H152*Multipliers!D222 -> 0 | M152: =$H152*Multipliers!E222 -> 0 | N152: =$H152*Multipliers!F222 -> 0 | O152: 0 | P152: =$H152*Multipliers!H222 -> 0 | Q152: =$H152*Multipliers!I222 -> 0 | R152: =$H152*Multipliers!J222 -> 0 | S152: 0 | T152: =$H152*Multipliers!L222 -> 0 | U152: =$H152*Multipliers!M222 -> 0 | V152: =$H152*Multipliers!N222 -> 0 | W152: 0 | X152: =$H152*Multipliers!P222 -> 0 | Y152: =$H152*Multipliers!Q222 -> 0 | Z152: =$H152*Multipliers!R222 -> 0 | AA152: 0
C153: FIRE | D153: =$D$186*DefaultData!M109+$D$187*DefaultData!M110+$D$188*DefaultData!M111+$D$189*DefaultData!M112+$D$190*DefaultData!M113+$D$191*DefaultData!M114+$D$192*DefaultData!M115+$D$193*DefaultData!M116+$D$194*DefaultData!M117+$D$195*DefaultData!M118+$D$196*DefaultData!M119+$D$197*DefaultData!M120+$D$198*DefaultData!M121+$D$199*DefaultData!M122 -> 25445.52884 | G153: 25445.52884 | H153: 0.02668126724 | L153: =$H153*Multipliers!D223 -> 0.1471068189 | M153: =$H153*Multipliers!E223 -> 0.08854525669 | N153: =$H153*Multipliers!F223 -> 0.06370683202 | O153: 0.2993589076 | P153: =$H153*Multipliers!H223 -> 0.006908130402 | Q153: =$H153*Multipliers!I223 -> 0.004771647522 | R153: =$H153*Multipliers!J223 -> 0.003314670813 | S153: 0.01499444874 | T153: =$H153*Multipliers!L223 -> 0.02668126724 | U153: =$H153*Multipliers!M223 -> 0.01513925262 | V153: =$H153*Multipliers!N223 -> 0.009905191551 | W153: 0.05172571141 | X153: =$H153*Multipliers!P223 -> 0.01426183239 | Y153: =$H153*Multipliers!Q223 -> 0.00835906168 | Z153: =$H153*Multipliers!R223 -> 0.005638436816 | AA153: 0.02825933089
C154: Misc. Services | D154: =$D$186*DefaultData!N109+$D$187*DefaultData!N110+$D$188*DefaultData!N111+$D$189*DefaultData!N112+$D$190*DefaultData!N113+$D$191*DefaultData!N114+$D$192*DefaultData!N115+$D$193*DefaultData!N116+$D$194*DefaultData!N117+$D$195*DefaultData!N118+$D$196*DefaultData!N119+$D$197*DefaultData!N120+$D$198*DefaultData!N121+$D$199*DefaultData!N122 -> 0 | G154: 0 | H154: 0 | L154: =$H154*Multipliers!D224 -> 0 | M154: =$H154*Multipliers!E224 -> 0 | N154: =$H154*Multipliers!F224 -> 0 | O154: 0 | P154: =$H154*Multipliers!H224 -> 0 | Q154: =$H154*Multipliers!I224 -> 0 | R154: =$H154*Multipliers!J224 -> 0 | S154: 0 | T154: =$H154*Multipliers!L224 -> 0 | U154: =$H154*Multipliers!M224 -> 0 | V154: =$H154*Multipliers!N224 -> 0 | W154: 0 | X154: =$H154*Multipliers!P224 -> 0 | Y154: =$H154*Multipliers!Q224 -> 0 | Z154: =$H154*Multipliers!R224 -> 0 | AA154: 0
C155: Professional Services | D155: =$D$186*DefaultData!O109+$D$187*DefaultData!O110+$D$188*DefaultData!O111+$D$189*DefaultData!O112+$D$190*DefaultData!O113+$D$191*DefaultData!O114+$D$192*DefaultData!O115+$D$193*DefaultData!O116+$D$194*DefaultData!O117+$D$195*DefaultData!O118+$D$196*DefaultData!O119+$D$197*DefaultData!O120+$D$198*DefaultData!O121+$D$199*DefaultData!O122 -> 0 | G155: 0 | H155: 0 | L155: =$H155*Multipliers!D225 -> 0 | M155: =$H155*Multipliers!E225 -> 0 | N155: =$H155*Multipliers!F225 -> 0 | O155: 0 | P155: =$H155*Multipliers!H225 -> 0 | Q155: =$H155*Multipliers!I225 -> 0 | R155: =$H155*Multipliers!J225 -> 0 | S155: 0 | T155: =$H155*Multipliers!L225 -> 0 | U155: =$H155*Multipliers!M225 -> 0 | V155: =$H155*Multipliers!N225 -> 0 | W155: 0 | X155: =$H155*Multipliers!P225 -> 0 | Y155: =$H155*Multipliers!Q225 -> 0 | Z155: =$H155*Multipliers!R225 -> 0 | AA155: 0
C156: Government | D156: =$D$186*DefaultData!P109+$D$187*DefaultData!P110+$D$188*DefaultData!P111+$D$189*DefaultData!P112+$D$190*DefaultData!P113+$D$191*DefaultData!P114+$D$192*DefaultData!P115+$D$193*DefaultData!P116+$D$194*DefaultData!P117+$D$195*DefaultData!P118+$D$196*DefaultData!P119+$D$197*DefaultData!P120+$D$198*DefaultData!P121+$D$199*DefaultData!P122 -> 21928.69318 | G156: 21928.69318 | H156: 0.02299363974 | L156: 0 | M156: =$H156*Multipliers!E226 -> 0.01006509953 | N156: =$H156*Multipliers!F226 -> 0.08665419677 | O156: 0.0967192963 | P156: 0 | Q156: =$H156*Multipliers!I226 -> 0.0007114101927 | R156: =$H156*Multipliers!J226 -> 0.00514680411 | S156: 0.005858214303 | T156: 0 | U156: =$H156*Multipliers!M226 -> 0.002155064398 | V156: =$H156*Multipliers!N226 -> 0.01538387635 | W156: 0.01753894075 | X156: 0 | Y156: =$H156*Multipliers!Q226 -> 0.001149600714 | Z156: =$H156*Multipliers!R226 -> 0.008755856236 | AA156: 0.009905456951
C157: Total | D157: =SUM(D143:D156) -> 50814.21858 | G157: 50814.21858 | H157: =SUM(H143:H156) -> 0.05328196376 | K157: Total | L157: =SUM(L143:L156) -> 0.1543553009 | M157: =SUM(M143:M156) -> 0.1066022717 | N157: 0.1570653437 | O157: 0.4180229162 | P157: 0.007665006743 | Q157: 0.006027874808 | R157: 0.008830933544 | S157: 0.02252381509 | T157: 0.03028832403 | U157: 0.01917003725 | V157: 0.02639312086 | W157: 0.07585148214 | X157: =SUM(X143:X156) -> 0.01581354024 | Y157: 0.01051015778 | Z157: 0.01502276333 | AA157: 0.04134646135
C159: Plant Employees | E159: Earnings - Gross | G159: =G111 -> 83462.4 | H159: =G159*G86/10^6 -> 0.0875156737
C160: Plant Employees | E160: Employee - (SSI, Med, Inc Tax) | F160: =IF(ProjectData!U$24="y",Calculations!K60,Calculations!L60) -> 0.07118694551 | G160: =G$159*F160 -> 5941.433321 | H160: 0 | O160: Inflate to | P160: =D86 -> 2012 | Q160: Dollars | T160: =P160 -> 2012 | U160: Dollars | X160: =T160 -> 2012 | Y160: Dollars
C161: Labor | D161: =IF(ProjectData!U24="y",Calculations!H80,I80) -> 1.298005978 | E161: Other benefits | F161: =IF(ProjectData!U$24="y",Calculations!K61,Calculations!L61) -> 0.304874157 | G161: =G$159*F161 -> 25445.52884 | H161: =IF(ProjectData!B16="MyCounty",0,IF(ProjectData!B16="MyRegion",0,1)) -> 1 | J161: Without Plant Employees | L161: =L157 -> 0.1543553009 | M161: =M157 -> 0.1066022717 | N161: =N157 -> 0.1570653437 | O161: =O157 -> 0.4180229162 | P161: =P157*$G107 -> 0.007409105937 | Q161: =Q157*$G107 -> 0.005826630625 | R161: =R157*$G107 -> 0.008536107579 | S161: =+R161+Q161+P161 -> 0.02177184414 | T161: =T157*$G107 -> 0.02927713033 | U161: =U157*$G107 -> 0.01853003416 | V161: =V157*$G107 -> 0.02551197083 | W161: =+V161+U161+T161 -> 0.07331913532 | X161: =X157*$G107 -> 0.0152855958 | Y161: =Y157*$G107 -> 0.01015926991 | Z161: =Z157*$G107 -> 0.01452121945 | AA161: =+Z161+Y161+X161 -> 0.03996608516
E162: Earnings (minus taxes, benefits, etc) | G162: =G159-G160-G161 -> 52075.43784 | J162: With Plant Employees | L162: =L161+L182 -> 1.452361279 | M162: =M161+M182 -> 0.3694610631 | N162: =N161+N182 -> 0.440715713 | O162: =O161+O182 -> 2.262538055 | P162: =(P157+P182)*$G107 -> 0.1044093462 | Q162: =(Q157+Q182)*$G107 -> 0.02124839366 | R162: =(R157+R182)*$G107 -> 0.02362212409 | S162: =+R162+Q162+P162 -> 0.149279864 | T162: =(T157+T182)*$G107 -> 0.1262773706 | U162: =(U157+U182)*$G107 -> 0.06497393819 | V162: =(V157+V182)*$G107 -> 0.07059263529 | W162: =+V162+U162+T162 -> 0.2618439441 | X162: =(X157+X182)*$G107 -> 0.1122858361 | Y162: =(Y157+Y182)*$G107 -> 0.03612882311 | Z162: =(Z157+Z182)*$G107 -> 0.04018319861 | AA162: =+Z162+Y162+X162 -> 0.1885978578
C164: Total | D164: =SUM(D161:D163) -> 1.298005978
L165: Plant Employees Only
C166: Plant Employee and Other Pmt Spending | D166: Private | E166: Individual | F166: PCE | H166: Adj Demand - Million | L166: Jobs | P166: Earnings | T166: Output | X166: Value Added
D167: ROW Pmts | E167: Equity Pmts | F167: Plant Emp | H167: =H142 -> 2014 | I167: Dollars | L167: Direct | M167: Indirect | N167: Induced | O167: Total | P167: Direct | Q167: Indirect | R167: Induced | S167: Total | T167: Direct | U167: Indirect | V167: Induced | W167: Total | X167: Direct | Y167: Indirect | Z167: Induced | AA167: Total
C168: Agriculture | D168: =G$128*Multipliers!$U213 -> 54.81555471 | E168: =H$131*Multipliers!$U213 -> 0 | F168: =G$162*Multipliers!$U213 -> 156.9999207 | H168: =((D168+E168+F168)*G$86)/10^6 -> 0.0002221020966 | M168: =$H168*Multipliers!E213 -> 0.00033948236 | N168: =$H168*Multipliers!F213 -> 0.0003122932372 | O168: =N168+M168 -> 0.0006517755972 | Q168: =$H168*Multipliers!I213 -> 1.8216751e-05 | R168: =$H168*Multipliers!J213 -> 1.808629566e-05 | S168: =R168+Q168 -> 3.630304665e-05 | T168: =$H168*Multipliers!L213 -> 0.0002221020966 | U168: =$H168*Multipliers!M213 -> 7.438501527e-05 | V168: =$H168*Multipliers!N213 -> 5.401610122e-05 | W168: =V168+U168 -> 0.0001284011165 | Y168: =$H168*Multipliers!Q213 -> 3.646157384e-05 | Z168: =$H168*Multipliers!R213 -> 3.07586593e-05 | AA168: =Z168+Y168 -> 6.722023314e-05
C169: Mining | D169: =G$128*Multipliers!$U214 -> 0.3901479497 | E169: =H$131*Multipliers!$U214 -> 0 | F169: =G$162*Multipliers!U214 -> 1.117441892 | H169: =((D169+E169+F169)*G$86)/10^6 -> 1.580804537e-06 | M169: =$H169*Multipliers!E214 -> 1.725150613e-06 | N169: =$H169*Multipliers!F214 -> 3.402604663e-06 | O169: =N169+M169 -> 5.127755275e-06 | Q169: =$H169*Multipliers!I214 -> 1.43896376e-07 | R169: =$H169*Multipliers!J214 -> 1.715494049e-07 | S169: =R169+Q169 -> 3.154457809e-07 | T169: =$H169*Multipliers!L214 -> 1.580804537e-06 | U169: =$H169*Multipliers!M214 -> 4.751284923e-07 | V169: =$H169*Multipliers!N214 -> 5.12403227e-07 | W169: =V169+U169 -> 9.875317193e-07 | Y169: =$H169*Multipliers!Q214 -> 2.843402692e-07 | Z169: =$H169*Multipliers!R214 -> 2.917607776e-07 | AA169: =Z169+Y169 -> 5.761010468e-07
C170: Construction | D170: =G$128*Multipliers!$U215 -> 0 | E170: =H$131*Multipliers!$U215 -> 0 | F170: =G$162*Multipliers!U215 -> 0 | H170: 0 | M170: =$H170*Multipliers!E215 -> 0 | N170: =$H170*Multipliers!F215 -> 0 | O170: 0 | Q170: =$H170*Multipliers!I215 -> 0 | R170: =$H170*Multipliers!J215 -> 0 | S170: 0 | T170: =$H170*Multipliers!L215 -> 0 | U170: =$H170*Multipliers!M215 -> 0 | V170: =$H170*Multipliers!N215 -> 0 | W170: 0 | Y170: =$H170*Multipliers!Q215 -> 0 | Z170: =$H170*Multipliers!R215 -> 0 | AA170: 0
C171: Manufacturing | D171: =G$128*Multipliers!$U216 -> 1606.833742 | E171: =H$131*Multipliers!$U216 -> 0 | F171: =G$162*Multipliers!U216 -> 4602.211386 | H171: 0.006510581619 | M171: =$H171*Multipliers!E216 -> 0.01528528264 | N171: =$H171*Multipliers!F216 -> 0.009426136032 | O171: 0.02471141868 | Q171: =$H171*Multipliers!I216 -> 0.001087851328 | R171: =$H171*Multipliers!J216 -> 0.0004898716905 | S171: 0.001577723019 | T171: =$H171*Multipliers!L216 -> 0.006510581619 | U171: =$H171*Multipliers!M216 -> 0.004114092875 | V171: =$H171*Multipliers!N216 -> 0.00146380483 | W171: 0.005577897705 | Y171: =$H171*Multipliers!Q216 -> 0.002114214988 | Z171: =$H171*Multipliers!R216 -> 0.0008332818225 | AA171: 0.002947496811
C172: Fabricated Metals | D172: =G$128*Multipliers!$U217 -> 0.04408141801 | E172: =H$131*Multipliers!$U217 -> 0 | F172: =G$162*Multipliers!U217 -> 0.1262557529 | H172: 1.786094369e-07 | M172: =$H172*Multipliers!E217 -> 3.561332322e-07 | N172: =$H172*Multipliers!F217 -> 3.958969276e-07 | O172: 7.520301599e-07 | Q172: =$H172*Multipliers!I217 -> 2.351787684e-08 | R172: =$H172*Multipliers!J217 -> 2.025885283e-08 | S172: 4.377672967e-08 | T172: =$H172*Multipliers!L217 -> 1.786094369e-07 | U172: =$H172*Multipliers!M217 -> 9.140993417e-08 | V172: =$H172*Multipliers!N217 -> 6.054746293e-08 | W172: 1.519573971e-07 | Y172: =$H172*Multipliers!Q217 -> 4.243257709e-08 | Z172: =$H172*Multipliers!R217 -> 3.446329951e-08 | AA172: 7.689587659e-08
C173: Machinery | D173: =G$128*Multipliers!$U218 -> 0.2056117142 | E173: =H$131*Multipliers!$U218 -> 0 | F173: =G$162*Multipliers!U218 -> 0.5889026023 | H173: 8.33099164e-07 | M173: =$H173*Multipliers!E218 -> 1.665045548e-06 | N173: =$H173*Multipliers!F218 -> 1.438755158e-06 | O173: 3.103800706e-06 | Q173: =$H173*Multipliers!I218 -> 1.112631768e-07 | R173: =$H173*Multipliers!J218 -> 7.342760653e-08 | S173: 1.846907833e-07 | T173: =$H173*Multipliers!L218 -> 8.33099164e-07 | U173: =$H173*Multipliers!M218 -> 4.265964985e-07 | V173: =$H173*Multipliers!N218 -> 2.194499546e-07 | W173: 6.460464531e-07 | Y173: =$H173*Multipliers!Q218 -> 2.033738852e-07 | Z173: =$H173*Multipliers!R218 -> 1.249106298e-07 | AA173: 3.28284515e-07
C174: Electrical Equipment | D174: =G$128*Multipliers!$U219 -> 0.4012086081 | E174: =H$131*Multipliers!$U219 -> 0 | F174: =G$162*Multipliers!U219 -> 1.149121266 | H174: 1.6256202e-06 | M174: =$H174*Multipliers!E219 -> 3.638612897e-06 | N174: =$H174*Multipliers!F219 -> 2.93397761e-06 | O174: 6.572590507e-06 | Q174: =$H174*Multipliers!I219 -> 2.469070381e-07 | R174: =$H174*Multipliers!J219 -> 1.489932901e-07 | S174: 3.959003282e-07 | T174: =$H174*Multipliers!L219 -> 1.6256202e-06 | U174: =$H174*Multipliers!M219 -> 8.83289426e-07 | V174: =$H174*Multipliers!N219 -> 4.452952623e-07 | W174: 1.328584688e-06 | Y174: =$H174*Multipliers!Q219 -> 4.380613601e-07 | Z174: =$H174*Multipliers!R219 -> 2.534596265e-07 | AA174: 6.915209866e-07
C175: TCPU | D175: =G$128*Multipliers!$U220 -> 818.541201 | E175: =H$131*Multipliers!$U220 -> 0 | F175: =G$162*Multipliers!U220 -> 2344.424029 | H175: 0.003316571689 | M175: =$H175*Multipliers!E220 -> 0.008114159992 | N175: =$H175*Multipliers!F220 -> 0.008294501395 | O175: 0.01640866139 | Q175: =$H175*Multipliers!I220 -> 0.0005885598001 | R175: =$H175*Multipliers!J220 -> 0.0004279699754 | S175: 0.001016529775 | T175: =$H175*Multipliers!L220 -> 0.003316571689 | U175: =$H175*Multipliers!M220 -> 0.001921192872 | V175: =$H175*Multipliers!N220 -> 0.001278630454 | W175: 0.003199823326 | Y175: =$H175*Multipliers!Q220 -> 0.001055795269 | Z175: =$H175*Multipliers!R220 -> 0.0007279390214 | AA175: 0.00178373429
C176: Wholesale Trade | D176: =G$128*Multipliers!$U221 -> 797.7186592 | E176: =H$131*Multipliers!$U221 -> 0 | F176: =G$162*Multipliers!U221 -> 2284.785165 | H176: 0.00323220275 | M176: =$H176*Multipliers!E221 -> 0.006550605243 | N176: =$H176*Multipliers!F221 -> 0.007665040844 | O176: 0.01421564609 | Q176: =$H176*Multipliers!I221 -> 0.0004143051844 | R176: =$H176*Multipliers!J221 -> 0.0004435533818 | S176: 0.0008578585662 | T176: =$H176*Multipliers!L221 -> 0.00323220275 | U176: =$H176*Multipliers!M221 -> 0.001187766912 | V176: =$H176*Multipliers!N221 -> 0.001325536793 | W176: 0.002513303705 | Y176: =$H176*Multipliers!Q221 -> 0.0006871487016 | Z176: =$H176*Multipliers!R221 -> 0.0007545249663 | AA176: 0.001441673668
C177: Retail Trade | D177: =G$128*Multipliers!$U222 -> 1830.531378 | E177: =H$131*Multipliers!$U222 -> 0 | F177: =G$162*Multipliers!U222 -> 5242.914765 | H177: 0.007416961465 | M177: =$H177*Multipliers!E222 -> 0.01619672738 | N177: =$H177*Multipliers!F222 -> 0.0210704824 | O177: 0.03726720978 | Q177: =$H177*Multipliers!I222 -> 0.0009072729822 | R177: =$H177*Multipliers!J222 -> 0.00111490301 | S177: 0.002022175993 | T177: =$H177*Multipliers!L222 -> 0.007416961465 | U177: =$H177*Multipliers!M222 -> 0.00273946412 | V177: =$H177*Multipliers!N222 -> 0.003331622641 | W177: 0.006071086762 | Y177: =$H177*Multipliers!Q222 -> 0.001549399527 | Z177: =$H177*Multipliers!R222 -> 0.00189650461 | AA177: 0.003445904137
C178: FIRE | D178: =G$128*Multipliers!$U223 -> 2282.960529 | E178: =H$131*Multipliers!$U223 -> 0 | F178: =(G$162*Multipliers!U223)+(G161*H161) -> 31984.26814 | H178: 0.0359313847 | M178: =$H178*Multipliers!E223 -> 0.119242975 | N178: =$H178*Multipliers!F223 -> 0.08579332717 | O178: 0.2050363022 | Q178: =$H178*Multipliers!I223 -> 0.006425928021 | R178: =$H178*Multipliers!J223 -> 0.004463832661 | S178: 0.01088976068 | T178: =$H178*Multipliers!L223 -> 0.0359313847 | U178: =$H178*Multipliers!M223 -> 0.02038787383 | V178: =$H178*Multipliers!N223 -> 0.0133392183 | W178: 0.03372709213 | Y178: =$H178*Multipliers!Q223 -> 0.0112570613 | Z178: =$H178*Multipliers!R223 -> 0.007593224135 | AA178: 0.01885028544
C179: Misc. Services | D179: =G$128*Multipliers!$U224 -> 10494.19001 | E179: =H$131*Multipliers!$U224 -> 0 | F179: =G$162*Multipliers!U224 -> 30056.92469 | H179: 0.0425204418 | M179: =$H179*Multipliers!E224 -> 0.09528197894 | N179: =$H179*Multipliers!F224 -> 0.1472168427 | O179: 0.2424988217 | Q179: =$H179*Multipliers!I224 -> 0.00640385674 | R179: =$H179*Multipliers!J224 -> 0.00843119362 | S179: 0.01483505036 | T179: =$H179*Multipliers!L224 -> 0.0425204418 | U179: =$H179*Multipliers!M224 -> 0.01729534023 | V179: =$H179*Multipliers!N224 -> 0.02519435404 | W179: 0.04248969427 | Y179: =$H179*Multipliers!Q224 -> 0.00998525939 | Z179: =$H179*Multipliers!R224 -> 0.01434181059 | AA179: 0.02432706998
C180: Professional Services | D180: =G$128*Multipliers!$U225 -> 160.0226327 | E180: =H$131*Multipliers!$U225 -> 0 | F180: =G$162*Multipliers!U225 -> 458.3286765 | H180: 0.0006483809644 | M180: =$H180*Multipliers!E225 -> 0.001600467205 | N180: =$H180*Multipliers!F225 -> 0.00179966825 | O180: 0.003400135455 | Q180: =$H180*Multipliers!I225 -> 9.094994999e-05 | R180: =$H180*Multipliers!J225 -> 9.46577065e-05 | S180: 0.0001856076565 | T180: =$H180*Multipliers!L225 -> 0.0006483809644 | U180: =$H180*Multipliers!M225 -> 0.0002746945738 | V180: =$H180*Multipliers!N225 -> 0.0002828617036 | W180: 0.0005575562775 | Y180: =$H180*Multipliers!Q225 -> 0.0001528176809 | Z180: =$H180*Multipliers!R225 -> 0.0001610173028 | AA180: 0.0003138349837
C181: Government | D181: =G$128*Multipliers!$U226 -> 135.1634212 | E181: =H$131*Multipliers!$U226 -> 0 | F181: =(G$162*Multipliers!U226)+(G160*H160) -> 387.1281887 | H181: 0.0005476562153 | M181: =$H181*Multipliers!E226 -> 0.0002397277847 | N181: =$H181*Multipliers!F226 -> 0.002063905932 | O181: 0.002303633717 | Q181: =$H181*Multipliers!I226 -> 1.694417318e-05 | R181: =$H181*Multipliers!J226 -> 0.000122585171 | S181: 0.0001395293442 | T181: =$H181*Multipliers!L226 -> 0.0005476562153 | U181: =$H181*Multipliers!M226 -> 5.132873376e-05 | V181: =$H181*Multipliers!N226 -> 0.0003664089546 | W181: 0.0004177376884 | Y181: =$H181*Multipliers!Q226 -> 2.738087504e-05 | Z181: =$H181*Multipliers!R226 -> 0.0002085445864 | AA181: 0.0002359254614
C182: Total | D182: =SUM(D168:D181) -> 18181.81818 | E182: =SUM(E168:E181) -> 0 | F182: =SUM(F168:F181) -> 77520.96668 | H182: =SUM(H168:H181) -> 0.1003505014 | L182: =IF(L184=0,0,D164) -> 1.298005978 | M182: =SUM(M168:M181) -> 0.2628587915 | N182: =SUM(N168:N181) -> 0.2836503692 | O182: =N182+M182+L182 -> 1.844515139 | P182: =H182 -> 0.1003505014 | Q182: =SUM(Q168:Q181) -> 0.01595441051 | R182: =SUM(R168:R181) -> 0.01560706774 | S182: =R182+Q182+P182 -> 0.1319119797 | T182: =SUM(T168:T181) -> 0.1003505014 | U182: =SUM(U168:U181) -> 0.04804801559 | V182: =SUM(V168:V181) -> 0.04663769152 | W182: =V182+U182+T182 -> 0.1950362085 | X182: =H182 -> 0.1003505014 | Y182: =SUM(Y168:Y181) -> 0.02686650752 | Z182: =SUM(Z168:Z181) -> 0.02654831029 | AA182: =Z182+Y182+X182 -> 0.1537653192
O183: Inflate to | P183: =P160 -> 2012 | Q183: Dollars
C184: Annual O&M Costs Local Demand | E184: Construction Costs Local Demand | L184: =SUM(L189:L202) -> 0.1543553009 | P184: =P182*$G107 -> 0.0970002403 | Q184: 0.01542176304 | R184: 0.01508601651 | S184: 0.1275080198 | T184: 0.0970002403 | U184: 0.04644390403 | V184: 0.04508066446 | W184: 0.1885248088 | X184: =X182*$G107 -> 0.0970002403 | Y184: 0.02596955319 | Z184: 0.02566197917 | AA184: 0.1486317727
D185: Demand | E185: Demand
C186: Agriculture | D186: 0 | E186: 0 | L186: With Plant Employees
C187: Mining | D187: 0 | E187: 0 | L187: Jobs | P187: Earnings | T187: Output | X187: Value Added
C188: Construction | D188: 0 | E188: =H20+H36 -> 3697600.144 | L188: Direct | M188: Indirect | N188: Induced | O188: Total | P188: Direct | Q188: Indirect | R188: Induced | S188: Total | T188: Direct | U188: Indirect | V188: Induced | W188: Total | X188: Direct | Y188: Indirect | Z188: Induced | AA188: Total
C189: Manufacturing | D189: =G117 -> 3440 | E189: =G14 -> 600000 | J189: Agriculture | L189: =L143+L168 -> 0 | M189: =M143+M168 -> 0.00033948236 | N189: 0.0003122932372 | O189: =N189+M189+L189 -> 0.0006517755972 | P189: 0 | Q189: 1.8216751e-05 | R189: 1.808629566e-05 | S189: =R189+Q189+P189 -> 3.630304665e-05 | T189: 0.0002221020966 | U189: 7.438501527e-05 | V189: 5.401610122e-05 | W189: =V189+U189+T189 -> 0.0003505032131 | X189: =X143+X168 -> 0 | Y189: 3.646157384e-05 | Z189: 3.07586593e-05 | AA189: =Z189+Y189+X189 -> 6.722023314e-05
C190: Fabricated Metals | D190: 0 | E190: =G15 -> 0 | J190: Mining | L190: =L144+L169 -> 0 | M190: 1.725150613e-06 | N190: 3.402604663e-06 | O190: =N190+M190+L190 -> 5.127755275e-06 | P190: 0 | Q190: 1.43896376e-07 | R190: 1.715494049e-07 | S190: =R190+Q190+P190 -> 3.154457809e-07 | T190: 1.580804537e-06 | U190: 4.751284923e-07 | V190: 5.12403227e-07 | W190: =V190+U190+T190 -> 2.568336257e-06 | X190: =X144+X169 -> 0 | Y190: 2.843402692e-07 | Z190: 2.917607776e-07 | AA190: =Z190+Y190+X190 -> 5.761010468e-07
C191: Machinery | D191: 0 | E191: 0 | J191: Construction | L191: =L145+L170 -> 0 | M191: 0 | N191: 0 | O191: 0 | P191: 0 | Q191: 0 | R191: 0 | S191: 0 | T191: 0 | U191: 0 | V191: 0 | W191: 0 | X191: =X145+X170 -> 0 | Y191: 0 | Z191: 0 | AA191: 0
C192: Electrical Equipment | D192: =G124 -> 0 | E192: =G25+G26+G27+G28+G29+G16 -> 157000 | J192: Manufacturing | L192: =L146+L171 -> 0.002106395961 | M192: 0.02001420129 | N192: 0.01234236804 | O192: 0.03446296528 | P192: 0.0001980544388 | Q192: 0.001424407776 | R192: 0.0006414268449 | S192: 0.00226388906 | T192: 0.008524807429 | U192: 0.005386899598 | V192: 0.001916672736 | W192: 0.01582837976 | X192: =X146+X171 -> 0.0004956005009 | Y192: 0.002768304998 | Z192: 0.001091080258 | AA192: 0.004354985756
C193: TCPU | D193: 0 | J193: Fabricated Metals | L193: =L147+L172 -> 0 | M193: 3.561332322e-07 | N193: 3.958969276e-07 | O193: 7.520301599e-07 | P193: 0 | Q193: 2.351787684e-08 | R193: 2.025885283e-08 | S193: 4.377672967e-08 | T193: 1.786094369e-07 | U193: 9.140993417e-08 | V193: 6.054746293e-08 | W193: 3.30566834e-07 | X193: =X147+X172 -> 0 | Y193: 4.243257709e-08 | Z193: 3.446329951e-08 | AA193: 7.689587659e-08
C194: Wholesale Trade | D194: 0 | E194: 0 | J194: Machinery | L194: =L148+L173 -> 0 | M194: 1.665045548e-06 | N194: 1.438755158e-06 | O194: 3.103800706e-06 | P194: 0 | Q194: 1.112631768e-07 | R194: 7.342760653e-08 | S194: 1.846907833e-07 | T194: 8.33099164e-07 | U194: 4.265964985e-07 | V194: 2.194499546e-07 | W194: 1.479145617e-06 | X194: =X148+X173 -> 0 | Y194: 2.033738852e-07 | Z194: 1.249106298e-07 | AA194: 3.28284515e-07
C195: Retail Trade | D195: 0 | E195: 0 | J195: Electrical Equipment | L195: =L149+L174 -> 0 | M195: 3.638612897e-06 | N195: 2.93397761e-06 | O195: 6.572590507e-06 | P195: 0 | Q195: 2.469070381e-07 | R195: 1.489932901e-07 | S195: 3.959003282e-07 | T195: 1.6256202e-06 | U195: 8.83289426e-07 | V195: 4.452952623e-07 | W195: 2.954204889e-06 | X195: =X149+X174 -> 0 | Y195: 4.380613601e-07 | Z195: 2.534596265e-07 | AA195: 6.915209866e-07
C196: FIRE | D196: =H130+H132+(G161*H161)+G118 -> 25445.52884 | E196: =G52 -> 0 | J196: TCPU | L196: =L150+L175 -> 0.00021795421 | M196: 0.008317255211 | N196: 0.00850211051 | O196: 0.01703731993 | P196: 2.320244917e-05 | Q196: 0.0006032912919 | R196: 0.0004386819475 | S196: 0.001065175689 | T196: 0.003399584577 | U196: 0.001969279807 | V196: 0.001310634226 | W196: 0.006679498611 | X196: =X150+X175 -> 3.916000062e-05 | Y196: 0.001082221537 | Z196: 0.0007461591373 | AA196: 0.001867540675
C197: Misc. Services | E197: =G7+G51 -> 187500 | J197: Wholesale Trade | L197: =L151+L176 -> 0.004924131811 | M197: 0.009610506823 | N197: 0.01124551467 | O197: 0.0257801533 | P197: 0.0005356194528 | Q197: 0.000607834338 | R197: 0.0006507448768 | S197: 0.001794198668 | T197: 0.004742020841 | U197: 0.001742593484 | V197: 0.001944718072 | W197: 0.008429332397 | X197: =X151+X176 -> 0.001016947349 | Y197: 0.001008127805 | Z197: 0.001106976694 | AA197: 0.003132051848
C198: Professional Services | D198: 0 | E198: =G9+G10+G41+G42+G45+G46+G49 -> 1289250 | J198: Retail Trade | L198: =L152+L177 -> 0 | M198: 0.01619672738 | N198: 0.0210704824 | O198: 0.03726720978 | P198: 0 | Q198: 0.0009072729822 | R198: 0.00111490301 | S198: 0.002022175993 | T198: 0.007416961465 | U198: 0.00273946412 | V198: 0.003331622641 | W198: 0.01348804823 | X198: =X152+X177 -> 0 | Y198: 0.001549399527 | Z198: 0.00189650461 | AA198: 0.003445904137
C199: Government | D199: =G133+G128+G127 -> 21928.69318 | E199: =G56+G50 -> 1007500 | J199: FIRE | L199: =L153+L178 -> 0.1471068189 | M199: 0.2077882317 | N199: 0.1495001592 | O199: 0.5043952097 | P199: 0.006908130402 | Q199: 0.01119757554 | R199: 0.007778503474 | S199: 0.02588420942 | T199: 0.06261265194 | U199: 0.03552712646 | V199: 0.02324440985 | W199: 0.1213841882 | X199: =X153+X178 -> 0.01426183239 | Y199: 0.01961612299 | Z199: 0.01323166095 | AA199: 0.04710961633
C200: Total | D200: =SUM(D186:D199) -> 50814.22202 | E200: =SUM(E186:E199) -> 6938850.144 | J200: Misc. Services | L200: =L154+L179 -> 0 | M200: 0.09528197894 | N200: 0.1472168427 | O200: 0.2424988217 | P200: 0 | Q200: 0.00640385674 | R200: 0.00843119362 | S200: 0.01483505036 | T200: 0.0425204418 | U200: 0.01729534023 | V200: 0.02519435404 | W200: 0.08501013608 | X200: =X154+X179 -> 0 | Y200: 0.00998525939 | Z200: 0.01434181059 | AA200: 0.02432706998
J201: Professional Services | L201: =L155+L180 -> 0 | M201: 0.001600467205 | N201: 0.00179966825 | O201: 0.003400135455 | P201: 0 | Q201: 9.094994999e-05 | R201: 9.46577065e-05 | S201: 0.0001856076565 | T201: 0.0006483809644 | U201: 0.0002746945738 | V201: 0.0002828617036 | W201: 0.001205937242 | X201: =X155+X180 -> 0 | Y201: 0.0001528176809 | Z201: 0.0001610173028 | AA201: 0.0003138349837
J202: Government | L202: =L156+L181 -> 0 | M202: 0.01030482731 | N202: 0.0887181027 | O202: 0.09902293002 | P202: 0 | Q202: 0.0007283543658 | R202: 0.005269389281 | S202: 0.005997743647 | T202: 0.0005476562153 | U202: 0.002206393132 | V202: 0.0157502853 | W202: 0.01850433465 | X202: =X156+X181 -> 0 | Y202: 0.00117698159 | Z202: 0.008964400822 | AA202: 0.01014138241
J203: Plant Employees | L203: =L182 -> 1.298005978 | O203: 1.298005978 | P203: =P182 -> 0.1003505014 | S203: 0.1003505014 | W203: 0 | X203: =X182 -> 0.1003505014 | AA203: 0.1003505014
J204: Total | L204: =SUM(L189:L203) -> 1.452361279 | M204: =SUM(M189:M203) -> 0.3694610631 | N204: 0.440715713 | O204: 2.262538055 | P204: 0.1080155082 | Q204: 0.02198228532 | R204: 0.02443800129 | S204: 0.1544357948 | T204: 0.1306388255 | U204: 0.06721805284 | V204: 0.07303081237 | W204: 0.2708876907 | X204: =SUM(X189:X203) -> 0.1161640417 | Y204: 0.03737666529 | Z204: 0.04157107362 | AA204: 0.1951117806
J205: Inflate to | K205: =P183 -> 2012 | L205: Dollars | P205: =P204*$G107 -> 0.1044093462 | Q205: 0.02124839366 | R205: 0.02362212409 | S205: 0.149279864 | T205: 0.1262773706 | U205: 0.06497393819 | V205: 0.07059263529 | W205: 0.2618439441 | X205: =X204*$G107 -> 0.1122858361 | Y205: 0.03612882311 | Z205: 0.04018319861 | AA205: 0.1885978578
C207: Default | H207: Default | M207: Default
C208: From DefaultData | H208: From DefaultData | M208: From DefaultData
C209: Debt - Loan Repayment Schedule | H209: Equity - Individual Investment Repayment Schedule | M209: Equity - Corporate Investment Repayment Schedule
C210: Year | D210: Interest Pmt | E210: Principal Pmt | F210: Total Pmt | H210: Year | I210: Interest Pmt | J210: Principal Pmt | K210: Total Pmt | M210: Year | N210: Interest Pmt | O210: Principal Pmt | P210: Total Pmt
C211: 1 | D211: =IF(C211<=DefaultData!C$89,-IPMT(DefaultData!C$90,C211,DefaultData!C$89,DefaultData!C$65*DefaultData!C$88),0) -> 902949.3611 | E211: =IF(C211<=DefaultData!C$89,-PPMT(DefaultData!C$90,C211,DefaultData!C$89,DefaultData!C$88*DefaultData!C$65),0) -> 85858.07408 | F211: =E211+D211 -> 988807.4352 | H211: 1 | I211: =IF(H211<=DefaultData!C$97,-IPMT(DefaultData!C$96,H211,DefaultData!C$97,DefaultData!C$65*DefaultData!C$93*DefaultData!C$94),0) -> 0 | J211: =IF(H211<=DefaultData!C$97,-PPMT(DefaultData!C$96,H211,DefaultData!C$97,DefaultData!C$93*DefaultData!C$65*DefaultData!C$94),0) -> 0 | K211: =J211+I211 -> 0 | M211: 1 | N211: =IF(M211<=DefaultData!C$97,-IPMT(DefaultData!C$96,M211,DefaultData!C$97,DefaultData!C$65*DefaultData!C$93),0) -> 1770067.398 | O211: =IF(M211<=DefaultData!C$97,-PPMT(DefaultData!C$96,M211,DefaultData!C$97,DefaultData!C$93*DefaultData!C$65*DefaultData!C$95),0) -> 910801.2801 | P211: =O211+N211 -> 2680868.678
C212: 2 | D212: =IF(C212<=DefaultData!C$89,-IPMT(DefaultData!C$90,C212,DefaultData!C$89,DefaultData!C$65*DefaultData!C$88),0) -> 897540.3024 | E212: =IF(C212<=DefaultData!C$89,-PPMT(DefaultData!C$90,C212,DefaultData!C$89,DefaultData!C$88*DefaultData!C$65),0) -> 91267.13275 | F212: 988807.4352 | H212: 2 | I212: =IF(H212<=DefaultData!C$97,-IPMT(DefaultData!C$96,H212,DefaultData!C$97,DefaultData!C$65*DefaultData!C$93*DefaultData!C$94),0) -> 0 | J212: =IF(H212<=DefaultData!C$97,-PPMT(DefaultData!C$96,H212,DefaultData!C$97,DefaultData!C$93*DefaultData!C$65*DefaultData!C$94),0) -> 0 | K212: =J212+I212 -> 0 | M212: 2 | N212: =IF(M212<=DefaultData!C$97,-IPMT(DefaultData!C$96,M212,DefaultData!C$97,DefaultData!C$65*DefaultData!C$93),0) -> 1666236.052 | O212: =IF(M212<=DefaultData!C$97,-PPMT(DefaultData!C$96,M212,DefaultData!C$97,DefaultData!C$93*DefaultData!C$65*DefaultData!C$95),0) -> 1014632.626 | P212: =O212+N212 -> 2680868.678
... 85 more rows

Sheet Deflators
C2: =CONCATENATE("Conversion to Year ",E4," dollars and back for consistency with multiplier data.") -> Conversion to Year 2014 dollars and back for consistency with multiplier data.
C4: Year of Multiplier Data | E4: =IF(ProjectData!B16="MYCOUNTY",'User Add-in Location'!D3,IF(ProjectData!B16="MYREGION",'User Add-in Location'!D4,Multipliers!D2)) -> 2014 | F4: =IF(E4=0,"ERROR","") ->  | G4: Region of Analysis | I4: =ProjectData!B16 -> Texas
A5: Warning | C5: Year of Construction $s | E5: =+ProjectData!B50 -> 2012
A7: This Worksheet contains Data and Formulas that are an integral part of the JEDI model. | D7: Deflator | F7: =HLOOKUP($E$5,$D$11:$AM$39,$D$51) -> 1.048564068
D8: Inflator | F8: =HLOOKUP($E$5,$D$11:$AM$39,$D$52) -> 0.9666144056
A9: Although the data and formulas are available for review they must not be changed.
A11: Any changes to the data or formulas will impact the analysis and may invalidate the model results. | D11: 2005 | E11: 2006 | F11: 2007 | G11: 2008 | H11: 2009 | I11: 2010 | J11: 2011 | K11: 2012 | L11: 2013 | M11: 2014 | N11: 2015 | O11: 2016 | P11: 2017 | Q11: 2018 | R11: 2019 | S11: 2020 | T11: 2021 | U11: 2022 | V11: 2023 | W11: 2024 | X11: 2025 | Y11: 2026 | Z11: 2027 | AA11: 2028 | AB11: 2029 | AC11: 2030 | AD11: 2031 | AE11: 2032 | AF11: 2033 | AG11: 2034 | AH11: 2035 | AI11: 2036 | AJ11: 2037 | AK11: 2038 | AL11: 2039 | AM11: 2040
C12: 2007$ | D12: 0.9428954977 | E12: 0.9735646427 | F12: 1 | G12: 1.020755886 | H12: 1.032631144 | I12: 1.041718298 | J12: 1.062887237 | K12: 1.082300702 | L12: 1.100888063 | M12: 1.11968195 | N12: 1.134861627 | O12: 1.152829409 | P12: 1.173482032 | Q12: 1.196199917 | R12: 1.22015696 | S12: 1.244630318 | T12: 1.26664615 | U12: 1.289051411 | V12: 1.311852992 | W12: 1.335057902 | X12: 1.358673275 | Y12: 1.382706373 | Z12: 1.407164583 | AA12: 1.432055427 | AB12: 1.457386556 | AC12: 1.483165758 | AD12: 1.50940096 | AE12: 1.536100227 | AF12: 1.563271768 | AG12: 1.590923936 | AH12: 1.619065235 | AI12: 1.647704315 | AJ12: 1.676849982 | AK12: 1.706511196 | AL12: 1.736697077 | AM12: 1.767416906
D13: 1.060562918 | E13: 1.027153161 | F13: 1 | G13: 0.9796661608 | H13: 0.9684 | I13: 0.9599524187 | J13: 0.9408335762 | K13: 0.9239576376 | L13: 0.908357565 | M13: 0.8931107627 | N13: 0.8811646952 | O13: 0.8674310283 | P13: 0.8521647307 | Q13: 0.835980663 | R13: 0.8195666892 | S13: 0.8034514229 | T13: 0.7894864721 | U13: 0.775764249 | V13: 0.7622805346 | W13: 0.7490311833 | X13: 0.7360121216 | Y13: 0.7232193469 | Z13: 0.710648926 | AA13: 0.6982969941 | AB13: 0.6861597536 | AC13: 0.674233473 | AD13: 0.6625144854 | AE13: 0.6509991879 | AF13: 0.6396840401 | AG13: 0.6285655631 | AH13: 0.6176403387 | AI13: 0.6069050077 | AJ13: 0.5963562697 | AK13: 0.5859908815 | AL13: 0.5758056561 | AM13: 0.5657974622
C14: 2008$ | D14: 0.9237228123 | E14: 0.9537683359 | F14: 0.9796661608 | G14: 1 | H14: 1.011633789 | I14: 1.020536166 | J14: 1.041274659 | K14: 1.060293374 | L14: 1.078502782 | M14: 1.096914517 | N14: 1.111785534 | O14: 1.129387962 | P14: 1.149620637 | Q14: 1.171876581 | R14: 1.195346485 | S14: 1.219322205 | T14: 1.24089037 | U14: 1.262840047 | V14: 1.285177984 | W14: 1.307911049 | X14: 1.331046231 | Y14: 1.354590644 | Z14: 1.378551525 | AA14: 1.402936242 | AB14: 1.427752292 | AC14: 1.453007304 | AD14: 1.478709043 | AE14: 1.504865412 | AF14: 1.531484451 | AG14: 1.558574345 | AH14: 1.586143423 | AI14: 1.61420016 | AJ14: 1.642753184 | AK14: 1.671811272 | AL14: 1.701383358 | AM14: 1.731478535
D15: 1.082575841 | E15: 1.048472635 | F15: 1.020755886 | G15: 1 | H15: 0.9885 | I15: 0.9798770817 | J15: 0.9603614107 | K15: 0.943135197 | L15: 0.927211331 | M15: 0.9116480679 | N15: 0.8994540491 | O15: 0.8854353278 | P15: 0.8698521647 | Q15: 0.8533321823 | R15: 0.836577522 | S15: 0.820127769 | T15: 0.8058729633 | U15: 0.7918659233 | V15: 0.7781023424 | W15: 0.7645779891 | X15: 0.7512887053 | Y15: 0.7382304053 | Z15: 0.7253990741 | AA15: 0.7127907669 | AB15: 0.7004016073 | AC15: 0.6882277861 | AD15: 0.6762655605 | AE15: 0.6645112528 | AF15: 0.6529612491 | AG15: 0.6416119983 | AH15: 0.6304600111 | AI15: 0.6195018589 | AJ15: 0.6087341725 | AK15: 0.5981536414 | AL15: 0.5877570127 | AM15: 0.5775410898
C16: 2009$ | D16: 0.9131 | E16: 0.9428 | F16: 0.9684 | G16: 0.9885 | H16: 1 | I16: 1.0088 | J16: 1.0293 | K16: 1.0481 | L16: 1.0661 | M16: 1.0843 | N16: 1.099 | O16: 1.1164 | P16: 1.1364 | Q16: 1.1584 | R16: 1.1816 | S16: 1.2053 | T16: 1.226620131 | U16: 1.248317387 | V16: 1.270398437 | W16: 1.292870072 | X16: 1.3157392 | Y16: 1.339012851 | Z16: 1.362698183 | AA16: 1.386802475 | AB16: 1.411333141 | AC16: 1.43629772 | AD16: 1.461703889 | AE16: 1.487559459 | AF16: 1.51387238 | AG16: 1.54065074 | AH16: 1.567902773 | AI16: 1.595636859 | AJ16: 1.623861522 | AK16: 1.652585442 | AL16: 1.68181745 | AM16: 1.711566532
D17: 1.095170299 | E17: 1.060670344 | F17: 1.032631144 | G17: 1.011633789 | H17: 1 | I17: 0.9912767645 | J17: 0.9715340523 | K17: 0.9541074325 | L17: 0.9379983116 | M17: 0.9222539887 | N17: 0.9099181074 | O17: 0.8957362952 | P17: 0.8799718409 | Q17: 0.8632596685 | R17: 0.846310088 | S17: 0.8296689621 | T17: 0.815248319 | U17: 0.801078324 | V17: 0.7871546206 | W17: 0.7734729278 | X17: 0.7600290393 | Y17: 0.7468188217 | Z17: 0.7338382136 | AA17: 0.721083224 | AB17: 0.7085499315 | AC17: 0.6962344826 | AD17: 0.6841330911 | AE17: 0.6722420362 | AF17: 0.6605576622 | AG17: 0.6490763766 | AH17: 0.6377946496 | AI17: 0.6267090125 | AJ17: 0.6158160571 | AK17: 0.6051124344 | AL17: 0.5945948535 | AM17: 0.5842600808
A18: To view the data and formulas simply scroll over to the adjacent columns to the right. | C18: 2010$ | D18: 0.9051348136 | E18: 0.9345757335 | F18: 0.9599524187 | G18: 0.9798770817 | H18: 0.9912767645 | I18: 1 | J18: 1.020321174 | K18: 1.038957177 | L18: 1.056800159 | M18: 1.074841396 | N18: 1.089413164 | O18: 1.10666138 | P18: 1.126486915 | Q18: 1.148295004 | R18: 1.171292625 | S18: 1.194785884 | T18: 1.215920035 | U18: 1.23742802 | V18: 1.259316453 | W18: 1.281592062 | X18: 1.304261697 | Y18: 1.327332327 | Z18: 1.350811045 | AA18: 1.374705071 | AB18: 1.399021749 | AC18: 1.423768557 | AD18: 1.448953102 | AE18: 1.474583128 | AF18: 1.500666514 | AG18: 1.527211281 | AH18: 1.554225588 | AI18: 1.581717742 | AJ18: 1.609696196 | AK18: 1.63816955 | AL18: 1.66714656 | AM18: 1.696636134
D19: 1.104807798 | E19: 1.070004243 | F19: 1.041718298 | G19: 1.020536166 | H19: 1.0088 | I19: 1 | J19: 0.9800835519 | K19: 0.9625035779 | L19: 0.9462526967 | M19: 0.9303698238 | N19: 0.9179253867 | O19: 0.9036187746 | P19: 0.8877155931 | Q19: 0.8708563536 | R19: 0.8537576168 | S19: 0.836970049 | T19: 0.8224225042 | U19: 0.8081278133 | V19: 0.7940815812 | W19: 0.7802794896 | X19: 0.7667172948 | Y19: 0.7533908273 | Z19: 0.7402959899 | AA19: 0.7274287564 | AB19: 0.7147851709 | AC19: 0.7023613461 | AD19: 0.6901534623 | AE19: 0.6781577661 | AF19: 0.6663705696 | AG19: 0.6547882487 | AH19: 0.6434072425 | AI19: 0.6322240518 | AJ19: 0.6212352384 | AK19: 0.6104374238 | AL19: 0.5998272882 | AM19: 0.5894015695
C20: 2011$ | D20: 0.8871077431 | E20: 0.9159623045 | F20: 0.9408335762 | G20: 0.9603614107 | H20: 0.9715340523 | I20: 0.9800835519 | J20: 1 | K20: 1.01826484 | L20: 1.035752453 | M20: 1.053434373 | N20: 1.067715923 | O20: 1.084620616 | P20: 1.104051297 | Q20: 1.125425046 | R20: 1.147964636 | S20: 1.170989993 | T20: 1.191703227 | U20: 1.212782849 | V20: 1.234235342 | W20: 1.2560673 | X20: 1.278285437 | Y20: 1.300896582 | Z20: 1.323907687 | AA20: 1.347325829 | AB20: 1.371158205 | AC20: 1.395412144 | AD20: 1.420095103 | AE20: 1.44521467 | AF20: 1.470778568 | AG20: 1.496794657 | AH20: 1.523270935 | AI20: 1.550215543 | AJ20: 1.577636765 | AK20: 1.605543031 | AL20: 1.633942922 | AM20: 1.662845168
D21: 1.127258789 | E21: 1.091747985 | F21: 1.062887237 | G21: 1.041274659 | H21: 1.0293 | I21: 1.020321174 | J21: 1 | K21: 0.9820627803 | L21: 0.9654816621 | M21: 0.9492760306 | N21: 0.9365787079 | O21: 0.9219813687 | P21: 0.9057550158 | Q21: 0.8885531768 | R21: 0.8711069736 | S21: 0.8539782627 | T21: 0.8391350947 | U21: 0.8245499189 | V21: 0.8102182509 | W21: 0.7961356846 | X21: 0.7822978901 | Y21: 0.7687006132 | Z21: 0.7553396732 | AA21: 0.7422109625 | AB21: 0.7293104445 | AC21: 0.716634153 | AD21: 0.7041781906 | AE21: 0.6919387279 | AF21: 0.6799120017 | AG21: 0.6680943145 | AH21: 0.6564820328 | AI21: 0.6450715866 | AJ21: 0.6338594676 | AK21: 0.6228422287 | AL21: 0.6120164827 | AM21: 0.6013789011
C22: 2012$ | D22: 0.8711954966 | E22: 0.8995324874 | F22: 0.9239576376 | G22: 0.943135197 | H22: 0.9541074325 | I22: 0.9625035779 | J22: 0.9820627803 | K22: 1 | L22: 1.017173934 | M22: 1.034538689 | N22: 1.048564068 | O22: 1.065165538 | P22: 1.084247686 | Q22: 1.10523805 | R22: 1.127373342 | S22: 1.149985688 | T22: 1.170327384 | U22: 1.191028897 | V22: 1.212096591 | W22: 1.233536945 | X22: 1.25535655 | Y22: 1.277562114 | Z22: 1.300160464 | AA22: 1.323158549 | AB22: 1.346563439 | AC22: 1.37038233 | AD22: 1.394622545 | AE22: 1.419291537 | AF22: 1.444396889 | AG22: 1.469946322 | AH22: 1.49594769 | AI22: 1.522408986 | AJ22: 1.549338348 | AK22: 1.576744053 | AL22: 1.604634529 | AM22: 1.633018349
D23: 1.14784799 | E23: 1.111688587 | F23: 1.082300702 | G23: 1.060293374 | H23: 1.0481 | I23: 1.038957177 | J23: 1.01826484 | K23: 1 | L23: 0.9831160304 | M23: 0.9666144056 | N23: 0.9536851683 | O23: 0.938821211 | P23: 0.9222984864 | Q23: 0.9047824586 | R23: 0.8870176032 | S23: 0.8695760392 | T23: 0.8544617631 | U23: 0.8396101914 | V23: 0.8250167578 | W23: 0.8106769756 | X23: 0.7965864361 | Y23: 0.782740807 | Z23: 0.7691358317 | AA23: 0.7557673271 | AB23: 0.7426311832 | AC23: 0.7297233612 | AD23: 0.7170398927 | AE23: 0.7045768782 | AF23: 0.6923304857 | AG23: 0.6802969503 | AH23: 0.6684725722 | AI23: 0.656853716 | AJ23: 0.6454368095 | AK23: 0.6342183425 | AL23: 0.6231948659 | AM23: 0.6123629906
C24: 2013$ | D24: 0.8564862583 | E24: 0.8843448082 | F24: 0.908357565 | G24: 0.927211331 | H24: 0.9379983116 | I24: 0.9462526967 | J24: 0.9654816621 | K24: 0.9831160304 | L24: 1 | M24: 1.017071569 | N24: 1.030860144 | O24: 1.047181315 | P24: 1.065941281 | Q24: 1.086577244 | R24: 1.108338805 | S24: 1.130569365 | T24: 1.150567612 | U24: 1.170919601 | V24: 1.191631589 | W24: 1.212709945 | X24: 1.234161148 | Y24: 1.255991794 | Z24: 1.278208595 | AA24: 1.30081838 | AB24: 1.323828103 | AC24: 1.347244836 | AD24: 1.37107578 | AE24: 1.395328261 | AF24: 1.420009736 | AG24: 1.445127793 | AH24: 1.470690154 | AI24: 1.496704679 | AJ24: 1.523179366 | AK24: 1.550122355 | AL24: 1.577541928 | AM24: 1.605446517
D25: 1.167561056 | E25: 1.130780653 | F25: 1.100888063 | G25: 1.078502782 | H25: 1.0661 | I25: 1.056800159 | J25: 1.035752453 | K25: 1.017173934 | L25: 1 | M25: 0.9832149774 | N25: 0.9700636943 | O25: 0.9549444643 | P25: 0.9381379796 | Q25: 0.9203211326 | R25: 0.9022511848 | S25: 0.8845100805 | T25: 0.8691362329 | U25: 0.8540296012 | V25: 0.839185541 | W25: 0.8245994883 | X25: 0.8102669588 | Y25: 0.7961835458 | Z25: 0.7823449195 | AA25: 0.7687468251 | AB25: 0.7553850819 | AC25: 0.7422555819 | AD25: 0.7293542884 | AE25: 0.7166772348 | AF25: 0.7042205237 | AG25: 0.6919803251 | AH25: 0.6799528759 | AI25: 0.6681344782 | AJ25: 0.6565214985 | AK25: 0.6451103663 | AL25: 0.6338975733 | AM25: 0.6228796721
C26: 2014$ | D26: 0.8421101171 | E26: 0.8695010606 | F26: 0.8931107627 | G26: 0.9116480679 | H26: 0.9222539887 | I26: 0.9303698238 | J26: 0.9492760306 | K26: 0.9666144056 | L26: 0.9832149774 | M26: 1 | N26: 1.013557134 | O26: 1.029604353 | P26: 1.048049433 | Q26: 1.068339021 | R26: 1.089735313 | S26: 1.111592733 | T26: 1.131255309 | U26: 1.151265689 | V26: 1.171630026 | W26: 1.192354581 | X26: 1.213445725 | Y26: 1.234909943 | Z26: 1.256753834 | AA26: 1.278984115 | AB26: 1.301607618 | AC26: 1.324631301 | AD26: 1.348062242 | AE26: 1.371907645 | AF26: 1.396174841 | AG26: 1.42087129 | AH26: 1.446004587 | AI26: 1.471582457 | AJ26: 1.497612766 | AK26: 1.524103516 | AL26: 1.551062851 | AM26: 1.578499061
D27: 1.187493155 | E27: 1.150084854 | F27: 1.11968195 | G27: 1.096914517 | H27: 1.0843 | I27: 1.074841396 | J27: 1.053434373 | K27: 1.034538689 | L27: 1.017071569 | M27: 1 | N27: 0.9866242038 | O27: 0.9712468649 | P27: 0.9541534671 | Q27: 0.9360324586 | R27: 0.9176540284 | S27: 0.8996100556 | T27: 0.8839737523 | U27: 0.8686092267 | V27: 0.8535117551 | W27: 0.8386766956 | X27: 0.8240994873 | Y27: 0.8097756484 | Z27: 0.795700775 | AA27: 0.7818705398 | AB27: 0.7682806907 | AC27: 0.7549270495 | AD27: 0.7418055106 | AE27: 0.7289120399 | AF27: 0.7162426731 | AG27: 0.7037935152 | AH27: 0.6915607385 | AI27: 0.6795405823 | AJ27: 0.6677293507 | AK27: 0.6561234126 | AL27: 0.6447191996 | AM27: 0.6335132056
C28: 2015$ | D28: 0.8308462238 | E28: 0.8578707916 | F28: 0.8811646952 | G28: 0.8994540491 | H28: 0.9099181074 | I28: 0.9179253867 | J28: 0.9365787079 | K28: 0.9536851683 | L28: 0.9700636943 | M28: 0.9866242038 | N28: 1 | O28: 1.015832575 | P28: 1.034030937 | Q28: 1.054049136 | R28: 1.075159236 | S28: 1.096724295 | T28: 1.116123868 | U28: 1.135866594 | V28: 1.155958542 | W28: 1.176405889 | X28: 1.197214923 | Y28: 1.21839204 | Z28: 1.239943751 | AA28: 1.261876684 | AB28: 1.28419758 | AC28: 1.306913303 | AD28: 1.330030836 | AE28: 1.353557288 | AF28: 1.377499891 | AG28: 1.401866006 | AH28: 1.426663124 | AI28: 1.45189887 | AJ28: 1.477581003 | AK28: 1.503717418 | AL28: 1.530316151 | AM28: 1.557385379
D29: 1.203592159 | E29: 1.165676708 | F29: 1.134861627 | G29: 1.111785534 | H29: 1.099 | I29: 1.089413164 | J29: 1.067715923 | K29: 1.048564068 | L29: 1.030860144 | M29: 1.013557134 | N29: 1 | O29: 0.9844141885 | P29: 0.9670890532 | Q29: 0.9487223757 | R29: 0.9300947867 | S29: 0.9118061893 | T29: 0.8959579026 | U29: 0.8803850781 | V29: 0.865082928 | W29: 0.8500467477 | X29: 0.8352719142 | Y29: 0.8207538851 | Z29: 0.8064881967 | AA29: 0.7924704632 | AB29: 0.7786963747 | AC29: 0.7651616964 | AD29: 0.7518622671 | AE29: 0.7387939978 | AF29: 0.7259528708 | AG29: 0.7133349379 | AH29: 0.7009363199 | AI29: 0.6887532048 | AJ29: 0.6767818468 | AK29: 0.6650185654 | AL29: 0.653459744 | AM29: 0.6421018288
C30: 2016$ | D30: 0.8178968112 | E30: 0.8445001791 | F30: 0.8674310283 | G30: 0.8854353278 | H30: 0.8957362952 | I30: 0.9036187746 | J30: 0.9219813687 | K30: 0.938821211 | L30: 0.9549444643 | M30: 0.9712468649 | N30: 0.9844141885 | O30: 1 | P30: 1.017914726 | Q30: 1.037620924 | R30: 1.058402006 | S30: 1.079630957 | T30: 1.098728172 | U30: 1.118163191 | V30: 1.13794199 | W30: 1.158070649 | X30: 1.178555356 | Y30: 1.199402411 | Z30: 1.220618222 | AA30: 1.242209312 | AB30: 1.264182319 | AC30: 1.286543999 | AD30: 1.309301227 | AE30: 1.332460999 | AF30: 1.356030437 | AG30: 1.380016786 | AH30: 1.404427422 | AI30: 1.429269848 | AJ30: 1.454551704 | AK30: 1.480280762 | AL30: 1.506464932 | AM30: 1.533112264
D31: 1.222648122 | E31: 1.184132372 | F31: 1.152829409 | G31: 1.129387962 | H31: 1.1164 | I31: 1.10666138 | J31: 1.084620616 | K31: 1.065165538 | L31: 1.047181315 | M31: 1.029604353 | N31: 1.015832575 | O31: 1 | P31: 0.9824005632 | Q31: 0.9637430939 | R31: 0.9448205823 | S31: 0.9262424293 | T31: 0.9101432233 | U31: 0.8943238409 | V31: 0.8787794184 | W31: 0.8635051766 | X31: 0.8484964195 | Y31: 0.8337485326 | Z31: 0.8192569816 | AA31: 0.8050173113 | AB31: 0.7910251435 | AC31: 0.7772761764 | AD31: 0.7637661829 | AE31: 0.7504910092 | AF31: 0.7374465741 | AG31: 0.7246288669 | AH31: 0.7120339468 | AI31: 0.6996579416 | AJ31: 0.6874970462 | AK31: 0.6755475218 | AL31: 0.6638056944 | AM31: 0.6522679542
C32: 2017$ | D32: 0.8035022879 | E32: 0.8296374516 | F32: 0.8521647307 | G32: 0.8698521647 | H32: 0.8799718409 | I32: 0.8877155931 | J32: 0.9057550158 | K32: 0.9222984864 | L32: 0.9381379796 | M32: 0.9541534671 | N32: 0.9670890532 | O32: 0.9824005632 | P32: 1 | Q32: 1.01935938 | R32: 1.039774727 | S32: 1.06063006 | T32: 1.079391175 | U32: 1.098484149 | V32: 1.117914852 | W32: 1.137689257 | X32: 1.157813446 | Y32: 1.178293604 | Z32: 1.199136028 | AA32: 1.220347127 | AB32: 1.241933422 | AC32: 1.263901549 | AD32: 1.286258262 | AE32: 1.309010436 | AF32: 1.332165065 | AG32: 1.355729268 | AH32: 1.37971029 | AI32: 1.404115504 | AJ32: 1.428952413 | AK32: 1.454228654 | AL32: 1.479951997 | AM32: 1.506130352
D33: 1.244551528 | E33: 1.205345779 | F33: 1.173482032 | G33: 1.149620637 | H33: 1.1364 | I33: 1.126486915 | J33: 1.104051297 | K33: 1.084247686 | L33: 1.065941281 | M33: 1.048049433 | N33: 1.034030937 | O33: 1.017914726 | P33: 1 | Q33: 0.9810082873 | R33: 0.961746784 | S33: 0.9428358085 | T33: 0.9264481897 | U33: 0.9103454074 | V33: 0.8945225108 | W33: 0.8789746352 | X33: 0.8636970002 | Y33: 0.848684909 | Z33: 0.8339337459 | AA33: 0.8194389758 | AB33: 0.8051961421 | AC33: 0.791200866 | AD33: 0.7774488447 | AE33: 0.76393585 | AF33: 0.7506577273 | AG33: 0.7376103944 | AH33: 0.7247898398 | AI33: 0.7121921218 | AJ33: 0.6998133673 | AK33: 0.6876497705 | AL33: 0.6756975915 | AM33: 0.6639531558
C34: 2018$ | D34: 0.7882424033 | E34: 0.8138812155 | F34: 0.835980663 | G34: 0.8533321823 | H34: 0.8632596685 | I34: 0.8708563536 | J34: 0.8885531768 | K34: 0.9047824586 | L34: 0.9203211326 | M34: 0.9360324586 | N34: 0.9487223757 | O34: 0.9637430939 | P34: 0.9810082873 | Q34: 1 | R34: 1.020027624 | S34: 1.040486878 | T34: 1.058891688 | U34: 1.077622053 | V34: 1.096683734 | W34: 1.11608259 | X34: 1.135824585 | Y34: 1.15591579 | Z34: 1.176362381 | AA34: 1.197170645 | AB34: 1.218346979 | AC34: 1.239897894 | AD34: 1.261830015 | AE34: 1.284150086 | AF34: 1.306864969 | AG34: 1.329981647 | AH34: 1.353507228 | AI34: 1.377448946 | AJ34: 1.401814159 | AK34: 1.426610361 | AL34: 1.451845174 | AM34: 1.477526357
D35: 1.268645274 | E35: 1.228680526 | F35: 1.196199917 | G35: 1.171876581 | H35: 1.1584 | I35: 1.148295004 | J35: 1.125425046 | K35: 1.10523805 | L35: 1.086577244 | M35: 1.068339021 | N35: 1.054049136 | O35: 1.037620924 | P35: 1.01935938 | Q35: 1 | R35: 0.980365606 | S35: 0.9610885257 | T35: 0.9443836527 | U35: 0.9279691305 | V35: 0.9118399125 | W35: 0.8959910396 | X35: 0.8804176391 | Y35: 0.8651149231 | Z35: 0.8500781866 | AA35: 0.8353028067 | AB35: 0.8207842406 | AC35: 0.8065180247 | AD35: 0.7924997727 | AE35: 0.7787251748 | AF35: 0.7651899959 | AG35: 0.7518900747 | AH35: 0.7388213221 | AI35: 0.7259797201 | AJ35: 0.7133613206 | AK35: 0.700962244 | AL35: 0.6887786783 | AM35: 0.6768068775
C36: 2019$ | D36: 0.7727657414 | E36: 0.797901151 | F36: 0.8195666892 | G36: 0.836577522 | H36: 0.846310088 | I36: 0.8537576168 | J36: 0.8711069736 | K36: 0.8870176032 | L36: 0.9022511848 | M36: 0.9176540284 | N36: 0.9300947867 | O36: 0.9448205823 | P36: 0.961746784 | Q36: 0.980365606 | R36: 1 | S36: 1.020057549 | T36: 1.038100991 | U36: 1.056463597 | V36: 1.075151013 | W36: 1.094168985 | X36: 1.113523358 | Y36: 1.133220084 | Z36: 1.153265219 | AA36: 1.173664925 | AB36: 1.194425474 | AC36: 1.21555325 | AD36: 1.237054747 | AE36: 1.258936577 | AF36: 1.281205467 | AG36: 1.303868263 | AH36: 1.326931934 | AI36: 1.35040357 | AJ36: 1.374290388 | AK36: 1.398599731 | AL36: 1.423339074 | AM36: 1.448516022
D37: 1.294053225 | E37: 1.253288078 | F37: 1.22015696 | G37: 1.195346485 | H37: 1.1816 | I37: 1.171292625 | J37: 1.147964636 | K37: 1.127373342 | L37: 1.108338805 | M37: 1.089735313 | N37: 1.075159236 | O37: 1.058402006 | P37: 1.039774727 | Q37: 1.020027624 | R37: 1 | S37: 0.9803368456 | T37: 0.9632974137 | U37: 0.9465541477 | V37: 0.9301018997 | W37: 0.9139356115 | X37: 0.8980503128 | Y37: 0.8824411197 | Z37: 0.8671032332 | AA37: 0.8520319375 | AB37: 0.837222599 | AC37: 0.8226706647 | AD37: 0.8083716604 | AE37: 0.79432119 | AF37: 0.7805149336 | AG37: 0.7669486466 | AH37: 0.753618158 | AI37: 0.7405193692 | AJ37: 0.7276482531 | AK37: 0.7150008525 | AL37: 0.7025732789 | AM37: 0.6903617114
C38: 2020$ | D38: 0.7575707293 | E38: 0.7822118975 | F38: 0.8034514229 | G38: 0.820127769 | H38: 0.8296689621 | I38: 0.836970049 | J38: 0.8539782627 | K38: 0.8695760392 | L38: 0.8845100805 | M38: 0.8996100556 | N38: 0.9118061893 | O38: 0.9262424293 | P38: 0.9428358085 | Q38: 0.9610885257 | R38: 0.9803368456 | S38: 1 | T38: 1.017688651 | U38: 1.035690191 | V38: 1.054010153 | W38: 1.072654171 | X38: 1.091627976 | Y38: 1.110937403 | Z38: 1.130588387 | AA38: 1.15058697 | AB38: 1.170939302 | AC38: 1.191651639 | AD38: 1.212730349 | AE38: 1.234181913 | AF38: 1.256012926 | AG38: 1.2782301 | AH38: 1.300840267 | AI38: 1.323850376 | AJ38: 1.347267504 | AK38: 1.371098849 | AL38: 1.395351738 | AM38: 1.420033628
D39: 1.320008761 | E39: 1.278425965 | F39: 1.244630318 | G39: 1.219322205 | H39: 1.2053 | I39: 1.194785884 | J39: 1.170989993 | K39: 1.149985688 | L39: 1.130569365 | M39: 1.111592733 | N39: 1.096724295 | O39: 1.079630957 | P39: 1.06063006 | Q39: 1.040486878 | R39: 1.020057549 | S39: 1 | T39: 0.9826187989 | U39: 0.9655397039 | V39: 0.9487574642 | W39: 0.9322669199 | X39: 0.9160630011 | Y39: 0.9001407258 | Z39: 0.8844951988 | AA39: 0.8691216099 | AB39: 0.8540152324 | AC39: 0.8391714219 | AD39: 0.8245856147 | AE39: 0.8102533263 | AF39: 0.7961701502 | AG39: 0.7823317567 | AH39: 0.7687338911 | AI39: 0.7553723728 | AJ39: 0.7422430937 | AK39: 0.7293420172 | AL39: 0.7166651769 | AM39: 0.7042086753
C43: Source: Deflators and Inflators derived from data contained in the Budget of the United States Government: Table 10.1 - Gross Domestic Product and Deflators Used in the Historical Tables 1940-2021.
C44: https://www.whitehouse.gov/omb/budget/Historicals
C45: Updated November 2016. Deflators for 2016-2040 assume average annual inflation rate derived from 2013-2020 GDP values.
D51: =HLOOKUP($E$4,E$51:R$53,3) -> 19 | E51: 2007 | F51: 2008 | G51: 2009 | H51: 2010 | I51: 2011 | J51: 2012 | K51: 2013 | L51: 2014 | M51: 2015 | N51: 2016 | O51: 2017 | P51: 2018 | Q51: 2019 | R51: 2020
D52: =HLOOKUP($E$4,E$51:R$53,2) -> 16 | E52: 2 | F52: 4 | G52: 6 | H52: 8 | I52: 10 | J52: 12 | K52: 14 | L52: 16 | M52: 18 | N52: 20 | O52: 22 | P52: 24 | Q52: 26 | R52: 28
E53: =$F$52+1 -> 5 | F53: =$G$52+1 -> 7 | G53: =$H$52+1 -> 9 | H53: =$I$52+1 -> 11 | I53: =$J$52+1 -> 13 | J53: =$K$52+1 -> 15 | K53: =$L$52+1 -> 17 | L53: =$M$52+1 -> 19 | M53: =$N$52+1 -> 21 | N53: 21 | O53: 23 | P53: 25 | Q53: 27 | R53: 29
C55: =C53*100 -> 0

Sheet Household Exp (hidden)
C1: Personal Consumption Expenditures
C2: Year of Data | D2: 2014
D3: Alabama | E3: Alaska | F3: Arizona | G3: Arkansas | H3: California | I3: Colorado | J3: Connecticut | K3: Delaware | L3: District of Columbia | M3: Florida | N3: Georgia | O3: Hawaii | P3: Idaho | Q3: Illinois | R3: Indiana | S3: Iowa | T3: Kansas | U3: Kentucky | V3: Louisiana | W3: Maine | X3: Maryland | Y3: Massachusetts | Z3: Michigan | AA3: Minnesota | AB3: Mississippi | AC3: Missouri | AD3: Montana | AE3: ='User Add-in Location'!E9 -> MyCounty | AF3: ='User Add-in Location'!F9 -> MyRegion | AG3: Nebraska | AH3: Nevada | AI3: New Hampshire | AJ3: New Jersey | AK3: New Mexico | AL3: New York | AM3: North Carolina | AN3: North Dakota | AO3: Ohio | AP3: Oklahoma | AQ3: Oregon | AR3: Pennsylvania | AS3: Rhode Island | AT3: South Carolina | AU3: South Dakota | AV3: Tennessee | AW3: Texas | AX3: United States | AY3: Utah | AZ3: Vermont | BA3: Virginia | BB3: Washington | BC3: West Virginia | BD3: Wisconsin | BE3: Wyoming
C4: Agriculture | D4: 0.004384330381 | E4: 0.001411951342 | F4: 0.004564238075 | G4: 0.008178632879 | H4: 0.003979249239 | I4: 0.007019546287 | J4: 0.0007608607585 | K4: 0.005151456372 | L4: 0.0004292289416 | M4: 0.003458368365 | N4: 0.004508102546 | O4: 0.004942989179 | P4: 0.009491750692 | Q4: 0.002866761014 | R4: 0.002545043718 | S4: 0.00939347376 | T4: 0.008790065648 | U4: 0.003175961094 | V4: 0.001639637082 | W4: 0.004067660925 | X4: 0.002083186058 | Y4: 0.0006372773432 | Z4: 0.002381238121 | AA4: 0.005639805481 | AB4: 0.006386139845 | AC4: 0.004104364189 | AD4: 0.006243838265 | AE4: ='User Add-in Location'!E10 -> 0 | AF4: 1 | AG4: 0.008887131788 | AH4: 0.00253756422 | AI4: 0.001388857498 | AJ4: 0.0005516395517 | AK4: 0.006979170237 | AL4: 0.002880344653 | AM4: 0.004607794108 | AN4: 0.005609597272 | AO4: 0.002063641271 | AP4: 0.004905058883 | AQ4: 0.006340977661 | AR4: 0.002903552179 | AS4: 0.0005167988573 | AT4: 0.002462276783 | AU4: 0.009496244544 | AV4: 0.002096612765 | AW4: 0.003014855509 | AX4: 0.005526011436 | AY4: 0.003326996211 | AZ4: 0.008753813665 | BA4: 0.003736384389 | BB4: 0.003850574353 | BC4: 0.002707634016 | BD4: 0.007505445268 | BE4: 0.003989125579
A5: Warning | C5: Mining | D5: 3.677333795e-06 | E5: 2.363481662e-05 | F5: 4.428329713e-06 | G5: 6.797702789e-06 | H5: 7.635991695e-06 | I5: 1.285516538e-05 | J5: 1.442187022e-06 | K5: 6.185274109e-07 | L5: 4.082166389e-07 | M5: 3.620128991e-06 | N5: 1.558401713e-06 | O5: 2.020136929e-06 | P5: 3.672698612e-06 | Q5: 2.302590235e-06 | R5: 2.00895267e-06 | S5: 1.286750495e-06 | T5: 1.11851766e-05 | U5: 3.426991232e-06 | V5: 2.114691262e-05 | W5: 1.233221425e-06 | X5: 1.991835158e-06 | Y5: 1.274897916e-06 | Z5: 2.444063022e-06 | AA5: 1.445369735e-06 | AB5: 6.815324922e-06 | AC5: 1.683675783e-06 | AD5: 1.167053079e-05 | AE5: ='User Add-in Location'!E11 -> 0 | AF5: ='User Add-in Location'!F11 -> 0 | AG5: 2.010026498e-06 | AH5: 1.12494696e-05 | AI5: 1.717982414e-06 | AJ5: 1.254319065e-06 | AK5: 2.348061397e-05 | AL5: 1.632789003e-06 | AM5: 1.421748408e-06 | AN5: 1.777251441e-05 | AO5: 4.497899189e-06 | AP5: 2.062758352e-05 | AQ5: 2.110349725e-06 | AR5: 7.603598691e-06 | AS5: 9.475994394e-07 | AT5: 1.25061441e-06 | AU5: 3.304554079e-06 | AV5: 1.620804846e-06 | AW5: 2.145813723e-05 | AX5: 1.192597005e-05 | AY5: 1.005186848e-05 | AZ5: 2.124491659e-06 | BA5: 3.091334567e-06 | BB5: 1.606151154e-06 | BC5: 1.335015412e-05 | BD5: 1.162093327e-06 | BE5: 2.707344934e-05
C6: Construction | D6: 0 | E6: 0 | F6: 0 | G6: 0 | H6: 0 | I6: 0 | J6: 0 | K6: 0 | L6: 0 | M6: 0 | N6: 0 | O6: 0 | P6: 0 | Q6: 0 | R6: 0 | S6: 0 | T6: 0 | U6: 0 | V6: 0 | W6: 0 | X6: 0 | Y6: 0 | Z6: 0 | AA6: 0 | AB6: 0 | AC6: 0 | AD6: 0 | AE6: ='User Add-in Location'!E12 -> 0 | AF6: ='User Add-in Location'!F12 -> 0 | AG6: 0 | AH6: 0 | AI6: 0 | AJ6: 0 | AK6: 0 | AL6: 0 | AM6: 0 | AN6: 0 | AO6: 0 | AP6: 0 | AQ6: 0 | AR6: 0 | AS6: 0 | AT6: 0 | AU6: 0 | AV6: 0 | AW6: 0 | AX6: 0 | AY6: 0 | AZ6: 0 | BA6: 0 | BB6: 0 | BC6: 0 | BD6: 0 | BE6: 0
A7: This Worksheet contains Data and Formulas that are an integral part of the JEDI model. | C7: Manufacturing | D7: 0.04538769938 | E7: 0.04751615439 | F7: 0.02601601984 | G7: 0.03871614099 | H7: 0.08424695211 | I7: 0.04678531296 | J7: 0.02691443385 | K7: 0.02705081818 | L7: 0.001406269771 | M7: 0.03588294144 | N7: 0.0410778666 | O7: 0.04771712351 | P7: 0.03484069858 | Q7: 0.05361990316 | R7: 0.05450634659 | S7: 0.03447882879 | T7: 0.04344903928 | U7: 0.04175371942 | V7: 0.05444260812 | W7: 0.03338105864 | X7: 0.02171790025 | Y7: 0.03500828748 | Z7: 0.05973790234 | AA7: 0.05856184383 | AB7: 0.0396461678 | AC7: 0.03229916169 | AD7: 0.0413166807 | AE7: ='User Add-in Location'!E13 -> 0 | AF7: ='User Add-in Location'!F13 -> 0 | AG7: 0.02751341254 | AH7: 0.01636506977 | AI7: 0.01746298532 | AJ7: 0.03947687808 | AK7: 0.03449942446 | AL7: 0.03029455747 | AM7: 0.05098974521 | AN7: 0.03093297646 | AO7: 0.06105505725 | AP7: 0.0440218515 | AQ7: 0.03783917751 | AR7: 0.05278222274 | AS7: 0.01426469323 | AT7: 0.03476185021 | AU7: 0.01765264397 | AV7: 0.04081066686 | AW7: 0.08837585581 | AX7: 0.1437582122 | AY7: 0.0577237525 | AZ7: 0.02215678822 | BA7: 0.03094563227 | BB7: 0.06532834545 | BC7: 0.01903501173 | BD7: 0.04879692887 | BE7: 0.03716154501
C8: Fabricated Metals | D8: 1.124576773e-06 | E8: 4.390845948e-07 | F8: 9.565433436e-07 | G8: 6.010669205e-07 | H8: 1.859574413e-06 | I8: 1.223899791e-06 | J8: 6.605104667e-07 | K8: 1.605972056e-07 | L8: 4.762379372e-10 | M8: 9.658091649e-07 | N8: 7.556860275e-07 | O8: 2.81068995e-07 | P8: 5.338386941e-07 | Q8: 1.02481144e-06 | R8: 1.066130651e-06 | S8: 6.078364364e-07 | T8: 6.578107747e-07 | U8: 4.918720961e-07 | V8: 1.193632829e-06 | W8: 3.587796833e-07 | X8: 2.364265729e-07 | Y8: 8.710747453e-07 | Z8: 1.320824718e-06 | AA8: 1.43898867e-06 | AB8: 4.438984913e-07 | AC8: 4.881579697e-07 | AD8: 2.968145928e-07 | AE8: ='User Add-in Location'!E14 -> 0 | AF8: ='User Add-in Location'!F14 -> 0 | AG8: 7.868117458e-07 | AH8: 2.892156947e-07 | AI8: 6.236808163e-07 | AJ8: 5.276479165e-07 | AK8: 2.485846872e-07 | AL8: 7.205077775e-07 | AM8: 1.174243993e-06 | AN8: 2.19869449e-07 | AO8: 1.21269199e-06 | AP8: 1.349960827e-06 | AQ8: 1.245413612e-06 | AR8: 1.386643675e-06 | AS8: 1.424880068e-07 | AT8: 1.01362734e-06 | AU8: 3.369006909e-07 | AV8: 8.38763205e-07 | AW8: 2.42447799e-06 | AX8: 3.410079261e-06 | AY8: 1.811724918e-06 | AZ8: 2.150720866e-07 | BA8: 9.552529812e-07 | BB8: 1.413516415e-06 | BC8: 2.14343243e-07 | BD8: 1.301580095e-06 | BE8: 1.011573689e-07
A9: Although the data and formulas are available for review they must not be changed. | C9: Machinery | D9: 1.307928247e-05 | E9: 2.900514522e-08 | F9: 5.103683399e-06 | G9: 1.391998166e-05 | H9: 1.210247519e-05 | I9: 8.706528041e-06 | J9: 1.570700562e-06 | K9: 9.758902935e-07 | L9: 1.606295756e-08 | M9: 3.301582381e-06 | N9: 1.035649193e-05 | O9: 2.520304913e-06 | P9: 1.886711376e-05 | Q9: 1.484023893e-05 | R9: 1.819948194e-05 | S9: 2.203164679e-05 | T9: 1.877686928e-05 | U9: 7.584942784e-06 | V9: 8.161308805e-06 | W9: 1.70012645e-06 | X9: 8.199209748e-07 | Y9: 1.423799777e-06 | Z9: 9.153174283e-06 | AA9: 1.663820865e-05 | AB9: 1.177562923e-05 | AC9: 5.427090201e-06 | AD9: 3.251735408e-06 | AE9: ='User Add-in Location'!E15 -> 0 | AF9: ='User Add-in Location'!F15 -> 0 | AG9: 2.383829285e-05 | AH9: 3.121221969e-07 | AI9: 1.011786691e-06 | AJ9: 1.546109172e-06 | AK9: 3.616975678e-06 | AL9: 5.591949379e-06 | AM9: 9.547878173e-06 | AN9: 2.835510013e-05 | AO9: 1.252876363e-05 | AP9: 6.62272691e-06 | AQ9: 1.634150813e-05 | AR9: 8.659070921e-06 | AS9: 3.41083948e-07 | AT9: 4.936522279e-06 | AU9: 2.363174601e-05 | AV9: 4.939401124e-06 | AW9: 1.130864428e-05 | AX9: 4.373952927e-05 | AY9: 2.372495433e-06 | AZ9: 6.296237229e-07 | BA9: 3.759250661e-06 | BB9: 8.426869107e-06 | BC9: 4.133355552e-07 | BD9: 2.046187369e-05 | BE9: 2.331583356e-06
C10: Electrical Equipment | D10: 2.918616822e-07 | E10: 5.499958101e-09 | F10: 2.186621283e-05 | G10: 6.000474649e-07 | H10: 3.252797091e-05 | I10: 9.854241956e-06 | J10: 2.417312934e-06 | K10: 4.735816086e-08 | L10: 2.792982139e-09 | M10: 1.238023624e-05 | N10: 1.481671304e-06 | O10: 1.895089834e-07 | P10: 2.402038417e-05 | Q10: 1.924691101e-06 | R10: 5.235843839e-07 | S10: 4.195261504e-07 | T10: 1.624167057e-06 | U10: 3.069342669e-07 | V10: 6.250753927e-08 | W10: 2.94946301e-06 | X10: 9.738756564e-07 | Y10: 2.266155337e-05 | Z10: 1.536595897e-06 | AA10: 8.834900949e-06 | AB10: 2.713905008e-07 | AC10: 4.145611169e-06 | AD10: 1.167844336e-07 | AE10: ='User Add-in Location'!E16 -> 0 | AF10: ='User Add-in Location'!F16 -> 0 | AG10: 3.727665999e-07 | AH10: 1.69319091e-05 | AI10: 5.549750234e-06 | AJ10: 3.311717294e-06 | AK10: 2.261643457e-05 | AL10: 8.19297219e-06 | AM10: 1.016658211e-05 | AN10: 2.442368364e-07 | AO10: 2.181530376e-06 | AP10: 2.837204351e-07 | AQ10: 2.987625035e-05 | AR10: 3.145417892e-06 | AS10: 1.253802612e-06 | AT10: 4.721131875e-07 | AU10: 7.020724617e-07 | AV10: 3.45949342e-07 | AW10: 2.206647345e-05 | AX10: 2.912657396e-05 | AY10: 6.855421196e-06 | AZ10: 1.563965999e-05 | BA10: 4.791699098e-06 | BB10: 4.679602927e-06 | BC10: 8.159716628e-08 | BD10: 1.344261444e-06 | BE10: 3.113559667e-09
A11: Any changes to the data or formulas will impact the analysis and may invalidate the model results. | C11: TCPU | D11: 0.04910826769 | E11: 0.04835386398 | F11: 0.04216965163 | G11: 0.04794139656 | H11: 0.02876079667 | I11: 0.0400811386 | J11: 0.03439142139 | K11: 0.03415905229 | L11: 0.02616570636 | M11: 0.0403257064 | N11: 0.04115556621 | O11: 0.03535262521 | P11: 0.0449418335 | Q11: 0.04044798461 | R11: 0.04401526211 | S11: 0.04636094916 | T11: 0.03601811672 | U11: 0.04388881668 | V11: 0.04192266253 | W11: 0.04142866034 | X11: 0.03738629091 | Y11: 0.03318106721 | Z11: 0.04059482442 | AA11: 0.04620491451 | AB11: 0.05042339249 | AC11: 0.04488649008 | AD11: 0.05237250038 | AE11: ='User Add-in Location'!E17 -> 0 | AF11: ='User Add-in Location'!F17 -> 0 | AG11: 0.04382999187 | AH11: 0.06021540961 | AI11: 0.03388921465 | AJ11: 0.03734646317 | AK11: 0.04115653129 | AL11: 0.03844284718 | AM11: 0.037083272 | AN11: 0.05218752319 | AO11: 0.04175786561 | AP11: 0.05035585175 | AQ11: 0.0447057481 | AR11: 0.03895277857 | AS11: 0.03128476433 | AT11: 0.03862322921 | AU11: 0.04531526911 | AV11: 0.04065908017 | AW11: 0.04501976605 | AX11: 0.04060037507 | AY11: 0.03851929391 | AZ11: 0.04674274773 | BA11: 0.04197815136 | BB11: 0.03879307875 | BC11: 0.0449439744 | BD11: 0.04122486426 | BE11: 0.05499510085
C12: Wholesale Trade | D12: 0.04078921789 | E12: 0.02951692186 | F12: 0.04754833718 | G12: 0.0474622171 | H12: 0.04446895456 | I12: 0.04756537449 | J12: 0.04947347602 | K12: 0.03700805424 | L12: 0.02273244424 | M12: 0.04818623027 | N12: 0.04745430716 | O12: 0.03917455688 | P12: 0.04587526894 | Q12: 0.04676870526 | R12: 0.03965390501 | S12: 0.04203630956 | T12: 0.04117300303 | U12: 0.0451014901 | V12: 0.03432619036 | W12: 0.04270168495 | X12: 0.04397547696 | Y12: 0.04923105077 | Z12: 0.04424976936 | AA12: 0.0478424641 | AB12: 0.03513748371 | AC12: 0.04626068316 | AD12: 0.04312295421 | AE12: ='User Add-in Location'!E18 -> 0 | AF12: ='User Add-in Location'!F18 -> 0 | AG12: 0.04386616679 | AH12: 0.1037791601 | AI12: 0.05338174907 | AJ12: 0.04921855155 | AK12: 0.03771081743 | AL12: 0.04738991625 | AM12: 0.0469533378 | AN12: 0.05924934108 | AO12: 0.04438023987 | AP12: 0.0455380824 | AQ12: 0.04558880983 | AR12: 0.04674839908 | AS12: 0.04882621324 | AT12: 0.04330633857 | AU12: 0.05310626102 | AV12: 0.04711474199 | AW12: 0.04387452626 | AX12: 0.03921366992 | AY12: 0.04178039593 | AZ12: 0.03629905598 | BA12: 0.04218881739 | BB12: 0.04500803773 | BC12: 0.0415127776 | BD12: 0.04531418813 | BE12: 0.042292843
C13: Retail Trade | D13: 0.1151295514 | E13: 0.1090847846 | F13: 0.1092415844 | G13: 0.1092664302 | H13: 0.0958165568 | I13: 0.09414097933 | J13: 0.1006055347 | K13: 0.1076609856 | L13: 0.07824600187 | M13: 0.1047842408 | N13: 0.1032883753 | O13: 0.1129557974 | P13: 0.1185999134 | Q13: 0.09538325744 | R13: 0.1118705409 | S13: 0.1126937907 | T13: 0.1135284211 | U13: 0.1104511696 | V13: 0.1121974306 | W13: 0.1129882696 | X13: 0.09801724209 | Y13: 0.08809832473 | Z13: 0.1070901649 | AA13: 0.09800682089 | AB13: 0.1191690879 | AC13: 0.1038885433 | AD13: 0.112637871 | AE13: ='User Add-in Location'!E19 -> 0 | AF13: ='User Add-in Location'!F19 -> 0 | AG13: 0.1129912306 | AH13: 0.7945738712 | AI13: 0.1103240457 | AJ13: 0.1004493015 | AK13: 0.1178309824 | AL13: 0.09394311761 | AM13: 0.1003219116 | AN13: 0.1153770187 | AO13: 0.1035244776 | AP13: 0.1083776876 | AQ13: 0.1011224312 | AR13: 0.09763034216 | AS13: 0.09537728365 | AT13: 0.1166012205 | AU13: 0.1190922675 | AV13: 0.1110808563 | AW13: 0.1006792258 | AX13: 0.08667908637 | AY13: 0.1018476793 | AZ13: 0.1087484127 | BA13: 0.1039600408 | BB13: 0.1008403261 | BC13: 0.1236364348 | BD13: 0.1040048097 | BE13: 0.1153686743
C14: FIRE | D14: 0.1249465985 | E14: 0.1141976709 | F14: 0.140537736 | G14: 0.1136069109 | H14: 0.1195631163 | I14: 0.1306090754 | J14: 0.1414132647 | K14: 0.1612698163 | L14: 0.1625997792 | M14: 0.1333966401 | N14: 0.1287445953 | O14: 0.1250249885 | P14: 0.1340643121 | Q14: 0.1370516427 | R14: 0.117816163 | S14: 0.1426880107 | T14: 0.1222340576 | U14: 0.1185538929 | V14: 0.1118676834 | W14: 0.1335688862 | X14: 0.1321333103 | Y14: 0.1414593148 | Z14: 0.1197437119 | AA14: 0.1308916887 | AB14: 0.1151213884 | AC14: 0.1258752802 | AD14: 0.1272501893 | AE14: ='User Add-in Location'!E20 -> 0 | AF14: ='User Add-in Location'!F20 -> 0 | AG14: 0.1345509208 | AH14: 0.01108952917 | AI14: 0.1429205652 | AJ14: 0.1353698486 | AK14: 0.1237713709 | AL14: 0.1432728602 | AM14: 0.129960827 | AN14: 0.1311120114 | AO14: 0.1311621089 | AP14: 0.120536059 | AQ14: 0.1252608657 | AR14: 0.1291927022 | AS14: 0.151296094 | AT14: 0.1201525482 | AU14: 0.1419129173 | AV14: 0.1206724579 | AW14: 0.1255628291 | AX14: 0.1200748833 | AY14: 0.1352166842 | AZ14: 0.1314002906 | BA14: 0.1285480146 | BB14: 0.1192889483 | BC14: 0.1113922117 | BD14: 0.1299396082 | BE14: 0.1330434427
C15: Misc. Services | D15: 0.6018238326 | E15: 0.6334737062 | F15: 0.613332561 | G15: 0.6190500136 | H15: 0.606319932 | I15: 0.6163870582 | J15: 0.6283612429 | K15: 0.6090744044 | L15: 0.6896865499 | M15: 0.6174779079 | N15: 0.6180286829 | O15: 0.6204023664 | P15: 0.5945808906 | Q15: 0.6067366571 | R15: 0.612340947 | S15: 0.5965963501 | T15: 0.6177794415 | U15: 0.6202673616 | V15: 0.6259100026 | W15: 0.6147601995 | X15: 0.6465592442 | Y15: 0.6335044281 | Z15: 0.6084009495 | AA15: 0.596166288 | AB15: 0.617747213 | AC15: 0.6257068968 | AD15: 0.5999510311 | AE15: ='User Add-in Location'!E21 -> 0 | AF15: ='User Add-in Location'!F21 -> 0 | AG15: 0.6123817683 | AH15: 0.01141061326 | AI15: 0.6224434252 | AJ15: 0.6195378096 | AK15: 0.6191561379 | AL15: 0.6256972783 | AM15: 0.613204367 | AN15: 0.5899893759 | AO15: 0.5995911005 | AP15: 0.6099028098 | AQ15: 0.6216366078 | AR15: 0.6137686639 | AS15: 0.6413069436 | AT15: 0.6262824194 | AU15: 0.5977993414 | AV15: 0.6204157343 | AW15: 0.5771804508 | AX15: 0.5490881243 | AY15: 0.6049829643 | AZ15: 0.62756152 | BA15: 0.6304515603 | BB15: 0.6090215844 | BC15: 0.6371578019 | BD15: 0.606554321 | BE15: 0.5960737486
C16: Professional Services | D16: 0.00934341492 | E16: 0.007512323512 | F16: 0.008757965134 | G16: 0.006907223896 | H16: 0.009913895599 | I16: 0.0100882752 | J16: 0.01032451331 | K16: 0.01092017967 | L16: 0.009569306515 | M16: 0.009259718899 | N16: 0.008817609427 | O16: 0.0060651887 | P16: 0.008700813603 | Q16: 0.01021379651 | R16: 0.009104180137 | S16: 0.007077533703 | T16: 0.008608287113 | U16: 0.007619201119 | V16: 0.008484477275 | W16: 0.008606286097 | X16: 0.01023903517 | Y16: 0.01166573006 | Z16: 0.01008650401 | AA16: 0.009151465092 | AB16: 0.006820621005 | AC16: 0.008988197697 | AD16: 0.007868477056 | AE16: ='User Add-in Location'!E22 -> 0 | AF16: ='User Add-in Location'!F22 -> 0 | AG16: 0.007832492896 | AH16: 0 | AI16: 0.01006916311 | AJ16: 0.01083201281 | AK16: 0.009281309958 | AL16: 0.01049806108 | AM16: 0.009353089705 | AN16: 0.006444352277 | AO16: 0.009014277993 | AP16: 0.007686993373 | AQ16: 0.009288579202 | AR16: 0.01033121994 | AS16: 0.009493852475 | AT16: 0.008993842757 | AU16: 0.006569221685 | AV16: 0.009028809194 | AW16: 0.0088012448 | AX16: 0.008905399586 | AY16: 0.009233047842 | AZ16: 0.009866140945 | BA16: 0.009805343665 | BB16: 0.01007900324 | BC16: 0.009346395967 | BD16: 0.008463657009 | BE16: 0.006544897326
C17: Government | D17: 0.009068914188 | E17: 0.008908514871 | F17: 0.007799551977 | G17: 0.008849115104 | H17: 0.006876420645 | I17: 0.007290599771 | J17: 0.007749161625 | K17: 0.007703430608 | L17: 0.009164285633 | M17: 0.007207978093 | N17: 0.006910742365 | O17: 0.008359353228 | P17: 0.008857424526 | Q17: 0.006891199812 | R17: 0.008125813337 | S17: 0.008650407803 | T17: 0.008387324013 | U17: 0.009176576679 | V17: 0.009178743736 | W17: 0.008491052168 | X17: 0.007884292005 | Y17: 0.007188288222 | Z17: 0.007700480933 | AA17: 0.007506351909 | AB17: 0.009529199643 | AC17: 0.00797863831 | AD17: 0.009221122133 | AE17: ='User Add-in Location'!E23 -> 0 | AF17: ='User Add-in Location'!F23 -> 0 | AG17: 0.008119876567 | AH17: 0 | AI17: 0.008111091045 | AJ17: 0.007210855321 | AK17: 0.009564292753 | AL17: 0.007564879108 | AM17: 0.007503345123 | AN17: 0.009051211995 | AO17: 0.007430810136 | AP17: 0.008646721594 | AQ17: 0.00816722948 | AR17: 0.007669324536 | AS17: 0.007630671708 | AT17: 0.008808601474 | AU17: 0.009027858199 | AV17: 0.008113295549 | AW17: 0.007433988167 | AX17: 0.00606603566 | AY17: 0.007348094254 | AZ17: 0.008452621276 | BA17: 0.008373457733 | BB17: 0.007773975567 | BC17: 0.01025369845 | BD17: 0.008171907784 | BE17: 0.01050111326
A18: To view the data and formulas simply scroll over to the adjacent columns to the right. | C18: Total | D18: =SUM(D4:D17) -> 1 | E18: =SUM(E4:E17) -> 1 | F18: 1 | G18: 1 | H18: 1 | I18: 1 | J18: 1 | K18: 1 | L18: 1 | M18: 1 | N18: 1 | O18: 1 | P18: 1 | Q18: 1 | R18: 1 | S18: 1 | T18: 1 | U18: 1 | V18: 1 | W18: 1 | X18: 1 | Y18: 1 | Z18: 1 | AA18: 1 | AB18: 1 | AC18: 1 | AD18: 1 | AE18: 0 | AF18: 1 | AG18: 1 | AH18: 1 | AI18: 1 | AJ18: 1 | AK18: 1 | AL18: 1 | AM18: 1 | AN18: 1 | AO18: 1 | AP18: 1 | AQ18: 1 | AR18: 1 | AS18: 1 | AT18: 1 | AU18: 1 | AV18: 1 | AW18: 1 | AX18: 1 | AY18: 1 | AZ18: 1 | BA18: 1 | BB18: 1 | BC18: 1 | BD18: 1 | BE18: 1
C20: =CONCATENATE("Source: All values are averages for all income classes and are derived from IMPLAN™ using ", D2," state data.") -> Source: All values are averages for all income classes and are derived from IMPLAN™ using 2014 state data.

Sheet Multipliers (hidden)
C1: Multipliers For Economic Input-Output Analysis
C2: Year of Data | D2: 2014
C3: Jobs Per Million Dollars Change in Final Demand
C4: Jobs Direct Multipliers | D4: Alabama | E4: Alaska | F4: Arizona | G4: Arkansas | H4: California | I4: Colorado | J4: Connecticut | K4: Delaware | L4: District of Columbia | M4: Florida | N4: Georgia | O4: Hawaii | P4: Idaho | Q4: Illinois | R4: Indiana | S4: Iowa | T4: Kansas | U4: Kentucky | V4: Louisiana | W4: Maine | X4: Maryland | Y4: Massachusetts | Z4: Michigan | AA4: Minnesota | AB4: Mississippi | AC4: Missouri | AD4: Montana | AE4: MyCounty | AF4: MyRegion | AG4: Nebraska | AH4: Nevada | AI4: New Hampshire | AJ4: New Jersey | AK4: New Mexico | AL4: New York | AM4: North Carolina | AN4: North Dakota | AO4: Ohio | AP4: Oklahoma | AQ4: Oregon | AR4: Pennsylvania | AS4: Rhode Island | AT4: South Carolina | AU4: South Dakota | AV4: Tennessee | AW4: Texas | AX4: United States | AY4: Utah | AZ4: Vermont | BA4: Virginia | BB4: Washington | BC4: West Virginia | BD4: Wisconsin | BE4: Wyoming
A5: Warning | C5: Agriculture | D5: 6.566301505 | E5: 15.00798786 | F5: 7.084637135 | G5: 4.826203119 | H5: 6.406473951 | I5: 5.332756246 | J5: 10.92911051 | K5: 2.142725394 | L5: 32.54869104 | M5: 9.84666822 | N5: 5.300310796 | O5: 15.7001553 | P5: 4.394204329 | Q5: 3.975800704 | R5: 4.925988671 | S5: 2.856584219 | T5: 3.3648776 | U5: 11.00036025 | V5: 8.009157392 | W5: 12.25358869 | X5: 6.770732962 | Y5: 14.2032497 | Z5: 7.462780943 | AA5: 4.183273309 | AB5: 5.943993734 | AC5: 8.067411278 | AD5: 5.871679553 | AE5: ='User Add-in Location'!B10 -> 0 | AF5: ='User Add-in Location'!C10 -> 0 | AG5: 1.94009228 | AH5: 5.058456534 | AI5: 14.27052803 | AJ5: 14.39903185 | AK5: 7.201252905 | AL5: 7.847738493 | AM5: 4.672248817 | AN5: 3.677496627 | AO5: 7.389474319 | AP5: 9.555810332 | AQ5: 10.97362891 | AR5: 7.962284287 | AS5: 12.47815987 | AT5: 8.890139416 | AU5: 2.873845819 | AV5: 14.21344577 | AW5: 9.068770211 | AX5: 6.185195093 | AY5: 6.982782015 | AZ5: 8.757503827 | BA5: 10.05915581 | BB5: 8.553233958 | BC5: 18.06799576 | BD5: 6.072027102 | BE5: 6.086522665
C6: Mining | D6: 2.121725317 | E6: 1.154506435 | F6: 2.257920818 | G6: 3.381585273 | H6: 1.900933183 | I6: 2.470654419 | J6: 4.560099781 | K6: 4.344126743 | L6: 5.427036589 | M6: 3.862160282 | N6: 4.170659024 | O6: 5.132557634 | P6: 3.974133422 | Q6: 2.999673208 | R6: 2.51679321 | S6: 4.757555837 | T6: 4.857676022 | U6: 2.209793768 | V6: 2.309223161 | W6: 7.269813786 | X6: 3.08386688 | Y6: 3.960562886 | Z6: 4.143467668 | AA6: 2.358541005 | AB6: 3.56174451 | AC6: 3.018330229 | AD6: 2.715247624 | AE6: ='User Add-in Location'!B11 -> 0 | AF6: ='User Add-in Location'!C11 -> 0 | AG6: 4.362795982 | AH6: 2.315334555 | AI6: 5.067094526 | AJ6: 3.732540932 | AK6: 2.586908354 | AL6: 5.273916687 | AM6: 3.413465555 | AN6: 2.540094044 | AO6: 3.120457235 | AP6: 3.08392656 | AQ6: 5.288848601 | AR6: 2.282537681 | AS6: 5.233906207 | AT6: 4.847757754 | AU6: 4.918396162 | AV6: 3.488801583 | AW6: 1.876195431 | AX6: 2.300683422 | AY6: 2.686323415 | AZ6: 4.407466253 | BA6: 2.471554798 | BB6: 4.319209361 | BC6: 2.090407537 | BD6: 3.808428889 | BE6: 1.692485077
A7: This Worksheet contains Data and Formulas that are an integral part of the JEDI model. | C7: Construction | D7: 5.658464877 | E7: 4.605736505 | F7: 5.424763932 | G7: 5.864647721 | H7: 5.290770034 | I7: 5.648863013 | J7: 5.165300016 | K7: 5.752076231 | L7: 5.172071493 | M7: 5.679083343 | N7: 5.624088496 | O7: 4.746385538 | P7: 6.161492008 | Q7: 5.076730913 | R7: 5.737118538 | S7: 5.598390968 | T7: 5.830203625 | U7: 5.636659357 | V7: 5.459092594 | W7: 6.096579447 | X7: 5.354560075 | Y7: 5.231740932 | Z7: 5.650198221 | AA7: 5.140882706 | AB7: 5.682670408 | AC7: 5.812212401 | AD7: 5.7962149 | AE7: ='User Add-in Location'!B12 -> 0 | AF7: ='User Add-in Location'!C12 -> 0 | AG7: 5.473703533 | AH7: 5.319873297 | AI7: 5.791518949 | AJ7: 4.96365179 | AK7: 5.826582475 | AL7: 4.978394977 | AM7: 5.833846589 | AN7: 5.408876865 | AO7: 5.690305362 | AP7: 5.765250162 | AQ7: 5.625962241 | AR7: 5.575375672 | AS7: 5.034845465 | AT7: 5.725158019 | AU7: 6.013969244 | AV7: 5.782569692 | AW7: 5.177427777 | AX7: 5.439894321 | AY7: 5.59366275 | AZ7: 6.152719537 | BA7: 5.648744399 | BB7: 5.28734203 | BC7: 5.382394936 | BD7: 5.665991669 | BE7: 5.147663727
C8: Manufacturing | D8: 1.722263429 | E8: 2.026583535 | F8: 2.356520262 | G8: 2.108720256 | H8: 1.775246229 | I8: 2.085765814 | J8: 2.169984453 | K8: 1.528338099 | L8: 3.089486298 | M8: 2.451248791 | N8: 1.993219047 | O8: 1.99791402 | P8: 1.907363004 | Q8: 1.715457132 | R8: 1.65804698 | S8: 1.754338829 | T8: 1.633724235 | U8: 1.547241314 | V8: 0.6666777554 | W8: 2.413729585 | X8: 2.140737982 | Y8: 2.090552425 | Z8: 1.734994975 | AA8: 2.060976559 | AB8: 1.766480426 | AC8: 1.81842181 | AD8: 1.142202462 | AE8: ='User Add-in Location'!B13 -> 0 | AF8: ='User Add-in Location'!C13 -> 0 | AG8: 1.7157333 | AH8: 2.668537629 | AI8: 2.702337968 | AJ8: 1.618079873 | AK8: 1.639213519 | AL8: 2.23001883 | AM8: 1.823091252 | AN8: 1.712811708 | AO8: 1.811331708 | AP8: 1.820484808 | AQ8: 2.5514421 | AR8: 1.988448393 | AS8: 2.674774722 | AT8: 1.879663326 | AU8: 2.254838632 | AV8: 1.860522353 | AW8: 1.045759592 | AX8: 1.739941611 | AY8: 1.884202263 | AZ8: 2.515819028 | BA8: 2.070320913 | BB8: 1.575458679 | BC8: 1.388108271 | BD8: 2.299952633 | BE8: 0.7000990042
A9: Although the data and formulas are available for review they must not be changed. | C9: Fabricated Metals | D9: 3.720983504 | E9: 4.038309568 | F9: 4.430362292 | G9: 3.585653411 | H9: 4.163223421 | I9: 3.70814309 | J9: 3.917571749 | K9: 4.144720426 | L9: 0 | M9: 4.178092585 | N9: 4.096107755 | O9: 4.56051251 | P9: 4.631162456 | Q9: 3.962268143 | R9: 3.973712765 | S9: 3.867207218 | T9: 3.953798003 | U9: 3.997935524 | V9: 3.471644522 | W9: 3.916482248 | X9: 4.112196994 | Y9: 3.784932533 | Z9: 4.069965751 | AA9: 4.114231994 | AB9: 4.104337122 | AC9: 4.067109805 | AD9: 4.133525838 | AE9: ='User Add-in Location'!B14 -> 0 | AF9: ='User Add-in Location'!C14 -> 0 | AG9: 3.686296813 | AH9: 4.061259467 | AI9: 3.824423122 | AJ9: 3.99466841 | AK9: 4.472397211 | AL9: 3.912603939 | AM9: 3.916370196 | AN9: 3.868533557 | AO9: 3.864503839 | AP9: 3.361617197 | AQ9: 3.910300847 | AR9: 3.980617413 | AS9: 4.538269651 | AT9: 3.64737019 | AU9: 3.730272044 | AV9: 3.714427051 | AW9: 3.677903535 | AX9: 3.869482298 | AY9: 3.8157599 | AZ9: 4.484955411 | BA9: 3.616452533 | BB9: 4.024883193 | BC9: 4.146812842 | BD9: 3.979422342 | BE9: 3.623728297
C10: Machinery | D10: 1.886453153 | E10: 2.3926353 | F10: 2.133516161 | G10: 2.373938912 | H10: 2.113626381 | I10: 1.671733698 | J10: 2.025134587 | K10: 2.981434556 | L10: 2.482101585 | M10: 2.296220139 | N10: 1.900483916 | O10: 1.895837443 | P10: 2.021468989 | Q10: 1.738677709 | R10: 1.371589495 | S10: 1.539954945 | T10: 2.011445987 | U10: 2.350756106 | V10: 2.137380697 | W10: 2.44305185 | X10: 1.463423528 | Y10: 2.484971202 | Z10: 2.293084266 | AA10: 2.234651032 | AB10: 1.49963951 | AC10: 1.672030595 | AD10: 2.074005137 | AE10: ='User Add-in Location'!B15 -> 0 | AF10: ='User Add-in Location'!C15 -> 0 | AG10: 1.540550944 | AH10: 2.192826854 | AI10: 2.734187584 | AJ10: 2.767154296 | AK10: 2.106585813 | AL10: 1.955293451 | AM10: 1.795432163 | AN10: 1.548158959 | AO10: 2.384861194 | AP10: 1.964364015 | AQ10: 2.479930453 | AR10: 2.248830128 | AS10: 3.264932214 | AT10: 1.841499949 | AU10: 1.886563183 | AV10: 1.797522049 | AW10: 2.051071177 | AX10: 1.905029876 | AY10: 1.86629677 | AZ10: 3.196590884 | BA10: 2.828091539 | BB10: 2.50362186 | BC10: 3.165161351 | BD10: 1.729062911 | BE10: 2.333420941
A11: Any changes to the data or formulas will impact the analysis and may invalidate the model results. | C11: Electrical Equipment | D11: 3.747754946 | E11: 0 | F11: 1.170886574 | G11: 3.016914665 | H11: 1.319321895 | I11: 1.513755961 | J11: 2.455377145 | K11: 3.570936006 | L11: 0.6757981732 | M11: 1.676763706 | N11: 2.53584118 | O11: 1.149847782 | P11: 1.124117735 | Q11: 3.009896796 | R11: 3.262094721 | S11: 2.501515165 | T11: 2.668945997 | U11: 3.702867134 | V11: 2.838088487 | W11: 1.522556992 | X11: 3.052604501 | Y11: 1.369327418 | Z11: 2.930208455 | AA11: 2.311043319 | AB11: 2.755542794 | AC11: 1.927473116 | AD11: 1.756795569 | AE11: ='User Add-in Location'!B16 -> 0 | AF11: ='User Add-in Location'!C16 -> 0 | AG11: 4.064168633 | AH11: 3.329947961 | AI11: 2.722707277 | AJ11: 2.342255595 | AK11: 0.983826263 | AL11: 1.835241634 | AM11: 1.326298005 | AN11: 3.220841821 | AO11: 2.312894485 | AP11: 3.186727167 | AQ11: 0.5630010725 | AR11: 2.427348829 | AS11: 1.843139595 | AT11: 3.682804549 | AU11: 3.062733776 | AV11: 3.014649407 | AW11: 1.240553771 | AX11: 1.358589253 | AY11: 1.456675529 | AZ11: 1.459853074 | BA11: 1.696150796 | BB11: 1.836212943 | BC11: 2.476933028 | BD11: 3.439866422 | BE11: 5.032342916
C12: TCPU | D12: 2.283608886 | E12: 1.645986495 | F12: 2.459674264 | G12: 3.284334276 | H12: 3.202737095 | I12: 2.710833008 | J12: 3.011261121 | K12: 2.707828264 | L12: 4.166595066 | M12: 2.710778823 | N12: 2.804426209 | O12: 2.241599856 | P12: 3.414317561 | Q12: 3.452649813 | R12: 3.190412521 | S12: 3.26513922 | T12: 2.578994344 | U12: 2.854591237 | V12: 2.430578727 | W12: 3.315745535 | X12: 2.814767977 | Y12: 3.1121429 | Z12: 2.675160416 | AA12: 3.042009531 | AB12: 2.789842394 | AC12: 3.14421563 | AD12: 2.605081233 | AE12: ='User Add-in Location'!B17 -> 0 | AF12: ='User Add-in Location'!C17 -> 0 | AG12: 2.744033063 | AH12: 0 | AI12: 2.785416439 | AJ12: 3.517803437 | AK12: 2.672647469 | AL12: 3.564482713 | AM12: 3.051091727 | AN12: 2.750117172 | AO12: 3.010500463 | AP12: 2.130499603 | AQ12: 2.94509543 | AR12: 3.460524784 | AS12: 3.389656015 | AT12: 2.458988455 | AU12: 3.14367906 | AV12: 3.182802276 | AW12: 2.625546652 | AX12: 2.970278852 | AY12: 3.56663037 | AZ12: 2.614791149 | BA12: 3.26818116 | BB12: 2.960805881 | BC12: 2.501016312 | BD12: 3.306148811 | BE12: 2.111241179
C13: Wholesale Trade | D13: 3.940881736 | E13: 3.514911845 | F13: 3.685652831 | G13: 3.481172608 | H13: 3.375396676 | I13: 3.662646963 | J13: 3.025677558 | K13: 3.366370311 | L13: 3.137867347 | M13: 3.576838971 | N13: 3.462482362 | O13: 4.387286957 | P13: 4.234213406 | Q13: 3.389059468 | R13: 3.87941033 | S13: 3.999720777 | T13: 3.713357157 | U13: 3.667716795 | V13: 3.716003035 | W13: 3.915924831 | X13: 3.536271716 | Y13: 3.380872889 | Z13: 3.564893215 | AA13: 3.657934173 | AB13: 4.049456476 | AC13: 3.852700561 | AD13: 4.083031113 | AE13: ='User Add-in Location'!B18 -> 0 | AF13: ='User Add-in Location'!C18 -> 0 | AG13: 3.970727496 | AH13: 3.826737223 | AI13: 3.677236958 | AJ13: 3.130205071 | AK13: 4.384957995 | AL13: 3.205602342 | AM13: 3.826758924 | AN13: 3.557794549 | AO13: 3.767327816 | AP13: 3.813662199 | AQ13: 3.862045889 | AR13: 3.456788526 | AS13: 3.712679924 | AT13: 3.72062247 | AU13: 3.93382074 | AV13: 3.701558395 | AW13: 3.261407345 | AX13: 3.523543088 | AY13: 4.037879636 | AZ13: 4.188429735 | BA13: 3.63958541 | BB13: 3.455734597 | BC13: 3.925528932 | BD13: 3.973483106 | BE13: 3.522505128
C14: Retail Trade | D14: 11.95631014 | E14: 12.34929243 | F14: 11.11949076 | G14: 12.82827608 | H14: 10.24403121 | I14: 12.19017333 | J14: 11.05452269 | K14: 13.11178238 | L14: 11.22845538 | M14: 11.93067004 | N14: 12.37445878 | O14: 10.96384825 | P14: 12.6050209 | Q14: 11.98193502 | R14: 12.7164949 | S14: 13.69820281 | T14: 12.32988458 | U14: 13.61372301 | V14: 11.97193869 | W14: 12.81210034 | X14: 11.81415757 | Y14: 12.58433866 | Z14: 11.82613669 | AA14: 12.21553939 | AB14: 12.63467494 | AC14: 12.99716225 | AD14: 14.28571584 | AE14: ='User Add-in Location'!B19 -> 0 | AF14: ='User Add-in Location'!C19 -> 0 | AG14: 13.05087213 | AH14: 7.792341105 | AI14: 12.73738223 | AJ14: 10.86196578 | AK14: 12.9524967 | AL14: 10.8873793 | AM14: 13.45326683 | AN14: 12.23223456 | AO14: 12.20490631 | AP14: 12.48480974 | AQ14: 13.78582606 | AR14: 13.02342298 | AS14: 12.02415208 | AT14: 12.66643177 | AU14: 12.82805309 | AV14: 12.0195632 | AW14: 11.10307679 | AX14: 11.76465954 | AY14: 11.81232614 | AZ14: 12.46919014 | BA14: 12.34015495 | BB14: 9.576041566 | BC14: 12.8113006 | BD14: 12.8448405 | BE14: 12.38982135
C15: FIRE | D15: 5.57680298 | E15: 4.538493312 | F15: 5.628341884 | G15: 5.553065675 | H15: 4.406329268 | I15: 5.424818837 | J15: 3.437540676 | K15: 2.967515542 | L15: 3.269774774 | M15: 5.780774123 | N15: 4.710104015 | O15: 4.556523754 | P15: 5.707009331 | Q15: 4.129217207 | R15: 4.855444572 | S15: 4.085347867 | T15: 5.315893908 | U15: 5.191717741 | V15: 5.743036973 | W15: 4.561257007 | X15: 4.372383638 | Y15: 3.631232683 | Z15: 5.082985895 | AA15: 4.472011919 | AB15: 5.5064103 | AC15: 4.959296987 | AD15: 5.911714098 | AE15: ='User Add-in Location'!B20 -> 0 | AF15: ='User Add-in Location'!C20 -> 0 | AG15: 4.46843033 | AH15: 0 | AI15: 4.220286105 | AJ15: 4.306843067 | AK15: 5.00978851 | AL15: 2.82839939 | AM15: 4.251653355 | AN15: 4.954991795 | AO15: 4.059830469 | AP15: 5.569875235 | AQ15: 5.112114936 | AR15: 4.318733122 | AS15: 4.046045564 | AT15: 5.562812242 | AU15: 3.981673962 | AV15: 5.020840205 | AW15: 5.513486955 | AX15: 4.469860689 | AY15: 5.235307932 | AZ15: 4.655335988 | BA15: 4.598234123 | BB15: 4.492445418 | BC15: 5.064781041 | BD15: 4.323031029 | BE15: 5.696082867
C16: Misc. Services | D16: 5.966384458 | E16: 5.421060997 | F16: 6.186165631 | G16: 7.014538529 | H16: 5.033424977 | I16: 5.613721645 | J16: 5.238210305 | K16: 4.074880673 | L16: 3.300984228 | M16: 6.254501876 | N16: 6.054370402 | O16: 5.902937884 | P16: 5.926176543 | Q16: 4.899407697 | R16: 5.345679638 | S16: 6.279439239 | T16: 6.458609542 | U16: 6.631448385 | V16: 6.184171536 | W16: 6.463589402 | X16: 5.008065627 | Y16: 4.342149864 | Z16: 5.649893792 | AA16: 5.606170974 | AB16: 6.954467438 | AC16: 5.711629249 | AD16: 7.079556797 | AE16: ='User Add-in Location'!B21 -> 0 | AF16: ='User Add-in Location'!C21 -> 0 | AG16: 6.065710269 | AH16: 6.245225195 | AI16: 5.778699946 | AJ16: 4.92410552 | AK16: 4.868187278 | AL16: 4.57377853 | AM16: 5.4841042 | AN16: 5.983771563 | AO16: 5.925975065 | AP16: 6.710986316 | AQ16: 5.591995106 | AR16: 5.122834921 | AS16: 5.923428663 | AT16: 6.295337806 | AU16: 6.718101348 | AV16: 5.79021109 | AW16: 5.476999097 | AX16: 5.328985501 | AY16: 6.319458501 | AZ16: 6.513734697 | BA16: 5.018896626 | BB16: 5.316556743 | BC16: 6.069555315 | BD16: 5.947434759 | BE16: 6.698138467
C17: Professional Services | D17: 8.676103089 | E17: 7.050957372 | F17: 7.873900538 | G17: 7.724927774 | H17: 6.730931978 | I17: 7.01002572 | J17: 6.636015356 | K17: 7.565920304 | L17: 6.255980836 | M17: 8.215776058 | N17: 7.399140396 | O17: 8.055422579 | P17: 9.126508033 | Q17: 7.400240448 | R17: 8.566045667 | S17: 8.719636666 | T17: 7.72315742 | U17: 8.484307593 | V17: 8.181339305 | W17: 8.694315657 | X17: 7.102651242 | Y17: 6.917442091 | Z17: 8.33230856 | AA17: 7.572606203 | AB17: 8.973313448 | AC17: 7.515239094 | AD17: 9.292308615 | AE17: ='User Add-in Location'!B22 -> 0 | AF17: ='User Add-in Location'!C22 -> 0 | AG17: 8.277221287 | AH17: 7.905510131 | AI17: 7.550501111 | AJ17: 6.694155475 | AK17: 7.923336194 | AL17: 6.570752831 | AM17: 8.204395343 | AN17: 7.848705661 | AO17: 8.074757722 | AP17: 8.149709892 | AQ17: 8.060584083 | AR17: 7.436002488 | AS17: 7.519260454 | AT17: 8.464939115 | AU17: 8.546069053 | AV17: 7.997073892 | AW17: 7.503820539 | AX17: 7.444977234 | AY17: 7.941773096 | AZ17: 8.726917188 | BA17: 7.037438719 | BB17: 5.968075419 | BC17: 8.531529631 | BD17: 8.065657294 | BE17: 8.344410029
A18: To view the data and formulas simply scroll over to the adjacent columns to the right. | C18: Government | D18: 8.657383336 | E18: 7.868630479 | F18: 8.181833948 | G18: 11.91821956 | H18: 6.770617173 | I18: 9.711362017 | J18: 6.58025484 | K18: 8.582900024 | L18: 4.369121568 | M18: 8.689600875 | N18: 10.18366731 | O18: 8.098019677 | P18: 11.16642991 | Q18: 9.243610901 | R18: 11.81268678 | S18: 10.93198947 | T18: 11.40573171 | U18: 10.06286351 | V18: 10.26485663 | W18: 10.41489398 | X18: 5.81563841 | Y18: 6.468442506 | Z18: 9.650036194 | AA18: 9.588872337 | AB18: 11.85901764 | AC18: 10.39527543 | AD18: 10.62671193 | AE18: ='User Add-in Location'!B23 -> 0 | AF18: ='User Add-in Location'!C23 -> 0 | AG18: 11.16511823 | AH18: 7.310316005 | AI18: 8.182084476 | AJ18: 8.001138872 | AK18: 6.370609457 | AL18: 6.644235538 | AM18: 10.440893 | AN18: 10.32477024 | AO18: 9.061888183 | AP18: 9.041431881 | AQ18: 8.744981851 | AR18: 8.422181737 | AS18: 6.85620269 | AT18: 10.1753975 | AU18: 10.56980784 | AV18: 9.989033641 | AW18: 9.540162258 | AX18: 8.370479687 | AY18: 10.32011234 | AZ18: 10.72922721 | BA18: 7.09368457 | BB18: 7.405113601 | BC18: 10.04400053 | BD18: 9.213557155 | BE18: 10.03858865
C20: Jobs Per Million Dollars Change in Final Demand
C21: Jobs Indirect Multipliers | D21: Alabama | E21: Alaska | F21: Arizona | G21: Arkansas | H21: California | I21: Colorado | J21: Connecticut | K21: Delaware | L21: District of Columbia | M21: Florida | N21: Georgia | O21: Hawaii | P21: Idaho | Q21: Illinois | R21: Indiana | S21: Iowa | T21: Kansas | U21: Kentucky | V21: Louisiana | W21: Maine | X21: Maryland | Y21: Massachusetts | Z21: Michigan | AA21: Minnesota | AB21: Mississippi | AC21: Missouri | AD21: Montana | AE21: MyCounty | AF21: MyRegion | AG21: Nebraska | AH21: Nevada | AI21: New Hampshire | AJ21: New Jersey | AK21: New Mexico | AL21: New York | AM21: North Carolina | AN21: North Dakota | AO21: Ohio | AP21: Oklahoma | AQ21: Oregon | AR21: Pennsylvania | AS21: Rhode Island | AT21: South Carolina | AU21: South Dakota | AV21: Tennessee | AW21: Texas | AX21: United States | AY21: Utah | AZ21: Vermont | BA21: Virginia | BB21: Washington | BC21: West Virginia | BD21: Wisconsin | BE21: Wyoming
C22: Agriculture | D22: 1.319513921 | E22: 0.5703235415 | F22: 1.165353439 | G22: 1.834331818 | H22: 0.7834669005 | I22: 2.026241145 | J22: 0.4780140413 | K22: 0.9070569782 | L22: 0.5029372137 | M22: 0.9565018046 | N22: 1.305311264 | O22: 1.165347712 | P22: 1.66038997 | Q22: 1.168718992 | R22: 0.9044684848 | S22: 1.210844038 | T22: 1.742841513 | U22: 1.22197098 | V22: 0.7252396053 | W22: 1.457319133 | X22: 0.8659669208 | Y22: 0.4385928514 | Z22: 1.00593579 | AA22: 1.436992863 | AB22: 1.358500661 | AC22: 1.47400249 | AD22: 1.824493293 | AE22: ='User Add-in Location'!B27 -> 0 | AF22: ='User Add-in Location'!C27 -> 0 | AG22: 1.366329141 | AH22: 0.503640433 | AI22: 0.8668947284 | AJ22: 0.4255577263 | AK22: 1.483500655 | AL22: 0.9745106007 | AM22: 1.009163481 | AN22: 1.251393692 | AO22: 1.061526524 | AP22: 1.723134396 | AQ22: 1.677969634 | AR22: 1.162707469 | AS22: 0.4827201699 | AT22: 0.9600256738 | AU22: 1.490908389 | AV22: 1.286478159 | AW22: 1.528496873 | AX22: 2.516047916 | AY22: 1.234952924 | AZ22: 2.177824792 | BA22: 1.273794848 | BB22: 0.8879994894 | BC22: 1.305237219 | BD22: 1.935772124 | BE22: 0.907689221
C23: Mining | D23: 1.346741372 | E23: 0.3854762229 | F23: 1.760999887 | G23: 1.57240124 | H23: 1.065665425 | I23: 1.442883395 | J23: 1.620188063 | K23: 1.49295829 | L23: 1.247215879 | M23: 2.813005724 | N23: 1.640434376 | O23: 1.758629343 | P23: 1.918676432 | Q23: 1.814276626 | R23: 1.691773373 | S23: 1.5867199 | T23: 2.89075083 | U23: 1.582600524 | V23: 0.9860352088 | W23: 2.762200093 | X23: 2.09805794 | Y23: 2.13432945 | Z23: 2.277222813 | AA23: 1.544520503 | AB23: 1.609170872 | AC23: 1.824329763 | AD23: 1.887356067 | AE23: ='User Add-in Location'!B28 -> 0 | AF23: ='User Add-in Location'!C28 -> 0 | AG23: 1.635139244 | AH23: 1.025620405 | AI23: 1.80153128 | AJ23: 1.841913002 | AK23: 1.413369428 | AL23: 1.90174686 | AM23: 1.591698301 | AN23: 0.9860312144 | AO23: 1.964549949 | AP23: 1.87621693 | AQ23: 2.258830361 | AR23: 1.354896711 | AS23: 1.924752111 | AT23: 1.754068706 | AU23: 1.959714171 | AV23: 1.68396202 | AW23: 1.09131178 | AX23: 2.057463107 | AY23: 1.717369328 | AZ23: 1.506530237 | BA23: 1.58902348 | BB23: 1.709575598 | BC23: 1.549169955 | BD23: 1.401150164 | BE23: 0.8881504639
C24: Construction | D24: 2.85242293 | E24: 1.94161881 | F24: 2.870700919 | G24: 3.019637513 | H24: 2.936072941 | I24: 3.169258981 | J24: 2.553290429 | K24: 2.694446186 | L24: 1.270779025 | M24: 3.406551081 | N24: 3.2325782 | O24: 2.220518683 | P24: 3.400061824 | Q24: 2.773124388 | R24: 2.961146494 | S24: 2.913186712 | T24: 3.055180497 | U24: 2.884599262 | V24: 2.396554365 | W24: 3.597705335 | X24: 2.365404662 | Y24: 2.630187595 | Z24: 3.145467919 | AA24: 2.977011292 | AB24: 2.789715416 | AC24: 3.261789625 | AD24: 3.215115969 | AE24: ='User Add-in Location'!B29 -> 0 | AF24: ='User Add-in Location'!C29 -> 0 | AG24: 2.917470921 | AH24: 1.028848235 | AI24: 3.317632952 | AJ24: 2.45769535 | AK24: 2.69654489 | AL24: 2.233649441 | AM24: 3.37204018 | AN24: 2.46032032 | AO24: 3.286720931 | AP24: 3.071064837 | AQ24: 3.126425525 | AR24: 3.112256777 | AS24: 2.486140099 | AT24: 2.983040633 | AU24: 3.09520538 | AV24: 3.280821566 | AW24: 2.882276964 | AX24: 4.535933937 | AY24: 3.203824872 | AZ24: 3.22967919 | BA24: 2.725901288 | BB24: 2.312682122 | BC24: 2.288466139 | BD24: 3.168419136 | BE24: 1.910163254
C25: Manufacturing | D25: 1.719606379 | E25: 1.513774018 | F25: 1.907002834 | G25: 1.943847292 | H25: 2.142555244 | I25: 2.206959301 | J25: 1.28778708 | K25: 1.381814646 | L25: 0.6678359406 | M25: 2.236954606 | N25: 1.827781666 | O25: 2.208179775 | P25: 2.185982146 | Q25: 1.843757361 | R25: 1.579410517 | S25: 1.722338655 | T25: 2.181515129 | U25: 1.709322278 | V25: 1.622698025 | W25: 2.099713503 | X25: 1.260373828 | Y25: 1.417690293 | Z25: 1.860247439 | AA25: 2.070162712 | AB25: 1.842514776 | AC25: 1.920575081 | AD25: 2.173145969 | AE25: ='User Add-in Location'!B30 -> 0 | AF25: ='User Add-in Location'!C30 -> 0 | AG25: 1.757824383 | AH25: 1.09730422 | AI25: 1.50381008 | AJ25: 1.538768206 | AK25: 2.084511831 | AL25: 1.536531506 | AM25: 1.686701792 | AN25: 1.826769201 | AO25: 1.970702053 | AP25: 2.326871222 | AQ25: 2.210013906 | AR25: 1.935594617 | AS25: 1.474982136 | AT25: 1.604136401 | AU25: 1.828434074 | AV25: 1.838215078 | AW25: 2.34775993 | AX25: 4.069121681 | AY25: 2.287479816 | AZ25: 2.196046612 | BA25: 1.440061851 | BB25: 1.65595184 | BC25: 1.632989306 | BD25: 2.06277718 | BE25: 1.574550618
C26: Fabricated Metals | D26: 1.535072799 | E26: 1.347216768 | F26: 1.931791671 | G26: 1.433570946 | H26: 2.231475737 | I26: 1.914001274 | J26: 1.353465771 | K26: 1.233500743 | L26: 0 | M26: 2.166902549 | N26: 1.770556644 | O26: 1.722141222 | P26: 1.86849412 | Q26: 1.800496389 | R26: 1.603295329 | S26: 1.520989853 | T26: 1.588079821 | U26: 1.477411899 | V26: 1.297191403 | W26: 1.732763509 | X26: 1.393661086 | Y26: 1.476599056 | Z26: 1.830308339 | AA26: 1.915584361 | AB26: 1.502996882 | AC26: 1.682244096 | AD26: 1.696523828 | AE26: ='User Add-in Location'!B31 -> 0 | AF26: ='User Add-in Location'!C31 -> 0 | AG26: 1.484228341 | AH26: 1.156830529 | AI26: 1.478596089 | AJ26: 1.50269221 | AK26: 1.577912689 | AL26: 1.469166326 | AM26: 1.872709049 | AN26: 1.390724573 | AO26: 1.864812135 | AP26: 1.538101917 | AQ26: 1.832334079 | AR26: 1.817148668 | AS26: 1.6795428 | AT26: 1.475785519 | AU26: 1.475379213 | AV26: 1.662181397 | AW26: 1.993921701 | AX26: 3.919340046 | AY26: 2.205167276 | AZ26: 1.592460976 | BA26: 1.331633848 | BB26: 1.540330231 | BC26: 1.296711708 | BD26: 1.780891855 | BE26: 1.10759694
C27: Machinery | D27: 1.782071681 | E27: 1.372440724 | F27: 1.820820224 | G27: 1.762615641 | H27: 2.173264845 | I27: 2.218861635 | J27: 1.458751404 | K27: 1.229152511 | L27: 1.06051477 | M27: 2.388286072 | N27: 1.868461982 | O27: 2.103107777 | P27: 2.057203412 | Q27: 1.769351187 | R27: 1.806685001 | S27: 1.52933606 | T27: 1.890685734 | U27: 1.699285579 | V27: 1.509961382 | W27: 1.885040977 | X27: 1.644895623 | Y27: 1.592356689 | Z27: 1.878113689 | AA27: 2.240593151 | AB27: 1.651137773 | AC27: 2.156241202 | AD27: 2.080329346 | AE27: ='User Add-in Location'!B32 -> 0 | AF27: ='User Add-in Location'!C32 -> 0 | AG27: 1.588472538 | AH27: 1.228877666 | AI27: 1.235437953 | AJ27: 1.517498713 | AK27: 1.678648567 | AL27: 1.510279171 | AM27: 1.730346254 | AN27: 1.601898249 | AO27: 1.993967364 | AP27: 1.589697615 | AQ27: 2.004047006 | AR27: 1.881152763 | AS27: 1.436684922 | AT27: 1.575703064 | AU27: 1.776496563 | AV27: 1.849220664 | AW27: 1.998616275 | AX27: 4.136537375 | AY27: 2.257757467 | AZ27: 1.443509375 | BA27: 1.50952567 | BB27: 1.701084835 | BC27: 1.245834223 | BD27: 2.010167867 | BE27: 1.37893346
C28: Electrical Equipment | D28: 2.00198344 | E28: 0 | F28: 2.419003066 | G28: 1.963623119 | H28: 2.46819347 | I28: 2.438621931 | J28: 1.785700478 | K28: 1.47690865 | L28: 0.6618369722 | M28: 2.743473702 | N28: 2.251517411 | O28: 1.951990281 | P28: 2.275527518 | Q28: 2.087844203 | R28: 1.784610541 | S28: 1.88823107 | T28: 1.767970339 | U28: 1.988752324 | V28: 1.56119283 | W28: 2.058046138 | X28: 1.786945553 | Y28: 2.1120939 | Z28: 2.371245305 | AA28: 2.717101753 | AB28: 2.042583125 | AC28: 1.676510469 | AD28: 2.424258186 | AE28: ='User Add-in Location'!B33 -> 0 | AF28: ='User Add-in Location'!C33 -> 0 | AG28: 1.850753989 | AH28: 1.100042423 | AI28: 2.056121718 | AJ28: 1.96962687 | AK28: 1.437903279 | AL28: 2.064196397 | AM28: 2.266683445 | AN28: 2.033587412 | AO28: 2.340057991 | AP28: 2.024501649 | AQ28: 1.101671729 | AR28: 2.071844152 | AS28: 2.173761422 | AT28: 1.675998278 | AU28: 2.139474133 | AV28: 1.939891795 | AW28: 2.238292128 | AX28: 3.584556718 | AY28: 2.796452522 | AZ28: 2.563166823 | BA28: 1.961740458 | BB28: 1.904983485 | BC28: 1.792028504 | BD28: 2.306549895 | BE28: 1.587917748
C29: TCPU | D29: 2.423218054 | E29: 1.234251262 | F29: 2.417477883 | G29: 2.386263388 | H29: 2.318381455 | I29: 2.517959473 | J29: 1.857720103 | K29: 1.964521829 | L29: 1.228023425 | M29: 2.761678793 | N29: 2.462624135 | O29: 2.006116664 | P29: 2.599194807 | Q29: 2.564059933 | R29: 2.422297138 | S29: 2.245537227 | T29: 2.314320102 | U29: 2.314607788 | V29: 2.274938129 | W29: 2.337000909 | X29: 1.973185009 | Y29: 2.08916582 | Z29: 2.470016262 | AA29: 2.743791067 | AB29: 2.421623269 | AC29: 2.428410865 | AD29: 2.500574795 | AE29: ='User Add-in Location'!B34 -> 0 | AF29: ='User Add-in Location'!C34 -> 0 | AG29: 1.578155762 | AH29: 0 | AI29: 2.071439272 | AJ29: 1.946396469 | AK29: 2.183864763 | AL29: 2.214101171 | AM29: 2.305848866 | AN29: 2.10975683 | AO29: 2.294422018 | AP29: 2.323531102 | AQ29: 2.254004101 | AR29: 2.34465891 | AS29: 2.035620196 | AT29: 2.262590595 | AU29: 2.396903864 | AV29: 2.589615533 | AW29: 2.44655046 | AX29: 3.724966444 | AY29: 2.920791826 | AZ29: 2.511165448 | BA29: 2.053490014 | BB29: 1.928387286 | BC29: 2.199101325 | BD29: 2.356693503 | BE29: 1.712212111
C30: Wholesale Trade | D30: 2.156728738 | E30: 1.537777259 | F30: 2.47446701 | G30: 1.852723479 | H30: 2.075659127 | I30: 2.38896365 | J30: 1.61628923 | K30: 1.630476529 | L30: 1.202688467 | M30: 2.662347239 | N30: 2.143685242 | O30: 2.375427584 | P30: 2.609572998 | Q30: 2.100241179 | R30: 2.16937998 | S30: 2.139098154 | T30: 2.093627304 | U30: 1.990510557 | V30: 1.916046836 | W30: 2.432676314 | X30: 1.886581866 | Y30: 1.921275535 | Z30: 2.191256579 | AA30: 2.314221912 | AB30: 2.114577724 | AC30: 2.360595193 | AD30: 2.413913185 | AE30: ='User Add-in Location'!B35 -> 0 | AF30: ='User Add-in Location'!C35 -> 0 | AG30: 2.298960415 | AH30: 1.748734599 | AI30: 2.104123601 | AJ30: 1.772678726 | AK30: 2.158784186 | AL30: 1.650345587 | AM30: 2.341719465 | AN30: 1.790304192 | AO30: 2.314753789 | AP30: 2.187417969 | AQ30: 2.353375739 | AR30: 2.040132838 | AS30: 2.224922115 | AT30: 2.113490629 | AU30: 2.124067588 | AV30: 2.246795848 | AW30: 2.026669039 | AX30: 2.7373629 | AY30: 2.781928042 | AZ30: 2.468676543 | BA30: 1.91064412 | BB30: 1.736869505 | BC30: 1.857349056 | BD30: 2.340242982 | BE30: 1.509584456
C31: Retail Trade | D31: 2.026087659 | E31: 1.648407043 | F31: 2.389389038 | G31: 2.094880694 | H31: 1.916296428 | I31: 2.515363178 | J31: 1.806047562 | K31: 1.961905006 | L31: 1.3182963 | M31: 2.79437014 | N31: 2.376148965 | O31: 1.819152405 | P31: 2.509192716 | Q31: 2.308811227 | R31: 2.232822305 | S31: 2.316977014 | T31: 2.173733642 | U31: 2.269804774 | V31: 1.89285136 | W31: 2.458237599 | X31: 1.947433527 | Y31: 2.140530468 | Z31: 2.232321683 | AA31: 2.456390938 | AB31: 2.045062052 | AC31: 2.501905481 | AD31: 2.65415916 | AE31: ='User Add-in Location'!B36 -> 0 | AF31: ='User Add-in Location'!C36 -> 0 | AG31: 2.397141072 | AH31: 1.71681588 | AI31: 2.236431443 | AJ31: 1.900782508 | AK31: 1.950211578 | AL31: 1.69277526 | AM31: 2.508730603 | AN31: 1.992029218 | AO31: 2.337374464 | AP31: 2.237703149 | AQ31: 2.619117386 | AR31: 2.390209378 | AS31: 2.190856001 | AT31: 2.194468721 | AU31: 2.170909021 | AV31: 2.246612257 | AW31: 2.183741611 | AX31: 2.85241278 | AY31: 2.690846092 | AZ31: 2.247721865 | BA31: 2.05132207 | BB31: 1.519347673 | BC31: 1.84832015 | BD31: 2.412506328 | BE31: 1.710030164
C32: FIRE | D32: 2.672926329 | E32: 1.515002523 | F32: 3.403565446 | G32: 2.485941434 | H32: 2.152271691 | I32: 3.38130586 | J32: 1.889472324 | K32: 1.191061131 | L32: 1.021411763 | M32: 3.878261446 | N32: 2.520645732 | O32: 1.910245539 | P32: 3.477491444 | Q32: 2.336089851 | R32: 2.322165144 | S32: 2.195485735 | T32: 2.730085117 | U32: 2.498029581 | V32: 2.42923894 | W32: 2.498142516 | X32: 1.962908785 | Y32: 1.916349723 | Z32: 2.691694037 | AA32: 2.743977493 | AB32: 2.641649245 | AC32: 2.607271457 | AD32: 2.812825968 | AE32: ='User Add-in Location'!B37 -> 0 | AF32: ='User Add-in Location'!C37 -> 0 | AG32: 2.527044322 | AH32: 0 | AI32: 2.27110257 | AJ32: 2.253544816 | AK32: 2.064098574 | AL32: 1.186696966 | AM32: 2.049237599 | AN32: 2.272276548 | AO32: 2.264706258 | AP32: 2.981819583 | AQ32: 2.590588948 | AR32: 2.477824684 | AS32: 2.19731 | AT32: 2.691993679 | AU32: 1.757509559 | AV32: 2.529782996 | AW32: 3.318630105 | AX32: 3.030891677 | AY32: 3.249955586 | AZ32: 2.356212324 | BA32: 2.067170134 | BB32: 1.962393291 | BC32: 1.8575955 | BD32: 2.472662005 | BE32: 2.293024262
C33: Misc. Services | D33: 2.391045793 | E33: 1.68729931 | F33: 2.816766554 | G33: 2.447200266 | H33: 2.12953962 | I33: 2.645974761 | J33: 2.007974266 | K33: 1.601592508 | L33: 0.9365368548 | M33: 2.949056169 | N33: 2.350960338 | O33: 2.172193818 | P33: 2.847602633 | Q33: 2.051671434 | R33: 2.110613917 | S33: 2.326551286 | T33: 2.533646372 | U33: 2.364222314 | V33: 2.019686888 | W33: 2.837717381 | X33: 2.063325309 | Y33: 2.024249312 | Z33: 2.587198177 | AA33: 2.507469939 | AB33: 2.391963822 | AC33: 2.453167245 | AD33: 2.719559779 | AE33: ='User Add-in Location'!B38 -> 0 | AF33: ='User Add-in Location'!C38 -> 0 | AG33: 2.420023062 | AH33: 1.799711269 | AI33: 2.397519157 | AJ33: 1.949856313 | AK33: 2.216516933 | AL33: 1.585555347 | AM33: 2.428538511 | AN33: 1.998166378 | AO33: 2.55126557 | AP33: 2.42986777 | AQ33: 2.214031347 | AR33: 2.250957692 | AS33: 2.559284564 | AT33: 2.484487368 | AU33: 2.529309421 | AV33: 2.323308191 | AW33: 2.240851104 | AX33: 2.896294141 | AY33: 3.197679741 | AZ33: 2.748779069 | BA33: 1.831675543 | BB33: 2.019034463 | BC33: 2.002864914 | BD33: 2.527157287 | BE33: 1.842741946
C34: Professional Services | D34: 2.248534463 | E34: 1.694080487 | F34: 2.786096654 | G34: 2.068190855 | H34: 2.264161773 | I34: 2.558318385 | J34: 1.867994063 | K34: 1.776466339 | L34: 1.254010714 | M34: 3.029120683 | N34: 2.605051211 | O34: 2.091139681 | P34: 2.75474473 | Q34: 2.377903603 | R34: 2.265441563 | S34: 2.216481605 | T34: 2.312454583 | U34: 2.276239368 | V34: 2.054640669 | W34: 2.600950118 | X34: 2.027942568 | Y34: 2.075984915 | Z34: 2.496147897 | AA34: 2.473432415 | AB34: 2.297373694 | AC34: 2.561215368 | AD34: 2.654966169 | AE34: ='User Add-in Location'!B39 -> 0 | AF34: ='User Add-in Location'!C39 -> 0 | AG34: 2.414114313 | AH34: 1.614957851 | AI34: 2.146222899 | AJ34: 2.014463556 | AK34: 2.322989312 | AL34: 1.817750261 | AM34: 2.5125793 | AN34: 1.918526166 | AO34: 2.435413512 | AP34: 2.375861165 | AQ34: 2.505264541 | AR34: 2.213249922 | AS34: 2.294111378 | AT34: 2.432577343 | AU34: 2.255512268 | AV34: 2.374444882 | AW34: 2.468405603 | AX34: 3.150516026 | AY34: 2.922830104 | AZ34: 2.479608381 | BA34: 2.003782424 | BB34: 1.894285838 | BC34: 1.903541679 | BD34: 2.325163288 | BE34: 1.721607906
C35: Government | D35: 0.5341393522 | E35: 0.1736148769 | F35: 0.8388863152 | G35: 0.4782421612 | H35: 0.4838495129 | I35: 0.3816948612 | J35: 0.7452436203 | K35: 0.09223168162 | L35: 0.03468052929 | M35: 0.5094647703 | N35: 0.09014927011 | O35: 0.2726068163 | P35: 0.7045085394 | Q35: 0.2316607017 | R35: 0.3189855516 | S35: 0.4297921844 | T35: 0.5065916807 | U35: 0.4833245218 | V35: 0.6263016201 | W35: 0.5674986272 | X35: 0.1221430098 | Y35: 0.1649884273 | Z35: 0.3824695821 | AA35: 0.7699592919 | AB35: 0.401656491 | AC35: 0.4769121305 | AD35: 0.5883355082 | AE35: ='User Add-in Location'!B40 -> 0 | AF35: ='User Add-in Location'!C40 -> 0 | AG35: 0.4348514071 | AH35: 0.7641907726 | AI35: 0.3241086031 | AJ35: 0.2488577507 | AK35: 0.5854309031 | AL35: 0.4444807652 | AM35: 0.2627077819 | AN35: 1.087932361 | AO35: 0.3509908602 | AP35: 1.140728274 | AQ35: 0.5922482078 | AR35: 0.4699117172 | AS35: 0.2128224571 | AT35: 0.4951607574 | AU35: 1.216297472 | AV35: 0.6544891743 | AW35: 0.437734071 | AX35: 0.6106213007 | AY35: 0.3667788906 | AZ35: 0.2420767486 | BA35: 0.361158773 | BB35: 0.7186473955 | BC35: 0.4430653637 | BD35: 0.5983510299 | BE35: 0.4077042608
C37: Jobs Per Million Dollars Change in Final Demand
C38: Jobs Induced Multipliers | D38: Alabama | E38: Alaska | F38: Arizona | G38: Arkansas | H38: California | I38: Colorado | J38: Connecticut | K38: Delaware | L38: District of Columbia | M38: Florida | N38: Georgia | O38: Hawaii | P38: Idaho | Q38: Illinois | R38: Indiana | S38: Iowa | T38: Kansas | U38: Kentucky | V38: Louisiana | W38: Maine | X38: Maryland | Y38: Massachusetts | Z38: Michigan | AA38: Minnesota | AB38: Mississippi | AC38: Missouri | AD38: Montana | AE38: MyCounty | AF38: MyRegion | AG38: Nebraska | AH38: Nevada | AI38: New Hampshire | AJ38: New Jersey | AK38: New Mexico | AL38: New York | AM38: North Carolina | AN38: North Dakota | AO38: Ohio | AP38: Oklahoma | AQ38: Oregon | AR38: Pennsylvania | AS38: Rhode Island | AT38: South Carolina | AU38: South Dakota | AV38: Tennessee | AW38: Texas | AX38: United States | AY38: Utah | AZ38: Vermont | BA38: Virginia | BB38: Washington | BC38: West Virginia | BD38: Wisconsin | BE38: Wyoming
C39: Agriculture | D39: 1.794707312 | E39: 1.649150222 | F39: 2.026849456 | G39: 1.660150552 | H39: 2.369801004 | I39: 1.697127758 | J39: 1.250260933 | K39: 1.038418468 | L39: 0.4934282077 | M39: 2.78137248 | N39: 2.781269799 | O39: 2.35165496 | P39: 2.472046597 | Q39: 3.209408042 | R39: 2.223219869 | S39: 1.669330039 | T39: 1.63172601 | U39: 1.739775821 | V39: 1.955917782 | W39: 2.486824429 | X39: 1.323949643 | Y39: 1.981511447 | Z39: 1.928198301 | AA39: 1.924933997 | AB39: 1.98748022 | AC39: 1.844892994 | AD39: 1.406127815 | AE39: ='User Add-in Location'!B44 -> 0 | AF39: ='User Add-in Location'!C44 -> 0 | AG39: 1.762856673 | AH39: 0.9745741113 | AI39: 1.651136847 | AJ39: 2.299985931 | AK39: 2.148710326 | AL39: 1.386038918 | AM39: 1.879581056 | AN39: 0.9138449468 | AO39: 1.85972094 | AP39: 1.015784951 | AQ39: 2.527799329 | AR39: 1.465469359 | AS39: 1.692736933 | AT39: 1.811880754 | AU39: 1.915341946 | AV39: 1.533766927 | AW39: 1.406079645 | AX39: 3.634442342 | AY39: 1.255170172 | AZ39: 1.589455944 | BA39: 1.059209869 | BB39: 2.060472871 | BC39: 0.414305706 | BD39: 1.986191394 | BE39: 0.6690314577
C40: Mining | D40: 1.099679643 | E40: 0.6885730426 | F40: 1.707639383 | G40: 1.441064427 | H40: 1.515722586 | I40: 2.719303325 | J40: 1.496216173 | K40: 2.415380257 | L40: 0.5136019112 | M40: 1.692070367 | N40: 1.992067904 | O40: 1.255637901 | P40: 1.659218042 | Q40: 1.599978171 | R40: 1.73549639 | S40: 1.291221321 | T40: 2.190045108 | U40: 1.224792633 | V40: 1.431481099 | W40: 1.459909536 | X40: 1.313443792 | Y40: 2.113530974 | Z40: 2.138847088 | AA40: 1.823352081 | AB40: 1.901089316 | AC40: 1.581514759 | AD40: 1.966055711 | AE40: ='User Add-in Location'!B45 -> 0 | AF40: ='User Add-in Location'!C45 -> 0 | AG40: 1.611860144 | AH40: 1.022382729 | AI40: 1.489035696 | AJ40: 2.555087283 | AK40: 1.470951868 | AL40: 2.142060211 | AM40: 1.118405156 | AN40: 1.393350325 | AO40: 2.075273555 | AP40: 2.498470306 | AQ40: 1.700408507 | AR40: 1.82757719 | AS40: 1.801788213 | AT40: 1.175511678 | AU40: 1.279071372 | AV40: 1.442316546 | AW40: 2.152451225 | AX40: 3.471256643 | AY40: 2.06731958 | AZ40: 1.195671289 | BA40: 1.694064147 | BB40: 1.014519215 | BC40: 1.251846887 | BD40: 1.55102452 | BE40: 0.7934806623
C41: Construction | D41: 2.204880434 | E41: 1.804629556 | F41: 2.835806679 | G41: 1.904810606 | H41: 2.641936335 | I41: 2.861447173 | J41: 2.358399137 | K41: 2.067108369 | L41: 0.6188673921 | M41: 2.869501822 | N41: 2.598847018 | O41: 2.206407879 | P41: 2.222000455 | Q41: 2.792330388 | R41: 2.426059827 | S41: 2.2481988 | T41: 2.225542756 | U41: 2.089834628 | V41: 2.06649371 | W41: 2.593488234 | X41: 2.380628215 | Y41: 2.529597303 | Z41: 2.735324549 | AA41: 2.811133962 | AB41: 1.857113389 | AC41: 2.753917252 | AD41: 2.185272463 | AE41: ='User Add-in Location'!B46 -> 0 | AF41: ='User Add-in Location'!C46 -> 0 | AG41: 2.327058105 | AH41: 1.385780861 | AI41: 2.884403389 | AJ41: 2.568883913 | AK41: 1.808818896 | AL41: 1.920291611 | AM41: 2.597257539 | AN41: 1.880368755 | AO41: 2.896856999 | AP41: 2.334570354 | AQ41: 2.744379695 | AR41: 2.903752771 | AS41: 2.365142437 | AT41: 2.145564794 | AU41: 2.043410699 | AV41: 2.956966583 | AW41: 2.693015542 | AX41: 4.857479574 | AY41: 2.913917031 | AZ41: 2.419247448 | BA41: 2.214176899 | BB41: 2.059128025 | BC41: 1.92437313 | BD41: 2.646078071 | BE41: 1.208755135
C42: Manufacturing | D42: 1.108840482 | E42: 0.761504249 | F42: 1.962378256 | G42: 1.109171701 | H42: 1.771643505 | I42: 1.907725453 | J42: 1.528411843 | K42: 0.9562937588 | L42: 0.3781193517 | M42: 2.015255056 | N42: 1.583052335 | O42: 1.027393555 | P42: 1.295619405 | Q42: 1.681350079 | R42: 1.208193432 | S42: 1.230596676 | T42: 1.308644786 | U42: 1.05254184 | V42: 0.750603414 | W42: 1.649395724 | X42: 1.294634523 | Y42: 1.601032444 | Z42: 1.583512919 | AA42: 1.897472012 | AB42: 0.9788719595 | AC42: 1.4592328 | AD42: 0.9264163641 | AE42: ='User Add-in Location'!B47 -> 0 | AF42: ='User Add-in Location'!C47 -> 0 | AG42: 1.191373845 | AH42: 0.9151697205 | AI42: 1.788633945 | AJ42: 1.443235905 | AK42: 0.9548449873 | AL42: 1.157122154 | AM42: 1.396303502 | AN42: 0.853091722 | AO42: 1.606435105 | AP42: 1.402315032 | AQ42: 1.68369369 | AR42: 1.634297087 | AS42: 1.600288169 | AT42: 1.205186242 | AU42: 1.218117591 | AV42: 1.442606291 | AW42: 1.447817812 | AX42: 3.545985776 | AY42: 1.630477806 | AZ42: 1.442524113 | BA42: 1.193024129 | BB42: 1.165687128 | BC42: 0.8949973629 | BD42: 1.664327953 | BE42: 0.4489263102
C43: Fabricated Metals | D43: 1.643719843 | E43: 1.328822352 | F43: 2.48944252 | G43: 1.50071011 | H43: 2.366237929 | I43: 2.236813041 | J43: 1.921826534 | K43: 1.619745265 | L43: 0 | M43: 2.626277217 | N43: 2.121462071 | O43: 1.735244636 | P43: 1.835283557 | Q43: 2.469865535 | R43: 1.83875637 | S43: 1.709404989 | T43: 1.681272204 | U43: 1.832531097 | V43: 1.593608008 | W43: 2.107952815 | X43: 1.849339184 | Y43: 2.124156884 | Z43: 2.440352006 | AA43: 2.678483667 | AB43: 1.508825457 | AC43: 2.215696726 | AD43: 1.801379612 | AE43: ='User Add-in Location'!B48 -> 0 | AF43: ='User Add-in Location'!C48 -> 0 | AG43: 1.707463172 | AH43: 1.174136369 | AI43: 2.130581838 | AJ43: 2.200706017 | AK43: 1.310510008 | AL43: 1.619642242 | AM43: 2.113146118 | AN43: 1.295881039 | AO43: 2.427343976 | AP43: 1.850282485 | AQ43: 2.23600645 | AR43: 2.339226593 | AS43: 2.124870408 | AT43: 1.896672861 | AU43: 1.433766806 | AV43: 2.35790114 | AW43: 2.216551009 | AX43: 4.556627719 | AY43: 2.333323934 | AZ43: 2.038385193 | BA43: 1.952326657 | BB43: 1.649840124 | BC43: 1.376470539 | BD43: 2.29721853 | BE43: 0.8742138449
C44: Machinery | D44: 1.151036095 | E44: 0.8607948244 | F44: 1.771327792 | G44: 1.132320441 | H44: 1.958005219 | I44: 1.737020285 | J44: 1.588572935 | K44: 1.426873392 | L44: 0.4038831908 | M44: 2.07952524 | N44: 1.594692287 | O44: 1.155651927 | P44: 1.228443811 | Q44: 1.700753467 | R44: 1.315361865 | S44: 1.122988148 | T44: 1.234265337 | U44: 1.3156063 | V44: 1.156282166 | W44: 1.882384224 | X44: 1.208707936 | Y44: 1.907682218 | Z44: 2.005459763 | AA44: 2.036388122 | AB44: 0.8553875961 | AC44: 1.416819401 | AD44: 1.019219389 | AE44: ='User Add-in Location'!B49 -> 0 | AF44: ='User Add-in Location'!C49 -> 0 | AG44: 1.057085482 | AH44: 0.9105792204 | AI44: 2.693629454 | AJ44: 1.946708044 | AK44: 0.9498336377 | AL44: 1.268264689 | AM44: 1.62977616 | AN44: 0.8180464699 | AO44: 2.006768059 | AP44: 1.485431049 | AQ44: 1.778470383 | AR44: 1.858360288 | AS44: 1.878502046 | AT44: 1.51913803 | AU44: 1.032323017 | AV44: 1.546896625 | AW44: 1.72699148 | AX44: 3.812359254 | AY44: 1.685377497 | AZ44: 2.02433141 | BA44: 1.507865925 | BB44: 1.40739588 | BC44: 1.42529292 | BD44: 1.541284482 | BE44: 0.5896393429
C45: Electrical Equipment | D45: 1.756674491 | E45: 0 | F45: 2.229686245 | G45: 1.422942424 | H45: 2.260849296 | I45: 1.889716669 | J45: 1.651631002 | K45: 1.658727256 | L45: 0.2462602235 | M45: 2.298121314 | N45: 1.733235948 | O45: 0.8944608819 | P45: 1.748062893 | Q45: 2.212259618 | R45: 1.791948252 | S45: 1.500831623 | T45: 1.584046746 | U45: 1.71725491 | V45: 1.493985224 | W45: 1.533903697 | X45: 1.597986251 | Y45: 1.773177401 | Z45: 2.308322442 | AA45: 2.205812846 | AB45: 1.137041489 | AC45: 1.84497793 | AD45: 1.114346445 | AE45: ='User Add-in Location'!B50 -> 0 | AF45: ='User Add-in Location'!C50 -> 0 | AG45: 1.799316524 | AH45: 1.033209482 | AI45: 2.09709047 | AJ45: 1.86406769 | AK45: 1.008157379 | AL45: 1.372951949 | AM45: 1.631007584 | AN45: 1.154953945 | AO45: 2.035908427 | AP45: 1.704823284 | AQ45: 0.9868154244 | AR45: 2.001098799 | AS45: 1.400560924 | AT45: 1.947667044 | AU45: 1.328140889 | AV45: 2.010832179 | AW45: 1.804835846 | AX45: 3.597625697 | AY45: 1.841563012 | AZ45: 1.679048561 | BA45: 1.549402288 | BB45: 1.218519991 | BC45: 1.031977703 | BD45: 2.106071252 | BE45: 0.729022883
C46: TCPU | D46: 1.677560999 | E46: 0.8406013812 | F46: 2.297132878 | G46: 1.775493825 | H46: 2.331564266 | I46: 2.553394891 | J46: 1.729653729 | K46: 1.624755712 | L46: 0.6292101608 | M46: 2.351618475 | N46: 2.259518119 | O46: 1.467386129 | P46: 1.95517927 | Q46: 2.569748675 | R46: 1.957072532 | S46: 1.736733718 | T46: 1.74600028 | U46: 1.729568089 | V46: 1.59314631 | W46: 2.050317892 | X46: 1.670909439 | Y46: 1.976800484 | Z46: 2.259668965 | AA46: 2.444732735 | AB46: 1.504020392 | AC46: 2.175019512 | AD46: 1.906287476 | AE46: ='User Add-in Location'!B51 -> 0 | AF46: ='User Add-in Location'!C51 -> 0 | AG46: 1.96407618 | AH46: 0 | AI46: 1.90344873 | AJ46: 2.043650375 | AK46: 1.504833856 | AL46: 1.749043598 | AM46: 2.098604352 | AN46: 1.530960121 | AO46: 2.228898972 | AP46: 2.234432506 | AQ46: 2.042093473 | AR46: 2.49842048 | AS46: 1.930449303 | AT46: 1.642957528 | AU46: 1.64016826 | AV46: 2.321569878 | AW46: 2.500926309 | AX46: 4.154757928 | AY46: 2.689520833 | AZ46: 2.002320496 | BA46: 1.905419252 | BB46: 1.593321034 | BC46: 1.620362131 | BD46: 2.153056887 | BE46: 0.9791252989
C47: Wholesale Trade | D47: 2.057628508 | E47: 1.224034827 | F47: 2.990613744 | G47: 1.733085966 | H47: 2.348860714 | I47: 2.926689517 | J47: 2.072876697 | K47: 2.011931641 | L47: 0.6279210326 | M47: 3.051366563 | N47: 2.636115505 | O47: 2.006384388 | P47: 2.254841371 | Q47: 2.757553378 | R47: 2.240631347 | S47: 2.134508199 | T47: 2.075224699 | U47: 1.918581138 | V47: 1.81982628 | W47: 2.561067496 | X47: 2.142257688 | Y47: 2.547726943 | Z47: 2.671515888 | AA47: 3.05284018 | AB47: 1.729185324 | AC47: 2.640487222 | AD47: 2.144447846 | AE47: ='User Add-in Location'!B52 -> 0 | AF47: ='User Add-in Location'!C52 -> 0 | AG47: 2.153240618 | AH47: 1.472687015 | AI47: 2.826838352 | AJ47: 2.32623318 | AK47: 1.642047637 | AL47: 1.819238921 | AM47: 2.707614386 | AN47: 1.560605424 | AO47: 2.728656318 | AP47: 1.96612975 | AQ47: 2.617235888 | AR47: 2.632539558 | AS47: 2.535988779 | AT47: 2.111911169 | AU47: 1.943880754 | AV47: 2.542652402 | AW47: 2.371460405 | AX47: 4.066495812 | AY47: 2.818618403 | AZ47: 2.287151621 | BA47: 2.256642959 | BB47: 1.836369361 | BC47: 1.71239217 | BD47: 2.55846543 | BE47: 1.101304315
C48: Retail Trade | D48: 2.447915957 | E48: 2.060249314 | F48: 3.543387168 | G48: 2.423430015 | H48: 2.875505218 | I48: 3.335433878 | J48: 2.727593251 | K48: 2.543114583 | L48: 0.6973198213 | M48: 3.825518319 | N48: 3.24995664 | O48: 2.374591796 | P48: 2.901553925 | Q48: 3.262442645 | R48: 2.718348977 | S48: 2.613935183 | T48: 2.4065817 | U48: 2.760955836 | V48: 2.256943526 | W48: 3.241743836 | X48: 2.614603053 | Y48: 3.126678607 | Z48: 3.065979041 | AA48: 3.352358317 | AB48: 2.29011737 | AC48: 3.216612862 | AD48: 3.144222107 | AE48: ='User Add-in Location'!B53 -> 0 | AF48: ='User Add-in Location'!C53 -> 0 | AG48: 2.580810596 | AH48: 1.172302639 | AI48: 3.535349672 | AJ48: 2.931242667 | AK48: 2.300429832 | AL48: 2.328426847 | AM48: 3.46611445 | AN48: 1.961068769 | AO48: 3.246413774 | AP48: 2.727565265 | AQ48: 3.55526665 | AR48: 3.33014779 | AS48: 3.186632165 | AT48: 2.722089316 | AU48: 2.45150472 | AV48: 3.29204989 | AW48: 2.840851001 | AX48: 4.925249074 | AY48: 3.472514625 | AZ48: 3.039309258 | BA48: 2.613502176 | BB48: 2.169165798 | BC48: 2.251404216 | BD48: 2.984618952 | BE48: 1.466437196
C49: FIRE | D49: 1.862114951 | E49: 1.178146577 | F49: 2.719650239 | G49: 1.50970209 | H49: 2.067046497 | I49: 2.441247622 | J49: 2.196553836 | K49: 1.305017475 | L49: 0.4982934449 | M49: 2.81601957 | N49: 2.223910526 | O49: 1.542936184 | P49: 1.770542968 | Q49: 2.39185289 | R49: 1.724722993 | S49: 1.763973837 | T49: 1.836843915 | U49: 1.858090501 | V49: 1.559414452 | W49: 2.097022552 | X49: 1.707456798 | Y49: 2.417769886 | Z49: 2.225714071 | AA49: 2.869705606 | AB49: 1.525015033 | AC49: 2.171066038 | AD49: 1.68444822 | AE49: ='User Add-in Location'!B54 -> 0 | AF49: ='User Add-in Location'!C54 -> 0 | AG49: 1.81125286 | AH49: 0 | AI49: 2.221067569 | AJ49: 2.037007828 | AK49: 1.163786865 | AL49: 1.871054123 | AM49: 2.554413079 | AN49: 1.364855624 | AO49: 2.17718821 | AP49: 1.826450249 | AQ49: 1.904882947 | AR49: 2.361917137 | AS49: 2.271431357 | AT49: 2.142381223 | AU49: 1.50427859 | AV49: 2.380490624 | AW49: 2.387698884 | AX49: 3.730505765 | AY49: 2.096477231 | AZ49: 1.847419052 | BA49: 1.763319907 | BB49: 1.422667204 | BC49: 1.389118213 | BD49: 1.982803566 | BE49: 0.855843597
C50: Misc. Services | D50: 2.95550471 | E50: 2.210429357 | F50: 4.135759744 | G50: 2.569134238 | H50: 3.503612044 | I50: 3.917657003 | J50: 3.001625614 | K50: 2.670117589 | L50: 0.8615015668 | M50: 4.35482354 | N50: 3.79035304 | O50: 2.732303786 | P50: 2.928540568 | Q50: 3.857410084 | R50: 2.642155572 | S50: 2.702527846 | T50: 2.89303967 | U50: 2.884902975 | V50: 2.702110823 | W50: 3.525691893 | X50: 2.976111535 | Y50: 3.290059522 | Z50: 3.836285911 | AA50: 3.896954817 | AB50: 2.444419289 | AC50: 3.510511945 | AD50: 2.963113508 | AE50: ='User Add-in Location'!B55 -> 0 | AF50: ='User Add-in Location'!C55 -> 0 | AG50: 2.77040218 | AH50: 2.153321484 | AI50: 3.404113094 | AJ50: 3.303471676 | AK50: 2.370277413 | AL50: 2.606369626 | AM50: 3.417968127 | AN50: 2.174025325 | AO50: 3.736107024 | AP50: 2.866310724 | AQ50: 3.045290305 | AR50: 3.57897644 | AS50: 3.308933718 | AT50: 3.131799916 | AU50: 2.441685268 | AV50: 3.607173033 | AW50: 3.462260421 | AX50: 5.635938847 | AY50: 3.775688578 | AZ50: 3.112080091 | BA50: 3.262201554 | BB50: 2.538468814 | BC50: 2.416581592 | BD50: 3.303544076 | BE50: 1.598851972
C51: Professional Services | D51: 2.360102091 | E51: 1.758851323 | F51: 3.448560208 | G51: 2.063254137 | H51: 2.891375248 | I51: 3.12836949 | J51: 2.550723209 | K51: 2.399505294 | L51: 0.7921214472 | M51: 3.606745117 | N51: 3.00312239 | O51: 2.402086271 | P51: 2.592202409 | Q51: 3.18994986 | R51: 2.611645215 | S51: 2.320866689 | T51: 2.350064232 | U51: 2.486840703 | V51: 2.126840007 | W51: 3.116677724 | X51: 2.508864936 | Y51: 2.945265618 | Z51: 3.141332036 | AA51: 3.359018614 | AB51: 2.039285443 | AC51: 2.98879041 | AD51: 2.518188122 | AE51: ='User Add-in Location'!B56 -> 0 | AF51: ='User Add-in Location'!C56 -> 0 | AG51: 2.51084656 | AH51: 1.670943026 | AI51: 3.030631565 | AJ51: 2.808306931 | AK51: 1.910866347 | AL51: 2.246988219 | AM51: 3.090311396 | AN51: 1.749584896 | AO51: 3.243146729 | AP51: 2.32777805 | AQ51: 3.079022352 | AR51: 3.214197396 | AS51: 2.967630858 | AT51: 2.472816395 | AU51: 2.277670741 | AV51: 3.230909893 | AW51: 2.775634 | AX51: 4.864449698 | AY51: 3.086147236 | AZ51: 2.750622014 | BA51: 2.635826756 | BB51: 2.095681786 | BC51: 2.158633843 | BD51: 2.864163835 | BE51: 1.242569185
C52: Government | D52: 3.187812399 | E52: 2.783252898 | F52: 4.284317952 | G52: 3.46850332 | H52: 3.716983684 | I52: 4.306736987 | J52: 2.904248787 | K52: 2.923554377 | L52: 0.7540647474 | M52: 4.820780669 | N52: 4.480329524 | O52: 3.522922877 | P52: 3.86838657 | Q52: 4.488665553 | R52: 3.997331326 | S52: 3.578899056 | T52: 3.631443644 | U52: 3.693392195 | V52: 3.356791118 | W52: 4.538130805 | X52: 2.928325373 | Y52: 2.879406056 | Z52: 4.440258261 | AA52: 4.225297144 | AB52: 3.401229859 | AC52: 4.286926551 | AD52: 3.799006762 | AE52: ='User Add-in Location'!B57 -> 0 | AF52: ='User Add-in Location'!C57 -> 0 | AG52: 3.855253814 | AH52: 2.449293133 | AI52: 3.315474198 | AJ52: 3.776321641 | AK52: 2.273415129 | AL52: 2.812938632 | AM52: 4.508521067 | AN52: 2.6480639 | AO52: 4.336111755 | AP52: 3.240972735 | AQ52: 4.152861935 | AR52: 4.0872927 | AS52: 3.436476469 | AT52: 3.887605393 | AU52: 3.262650559 | AV52: 4.115599535 | AW52: 3.76861592 | AX52: 5.890527433 | AY52: 4.314900678 | AZ52: 4.148815594 | BA52: 3.181387042 | BB52: 2.834084484 | BC52: 3.034465529 | BD52: 4.0313616 | BE52: 2.194085822
C54: Earnings Per Million Dollars Change in Final Demand
C55: Earnings Direct Multipliers | D55: Alabama | E55: Alaska | F55: Arizona | G55: Arkansas | H55: California | I55: Colorado | J55: Connecticut | K55: Delaware | L55: District of Columbia | M55: Florida | N55: Georgia | O55: Hawaii | P55: Idaho | Q55: Illinois | R55: Indiana | S55: Iowa | T55: Kansas | U55: Kentucky | V55: Louisiana | W55: Maine | X55: Maryland | Y55: Massachusetts | Z55: Michigan | AA55: Minnesota | AB55: Mississippi | AC55: Missouri | AD55: Montana | AE55: MyCounty | AF55: MyRegion | AG55: Nebraska | AH55: Nevada | AI55: New Hampshire | AJ55: New Jersey | AK55: New Mexico | AL55: New York | AM55: North Carolina | AN55: North Dakota | AO55: Ohio | AP55: Oklahoma | AQ55: Oregon | AR55: Pennsylvania | AS55: Rhode Island | AT55: South Carolina | AU55: South Dakota | AV55: Tennessee | AW55: Texas | AX55: United States | AY55: Utah | AZ55: Vermont | BA55: Virginia | BB55: Washington | BC55: West Virginia | BD55: Wisconsin | BE55: Wyoming
C56: Agriculture | D56: 0.3103204668 | E56: 0.4505701661 | F56: 0.2704162896 | G56: 0.2665188313 | H56: 0.4341753721 | I56: 0.2026426941 | J56: 0.261302799 | K56: 0.1723911315 | L56: 0.1953337044 | M56: 0.3866027594 | N56: 0.4093496799 | O56: 0.472070992 | P56: 0.3647033572 | Q56: 0.5038968325 | R56: 0.3823819458 | S56: 0.2701869011 | T56: 0.2420204878 | U56: 0.3058318198 | V56: 0.4287427664 | W56: 0.3682408333 | X56: 0.2451748699 | Y56: 0.409360826 | Z56: 0.2866257131 | AA56: 0.2450836301 | AB56: 0.3635153174 | AC56: 0.2667572796 | AD56: 0.2006334513 | AE56: ='User Add-in Location'!B61 -> 0 | AF56: ='User Add-in Location'!C61 -> 0 | AG56: 0.2579934299 | AH56: 0.2638528645 | AI56: 0.2764180005 | AJ56: 0.4745464921 | AK56: 0.4197058976 | AL56: 0.3055047393 | AM56: 0.270775795 | AN56: 0.1850834042 | AO56: 0.2680136859 | AP56: 0.1579313874 | AQ56: 0.387060523 | AR56: 0.2167754471 | AS56: 0.3015445769 | AT56: 0.3101880848 | AU56: 0.3134310842 | AV56: 0.228441298 | AW56: 0.2089340091 | AX56: 0.312792331 | AY56: 0.1602653563 | AZ56: 0.2323851883 | BA56: 0.1767638624 | BB56: 0.4623448253 | BC56: 0.06507598609 | BD56: 0.2711228728 | BE56: 0.195107162
C57: Mining | D57: 0.1338330358 | E57: 0.150090307 | F57: 0.1470705569 | G57: 0.2025732845 | H57: 0.1975326687 | I57: 0.3306520581 | J57: 0.2011651993 | K57: 0.3922881782 | L57: 0.1434792429 | M57: 0.09550613165 | N57: 0.22085163 | O57: 0.149572432 | P57: 0.1952044666 | Q57: 0.1442947984 | R57: 0.2131534219 | S57: 0.1639134288 | T57: 0.266266346 | U57: 0.1439590752 | V57: 0.2308753133 | W57: 0.09461136907 | X57: 0.1272874773 | Y57: 0.2504967451 | Z57: 0.2074867487 | AA57: 0.1885863245 | AB57: 0.2901008129 | AC57: 0.1536700428 | AD57: 0.243768841 | AE57: ='User Add-in Location'!B62 -> 0 | AF57: ='User Add-in Location'!C62 -> 0 | AG57: 0.2138091773 | AH57: 0.2050753981 | AI57: 0.1477106512 | AJ57: 0.360511601 | AK57: 0.2167744786 | AL57: 0.3582278192 | AM57: 0.09005786479 | AN57: 0.283565104 | AO57: 0.2084456086 | AP57: 0.3415932655 | AQ57: 0.1552289426 | AR57: 0.2145908475 | AS57: 0.1974089444 | AT57: 0.1200312674 | AU57: 0.1604036391 | AV57: 0.1366706043 | AW57: 0.2956686318 | AX57: 0.2534255981 | AY57: 0.2158918679 | AZ57: 0.1307824999 | BA57: 0.2219853252 | BB57: 0.1145854294 | BC57: 0.1674328297 | BD57: 0.1791878343 | BE57: 0.1864918768
C58: Construction | D58: 0.2988773584 | E58: 0.3873128593 | F58: 0.2783263028 | G58: 0.2579588592 | H58: 0.3143886328 | I58: 0.3060415983 | J58: 0.3574656844 | K58: 0.3182210922 | L58: 0.3712247908 | M58: 0.2458796352 | N58: 0.2664552927 | O58: 0.3389080763 | P58: 0.2508664131 | Q58: 0.3191417754 | R58: 0.3083456457 | S58: 0.3196384311 | T58: 0.304685235 | U58: 0.2731314003 | V58: 0.3333387375 | W58: 0.2547515035 | X58: 0.3610210419 | Y58: 0.3473448157 | Z58: 0.2896899581 | AA58: 0.2982232869 | AB58: 0.2665721178 | AC58: 0.3068892062 | AD58: 0.2647545636 | AE58: ='User Add-in Location'!B63 -> 0 | AF58: ='User Add-in Location'!C63 -> 0 | AG58: 0.3254828751 | AH58: 0.3188208044 | AI58: 0.3358898163 | AJ58: 0.3601491451 | AK58: 0.2719367743 | AL58: 0.3329314291 | AM58: 0.2619003952 | AN58: 0.3764465451 | AO58: 0.3041750789 | AP58: 0.3141019046 | AQ58: 0.3104065657 | AR58: 0.339431107 | AS58: 0.2936780453 | AT58: 0.2588304877 | AU58: 0.2887916863 | AV58: 0.3321584463 | AW58: 0.3388259709 | AX58: 0.3114612103 | AY58: 0.3049979806 | AZ58: 0.2852696776 | BA58: 0.2995628119 | BB58: 0.3328061402 | BC58: 0.310562402 | BD58: 0.3065212965 | BE58: 0.3057226837
C59: Manufacturing | D59: 0.1214179397 | E59: 0.109378919 | F59: 0.1805358231 | G59: 0.121194154 | H59: 0.1701891869 | I59: 0.1675976366 | J59: 0.2308319658 | K59: 0.117952168 | L59: 0.2314223647 | M59: 0.1645846069 | N59: 0.1431550235 | O59: 0.09947200865 | P59: 0.1127753407 | Q59: 0.1523129344 | R59: 0.1283217072 | S59: 0.1415296197 | T59: 0.1311449409 | U59: 0.1137088984 | V59: 0.06138059869 | W59: 0.1578893065 | X59: 0.1807555407 | Y59: 0.2135095447 | Z59: 0.1457098722 | AA59: 0.1700723767 | AB59: 0.1061895862 | AC59: 0.1353948712 | AD59: 0.06170250103 | AE59: ='User Add-in Location'!B64 -> 0 | AF59: ='User Add-in Location'!C64 -> 0 | AG59: 0.1208953038 | AH59: 0.1809046268 | AI59: 0.2193881124 | AJ59: 0.1695940346 | AK59: 0.08949237317 | AL59: 0.174881503 | AM59: 0.1276416332 | AN59: 0.1045626476 | AO59: 0.1385996193 | AP59: 0.1377674639 | AQ59: 0.1641853303 | AR59: 0.1544600874 | AS59: 0.1930220872 | AT59: 0.1349660754 | AU59: 0.1433900893 | AV59: 0.1371498108 | AW59: 0.09832782298 | AX59: 0.1408669055 | AY59: 0.1303875148 | AZ59: 0.1548723131 | BA59: 0.147487998 | BB59: 0.1516273767 | BC59: 0.1116141528 | BD59: 0.1683022231 | BE59: 0.05220851675
C60: Fabricated Metals | D60: 0.2285708934 | E60: 0.2686025202 | F60: 0.2505421638 | G60: 0.2233941108 | H60: 0.2694062889 | I60: 0.2384170592 | J60: 0.30066517 | K60: 0.2722953856 | L60: 0 | M60: 0.2452059984 | N60: 0.2315565944 | O60: 0.2487884611 | P60: 0.2286091298 | Q60: 0.2847034931 | R60: 0.2378993928 | S60: 0.2467499226 | T60: 0.2350469083 | U60: 0.2639053166 | V60: 0.2600204051 | W60: 0.2356425375 | X60: 0.2778027356 | Y60: 0.3058469296 | Z60: 0.278095305 | AA60: 0.2986805737 | AB60: 0.2304110229 | AC60: 0.2632962763 | AD60: 0.2411975265 | AE60: ='User Add-in Location'!B65 -> 0 | AF60: ='User Add-in Location'!C65 -> 0 | AG60: 0.2393271476 | AH60: 0.2461233884 | AI60: 0.2714495659 | AJ60: 0.314255476 | AK60: 0.1962548643 | AL60: 0.2826020122 | AM60: 0.2265233546 | AN60: 0.2530391216 | AO60: 0.2680537403 | AP60: 0.2672296762 | AQ60: 0.2611647546 | AR60: 0.2741366327 | AS60: 0.2677997649 | AT60: 0.2573975921 | AU60: 0.2104467899 | AV60: 0.2848803401 | AW60: 0.2666967213 | AX60: 0.26399979 | AY60: 0.2388427705 | AZ60: 0.2719531655 | BA60: 0.2888541222 | BB60: 0.2597940564 | BC60: 0.2178938985 | BD60: 0.2810118496 | BE60: 0.2173202187
